Workbook

Sheet Instructions
C1: Philmont 2025 Itineraries - 9 Day Treks
B4: Questions or suggestions regarding this spreadsheet may be e-mailed to the author Sid Covington at sid_c@swbell.net
B6: ="Updated "&getlastsavedate()&" - Revision " & getSpreadsheetProperty("Revision") -> Updated 1/7/2025 4:20PM - Revision 2025_1-0
B7: Revision History: | F7: Note: Use Ctrl-F1 to show/hide the Excel ribbon
C8: 2025_1-0 | D8: Original 2025 Update

Sheet Preferences
A1: Set Crew preferences below
A3: Philmont is divided into four areas. Is it important to you | E3: Altitude Factors:
A4: which area you go to? | B4: y | C4: =IF(UPPER(B4)="Y","",IF(UPPER(B4)="N","","ERROR-Must be Y or N")) ->  | E4: Altitude factors may be included or excluded from the calculations. There are three different factors in the calculation that relate to altitude.
A5: If it is important, rank your preference in 1, 2, 3, 4 order with
A6: 1 being the most preferred, 4 being least.
A7: South Country | B7: 3 | C7: =IF(B7<1,"ERROR-Must be in 1-4 range",IF(B7>4,"ERROR-Must be in 1-4 range","")) ->  | E7: Factor: | F7: Include?
A8: Central Country | B8: 4 | C8: =IF(B8<1,"ERROR-Must be in 1-4 range",IF(B8>4,"ERROR-Must be in 1-4 range","")) ->  | E8: Highest camp elevation: | F8: n | G8: =IF(UPPER(F8)="Y","",IF(UPPER(F8)="N","","ERROR-enter a 'y' or 'n'")) -> 
A9: North Country | B9: 1 | C9: =IF(B9<1,"ERROR-Must be in 1-4 range",IF(B9>4,"ERROR-Must be in 1-4 range","")) ->  | E9: Trek camp elevation change: | F9: n | G9: =IF(UPPER(F9)="Y","",IF(UPPER(F9)="N","","ERROR-enter a 'y' or 'n'")) -> 
A10: Valle Vidal | B10: 2 | C10: =IF(B10<1,"ERROR-Must be in 1-4 range",IF(B10>4,"ERROR-Must be in 1-4 range","")) ->  | E10: Average daily change: | F10: y | G10: =IF(UPPER(F10)="Y","",IF(UPPER(F10)="N","","ERROR-enter a 'y' or 'n'")) -> 
A11: =IF(LOWER(areaImportant)="y",(IF(validAreaRanking(),"","ERROR—rank preferences 1 to 4")),"") -> 
A13: Rate the capability of your crew on a scale of 1 to 10 with | E13: How much more important are programs than the other factors such as distance, country, altitude, Tooth of Time, etc. in your selection of an itinerary? Enter y if programs are more important, n if should be treated as lower priority than other factors.
A14: 1 indicating a young crew with little backpacking experience
A15: and 10 indicating an older crew with a lot of experience.
A17: Capability | B17: 6
A18: =IF(B17>0,IF(B17<11,"","ERROR-must be less than 10"),"ERROR-must be greater than 0") ->  | E18: Programs more important? | F18: y
A20: Many itineraries return to Base Camp via bus but some hike in (not necessarily over the Tooth of Time).
E21: Include Itineraries with an Itinerary Rating of:
A22: Is it important to hike into Base Camp? | G22: Include?
B23: n | E23: Challenging | F23: C | G23: y
E24: Rugged | F24: R | G24: y
A25: Most itineraries depart Base Camp to the trailhead by bus. There are some that hike out of Base Camp to the first camp. | E25: Strenuous | F25: S | G25: y
E26: Super Strenuous | F26: SS | G26: y
A27: Is it important to hike out of Base Camp?
B28: n
A30: A key part of a Philmont Trek is climbing peaks. Is it important to you to climb the following peaks?
A32: Baldy Peak | B32: y
A33: Mount Phillips | B33: y
A34: Tooth of Time | B34: y
A35: Inspiration Point | B35: y
A36: Trail Peak | B36: n
A37: Others (Mountaineering) | B37: n

Sheet Scores
A1: Program: | B1: Crewmember 1 | C1: Crewmember 2 | D1: Crewmember 3 | E1: Crewmember 4 | F1: Crewmember 5 | G1: Crewmember 6 | H1: Crewmember 7 | I1: Crewmember 8 | J1: Crewmember 9 | K1: Crewmember 10 | L1: Crewmember 11 | M1: Crewmember 12
A2: =INDEX(program_table,ROW()-1) -> Climbing: Bouldering Gym | B2: 15 | C2: 15 | D2: 15 | E2: 15 | F2: 15 | G2: 15 | H2: 15 | I2: 15 | J2: 15 | K2: 15 | L2: 2 | M2: 0
A3: =INDEX(program_table,ROW()-1) -> Climbing: Climbing Wall/Tower | B3: 20 | C3: 20 | D3: 20 | E3: 20 | F3: 20 | G3: 20 | H3: 20 | I3: 19 | J3: 18 | K3: 17 | L3: 16 | M3: 15
A4: =INDEX(program_table,ROW()-1) -> Climbing: Crate Stacking | B4: 2 | C4: 13 | D4: 10 | E4: 2 | F4: 0 | G4: 7 | H4: 13 | I4: 10 | J4: 2 | K4: 0 | L4: 7 | M4: 10
A5: =INDEX(program_table,ROW()-1) -> Climbing: Rock Climbing | B5: 18 | C5: 18 | D5: 18 | E5: 18 | F5: 18 | G5: 18 | H5: 18 | I5: 18 | J5: 18 | K5: 18 | L5: 5 | M5: 3
A6: =INDEX(program_table,ROW()-1) -> COPE: High Challenge Course | B6: 2 | C6: 0 | D6: 15 | E6: 0 | F6: 18 | G6: 20 | H6: 0 | I6: 15 | J6: 0 | K6: 18 | L6: 20 | M6: 0
A7: =INDEX(program_table,ROW()-1) -> COPE: Initiative Games | B7: 2 | C7: 20 | D7: 0 | E7: 14 | F7: 6 | G7: 10 | H7: 20 | I7: 0 | J7: 14 | K7: 6 | L7: 10 | M7: 9
A8: =INDEX(program_table,ROW()-1) -> COPE: Low Challenge Course | B8: 2 | C8: 20 | D8: 0 | E8: 14 | F8: 6 | G8: 10 | H8: 20 | I8: 0 | J8: 14 | K8: 6 | L8: 10 | M8: 9
A9: =INDEX(program_table,ROW()-1) -> Ecology: Demonstration Forest | B9: 2 | C9: 5 | D9: 15 | E9: 0 | F9: 20 | G9: 7 | H9: 5 | I9: 15 | J9: 0 | K9: 0 | L9: 7 | M9: 8
A10: =INDEX(program_table,ROW()-1) -> Ecology: Self-Guided Fishing | B10: 2 | C10: 19 | D10: 0 | E10: 0 | F10: 9 | G10: 9 | H10: 19 | I10: 0 | J10: 0 | K10: 9 | L10: 9 | M10: 11
A11: =INDEX(program_table,ROW()-1) -> Evening: Advisor Coffee | B11: 2 | C11: 10 | D11: 5 | E11: 0 | F11: 0 | G11: 7 | H11: 10 | I11: 5 | J11: 0 | L11: 7 | M11: 15
A12: =INDEX(program_table,ROW()-1) -> Evening: Campfire Show | B12: 2 | C12: 20 | D12: 5 | E12: 0 | F12: 0 | G12: 5 | H12: 20 | I12: 5 | J12: 0 | L12: 5 | M12: 11
A13: =INDEX(program_table,ROW()-1) -> Evening: Chuckwagon Dinner | B13: 2 | C13: 11 | E13: 13 | G13: 4 | H13: 10 | J13: 15 | K13: 0 | M13: 18
A14: =INDEX(program_table,ROW()-1) -> Historical: Adobe Brick-Making | B14: 2 | C14: 10 | D14: 0 | E14: 13 | F14: 0 | G14: 4 | H14: 10 | I14: 0 | J14: 13 | K14: 0 | L14: 4 | M14: 18
A15: =INDEX(program_table,ROW()-1) -> Historical: Blacksmithing | B15: 2 | C15: 13 | D15: 10 | E15: 2 | G15: 7 | H15: 13 | I15: 10 | J15: 2 | K15: 0 | L15: 7 | M15: 10
A16: =INDEX(program_table,ROW()-1) -> Historical: Cabin Restoration | B16: 2 | C16: 12 | D16: 5 | E16: 3 | G16: 10 | H16: 12 | I16: 5 | J16: 3 | K16: 0 | L16: 10 | M16: 20
A17: =INDEX(program_table,ROW()-1) -> Historical: Cabin/House Tour | B17: 2 | C17: 8 | D17: 0 | E17: 16 | F17: 5 | G17: 8 | H17: 0 | I17: 8 | J17: 16 | K17: 8 | L17: 3 | M17: 10
A18: =INDEX(program_table,ROW()-1) -> Historical: Crafting | B18: 2 | C18: 1 | D18: 1 | E18: 17 | F18: 6 | G18: 4 | H18: 1 | I18: 1 | J18: 17 | K18: 6 | L18: 4 | M18: 11
A19: =INDEX(program_table,ROW()-1) -> Historical: Crosscut & Tie Making | B19: 2 | C19: 10 | D19: 6 | E19: 15 | F19: 10 | G19: 5 | H19: 10 | I19: 0 | K19: 1 | L19: 20 | M19: 18
A20: =INDEX(program_table,ROW()-1) -> Historical: Flint Knapping | B20: 2 | C20: 3 | D20: 5 | E20: 0 | F20: 0 | G20: 5 | H20: 20 | I20: 5 | J20: 0 | K20: 0 | L20: 7 | M20: 15
A21: =INDEX(program_table,ROW()-1) -> Historical: Fur Trapper Rendezvous | B21: 2 | C21: 2 | D21: 15 | E21: 18 | F21: 0 | G21: 10 | H21: 2 | I21: 15 | J21: 18 | K21: 0 | L21: 10 | M21: 12
A22: =INDEX(program_table,ROW()-1) -> Historical: Gold Panning | B22: 2 | C22: 19 | D22: 0 | E22: 6 | F22: 0 | G22: 12 | H22: 19 | I22: 0 | J22: 6 | K22: 0 | L22: 12 | M22: 0
A23: =INDEX(program_table,ROW()-1) -> Historical: Mine Tour | B23: 15 | C23: 2 | D23: 0 | E23: 12 | F23: 0 | G23: 12 | H23: 2 | I23: 10 | J23: 8 | K23: 0 | L23: 20 | M23: 5
A24: =INDEX(program_table,ROW()-1) -> Historical: Petroglyph Tour | B24: 2 | C24: 6 | D24: 5 | E24: 8 | F24: 9 | G24: 10 | H24: 7 | I24: 7 | J24: 3 | K24: 2 | L24: 1 | M24: 9
A25: =INDEX(program_table,ROW()-1) -> Historical: Pump Car Rides | B25: 2 | D25: 15 | F25: 18 | G25: 20 | H25: 0 | I25: 15 | J25: 0 | K25: 18 | L25: 20
A26: =INDEX(program_table,ROW()-1) -> Historical: Railroad Construction | B26: 2 | C26: 16 | D26: 10 | E26: 15 | F26: 0 | G26: 20 | H26: 16 | I26: 10 | J26: 15 | K26: 0 | L26: 20 | M26: 10
A27: =INDEX(program_table,ROW()-1) -> Historical: Spar Pole Climbing | B27: 2 | D27: 10 | E27: 5 | F27: 10 | H27: 10 | I27: 20 | J27: 5 | K27: 15 | L27: 2 | M27: 18
A28: =INDEX(program_table,ROW()-1) -> Landmarks: Baldy Mountain | B28: 2 | C28: 0 | D28: 15 | F28: 17 | G28: 12 | H28: 0 | I28: 15 | J28: 0 | K28: 17 | L28: 12 | M28: 10
A29: =INDEX(program_table,ROW()-1) -> Landmarks: Inspiration Point | B29: 15 | C29: 0 | D29: 15 | F29: 19 | G29: 12 | H29: 0 | I29: 15 | J29: 0 | K29: 19 | L29: 12 | M29: 10
A30: =INDEX(program_table,ROW()-1) -> Landmarks: Mount Phillips | B30: 15 | C30: 0 | D30: 15 | F30: 12 | G30: 12 | H30: 0 | I30: 15 | K30: 12 | L30: 12 | M30: 10
A31: =INDEX(program_table,ROW()-1) -> Landmarks: Mountaineering | B31: 15 | C31: 0 | D31: 15 | F31: 11 | G31: 12 | H31: 10 | I31: 15 | J31: 15 | K31: 11 | L31: 12 | M31: 10
A32: =INDEX(program_table,ROW()-1) -> Landmarks: Tooth of Time | B32: 18 | C32: 17 | D32: 6 | F32: 12 | G32: 13 | H32: 5 | I32: 16 | J32: 3 | K32: 13 | L32: 14 | M32: 18
A33: =INDEX(program_table,ROW()-1) -> Landmarks: Trail Peak | B33: 10 | C33: 0 | D33: 5 | F33: 16 | G33: 9 | H33: 0 | I33: 5 | J33: 0 | K33: 16 | M33: 0
A34: =INDEX(program_table,ROW()-1) -> Livestock: Animal Husbandry | B34: 19 | C34: 20 | E34: 14 | F34: 7 | G34: 10 | H34: 20 | J34: 14 | K34: 7 | L34: 2 | M34: 8
A35: =INDEX(program_table,ROW()-1) -> Livestock: Burro Packing | B35: 19 | C35: 20 | D35: 0 | E35: 14 | F35: 7 | G35: 10 | H35: 20 | I35: 18 | J35: 14 | K35: 7 | L35: 10 | M35: 8
A36: =INDEX(program_table,ROW()-1) -> Livestock: Chicken Tending | B36: 18 | C36: 5 | D36: 10 | E36: 5 | F36: 19 | G36: 20 | I36: 10 | J36: 15 | K36: 5 | L36: 14 | M36: 19
A37: =INDEX(program_table,ROW()-1) -> Livestock: Horse Rides | B37: 20 | C37: 5 | D37: 16 | E37: 20 | F37: 20 | G37: 1 | H37: 15 | I37: 15 | K37: 18 | L37: 20 | M37: 20
A38: =INDEX(program_table,ROW()-1) -> Low Impact Camping | B38: 14 | C38: 15 | D38: 10 | E38: 17 | F38: 20 | G38: 4 | H38: 20 | I38: 15 | J38: 17 | L38: 5 | M38: 20
A39: =INDEX(program_table,ROW()-1) -> Range Sports: 3D Archery | B39: 19 | C39: 20 | E39: 14 | F39: 7 | G39: 10 | H39: 20 | J39: 14 | K39: 7 | L39: 10 | M39: 8
A40: =INDEX(program_table,ROW()-1) -> Range Sports: Aerial Archery | B40: 8 | C40: 2 | D40: 10 | E40: 20 | F40: 0 | G40: 12 | H40: 2 | I40: 10 | J40: 15 | K40: 0 | L40: 12 | M40: 10
A41: =INDEX(program_table,ROW()-1) -> Range Sports: Atlatl Throwing | B41: 10 | C41: 5 | D41: 5 | E41: 7 | F41: 4 | G41: 12 | H41: 5 | I41: 5 | J41: 7 | K41: 4 | L41: 12 | M41: 15
A42: =INDEX(program_table,ROW()-1) -> Range Sports: Cartridge Reloading | B42: 18 | C42: 17 | D42: 6 | F42: 12 | G42: 13 | H42: 5 | I42: 16 | J42: 3 | K42: 13 | L42: 14 | M42: 18
A43: =INDEX(program_table,ROW()-1) -> Range Sports: Cowboy Action Shooting | B43: 15 | C43: 10 | D43: 20 | E43: 15 | F43: 12 | G43: 20 | H43: 10 | I43: 6 | J43: 10 | K43: 5 | M43: 15
A44: =INDEX(program_table,ROW()-1) -> Range Sports: Field Archery | B44: 10 | C44: 0 | D44: 5 | F44: 16 | G44: 9 | H44: 0 | I44: 5 | J44: 0 | K44: 16 | M44: 0
A45: =INDEX(program_table,ROW()-1) -> Range Sports: Muzzleloader Shooting | B45: 19 | C45: 20 | E45: 14 | F45: 7 | G45: 10 | H45: 20 | J45: 14 | K45: 7 | L45: 2 | M45: 8
A46: =INDEX(program_table,ROW()-1) -> Range Sports: Rifle Shooting | B46: 19 | C46: 20 | D46: 0 | E46: 14 | F46: 7 | G46: 10 | H46: 20 | I46: 18 | J46: 14 | K46: 7 | L46: 10 | M46: 8
A47: =INDEX(program_table,ROW()-1) -> Range Sports: Shotgun Shooting | B47: 18 | C47: 5 | D47: 10 | E47: 5 | F47: 19 | G47: 20 | I47: 10 | J47: 15 | K47: 5 | L47: 14 | M47: 19
A48: =INDEX(program_table,ROW()-1) -> Range Sports: Shotshell Reloading | B48: 20 | C48: 5 | D48: 16 | E48: 20 | F48: 20 | G48: 1 | H48: 15 | I48: 15 | K48: 18 | L48: 20 | M48: 20
A49: =INDEX(program_table,ROW()-1) -> Range Sports: Tomahawk Throwing | B49: 14 | C49: 15 | D49: 10 | E49: 17 | F49: 20 | G49: 4 | H49: 20 | I49: 15 | J49: 17 | L49: 5 | M49: 20
A50: =INDEX(program_table,ROW()-1) -> STEM: Archeology | B50: 15 | C50: 10 | D50: 20 | E50: 15 | F50: 12 | G50: 20 | H50: 10 | I50: 6 | J50: 10 | K50: 5 | M50: 15
A51: =INDEX(program_table,ROW()-1) -> STEM: Astronomy | B51: 15 | C51: 10 | D51: 20 | E51: 15 | F51: 12 | G51: 20 | H51: 10 | I51: 6 | J51: 10 | K51: 5 | M51: 15
A52: =INDEX(program_table,ROW()-1) -> STEM: Geology | B52: 10 | C52: 0 | D52: 5 | F52: 16 | G52: 9 | H52: 0 | I52: 5 | J52: 0 | K52: 16 | M52: 0
A53: =INDEX(program_table,ROW()-1) -> Western Lore: Branding | B53: 11 | C53: 18 | D53: 20 | E53: 15 | G53: 10 | H53: 20 | J53: 15 | K53: 18 | L53: 10 | M53: 20
A54: =INDEX(program_table,ROW()-1) -> Western Lore: Cantina | B54: 11 | C54: 18 | E54: 0 | G54: 10 | H54: 20 | J54: 0 | L54: 10 | M54: 20
A55: =INDEX(program_table,ROW()-1) -> Western Lore: Roping | B55: 20 | C55: 14 | D55: 16 | E55: 20 | F55: 20 | H55: 15 | I55: 15 | J55: 12 | K55: 18 | L55: 20 | M55: 20

Sheet Results
A1: Philmont Trek Itinerary Selection
E2: Choice | I2: # X's | J2: Pgm Index | K2: Top Itinerary/Program Cross Reference
A3: Itinerary | B3: Classification | C3: Distance | D3: =IF(meanMedian="Mean","Average",meanMedian) & " Score" -> Total Score | G3: Program (by Popularity) | H3: Value | K3: 9-11 | L3: 9-12 | M3: 9-6 | N3: 9-10 | O3: 9-8 | P3: 9-4
A4: 9-11 | B4: Super Strenuous | C4: 53 | D4: 13599.5 | E4: #1 | G4: Climbing: Climbing Wall/Tower | H4: 225 | I4: =COUNTIF(K4:P4,"X") -> 0 | J4: 2 | K4: =IF($G4=0,"",IF(INDEX(itineraryPrograms,numericItinerary(K$3),$J4)="y","X","")) ->  | L4: =IF($G4=0,"",IF(INDEX(itineraryPrograms,numericItinerary(L$3),$J4)="y","X","")) ->  | M4: =IF($G4=0,"",IF(INDEX(itineraryPrograms,numericItinerary(M$3),$J4)="y","X","")) ->  | N4: =IF($G4=0,"",IF(INDEX(itineraryPrograms,numericItinerary(N$3),$J4)="y","X","")) ->  | O4: =IF($G4=0,"",IF(INDEX(itineraryPrograms,numericItinerary(O$3),$J4)="y","X","")) ->  | P4: =IF($G4=0,"",IF(INDEX(itineraryPrograms,numericItinerary(P$3),$J4)="y","X","")) -> 
A5: 9-12 | B5: Super Strenuous | C5: 57 | D5: 13374.5 | E5: #2 | G5: Western Lore: Roping | H5: 190 | I5: 4 | J5: 54 | K5: =IF($G5=0,"",IF(INDEX(itineraryPrograms,numericItinerary(K$3),$J5)="y","X","")) ->  | L5: =IF($G5=0,"",IF(INDEX(itineraryPrograms,numericItinerary(L$3),$J5)="y","X","")) ->  | M5: =IF($G5=0,"",IF(INDEX(itineraryPrograms,numericItinerary(M$3),$J5)="y","X","")) -> X | N5: =IF($G5=0,"",IF(INDEX(itineraryPrograms,numericItinerary(N$3),$J5)="y","X","")) -> X | O5: =IF($G5=0,"",IF(INDEX(itineraryPrograms,numericItinerary(O$3),$J5)="y","X","")) -> X | P5: =IF($G5=0,"",IF(INDEX(itineraryPrograms,numericItinerary(P$3),$J5)="y","X","")) -> X
A6: 9-6 | B6: Rugged | C6: 62 | D6: 13363.2 | E6: #3 | G6: Climbing: Rock Climbing | H6: 188 | I6: 0 | J6: 4 | K6: =IF($G6=0,"",IF(INDEX(itineraryPrograms,numericItinerary(K$3),$J6)="y","X","")) ->  | L6: =IF($G6=0,"",IF(INDEX(itineraryPrograms,numericItinerary(L$3),$J6)="y","X","")) ->  | M6: =IF($G6=0,"",IF(INDEX(itineraryPrograms,numericItinerary(M$3),$J6)="y","X","")) ->  | N6: =IF($G6=0,"",IF(INDEX(itineraryPrograms,numericItinerary(N$3),$J6)="y","X","")) ->  | O6: =IF($G6=0,"",IF(INDEX(itineraryPrograms,numericItinerary(O$3),$J6)="y","X","")) ->  | P6: =IF($G6=0,"",IF(INDEX(itineraryPrograms,numericItinerary(P$3),$J6)="y","X","")) -> 
A7: 9-10 | B7: Super Strenuous | C7: 53 | D7: 12817 | E7: #4 | G7: Range Sports: Cowboy Action Shooting | H7: 170 | I7: 1 | J7: 42 | K7: =IF($G7=0,"",IF(INDEX(itineraryPrograms,numericItinerary(K$3),$J7)="y","X","")) ->  | L7: =IF($G7=0,"",IF(INDEX(itineraryPrograms,numericItinerary(L$3),$J7)="y","X","")) -> X | M7: =IF($G7=0,"",IF(INDEX(itineraryPrograms,numericItinerary(M$3),$J7)="y","X","")) ->  | N7: =IF($G7=0,"",IF(INDEX(itineraryPrograms,numericItinerary(N$3),$J7)="y","X","")) ->  | O7: =IF($G7=0,"",IF(INDEX(itineraryPrograms,numericItinerary(O$3),$J7)="y","X","")) ->  | P7: =IF($G7=0,"",IF(INDEX(itineraryPrograms,numericItinerary(P$3),$J7)="y","X","")) -> 
A8: 9-8 | B8: Strenuous | C8: 44 | D8: 11933.8 | E8: #5 | G8: Livestock: Horse Rides | H8: 170 | I8: 4 | J8: 36 | K8: =IF($G8=0,"",IF(INDEX(itineraryPrograms,numericItinerary(K$3),$J8)="y","X","")) -> X | L8: =IF($G8=0,"",IF(INDEX(itineraryPrograms,numericItinerary(L$3),$J8)="y","X","")) ->  | M8: =IF($G8=0,"",IF(INDEX(itineraryPrograms,numericItinerary(M$3),$J8)="y","X","")) -> X | N8: =IF($G8=0,"",IF(INDEX(itineraryPrograms,numericItinerary(N$3),$J8)="y","X","")) ->  | O8: =IF($G8=0,"",IF(INDEX(itineraryPrograms,numericItinerary(O$3),$J8)="y","X","")) -> X | P8: =IF($G8=0,"",IF(INDEX(itineraryPrograms,numericItinerary(P$3),$J8)="y","X","")) -> X
A9: 9-4 | B9: Rugged | C9: 42 | D9: 11543.4 | E9: #6 | G9: Range Sports: Field Archery | H9: 157 | I9: 0 | J9: 43 | K9: =IF($G9=0,"",IF(INDEX(itineraryPrograms,numericItinerary(K$3),$J9)="y","X","")) ->  | L9: =IF($G9=0,"",IF(INDEX(itineraryPrograms,numericItinerary(L$3),$J9)="y","X","")) ->  | M9: =IF($G9=0,"",IF(INDEX(itineraryPrograms,numericItinerary(M$3),$J9)="y","X","")) ->  | N9: =IF($G9=0,"",IF(INDEX(itineraryPrograms,numericItinerary(N$3),$J9)="y","X","")) ->  | O9: =IF($G9=0,"",IF(INDEX(itineraryPrograms,numericItinerary(O$3),$J9)="y","X","")) ->  | P9: =IF($G9=0,"",IF(INDEX(itineraryPrograms,numericItinerary(P$3),$J9)="y","X","")) -> 
A10: 9-1 | B10: Challenging | C10: 40 | D10: 11089.3 | G10: Western Lore: Branding | H10: 157 | I10: 2 | J10: 52 | K10: =IF($G10=0,"",IF(INDEX(itineraryPrograms,numericItinerary(K$3),$J10)="y","X","")) -> X | L10: =IF($G10=0,"",IF(INDEX(itineraryPrograms,numericItinerary(L$3),$J10)="y","X","")) ->  | M10: =IF($G10=0,"",IF(INDEX(itineraryPrograms,numericItinerary(M$3),$J10)="y","X","")) ->  | N10: =IF($G10=0,"",IF(INDEX(itineraryPrograms,numericItinerary(N$3),$J10)="y","X","")) -> X | O10: =IF($G10=0,"",IF(INDEX(itineraryPrograms,numericItinerary(O$3),$J10)="y","X","")) ->  | P10: =IF($G10=0,"",IF(INDEX(itineraryPrograms,numericItinerary(P$3),$J10)="y","X","")) -> 
A11: 9-9 | B11: Strenuous | C11: 42 | D11: 11007.1 | G11: Low Impact Camping | H11: 157 | I11: 1 | J11: 37 | K11: =IF($G11=0,"",IF(INDEX(itineraryPrograms,numericItinerary(K$3),$J11)="y","X","")) ->  | L11: =IF($G11=0,"",IF(INDEX(itineraryPrograms,numericItinerary(L$3),$J11)="y","X","")) ->  | M11: =IF($G11=0,"",IF(INDEX(itineraryPrograms,numericItinerary(M$3),$J11)="y","X","")) ->  | N11: =IF($G11=0,"",IF(INDEX(itineraryPrograms,numericItinerary(N$3),$J11)="y","X","")) ->  | O11: =IF($G11=0,"",IF(INDEX(itineraryPrograms,numericItinerary(O$3),$J11)="y","X","")) ->  | P11: =IF($G11=0,"",IF(INDEX(itineraryPrograms,numericItinerary(P$3),$J11)="y","X","")) -> X
A12: 9-7 | B12: Strenuous | C12: 42 | D12: 10761.1 | G12: Climbing: Bouldering Gym | H12: 152 | I12: 0 | J12: 1 | K12: =IF($G12=0,"",IF(INDEX(itineraryPrograms,numericItinerary(K$3),$J12)="y","X","")) ->  | L12: =IF($G12=0,"",IF(INDEX(itineraryPrograms,numericItinerary(L$3),$J12)="y","X","")) ->  | M12: =IF($G12=0,"",IF(INDEX(itineraryPrograms,numericItinerary(M$3),$J12)="y","X","")) ->  | N12: =IF($G12=0,"",IF(INDEX(itineraryPrograms,numericItinerary(N$3),$J12)="y","X","")) ->  | O12: =IF($G12=0,"",IF(INDEX(itineraryPrograms,numericItinerary(O$3),$J12)="y","X","")) ->  | P12: =IF($G12=0,"",IF(INDEX(itineraryPrograms,numericItinerary(P$3),$J12)="y","X","")) -> 
A13: 9-5 | B13: Rugged | C13: 36 | D13: 10674.2 | G13: Livestock: Burro Packing | H13: 147 | I13: 5 | J13: 34 | K13: =IF($G13=0,"",IF(INDEX(itineraryPrograms,numericItinerary(K$3),$J13)="y","X","")) -> X | L13: =IF($G13=0,"",IF(INDEX(itineraryPrograms,numericItinerary(L$3),$J13)="y","X","")) -> X | M13: =IF($G13=0,"",IF(INDEX(itineraryPrograms,numericItinerary(M$3),$J13)="y","X","")) -> X | N13: =IF($G13=0,"",IF(INDEX(itineraryPrograms,numericItinerary(N$3),$J13)="y","X","")) ->  | O13: =IF($G13=0,"",IF(INDEX(itineraryPrograms,numericItinerary(O$3),$J13)="y","X","")) -> X | P13: =IF($G13=0,"",IF(INDEX(itineraryPrograms,numericItinerary(P$3),$J13)="y","X","")) -> X
A14: 9-2 | B14: Challenging | C14: 36 | D14: 10262 | G14: Range Sports: Atlatl Throwing | H14: 147 | J14: 40
A15: 9-3 | B15: Challenging | C15: 41 | D15: 9679.3 | E15: =meanMedian & " Score Selected" -> Total Score Selected | G15: Livestock: Chicken Tending | H15: 140 | J15: 35
A16: PREFERENCES: | G16: Range Sports: Cartridge Reloading | H16: 140 | I16: 1 | J16: 41 | K16: =IF($G16=0,"",IF(INDEX(itineraryPrograms,numericItinerary(K$3),$J16)="y","X","")) ->  | L16: =IF($G16=0,"",IF(INDEX(itineraryPrograms,numericItinerary(L$3),$J16)="y","X","")) ->  | M16: =IF($G16=0,"",IF(INDEX(itineraryPrograms,numericItinerary(M$3),$J16)="y","X","")) -> X | N16: =IF($G16=0,"",IF(INDEX(itineraryPrograms,numericItinerary(N$3),$J16)="y","X","")) ->  | O16: =IF($G16=0,"",IF(INDEX(itineraryPrograms,numericItinerary(O$3),$J16)="y","X","")) ->  | P16: =IF($G16=0,"",IF(INDEX(itineraryPrograms,numericItinerary(P$3),$J16)="y","X","")) -> 
A17: Area Important? | B17: =UPPER(areaImportant) -> Y | G17: STEM: Astronomy | H17: 138 | I17: 3 | J17: 50 | K17: =IF($G17=0,"",IF(INDEX(itineraryPrograms,numericItinerary(K$3),$J17)="y","X","")) -> X | L17: =IF($G17=0,"",IF(INDEX(itineraryPrograms,numericItinerary(L$3),$J17)="y","X","")) ->  | M17: =IF($G17=0,"",IF(INDEX(itineraryPrograms,numericItinerary(M$3),$J17)="y","X","")) -> X | N17: =IF($G17=0,"",IF(INDEX(itineraryPrograms,numericItinerary(N$3),$J17)="y","X","")) -> X | O17: =IF($G17=0,"",IF(INDEX(itineraryPrograms,numericItinerary(O$3),$J17)="y","X","")) ->  | P17: =IF($G17=0,"",IF(INDEX(itineraryPrograms,numericItinerary(P$3),$J17)="y","X","")) -> 
A18: South: | B18: =IF(UPPER(areaImportant)="Y",Preferences!B7,"") -> 3 | G18: Range Sports: Tomahawk Throwing | H18: 138 | I18: 1 | J18: 48 | K18: =IF($G18=0,"",IF(INDEX(itineraryPrograms,numericItinerary(K$3),$J18)="y","X","")) ->  | L18: =IF($G18=0,"",IF(INDEX(itineraryPrograms,numericItinerary(L$3),$J18)="y","X","")) -> X | M18: =IF($G18=0,"",IF(INDEX(itineraryPrograms,numericItinerary(M$3),$J18)="y","X","")) ->  | N18: =IF($G18=0,"",IF(INDEX(itineraryPrograms,numericItinerary(N$3),$J18)="y","X","")) ->  | O18: =IF($G18=0,"",IF(INDEX(itineraryPrograms,numericItinerary(O$3),$J18)="y","X","")) ->  | P18: =IF($G18=0,"",IF(INDEX(itineraryPrograms,numericItinerary(P$3),$J18)="y","X","")) -> 
A19: Central: | B19: =IF(UPPER(areaImportant)="Y",Preferences!B8,"") -> 4 | D19: =MIN(rankedScore) -> 9679.3 | G19: STEM: Archeology | H19: 138 | I19: 3 | J19: 49 | K19: =IF($G19=0,"",IF(INDEX(itineraryPrograms,numericItinerary(K$3),$J19)="y","X","")) -> X | L19: =IF($G19=0,"",IF(INDEX(itineraryPrograms,numericItinerary(L$3),$J19)="y","X","")) -> X | M19: =IF($G19=0,"",IF(INDEX(itineraryPrograms,numericItinerary(M$3),$J19)="y","X","")) ->  | N19: =IF($G19=0,"",IF(INDEX(itineraryPrograms,numericItinerary(N$3),$J19)="y","X","")) -> X | O19: =IF($G19=0,"",IF(INDEX(itineraryPrograms,numericItinerary(O$3),$J19)="y","X","")) ->  | P19: =IF($G19=0,"",IF(INDEX(itineraryPrograms,numericItinerary(P$3),$J19)="y","X","")) -> 
A20: North: | B20: =IF(UPPER(areaImportant)="Y",Preferences!B9,"") -> 1 | D20: =MAX(rankedScore) -> 13599.5 | G20: Range Sports: Shotshell Reloading | H20: 135 | I20: 1 | J20: 47 | K20: =IF($G20=0,"",IF(INDEX(itineraryPrograms,numericItinerary(K$3),$J20)="y","X","")) ->  | L20: =IF($G20=0,"",IF(INDEX(itineraryPrograms,numericItinerary(L$3),$J20)="y","X","")) -> X | M20: =IF($G20=0,"",IF(INDEX(itineraryPrograms,numericItinerary(M$3),$J20)="y","X","")) ->  | N20: =IF($G20=0,"",IF(INDEX(itineraryPrograms,numericItinerary(N$3),$J20)="y","X","")) ->  | O20: =IF($G20=0,"",IF(INDEX(itineraryPrograms,numericItinerary(O$3),$J20)="y","X","")) ->  | P20: =IF($G20=0,"",IF(INDEX(itineraryPrograms,numericItinerary(P$3),$J20)="y","X","")) -> 
A21: Valle Vidal: | B21: =IF(UPPER(areaImportant)="Y",Preferences!B10,"") -> 2 | G21: Landmarks: Tooth of Time | H21: 135 | I21: 4 | J21: 31 | K21: =IF($G21=0,"",IF(INDEX(itineraryPrograms,numericItinerary(K$3),$J21)="y","X","")) -> X | L21: =IF($G21=0,"",IF(INDEX(itineraryPrograms,numericItinerary(L$3),$J21)="y","X","")) -> X | M21: =IF($G21=0,"",IF(INDEX(itineraryPrograms,numericItinerary(M$3),$J21)="y","X","")) ->  | N21: =IF($G21=0,"",IF(INDEX(itineraryPrograms,numericItinerary(N$3),$J21)="y","X","")) -> X | O21: =IF($G21=0,"",IF(INDEX(itineraryPrograms,numericItinerary(O$3),$J21)="y","X","")) -> X | P21: =IF($G21=0,"",IF(INDEX(itineraryPrograms,numericItinerary(P$3),$J21)="y","X","")) -> 
A22: Capability: | B22: =skillLevel -> 6 | G22: Historical: Railroad Construction | H22: 134 | I22: 1 | J22: 25 | K22: =IF($G22=0,"",IF(INDEX(itineraryPrograms,numericItinerary(K$3),$J22)="y","X","")) ->  | L22: =IF($G22=0,"",IF(INDEX(itineraryPrograms,numericItinerary(L$3),$J22)="y","X","")) ->  | M22: =IF($G22=0,"",IF(INDEX(itineraryPrograms,numericItinerary(M$3),$J22)="y","X","")) ->  | N22: =IF($G22=0,"",IF(INDEX(itineraryPrograms,numericItinerary(N$3),$J22)="y","X","")) -> X | O22: =IF($G22=0,"",IF(INDEX(itineraryPrograms,numericItinerary(O$3),$J22)="y","X","")) ->  | P22: =IF($G22=0,"",IF(INDEX(itineraryPrograms,numericItinerary(P$3),$J22)="y","X","")) -> 
A23: Hike Out? | B23: =UPPER(hikeOut) -> N | G23: Range Sports: 3D Archery | H23: 129 | I23: 2 | J23: 38 | K23: =IF($G23=0,"",IF(INDEX(itineraryPrograms,numericItinerary(K$3),$J23)="y","X","")) -> X | L23: =IF($G23=0,"",IF(INDEX(itineraryPrograms,numericItinerary(L$3),$J23)="y","X","")) ->  | M23: =IF($G23=0,"",IF(INDEX(itineraryPrograms,numericItinerary(M$3),$J23)="y","X","")) -> X | N23: =IF($G23=0,"",IF(INDEX(itineraryPrograms,numericItinerary(N$3),$J23)="y","X","")) ->  | O23: =IF($G23=0,"",IF(INDEX(itineraryPrograms,numericItinerary(O$3),$J23)="y","X","")) ->  | P23: =IF($G23=0,"",IF(INDEX(itineraryPrograms,numericItinerary(P$3),$J23)="y","X","")) -> 
A24: Hike In/Tooth? | B24: =UPPER(hikeIn) -> N | G24: Range Sports: Muzzleloader Shooting | H24: 129 | I24: 0 | J24: 44 | K24: =IF($G24=0,"",IF(INDEX(itineraryPrograms,numericItinerary(K$3),$J24)="y","X","")) ->  | L24: =IF($G24=0,"",IF(INDEX(itineraryPrograms,numericItinerary(L$3),$J24)="y","X","")) ->  | M24: =IF($G24=0,"",IF(INDEX(itineraryPrograms,numericItinerary(M$3),$J24)="y","X","")) ->  | N24: =IF($G24=0,"",IF(INDEX(itineraryPrograms,numericItinerary(N$3),$J24)="y","X","")) ->  | O24: =IF($G24=0,"",IF(INDEX(itineraryPrograms,numericItinerary(O$3),$J24)="y","X","")) ->  | P24: =IF($G24=0,"",IF(INDEX(itineraryPrograms,numericItinerary(P$3),$J24)="y","X","")) -> 
A25: Max Altitude? | B25: =UPPER(altitudeMax) -> N | G25: Landmarks: Mountaineering | H25: 126 | I25: 1 | J25: 30 | K25: =IF($G25=0,"",IF(INDEX(itineraryPrograms,numericItinerary(K$3),$J25)="y","X","")) ->  | L25: =IF($G25=0,"",IF(INDEX(itineraryPrograms,numericItinerary(L$3),$J25)="y","X","")) -> X | M25: =IF($G25=0,"",IF(INDEX(itineraryPrograms,numericItinerary(M$3),$J25)="y","X","")) ->  | N25: =IF($G25=0,"",IF(INDEX(itineraryPrograms,numericItinerary(N$3),$J25)="y","X","")) ->  | O25: =IF($G25=0,"",IF(INDEX(itineraryPrograms,numericItinerary(O$3),$J25)="y","X","")) ->  | P25: =IF($G25=0,"",IF(INDEX(itineraryPrograms,numericItinerary(P$3),$J25)="y","X","")) -> 
A26: Total elevation? | B26: =UPPER(altitudeChange) -> N | G26: Livestock: Animal Husbandry | H26: 121 | I26: 1 | J26: 33 | K26: =IF($G26=0,"",IF(INDEX(itineraryPrograms,numericItinerary(K$3),$J26)="y","X","")) ->  | L26: =IF($G26=0,"",IF(INDEX(itineraryPrograms,numericItinerary(L$3),$J26)="y","X","")) -> X | M26: =IF($G26=0,"",IF(INDEX(itineraryPrograms,numericItinerary(M$3),$J26)="y","X","")) ->  | N26: =IF($G26=0,"",IF(INDEX(itineraryPrograms,numericItinerary(N$3),$J26)="y","X","")) ->  | O26: =IF($G26=0,"",IF(INDEX(itineraryPrograms,numericItinerary(O$3),$J26)="y","X","")) ->  | P26: =IF($G26=0,"",IF(INDEX(itineraryPrograms,numericItinerary(P$3),$J26)="y","X","")) -> 
A27: Daily change? | B27: =UPPER(altitudeDaily) -> Y | G27: Landmarks: Inspiration Point | H27: 117 | I27: 2 | J27: 28 | K27: =IF($G27=0,"",IF(INDEX(itineraryPrograms,numericItinerary(K$3),$J27)="y","X","")) -> X | L27: =IF($G27=0,"",IF(INDEX(itineraryPrograms,numericItinerary(L$3),$J27)="y","X","")) ->  | M27: =IF($G27=0,"",IF(INDEX(itineraryPrograms,numericItinerary(M$3),$J27)="y","X","")) ->  | N27: =IF($G27=0,"",IF(INDEX(itineraryPrograms,numericItinerary(N$3),$J27)="y","X","")) -> X | O27: =IF($G27=0,"",IF(INDEX(itineraryPrograms,numericItinerary(O$3),$J27)="y","X","")) ->  | P27: =IF($G27=0,"",IF(INDEX(itineraryPrograms,numericItinerary(P$3),$J27)="y","X","")) -> 
A28: Programs? | B28: =UPPER(programsImportant) -> Y | G28: COPE: Initiative Games | H28: 111 | I28: 2 | J28: 6 | K28: =IF($G28=0,"",IF(INDEX(itineraryPrograms,numericItinerary(K$3),$J28)="y","X","")) ->  | L28: =IF($G28=0,"",IF(INDEX(itineraryPrograms,numericItinerary(L$3),$J28)="y","X","")) ->  | M28: =IF($G28=0,"",IF(INDEX(itineraryPrograms,numericItinerary(M$3),$J28)="y","X","")) -> X | N28: =IF($G28=0,"",IF(INDEX(itineraryPrograms,numericItinerary(N$3),$J28)="y","X","")) ->  | O28: =IF($G28=0,"",IF(INDEX(itineraryPrograms,numericItinerary(O$3),$J28)="y","X","")) -> X | P28: =IF($G28=0,"",IF(INDEX(itineraryPrograms,numericItinerary(P$3),$J28)="y","X","")) -> 
G29: COPE: Low Challenge Course | H29: 111 | I29: 3 | J29: 7 | K29: =IF($G29=0,"",IF(INDEX(itineraryPrograms,numericItinerary(K$3),$J29)="y","X","")) -> X | L29: =IF($G29=0,"",IF(INDEX(itineraryPrograms,numericItinerary(L$3),$J29)="y","X","")) ->  | M29: =IF($G29=0,"",IF(INDEX(itineraryPrograms,numericItinerary(M$3),$J29)="y","X","")) -> X | N29: =IF($G29=0,"",IF(INDEX(itineraryPrograms,numericItinerary(N$3),$J29)="y","X","")) ->  | O29: =IF($G29=0,"",IF(INDEX(itineraryPrograms,numericItinerary(O$3),$J29)="y","X","")) -> X | P29: =IF($G29=0,"",IF(INDEX(itineraryPrograms,numericItinerary(P$3),$J29)="y","X","")) -> 
G30: Historical: Pump Car Rides | H30: 108 | I30: 3 | J30: 24 | K30: =IF($G30=0,"",IF(INDEX(itineraryPrograms,numericItinerary(K$3),$J30)="y","X","")) -> X | L30: =IF($G30=0,"",IF(INDEX(itineraryPrograms,numericItinerary(L$3),$J30)="y","X","")) ->  | M30: =IF($G30=0,"",IF(INDEX(itineraryPrograms,numericItinerary(M$3),$J30)="y","X","")) -> X | N30: =IF($G30=0,"",IF(INDEX(itineraryPrograms,numericItinerary(N$3),$J30)="y","X","")) -> X | O30: =IF($G30=0,"",IF(INDEX(itineraryPrograms,numericItinerary(O$3),$J30)="y","X","")) ->  | P30: =IF($G30=0,"",IF(INDEX(itineraryPrograms,numericItinerary(P$3),$J30)="y","X","")) -> 
G31: COPE: High Challenge Course | H31: 108 | J31: 5
G32: Historical: Fur Trapper Rendezvous | H32: 104 | J32: 20
G33: Landmarks: Mount Phillips | H33: 103 | J33: 29
G34: Range Sports: Aerial Archery | H34: 101 | J34: 39
G35: Range Sports: Rifle Shooting | H35: 101 | J35: 45
G36: Landmarks: Baldy Mountain | H36: 100 | J36: 27
G37: Historical: Crosscut & Tie Making | H37: 97 | J37: 18
G38: Historical: Spar Pole Climbing | H38: 97 | J38: 26
G39: Range Sports: Shotgun Shooting | H39: 91 | I39: 1 | J39: 46 | K39: =IF($G39=0,"",IF(INDEX(itineraryPrograms,numericItinerary(K$3),$J39)="y","X","")) ->  | L39: =IF($G39=0,"",IF(INDEX(itineraryPrograms,numericItinerary(L$3),$J39)="y","X","")) -> X | M39: =IF($G39=0,"",IF(INDEX(itineraryPrograms,numericItinerary(M$3),$J39)="y","X","")) ->  | N39: =IF($G39=0,"",IF(INDEX(itineraryPrograms,numericItinerary(N$3),$J39)="y","X","")) ->  | O39: =IF($G39=0,"",IF(INDEX(itineraryPrograms,numericItinerary(O$3),$J39)="y","X","")) ->  | P39: =IF($G39=0,"",IF(INDEX(itineraryPrograms,numericItinerary(P$3),$J39)="y","X","")) -> 
G40: Western Lore: Cantina | H40: 89 | I40: 5 | J40: 53 | K40: =IF($G40=0,"",IF(INDEX(itineraryPrograms,numericItinerary(K$3),$J40)="y","X","")) ->  | L40: =IF($G40=0,"",IF(INDEX(itineraryPrograms,numericItinerary(L$3),$J40)="y","X","")) -> X | M40: =IF($G40=0,"",IF(INDEX(itineraryPrograms,numericItinerary(M$3),$J40)="y","X","")) -> X | N40: =IF($G40=0,"",IF(INDEX(itineraryPrograms,numericItinerary(N$3),$J40)="y","X","")) -> X | O40: =IF($G40=0,"",IF(INDEX(itineraryPrograms,numericItinerary(O$3),$J40)="y","X","")) -> X | P40: =IF($G40=0,"",IF(INDEX(itineraryPrograms,numericItinerary(P$3),$J40)="y","X","")) -> X
G41: Ecology: Self-Guided Fishing | H41: 87 | I41: 3 | J41: 9 | K41: =IF($G41=0,"",IF(INDEX(itineraryPrograms,numericItinerary(K$3),$J41)="y","X","")) ->  | L41: =IF($G41=0,"",IF(INDEX(itineraryPrograms,numericItinerary(L$3),$J41)="y","X","")) -> X | M41: =IF($G41=0,"",IF(INDEX(itineraryPrograms,numericItinerary(M$3),$J41)="y","X","")) ->  | N41: =IF($G41=0,"",IF(INDEX(itineraryPrograms,numericItinerary(N$3),$J41)="y","X","")) ->  | O41: =IF($G41=0,"",IF(INDEX(itineraryPrograms,numericItinerary(O$3),$J41)="y","X","")) -> X | P41: =IF($G41=0,"",IF(INDEX(itineraryPrograms,numericItinerary(P$3),$J41)="y","X","")) -> X
G42: Historical: Mine Tour | H42: 86 | I42: 2 | J42: 22 | K42: =IF($G42=0,"",IF(INDEX(itineraryPrograms,numericItinerary(K$3),$J42)="y","X","")) -> X | L42: =IF($G42=0,"",IF(INDEX(itineraryPrograms,numericItinerary(L$3),$J42)="y","X","")) ->  | M42: =IF($G42=0,"",IF(INDEX(itineraryPrograms,numericItinerary(M$3),$J42)="y","X","")) ->  | N42: =IF($G42=0,"",IF(INDEX(itineraryPrograms,numericItinerary(N$3),$J42)="y","X","")) -> X | O42: =IF($G42=0,"",IF(INDEX(itineraryPrograms,numericItinerary(O$3),$J42)="y","X","")) ->  | P42: =IF($G42=0,"",IF(INDEX(itineraryPrograms,numericItinerary(P$3),$J42)="y","X","")) -> 
G43: Ecology: Demonstration Forest | H43: 84 | I43: 0 | J43: 8 | K43: =IF($G43=0,"",IF(INDEX(itineraryPrograms,numericItinerary(K$3),$J43)="y","X","")) ->  | L43: =IF($G43=0,"",IF(INDEX(itineraryPrograms,numericItinerary(L$3),$J43)="y","X","")) ->  | M43: =IF($G43=0,"",IF(INDEX(itineraryPrograms,numericItinerary(M$3),$J43)="y","X","")) ->  | N43: =IF($G43=0,"",IF(INDEX(itineraryPrograms,numericItinerary(N$3),$J43)="y","X","")) ->  | O43: =IF($G43=0,"",IF(INDEX(itineraryPrograms,numericItinerary(O$3),$J43)="y","X","")) ->  | P43: =IF($G43=0,"",IF(INDEX(itineraryPrograms,numericItinerary(P$3),$J43)="y","X","")) -> 
G44: Historical: Cabin/House Tour | H44: 84 | J44: 16 | K44: =IF($G44=0,"",IF(INDEX(itineraryPrograms,numericItinerary(K$3),$J44)="y","X","")) ->  | L44: =IF($G44=0,"",IF(INDEX(itineraryPrograms,numericItinerary(L$3),$J44)="y","X","")) ->  | M44: =IF($G44=0,"",IF(INDEX(itineraryPrograms,numericItinerary(M$3),$J44)="y","X","")) ->  | N44: =IF($G44=0,"",IF(INDEX(itineraryPrograms,numericItinerary(N$3),$J44)="y","X","")) ->  | O44: =IF($G44=0,"",IF(INDEX(itineraryPrograms,numericItinerary(O$3),$J44)="y","X","")) ->  | P44: =IF($G44=0,"",IF(INDEX(itineraryPrograms,numericItinerary(P$3),$J44)="y","X","")) -> X
G45: Historical: Cabin Restoration | H45: 82 | J45: 15 | K45: =IF($G45=0,"",IF(INDEX(itineraryPrograms,numericItinerary(K$3),$J45)="y","X","")) -> X | L45: =IF($G45=0,"",IF(INDEX(itineraryPrograms,numericItinerary(L$3),$J45)="y","X","")) ->  | M45: =IF($G45=0,"",IF(INDEX(itineraryPrograms,numericItinerary(M$3),$J45)="y","X","")) ->  | N45: =IF($G45=0,"",IF(INDEX(itineraryPrograms,numericItinerary(N$3),$J45)="y","X","")) -> X | O45: =IF($G45=0,"",IF(INDEX(itineraryPrograms,numericItinerary(O$3),$J45)="y","X","")) ->  | P45: =IF($G45=0,"",IF(INDEX(itineraryPrograms,numericItinerary(P$3),$J45)="y","X","")) -> X
G46: Climbing: Crate Stacking | H46: 76 | J46: 3 | K46: =IF($G46=0,"",IF(INDEX(itineraryPrograms,numericItinerary(K$3),$J46)="y","X","")) ->  | L46: =IF($G46=0,"",IF(INDEX(itineraryPrograms,numericItinerary(L$3),$J46)="y","X","")) ->  | M46: =IF($G46=0,"",IF(INDEX(itineraryPrograms,numericItinerary(M$3),$J46)="y","X","")) ->  | N46: =IF($G46=0,"",IF(INDEX(itineraryPrograms,numericItinerary(N$3),$J46)="y","X","")) ->  | O46: =IF($G46=0,"",IF(INDEX(itineraryPrograms,numericItinerary(O$3),$J46)="y","X","")) ->  | P46: =IF($G46=0,"",IF(INDEX(itineraryPrograms,numericItinerary(P$3),$J46)="y","X","")) -> 
G47: Historical: Blacksmithing | H47: 76 | J47: 14 | K47: =IF($G47=0,"",IF(INDEX(itineraryPrograms,numericItinerary(K$3),$J47)="y","X","")) ->  | L47: =IF($G47=0,"",IF(INDEX(itineraryPrograms,numericItinerary(L$3),$J47)="y","X","")) ->  | M47: =IF($G47=0,"",IF(INDEX(itineraryPrograms,numericItinerary(M$3),$J47)="y","X","")) ->  | N47: =IF($G47=0,"",IF(INDEX(itineraryPrograms,numericItinerary(N$3),$J47)="y","X","")) ->  | O47: =IF($G47=0,"",IF(INDEX(itineraryPrograms,numericItinerary(O$3),$J47)="y","X","")) -> X | P47: =IF($G47=0,"",IF(INDEX(itineraryPrograms,numericItinerary(P$3),$J47)="y","X","")) -> X
G48: Historical: Gold Panning | H48: 76 | J48: 21 | K48: =IF($G48=0,"",IF(INDEX(itineraryPrograms,numericItinerary(K$3),$J48)="y","X","")) -> X | L48: =IF($G48=0,"",IF(INDEX(itineraryPrograms,numericItinerary(L$3),$J48)="y","X","")) ->  | M48: =IF($G48=0,"",IF(INDEX(itineraryPrograms,numericItinerary(M$3),$J48)="y","X","")) ->  | N48: =IF($G48=0,"",IF(INDEX(itineraryPrograms,numericItinerary(N$3),$J48)="y","X","")) -> X | O48: =IF($G48=0,"",IF(INDEX(itineraryPrograms,numericItinerary(O$3),$J48)="y","X","")) ->  | P48: =IF($G48=0,"",IF(INDEX(itineraryPrograms,numericItinerary(P$3),$J48)="y","X","")) -> 
G49: Historical: Adobe Brick-Making | H49: 74 | J49: 13 | K49: =IF($G49=0,"",IF(INDEX(itineraryPrograms,numericItinerary(K$3),$J49)="y","X","")) ->  | L49: =IF($G49=0,"",IF(INDEX(itineraryPrograms,numericItinerary(L$3),$J49)="y","X","")) -> X | M49: =IF($G49=0,"",IF(INDEX(itineraryPrograms,numericItinerary(M$3),$J49)="y","X","")) ->  | N49: =IF($G49=0,"",IF(INDEX(itineraryPrograms,numericItinerary(N$3),$J49)="y","X","")) ->  | O49: =IF($G49=0,"",IF(INDEX(itineraryPrograms,numericItinerary(O$3),$J49)="y","X","")) -> X | P49: =IF($G49=0,"",IF(INDEX(itineraryPrograms,numericItinerary(P$3),$J49)="y","X","")) -> X
G50: Evening: Chuckwagon Dinner | H50: 73 | J50: 12
G51: Evening: Campfire Show | H51: 73 | J51: 11
G52: Historical: Crafting | H52: 71 | J52: 17 | K52: =IF($G52=0,"",IF(INDEX(itineraryPrograms,numericItinerary(K$3),$J52)="y","X","")) -> X | L52: =IF($G52=0,"",IF(INDEX(itineraryPrograms,numericItinerary(L$3),$J52)="y","X","")) ->  | M52: =IF($G52=0,"",IF(INDEX(itineraryPrograms,numericItinerary(M$3),$J52)="y","X","")) -> X | N52: =IF($G52=0,"",IF(INDEX(itineraryPrograms,numericItinerary(N$3),$J52)="y","X","")) ->  | O52: =IF($G52=0,"",IF(INDEX(itineraryPrograms,numericItinerary(O$3),$J52)="y","X","")) -> X | P52: =IF($G52=0,"",IF(INDEX(itineraryPrograms,numericItinerary(P$3),$J52)="y","X","")) -> X
G53: Historical: Petroglyph Tour | H53: 69 | J53: 23 | K53: =IF($G53=0,"",IF(INDEX(itineraryPrograms,numericItinerary(K$3),$J53)="y","X","")) ->  | L53: =IF($G53=0,"",IF(INDEX(itineraryPrograms,numericItinerary(L$3),$J53)="y","X","")) ->  | M53: =IF($G53=0,"",IF(INDEX(itineraryPrograms,numericItinerary(M$3),$J53)="y","X","")) ->  | N53: =IF($G53=0,"",IF(INDEX(itineraryPrograms,numericItinerary(N$3),$J53)="y","X","")) ->  | O53: =IF($G53=0,"",IF(INDEX(itineraryPrograms,numericItinerary(O$3),$J53)="y","X","")) ->  | P53: =IF($G53=0,"",IF(INDEX(itineraryPrograms,numericItinerary(P$3),$J53)="y","X","")) -> 
G54: Historical: Flint Knapping | H54: 62 | J54: 19 | K54: =IF($G54=0,"",IF(INDEX(itineraryPrograms,numericItinerary(K$3),$J54)="y","X","")) ->  | L54: =IF($G54=0,"",IF(INDEX(itineraryPrograms,numericItinerary(L$3),$J54)="y","X","")) ->  | M54: =IF($G54=0,"",IF(INDEX(itineraryPrograms,numericItinerary(M$3),$J54)="y","X","")) -> X | N54: =IF($G54=0,"",IF(INDEX(itineraryPrograms,numericItinerary(N$3),$J54)="y","X","")) -> X | O54: =IF($G54=0,"",IF(INDEX(itineraryPrograms,numericItinerary(O$3),$J54)="y","X","")) -> X | P54: =IF($G54=0,"",IF(INDEX(itineraryPrograms,numericItinerary(P$3),$J54)="y","X","")) -> X
G55: Evening: Advisor Coffee | H55: 61 | J55: 10 | K55: =IF($G55=0,"",IF(INDEX(itineraryPrograms,numericItinerary(K$3),$J55)="y","X","")) ->  | L55: =IF($G55=0,"",IF(INDEX(itineraryPrograms,numericItinerary(L$3),$J55)="y","X","")) ->  | M55: =IF($G55=0,"",IF(INDEX(itineraryPrograms,numericItinerary(M$3),$J55)="y","X","")) ->  | N55: =IF($G55=0,"",IF(INDEX(itineraryPrograms,numericItinerary(N$3),$J55)="y","X","")) ->  | O55: =IF($G55=0,"",IF(INDEX(itineraryPrograms,numericItinerary(O$3),$J55)="y","X","")) ->  | P55: =IF($G55=0,"",IF(INDEX(itineraryPrograms,numericItinerary(P$3),$J55)="y","X","")) -> 
G56: Landmarks: Trail Peak | H56: 61 | I56: =COUNTIF(K56:P56,"X") -> 3 | J56: 32 | K56: =IF($G56=0,"",IF(INDEX(itineraryPrograms,numericItinerary(K$3),$J56)="y","X","")) ->  | L56: =IF($G56=0,"",IF(INDEX(itineraryPrograms,numericItinerary(L$3),$J56)="y","X","")) -> X | M56: =IF($G56=0,"",IF(INDEX(itineraryPrograms,numericItinerary(M$3),$J56)="y","X","")) ->  | N56: =IF($G56=0,"",IF(INDEX(itineraryPrograms,numericItinerary(N$3),$J56)="y","X","")) ->  | O56: =IF($G56=0,"",IF(INDEX(itineraryPrograms,numericItinerary(O$3),$J56)="y","X","")) -> X | P56: =IF($G56=0,"",IF(INDEX(itineraryPrograms,numericItinerary(P$3),$J56)="y","X","")) -> X
G57: STEM: Geology | H57: 61 | I57: =COUNTIF(K57:P57,"X") -> 1 | J57: 51 | K57: =IF($G57=0,"",IF(INDEX(itineraryPrograms,numericItinerary(K$3),$J57)="y","X","")) ->  | L57: =IF($G57=0,"",IF(INDEX(itineraryPrograms,numericItinerary(L$3),$J57)="y","X","")) ->  | M57: =IF($G57=0,"",IF(INDEX(itineraryPrograms,numericItinerary(M$3),$J57)="y","X","")) -> X | N57: =IF($G57=0,"",IF(INDEX(itineraryPrograms,numericItinerary(N$3),$J57)="y","X","")) ->  | O57: =IF($G57=0,"",IF(INDEX(itineraryPrograms,numericItinerary(O$3),$J57)="y","X","")) ->  | P57: =IF($G57=0,"",IF(INDEX(itineraryPrograms,numericItinerary(P$3),$J57)="y","X","")) -> 
H58: 93 | J58: 49 | K58: =COUNTIF(K3:K56,"X") -> 14 | L58: 13 | M58: 12 | N58: 13 | O58: 13 | P58: 13
H59: 0 | J59: 50 | K59: =K3 -> 9-11 | L59: 9-12 | M59: 9-6 | N59: 9-10 | O59: 9-8 | P59: 9-4
H60: =MIN(H4:H57) -> 61 | I60: Min
H61: =MAX(H4:H57) -> 225 | I61: Max

Sheet Itinerary Details
A1: Itinerary Information
A2: Itinerary Number: | C2: 9-1
A3: Expedition Number: | C3: 608-A
A5: Classification: | C5: =VLOOKUP(INDEX(classification,numericItinerary(itineraryNumber)),difficultyTable,2) -> Challenging | E5: Staffed Camps: | G5: =getNcamps("Staff",itineraryNumber) -> 5 | J5: Area(s): | K5: =getCountry(numericItinerary(itineraryNumber)) -> South | N5: Starting: | O5: =AA25 -> Zastrow Trailhead
A6: Distance: | C6: =INDEX(distance,numericItinerary(itineraryNumber)) -> 40 | E6: Trail Camps: | G6: =getNcamps("Trail",itineraryNumber) -> 5 | J6: Map(s): | K6: =getMaps(numericItinerary(itineraryNumber)) -> South | N6: Ending: | O6: =AB25 -> Hike In
A7: Initial/Max Days Food: | C7: =getFoodDays(itineraryNumber) -> 2/2 | E7: Layovers: | G7: =getNcamps("Layover",itineraryNumber) -> 2
A8: Return via Tooth: | C8: =IF(INDEX(viaTooth,numericItinerary(itineraryNumber))="y","Yes","No") -> No | E8: Dry Camps | G8: =getNcamps("Dry",itineraryNumber) -> 0 | J8: Peaks: | K8: =getPeakS(numericItinerary(itineraryNumber)) -> Tooth of Time
A9: Min/Max Altitude: | C9: =getAltitude("Min",itineraryNumber) & "/" & getAltitude("Max",itineraryNumber) -> 7,217/9,330 | E9: Showers | G9: =COUNTIF(nShowers,"y") -> 3
A10: Total Altitude Change: | C10: =getAltitude("Chg",itineraryNumber) -> 2,113 | D10: Elevation information shown here is based on beginning/ending campsite altitudes, not any peaks or side hikes.
A11: Daily Altitude Change: | C11: =getAltitude("Avg",itineraryNumber) -> 728
A12: Description: | B12: =INDEX(descriptions,numericItinerary(itineraryNumber)) -> This program-focused itinerary visits many of the staffed camps located in Philmont's South Country while exploring this region's beautiful meadows, riverways, and mesas. Plenty of time is provided for exploring all of the activities offered at each camp or for exploring side hikes to nearby peaks or viewpoints. This trek would be an excellent way to explore Philmont for the first time!
A13: Programs: | B13: =getPrograms(numericItinerary(itineraryNumber)) -> Climbing: Bouldering Gym, Climbing: Climbing Wall/Tower, Climbing: Crate Stacking, Climbing: Rock Climbing, COPE: High Challenge Course, COPE: Initiative Games, COPE: Low Challenge Course, Ecology: Self-Guided Fishing, Evening: Campfire Show, Evening: Chuckwagon Dinner, Historical: Adobe Brick-Making, Historical: Blacksmithing, Historical: Cabin Restoration, Historical: Crafting, Historical: Crosscut & Tie Making, Historical: Flint Knapping, Landmarks: Mount Phillips, Livestock: Burro Packing, Livestock: Horse Rides, Range Sports: Rifle Shooting, Western Lore: Cantina, Western Lore: Roping,
K14: UTM Coordinates
B15: Date: | D15: Day | E15: Campsite | K15: Elevation | L15: Easting | M15: Northing | O15: Food Pickup | P15: Cross US-64 | X15: Elevation | Y15: Change | Z15: Date | AA15: Day | AB15: CAMP | AC15: Type | AD15: Dry | AE15: Showers | AF15: Commissary | AG15: Trading Post | AH15: Map
B16: =AA16 & " (" & TEXT(Z16,"m/d/yyyy") & ")" -> Sunday (6/8/2025) | D16: 1 | E16: Camping HQ | K16: =TEXT(INDEX(campLocation,MATCH(AB16,camps,0),5),"##,##0") -> 6,696 | L16: =INDEX(campInfo,MATCH(AB16,camps),3) -> 503848 | M16: =INDEX(campInfo,MATCH(AB16,camps),4) -> 4034364 | P16: =getUS64crossingdirection(itineraryNumber,D16) ->  | X16: =INT(K16) -> 6696 | Y16: 0 | Z16: =expeditionStartDate(itinExpeditionNo) -> 2025-06-08 | AA16: =INDEX({"Sunday","Monday","Tuesday","Wednesday","Thursday","Friday","Saturday"},WEEKDAY(Z16)) -> Sunday | AB16: Camping HQ | AD16: =INDEX(campInfo,MATCH($AB16,camps),10) ->  | AE16: =INDEX(campInfo,MATCH($AB16,camps),11) ->  | AF16: =INDEX(campInfo,MATCH($AB16,camps),6) ->  | AG16: =INDEX(campInfo,MATCH($AB16,camps),7) ->  | AH16: =VLOOKUP($AB16,campInfo,12) -> South
B17: =AA17 & " (" & TEXT(Z17,"m/d/yyyy") & ")" -> Monday (6/9/2025) | D17: =D16+1 -> 2 | E17: =getCampWithInfo(AB17,AC17,AD17,AE17,AF17,AG17) -> ABREU (Showers) | K17: 7,217 | L17: 498586 | M17: 4025999 | O17: =INDEX(foodPickups,numericItinerary(itineraryNumber),D17-1) -> Camping HQ | P17: =getUS64crossingdirection(itineraryNumber,D17) ->  | X17: 7217 | Y17: =X17-X16 -> 521 | Z17: =Z16+1 -> 2025-06-09 | AA17: =INDEX({"Sunday","Monday","Tuesday","Wednesday","Thursday","Friday","Saturday"},WEEKDAY(Z17)) -> Monday | AB17: Abreu | AC17: =IF(VLOOKUP($AB17,campInfo,8)="Y","Staff","Trail") -> Staff | AD17: =VLOOKUP($AB17,campInfo,10) ->  | AE17: =VLOOKUP($AB17,campInfo,11) -> Y | AF17: =VLOOKUP($AB17,campInfo,6) ->  | AG17: =VLOOKUP($AB17,campInfo,7) ->  | AH17: South
B18: =AA18 & " (" & TEXT(Z18,"m/d/yyyy") & ")" -> Tuesday (6/10/2025) | D18: =D17+1 -> 3 | E18: =getCampWithInfo(AB18,AC18,AD18,AE18,AF18,AG18) -> Lower Bonito | K18: =TEXT(INDEX(campLocation,MATCH(AB18,camps,0),5),"##,##0") -> 8,962 | L18: 493583 | M18: 4027520 | O18: =INDEX(foodPickups,numericItinerary(itineraryNumber),D18-1) -> 0 | P18: =getUS64crossingdirection(itineraryNumber,D18) ->  | X18: =INT(K18) -> 8962 | Y18: =X18-X17 -> 1745 | Z18: =Z17+1 -> 2025-06-10 | AA18: =INDEX({"Sunday","Monday","Tuesday","Wednesday","Thursday","Friday","Saturday"},WEEKDAY(Z18)) -> Tuesday | AB18: Lower Bonito | AC18: Trail | AH18: South
B19: =AA19 & " (" & TEXT(Z19,"m/d/yyyy") & ")" -> Wednesday (6/11/2025) | D19: 4 | E19: =getCampWithInfo(AB19,AC19,AD19,AE19,AF19,AG19) -> BEAUBIEN (Showers) | K19: =TEXT(INDEX(campLocation,MATCH(AB19,camps,0),5),"##,##0") -> 9,330 | L19: 490738 | M19: 4030941 | O19: =INDEX(foodPickups,numericItinerary(itineraryNumber),D19-1) -> Phillips Junction | P19: =getUS64crossingdirection(itineraryNumber,D19) ->  | X19: =INT(K19) -> 9330 | Y19: 368 | Z19: 2025-06-11 | AA19: =INDEX({"Sunday","Monday","Tuesday","Wednesday","Thursday","Friday","Saturday"},WEEKDAY(Z19)) -> Wednesday | AB19: Beaubien | AC19: Staff | AE19: Y | AH19: South
B20: =AA20 & " (" & TEXT(Z20,"m/d/yyyy") & ")" -> Thursday (6/12/2025) | D20: 5 | E20: =getCampWithInfo(AB20,AC20,AD20,AE20,AF20,AG20) -> BLACK MOUNTAIN | K20: =TEXT(INDEX(campLocation,MATCH(AB20,camps,0),5),"##,##0") -> 8,991 | L20: 491634 | M20: 4033045 | O20: =INDEX(foodPickups,numericItinerary(itineraryNumber),D20-1) -> 0 | P20: =getUS64crossingdirection(itineraryNumber,D20) ->  | X20: =INT(K20) -> 8991 | Y20: -339 | Z20: 2025-06-12 | AA20: =INDEX({"Sunday","Monday","Tuesday","Wednesday","Thursday","Friday","Saturday"},WEEKDAY(Z20)) -> Thursday | AB20: Black Mountain | AC20: Staff | AH20: South
B21: =AA21 & " (" & TEXT(Z21,"m/d/yyyy") & ")" -> Friday (6/13/2025) | D21: 6 | E21: =getCampWithInfo(AB21,AC21,AD21,AE21,AF21,AG21) -> MINERS PARK (Showers, Commissary) | K21: =TEXT(INDEX(campLocation,MATCH(AB21,camps,0),5),"##,##0") -> 7,977 | L21: 496250 | M21: 4030958 | O21: =INDEX(foodPickups,numericItinerary(itineraryNumber),D21-1) -> Miners Park | P21: =getUS64crossingdirection(itineraryNumber,D21) ->  | X21: =INT(K21) -> 7977 | Y21: -1014 | Z21: 2025-06-13 | AA21: =INDEX({"Sunday","Monday","Tuesday","Wednesday","Thursday","Friday","Saturday"},WEEKDAY(Z21)) -> Friday | AB21: Miners Park | AC21: Staff | AE21: Y | AF21: Y | AH21: South
B22: =AA22 & " (" & TEXT(Z22,"m/d/yyyy") & ")" -> Saturday (6/14/2025) | D22: 7 | E22: =getCampWithInfo(AB22,AC22,AD22,AE22,AF22,AG22) -> Bear Caves | K22: =TEXT(INDEX(campLocation,MATCH(AB22,camps,0),5),"##,##0") -> 8,423 | L22: 496976 | M22: 4028855 | O22: =INDEX(foodPickups,numericItinerary(itineraryNumber),D22-1) -> 0 | P22: =getUS64crossingdirection(itineraryNumber,D22) ->  | X22: =INT(K22) -> 8423 | Y22: 446 | Z22: 2025-06-14 | AA22: =INDEX({"Sunday","Monday","Tuesday","Wednesday","Thursday","Friday","Saturday"},WEEKDAY(Z22)) -> Saturday | AB22: Bear Caves | AC22: Trail | AH22: South
B23: Sunday (6/15/2025) | D23: 8 | E23: =getCampWithInfo(AB23,AC23,AD23,AE23,AF23,AG23) -> URRACA | K23: 7,968 | L23: 500851 | M23: 4029314 | O23: =INDEX(foodPickups,numericItinerary(itineraryNumber),D23-1) -> 0 | P23: =getUS64crossingdirection(itineraryNumber,D23) ->  | X23: 7968 | Y23: -455 | Z23: 2025-06-15 | AA23: =INDEX({"Sunday","Monday","Tuesday","Wednesday","Thursday","Friday","Saturday"},WEEKDAY(Z23)) -> Sunday | AB23: Urraca | AC23: Staff | AH23: South
B24: Monday (6/16/2025) | D24: 9 | E24: =getCampWithInfo(AB24,AC24,AD24,AE24,AF24,AG24) -> Camping HQ | K24: 6,696 | L24: 503848 | M24: 4034364 | O24: =INDEX(foodPickups,numericItinerary(itineraryNumber),D24-1) -> 0 | P24: =getUS64crossingdirection(itineraryNumber,D24) ->  | X24: 6696 | Y24: -1272 | Z24: 2025-06-16 | AA24: =INDEX({"Sunday","Monday","Tuesday","Wednesday","Thursday","Friday","Saturday"},WEEKDAY(Z24)) -> Monday | AB24: Camping HQ | AC24: Trail | AH24: South
L25: NAD 3/Zone 13 * Estimated coordinates | AA25: =getstartendinfo("S",itineraryNumber) -> Zastrow Trailhead | AB25: Hike In
AB26: BASE

Sheet Itinerary Xref Chart
A1: ITINERARY NUMBERS: | B1: # times in Itineraries | C1: =INDEX(itineraryNumbers,COLUMN()-2) -> 9-1 | D1: =INDEX(itineraryNumbers,COLUMN()-2) -> 9-2 | E1: =INDEX(itineraryNumbers,COLUMN()-2) -> 9-3 | F1: =INDEX(itineraryNumbers,COLUMN()-2) -> 9-4 | G1: =INDEX(itineraryNumbers,COLUMN()-2) -> 9-5 | H1: =INDEX(itineraryNumbers,COLUMN()-2) -> 9-6 | I1: =INDEX(itineraryNumbers,COLUMN()-2) -> 9-7 | J1: =INDEX(itineraryNumbers,COLUMN()-2) -> 9-8 | K1: =INDEX(itineraryNumbers,COLUMN()-2) -> 9-9 | L1: =INDEX(itineraryNumbers,COLUMN()-2) -> 9-10 | M1: =INDEX(itineraryNumbers,COLUMN()-2) -> 9-11 | N1: =INDEX(itineraryNumbers,COLUMN()-2) -> 9-12 | P1: Check
A2: Hiking Difficulty | C2: =INDEX(classification,numericItinerary(C1)) -> C | D2: =INDEX(classification,numericItinerary(D1)) -> C | E2: =INDEX(classification,numericItinerary(E1)) -> C | F2: =INDEX(classification,numericItinerary(F1)) -> R | G2: =INDEX(classification,numericItinerary(G1)) -> R | H2: =INDEX(classification,numericItinerary(H1)) -> R | I2: =INDEX(classification,numericItinerary(I1)) -> S | J2: =INDEX(classification,numericItinerary(J1)) -> S | K2: =INDEX(classification,numericItinerary(K1)) -> S | L2: =INDEX(classification,numericItinerary(L1)) -> SS | M2: =INDEX(classification,numericItinerary(M1)) -> SS | N2: =INDEX(classification,numericItinerary(N1)) -> SS
A3: Distance (Approximately) | C3: =INDEX(distance,numericItinerary(C1)) -> 40 | D3: =INDEX(distance,numericItinerary(D1)) -> 36 | E3: =INDEX(distance,numericItinerary(E1)) -> 41 | F3: =INDEX(distance,numericItinerary(F1)) -> 42 | G3: =INDEX(distance,numericItinerary(G1)) -> 36 | H3: =INDEX(distance,numericItinerary(H1)) -> 62 | I3: =INDEX(distance,numericItinerary(I1)) -> 42 | J3: =INDEX(distance,numericItinerary(J1)) -> 44 | K3: =INDEX(distance,numericItinerary(K1)) -> 42 | L3: =INDEX(distance,numericItinerary(L1)) -> 53 | M3: =INDEX(distance,numericItinerary(M1)) -> 53 | N3: =INDEX(distance,numericItinerary(N1)) -> 57 | P3: =SUM(C3:N3) -> 548
A4: Trail Camps | C4: =countcamps(itineraryTrail,numericItinerary(C$1)) -> 5 | D4: =countcamps(itineraryTrail,numericItinerary(D$1)) -> 7 | E4: =countcamps(itineraryTrail,numericItinerary(E$1)) -> 8 | F4: =countcamps(itineraryTrail,numericItinerary(F$1)) -> 6 | G4: =countcamps(itineraryTrail,numericItinerary(G$1)) -> 8 | H4: =countcamps(itineraryTrail,numericItinerary(H$1)) -> 5 | I4: =countcamps(itineraryTrail,numericItinerary(I$1)) -> 6 | J4: =countcamps(itineraryTrail,numericItinerary(J$1)) -> 7 | K4: =countcamps(itineraryTrail,numericItinerary(K$1)) -> 7 | L4: =countcamps(itineraryTrail,numericItinerary(L$1)) -> 7 | M4: =countcamps(itineraryTrail,numericItinerary(M$1)) -> 9 | N4: =countcamps(itineraryTrail,numericItinerary(N$1)) -> 7 | P4: =SUM(C4:N4) -> 82
A5: Dry Camps | C5: =countcamps(itineraryStaff,numericItinerary(C$1)) -> 5 | D5: =countcamps(itineraryStaff,numericItinerary(D$1)) -> 3 | E5: =countcamps(itineraryStaff,numericItinerary(E$1)) -> 2 | F5: =countcamps(itineraryStaff,numericItinerary(F$1)) -> 4 | G5: =countcamps(itineraryStaff,numericItinerary(G$1)) -> 2 | H5: =countcamps(itineraryStaff,numericItinerary(H$1)) -> 5 | I5: =countcamps(itineraryStaff,numericItinerary(I$1)) -> 4 | J5: =countcamps(itineraryStaff,numericItinerary(J$1)) -> 3 | K5: =countcamps(itineraryStaff,numericItinerary(K$1)) -> 3 | L5: =countcamps(itineraryStaff,numericItinerary(L$1)) -> 3 | M5: =countcamps(itineraryStaff,numericItinerary(M$1)) -> 1 | N5: =countcamps(itineraryStaff,numericItinerary(N$1)) -> 3 | P5: =SUM(C5:N5) -> 38
A6: =INDEX(program_table,ROW()-5) -> Climbing: Bouldering Gym | B6: =COUNTIF(C6:N6,"X") -> 3 | C6: =getProgramXref($A6,numericItinerary(C$1)) -> x | D6: =getProgramXref($A6,numericItinerary(D$1)) ->  | E6: =getProgramXref($A6,numericItinerary(E$1)) -> x | F6: =getProgramXref($A6,numericItinerary(F$1)) ->  | G6: =getProgramXref($A6,numericItinerary(G$1)) ->  | H6: =getProgramXref($A6,numericItinerary(H$1)) ->  | I6: =getProgramXref($A6,numericItinerary(I$1)) -> x | J6: =getProgramXref($A6,numericItinerary(J$1)) ->  | K6: =getProgramXref($A6,numericItinerary(K$1)) ->  | L6: =getProgramXref($A6,numericItinerary(L$1)) ->  | M6: =getProgramXref($A6,numericItinerary(M$1)) ->  | N6: =getProgramXref($A6,numericItinerary(N$1)) ->  | P6: =COUNTIF(C6:N6,"X") -> 3
A7: =INDEX(program_table,ROW()-5) -> Climbing: Climbing Wall/Tower | B7: 1 | C7: =getProgramXref($A7,numericItinerary(C$1)) -> x | D7: =getProgramXref($A7,numericItinerary(D$1)) ->  | E7: =getProgramXref($A7,numericItinerary(E$1)) ->  | F7: =getProgramXref($A7,numericItinerary(F$1)) ->  | G7: =getProgramXref($A7,numericItinerary(G$1)) ->  | H7: =getProgramXref($A7,numericItinerary(H$1)) ->  | I7: =getProgramXref($A7,numericItinerary(I$1)) ->  | J7: =getProgramXref($A7,numericItinerary(J$1)) ->  | K7: =getProgramXref($A7,numericItinerary(K$1)) ->  | L7: =getProgramXref($A7,numericItinerary(L$1)) ->  | M7: =getProgramXref($A7,numericItinerary(M$1)) ->  | N7: =getProgramXref($A7,numericItinerary(N$1)) ->  | P7: 1
A8: =INDEX(program_table,ROW()-5) -> Climbing: Crate Stacking | B8: 1 | C8: =getProgramXref($A8,numericItinerary(C$1)) -> x | D8: =getProgramXref($A8,numericItinerary(D$1)) ->  | E8: =getProgramXref($A8,numericItinerary(E$1)) ->  | F8: =getProgramXref($A8,numericItinerary(F$1)) ->  | G8: =getProgramXref($A8,numericItinerary(G$1)) ->  | H8: =getProgramXref($A8,numericItinerary(H$1)) ->  | I8: =getProgramXref($A8,numericItinerary(I$1)) ->  | J8: =getProgramXref($A8,numericItinerary(J$1)) ->  | K8: =getProgramXref($A8,numericItinerary(K$1)) ->  | L8: =getProgramXref($A8,numericItinerary(L$1)) ->  | M8: =getProgramXref($A8,numericItinerary(M$1)) ->  | N8: =getProgramXref($A8,numericItinerary(N$1)) ->  | P8: 1
A9: =INDEX(program_table,ROW()-5) -> Climbing: Rock Climbing | B9: 2 | C9: =getProgramXref($A9,numericItinerary(C$1)) -> x | D9: =getProgramXref($A9,numericItinerary(D$1)) ->  | E9: =getProgramXref($A9,numericItinerary(E$1)) ->  | F9: =getProgramXref($A9,numericItinerary(F$1)) ->  | G9: =getProgramXref($A9,numericItinerary(G$1)) ->  | H9: =getProgramXref($A9,numericItinerary(H$1)) ->  | I9: =getProgramXref($A9,numericItinerary(I$1)) -> x | J9: =getProgramXref($A9,numericItinerary(J$1)) ->  | K9: =getProgramXref($A9,numericItinerary(K$1)) ->  | L9: =getProgramXref($A9,numericItinerary(L$1)) ->  | M9: =getProgramXref($A9,numericItinerary(M$1)) ->  | N9: =getProgramXref($A9,numericItinerary(N$1)) ->  | P9: 2
A10: =INDEX(program_table,ROW()-5) -> COPE: High Challenge Course | B10: 2 | C10: =getProgramXref($A10,numericItinerary(C$1)) -> x | D10: =getProgramXref($A10,numericItinerary(D$1)) ->  | E10: =getProgramXref($A10,numericItinerary(E$1)) ->  | F10: =getProgramXref($A10,numericItinerary(F$1)) ->  | G10: =getProgramXref($A10,numericItinerary(G$1)) ->  | H10: =getProgramXref($A10,numericItinerary(H$1)) ->  | I10: =getProgramXref($A10,numericItinerary(I$1)) ->  | J10: =getProgramXref($A10,numericItinerary(J$1)) -> x | K10: =getProgramXref($A10,numericItinerary(K$1)) ->  | L10: =getProgramXref($A10,numericItinerary(L$1)) ->  | M10: =getProgramXref($A10,numericItinerary(M$1)) ->  | N10: =getProgramXref($A10,numericItinerary(N$1)) ->  | P10: 2
A11: =INDEX(program_table,ROW()-5) -> COPE: Initiative Games | B11: 4 | C11: =getProgramXref($A11,numericItinerary(C$1)) -> x | D11: =getProgramXref($A11,numericItinerary(D$1)) ->  | E11: =getProgramXref($A11,numericItinerary(E$1)) ->  | F11: =getProgramXref($A11,numericItinerary(F$1)) ->  | G11: =getProgramXref($A11,numericItinerary(G$1)) -> x | H11: =getProgramXref($A11,numericItinerary(H$1)) -> x | I11: =getProgramXref($A11,numericItinerary(I$1)) ->  | J11: =getProgramXref($A11,numericItinerary(J$1)) -> x | K11: =getProgramXref($A11,numericItinerary(K$1)) ->  | L11: =getProgramXref($A11,numericItinerary(L$1)) ->  | M11: =getProgramXref($A11,numericItinerary(M$1)) ->  | N11: =getProgramXref($A11,numericItinerary(N$1)) ->  | P11: 4
A12: =INDEX(program_table,ROW()-5) -> COPE: Low Challenge Course | B12: 5 | C12: =getProgramXref($A12,numericItinerary(C$1)) -> x | D12: =getProgramXref($A12,numericItinerary(D$1)) ->  | E12: =getProgramXref($A12,numericItinerary(E$1)) ->  | F12: =getProgramXref($A12,numericItinerary(F$1)) ->  | G12: =getProgramXref($A12,numericItinerary(G$1)) -> x | H12: =getProgramXref($A12,numericItinerary(H$1)) -> x | I12: =getProgramXref($A12,numericItinerary(I$1)) ->  | J12: =getProgramXref($A12,numericItinerary(J$1)) -> x | K12: =getProgramXref($A12,numericItinerary(K$1)) ->  | L12: =getProgramXref($A12,numericItinerary(L$1)) ->  | M12: =getProgramXref($A12,numericItinerary(M$1)) -> x | N12: =getProgramXref($A12,numericItinerary(N$1)) ->  | P12: 5
A13: =INDEX(program_table,ROW()-5) -> Ecology: Demonstration Forest | B13: 2 | C13: =getProgramXref($A13,numericItinerary(C$1)) ->  | D13: =getProgramXref($A13,numericItinerary(D$1)) ->  | E13: =getProgramXref($A13,numericItinerary(E$1)) -> x | F13: =getProgramXref($A13,numericItinerary(F$1)) ->  | G13: =getProgramXref($A13,numericItinerary(G$1)) ->  | H13: =getProgramXref($A13,numericItinerary(H$1)) ->  | I13: =getProgramXref($A13,numericItinerary(I$1)) ->  | J13: =getProgramXref($A13,numericItinerary(J$1)) ->  | K13: =getProgramXref($A13,numericItinerary(K$1)) -> x | L13: =getProgramXref($A13,numericItinerary(L$1)) ->  | M13: =getProgramXref($A13,numericItinerary(M$1)) ->  | N13: =getProgramXref($A13,numericItinerary(N$1)) ->  | P13: 2
A14: =INDEX(program_table,ROW()-5) -> Ecology: Self-Guided Fishing | B14: 5 | C14: =getProgramXref($A14,numericItinerary(C$1)) -> x | D14: =getProgramXref($A14,numericItinerary(D$1)) ->  | E14: =getProgramXref($A14,numericItinerary(E$1)) ->  | F14: =getProgramXref($A14,numericItinerary(F$1)) -> x | G14: =getProgramXref($A14,numericItinerary(G$1)) ->  | H14: =getProgramXref($A14,numericItinerary(H$1)) ->  | I14: =getProgramXref($A14,numericItinerary(I$1)) ->  | J14: =getProgramXref($A14,numericItinerary(J$1)) -> x | K14: =getProgramXref($A14,numericItinerary(K$1)) -> x | L14: =getProgramXref($A14,numericItinerary(L$1)) ->  | M14: =getProgramXref($A14,numericItinerary(M$1)) ->  | N14: =getProgramXref($A14,numericItinerary(N$1)) -> x | P14: 5
A15: =INDEX(program_table,ROW()-5) -> Evening: Advisor Coffee | B15: 0 | C15: =getProgramXref($A15,numericItinerary(C$1)) ->  | D15: =getProgramXref($A15,numericItinerary(D$1)) ->  | E15: =getProgramXref($A15,numericItinerary(E$1)) ->  | F15: =getProgramXref($A15,numericItinerary(F$1)) ->  | G15: =getProgramXref($A15,numericItinerary(G$1)) ->  | H15: =getProgramXref($A15,numericItinerary(H$1)) ->  | I15: =getProgramXref($A15,numericItinerary(I$1)) ->  | J15: =getProgramXref($A15,numericItinerary(J$1)) ->  | K15: =getProgramXref($A15,numericItinerary(K$1)) ->  | L15: =getProgramXref($A15,numericItinerary(L$1)) ->  | M15: =getProgramXref($A15,numericItinerary(M$1)) ->  | N15: =getProgramXref($A15,numericItinerary(N$1)) ->  | P15: 0
A16: =INDEX(program_table,ROW()-5) -> Evening: Campfire Show | B16: 12 | C16: =getProgramXref($A16,numericItinerary(C$1)) -> x | D16: =getProgramXref($A16,numericItinerary(D$1)) -> x | E16: =getProgramXref($A16,numericItinerary(E$1)) -> x | F16: =getProgramXref($A16,numericItinerary(F$1)) -> x | G16: =getProgramXref($A16,numericItinerary(G$1)) -> x | H16: =getProgramXref($A16,numericItinerary(H$1)) -> x | I16: =getProgramXref($A16,numericItinerary(I$1)) -> x | J16: =getProgramXref($A16,numericItinerary(J$1)) -> x | K16: =getProgramXref($A16,numericItinerary(K$1)) -> x | L16: =getProgramXref($A16,numericItinerary(L$1)) -> x | M16: =getProgramXref($A16,numericItinerary(M$1)) -> x | N16: =getProgramXref($A16,numericItinerary(N$1)) -> x | P16: 12
A17: =INDEX(program_table,ROW()-5) -> Evening: Chuckwagon Dinner | B17: 10 | C17: =getProgramXref($A17,numericItinerary(C$1)) -> x | D17: =getProgramXref($A17,numericItinerary(D$1)) -> x | E17: =getProgramXref($A17,numericItinerary(E$1)) -> x | F17: =getProgramXref($A17,numericItinerary(F$1)) -> x | G17: =getProgramXref($A17,numericItinerary(G$1)) ->  | H17: =getProgramXref($A17,numericItinerary(H$1)) -> x | I17: =getProgramXref($A17,numericItinerary(I$1)) ->  | J17: =getProgramXref($A17,numericItinerary(J$1)) -> x | K17: =getProgramXref($A17,numericItinerary(K$1)) -> x | L17: =getProgramXref($A17,numericItinerary(L$1)) -> x | M17: =getProgramXref($A17,numericItinerary(M$1)) -> x | N17: =getProgramXref($A17,numericItinerary(N$1)) -> x | P17: 10
A18: =INDEX(program_table,ROW()-5) -> Historical: Adobe Brick-Making | B18: 7 | C18: =getProgramXref($A18,numericItinerary(C$1)) -> x | D18: =getProgramXref($A18,numericItinerary(D$1)) -> x | E18: =getProgramXref($A18,numericItinerary(E$1)) -> x | F18: =getProgramXref($A18,numericItinerary(F$1)) -> x | G18: =getProgramXref($A18,numericItinerary(G$1)) ->  | H18: =getProgramXref($A18,numericItinerary(H$1)) ->  | I18: =getProgramXref($A18,numericItinerary(I$1)) ->  | J18: =getProgramXref($A18,numericItinerary(J$1)) -> x | K18: =getProgramXref($A18,numericItinerary(K$1)) -> x | L18: =getProgramXref($A18,numericItinerary(L$1)) ->  | M18: =getProgramXref($A18,numericItinerary(M$1)) ->  | N18: =getProgramXref($A18,numericItinerary(N$1)) -> x | P18: 7
A19: =INDEX(program_table,ROW()-5) -> Historical: Blacksmithing | B19: 4 | C19: =getProgramXref($A19,numericItinerary(C$1)) -> x | D19: =getProgramXref($A19,numericItinerary(D$1)) ->  | E19: =getProgramXref($A19,numericItinerary(E$1)) ->  | F19: =getProgramXref($A19,numericItinerary(F$1)) -> x | G19: =getProgramXref($A19,numericItinerary(G$1)) ->  | H19: =getProgramXref($A19,numericItinerary(H$1)) ->  | I19: =getProgramXref($A19,numericItinerary(I$1)) ->  | J19: =getProgramXref($A19,numericItinerary(J$1)) -> x | K19: =getProgramXref($A19,numericItinerary(K$1)) -> x | L19: =getProgramXref($A19,numericItinerary(L$1)) ->  | M19: =getProgramXref($A19,numericItinerary(M$1)) ->  | N19: =getProgramXref($A19,numericItinerary(N$1)) ->  | P19: 4
A20: =INDEX(program_table,ROW()-5) -> Historical: Cabin Restoration | B20: 7 | C20: =getProgramXref($A20,numericItinerary(C$1)) -> x | D20: =getProgramXref($A20,numericItinerary(D$1)) ->  | E20: =getProgramXref($A20,numericItinerary(E$1)) ->  | F20: =getProgramXref($A20,numericItinerary(F$1)) -> x | G20: =getProgramXref($A20,numericItinerary(G$1)) -> x | H20: =getProgramXref($A20,numericItinerary(H$1)) ->  | I20: =getProgramXref($A20,numericItinerary(I$1)) -> x | J20: =getProgramXref($A20,numericItinerary(J$1)) ->  | K20: =getProgramXref($A20,numericItinerary(K$1)) -> x | L20: =getProgramXref($A20,numericItinerary(L$1)) -> x | M20: =getProgramXref($A20,numericItinerary(M$1)) -> x | N20: =getProgramXref($A20,numericItinerary(N$1)) ->  | P20: 7
A21: =INDEX(program_table,ROW()-5) -> Historical: Cabin/House Tour | B21: 2 | C21: =getProgramXref($A21,numericItinerary(C$1)) ->  | D21: =getProgramXref($A21,numericItinerary(D$1)) ->  | E21: =getProgramXref($A21,numericItinerary(E$1)) ->  | F21: =getProgramXref($A21,numericItinerary(F$1)) -> x | G21: =getProgramXref($A21,numericItinerary(G$1)) ->  | H21: =getProgramXref($A21,numericItinerary(H$1)) ->  | I21: =getProgramXref($A21,numericItinerary(I$1)) ->  | J21: =getProgramXref($A21,numericItinerary(J$1)) ->  | K21: =getProgramXref($A21,numericItinerary(K$1)) -> x | L21: =getProgramXref($A21,numericItinerary(L$1)) ->  | M21: =getProgramXref($A21,numericItinerary(M$1)) ->  | N21: =getProgramXref($A21,numericItinerary(N$1)) ->  | P21: 2
A22: =INDEX(program_table,ROW()-5) -> Historical: Crafting | B22: 6 | C22: =getProgramXref($A22,numericItinerary(C$1)) -> x | D22: =getProgramXref($A22,numericItinerary(D$1)) ->  | E22: =getProgramXref($A22,numericItinerary(E$1)) ->  | F22: =getProgramXref($A22,numericItinerary(F$1)) -> x | G22: =getProgramXref($A22,numericItinerary(G$1)) ->  | H22: =getProgramXref($A22,numericItinerary(H$1)) -> x | I22: =getProgramXref($A22,numericItinerary(I$1)) ->  | J22: =getProgramXref($A22,numericItinerary(J$1)) -> x | K22: =getProgramXref($A22,numericItinerary(K$1)) -> x | L22: =getProgramXref($A22,numericItinerary(L$1)) ->  | M22: =getProgramXref($A22,numericItinerary(M$1)) -> x | N22: =getProgramXref($A22,numericItinerary(N$1)) ->  | P22: 6
A23: =INDEX(program_table,ROW()-5) -> Historical: Crosscut & Tie Making | B23: 4 | C23: =getProgramXref($A23,numericItinerary(C$1)) -> x | D23: =getProgramXref($A23,numericItinerary(D$1)) ->  | E23: =getProgramXref($A23,numericItinerary(E$1)) ->  | F23: =getProgramXref($A23,numericItinerary(F$1)) -> x | G23: =getProgramXref($A23,numericItinerary(G$1)) ->  | H23: =getProgramXref($A23,numericItinerary(H$1)) ->  | I23: =getProgramXref($A23,numericItinerary(I$1)) ->  | J23: =getProgramXref($A23,numericItinerary(J$1)) -> x | K23: =getProgramXref($A23,numericItinerary(K$1)) -> x | L23: =getProgramXref($A23,numericItinerary(L$1)) ->  | M23: =getProgramXref($A23,numericItinerary(M$1)) ->  | N23: =getProgramXref($A23,numericItinerary(N$1)) ->  | P23: 4
A24: =INDEX(program_table,ROW()-5) -> Historical: Flint Knapping | B24: 6 | C24: =getProgramXref($A24,numericItinerary(C$1)) -> x | D24: =getProgramXref($A24,numericItinerary(D$1)) ->  | E24: =getProgramXref($A24,numericItinerary(E$1)) ->  | F24: =getProgramXref($A24,numericItinerary(F$1)) -> x | G24: =getProgramXref($A24,numericItinerary(G$1)) -> x | H24: =getProgramXref($A24,numericItinerary(H$1)) -> x | I24: =getProgramXref($A24,numericItinerary(I$1)) ->  | J24: =getProgramXref($A24,numericItinerary(J$1)) -> x | K24: =getProgramXref($A24,numericItinerary(K$1)) ->  | L24: =getProgramXref($A24,numericItinerary(L$1)) -> x | M24: =getProgramXref($A24,numericItinerary(M$1)) ->  | N24: =getProgramXref($A24,numericItinerary(N$1)) ->  | P24: 6
A25: =INDEX(program_table,ROW()-5) -> Historical: Fur Trapper Rendezvous | B25: 1 | C25: =getProgramXref($A25,numericItinerary(C$1)) ->  | D25: =getProgramXref($A25,numericItinerary(D$1)) ->  | E25: =getProgramXref($A25,numericItinerary(E$1)) ->  | F25: =getProgramXref($A25,numericItinerary(F$1)) ->  | G25: =getProgramXref($A25,numericItinerary(G$1)) ->  | H25: =getProgramXref($A25,numericItinerary(H$1)) ->  | I25: =getProgramXref($A25,numericItinerary(I$1)) ->  | J25: =getProgramXref($A25,numericItinerary(J$1)) -> x | K25: =getProgramXref($A25,numericItinerary(K$1)) ->  | L25: =getProgramXref($A25,numericItinerary(L$1)) ->  | M25: =getProgramXref($A25,numericItinerary(M$1)) ->  | N25: =getProgramXref($A25,numericItinerary(N$1)) ->  | P25: 1
A26: =INDEX(program_table,ROW()-5) -> Historical: Gold Panning | B26: 3 | C26: =getProgramXref($A26,numericItinerary(C$1)) ->  | D26: =getProgramXref($A26,numericItinerary(D$1)) ->  | E26: =getProgramXref($A26,numericItinerary(E$1)) ->  | F26: =getProgramXref($A26,numericItinerary(F$1)) ->  | G26: =getProgramXref($A26,numericItinerary(G$1)) -> x | H26: =getProgramXref($A26,numericItinerary(H$1)) ->  | I26: =getProgramXref($A26,numericItinerary(I$1)) ->  | J26: =getProgramXref($A26,numericItinerary(J$1)) ->  | K26: =getProgramXref($A26,numericItinerary(K$1)) ->  | L26: =getProgramXref($A26,numericItinerary(L$1)) -> x | M26: =getProgramXref($A26,numericItinerary(M$1)) -> x | N26: =getProgramXref($A26,numericItinerary(N$1)) ->  | P26: 3
A27: =INDEX(program_table,ROW()-5) -> Historical: Mine Tour | B27: 6 | C27: =getProgramXref($A27,numericItinerary(C$1)) ->  | D27: =getProgramXref($A27,numericItinerary(D$1)) ->  | E27: =getProgramXref($A27,numericItinerary(E$1)) -> x | F27: =getProgramXref($A27,numericItinerary(F$1)) ->  | G27: =getProgramXref($A27,numericItinerary(G$1)) -> x | H27: =getProgramXref($A27,numericItinerary(H$1)) ->  | I27: =getProgramXref($A27,numericItinerary(I$1)) -> x | J27: =getProgramXref($A27,numericItinerary(J$1)) ->  | K27: =getProgramXref($A27,numericItinerary(K$1)) -> x | L27: =getProgramXref($A27,numericItinerary(L$1)) -> x | M27: =getProgramXref($A27,numericItinerary(M$1)) -> x | N27: =getProgramXref($A27,numericItinerary(N$1)) ->  | P27: 6
A28: =INDEX(program_table,ROW()-5) -> Historical: Petroglyph Tour | B28: 1 | C28: =getProgramXref($A28,numericItinerary(C$1)) ->  | D28: =getProgramXref($A28,numericItinerary(D$1)) ->  | E28: =getProgramXref($A28,numericItinerary(E$1)) ->  | F28: =getProgramXref($A28,numericItinerary(F$1)) ->  | G28: =getProgramXref($A28,numericItinerary(G$1)) ->  | H28: =getProgramXref($A28,numericItinerary(H$1)) ->  | I28: =getProgramXref($A28,numericItinerary(I$1)) ->  | J28: =getProgramXref($A28,numericItinerary(J$1)) ->  | K28: =getProgramXref($A28,numericItinerary(K$1)) -> x | L28: =getProgramXref($A28,numericItinerary(L$1)) ->  | M28: =getProgramXref($A28,numericItinerary(M$1)) ->  | N28: =getProgramXref($A28,numericItinerary(N$1)) ->  | P28: 1
A29: =INDEX(program_table,ROW()-5) -> Historical: Pump Car Rides | B29: 5 | C29: =getProgramXref($A29,numericItinerary(C$1)) ->  | D29: =getProgramXref($A29,numericItinerary(D$1)) -> x | E29: =getProgramXref($A29,numericItinerary(E$1)) ->  | F29: =getProgramXref($A29,numericItinerary(F$1)) ->  | G29: =getProgramXref($A29,numericItinerary(G$1)) -> x | H29: =getProgramXref($A29,numericItinerary(H$1)) -> x | I29: =getProgramXref($A29,numericItinerary(I$1)) ->  | J29: =getProgramXref($A29,numericItinerary(J$1)) ->  | K29: =getProgramXref($A29,numericItinerary(K$1)) ->  | L29: =getProgramXref($A29,numericItinerary(L$1)) -> x | M29: =getProgramXref($A29,numericItinerary(M$1)) -> x | N29: =getProgramXref($A29,numericItinerary(N$1)) ->  | P29: 5
A30: =INDEX(program_table,ROW()-5) -> Historical: Railroad Construction | B30: 1 | C30: =getProgramXref($A30,numericItinerary(C$1)) ->  | D30: =getProgramXref($A30,numericItinerary(D$1)) ->  | E30: =getProgramXref($A30,numericItinerary(E$1)) ->  | F30: =getProgramXref($A30,numericItinerary(F$1)) ->  | G30: =getProgramXref($A30,numericItinerary(G$1)) ->  | H30: =getProgramXref($A30,numericItinerary(H$1)) ->  | I30: =getProgramXref($A30,numericItinerary(I$1)) ->  | J30: =getProgramXref($A30,numericItinerary(J$1)) ->  | K30: =getProgramXref($A30,numericItinerary(K$1)) ->  | L30: =getProgramXref($A30,numericItinerary(L$1)) -> x | M30: =getProgramXref($A30,numericItinerary(M$1)) ->  | N30: =getProgramXref($A30,numericItinerary(N$1)) ->  | P30: 1
A31: =INDEX(program_table,ROW()-5) -> Historical: Spar Pole Climbing | B31: 2 | C31: =getProgramXref($A31,numericItinerary(C$1)) ->  | D31: =getProgramXref($A31,numericItinerary(D$1)) ->  | E31: =getProgramXref($A31,numericItinerary(E$1)) ->  | F31: =getProgramXref($A31,numericItinerary(F$1)) ->  | G31: =getProgramXref($A31,numericItinerary(G$1)) ->  | H31: =getProgramXref($A31,numericItinerary(H$1)) ->  | I31: =getProgramXref($A31,numericItinerary(I$1)) ->  | J31: =getProgramXref($A31,numericItinerary(J$1)) ->  | K31: =getProgramXref($A31,numericItinerary(K$1)) ->  | L31: =getProgramXref($A31,numericItinerary(L$1)) -> x | M31: =getProgramXref($A31,numericItinerary(M$1)) -> x | N31: =getProgramXref($A31,numericItinerary(N$1)) ->  | P31: 2
A32: =INDEX(program_table,ROW()-5) -> Landmarks: Baldy Mountain | B32: 2 | C32: =getProgramXref($A32,numericItinerary(C$1)) ->  | D32: =getProgramXref($A32,numericItinerary(D$1)) ->  | E32: =getProgramXref($A32,numericItinerary(E$1)) ->  | F32: =getProgramXref($A32,numericItinerary(F$1)) -> x | G32: =getProgramXref($A32,numericItinerary(G$1)) ->  | H32: =getProgramXref($A32,numericItinerary(H$1)) ->  | I32: =getProgramXref($A32,numericItinerary(I$1)) ->  | J32: =getProgramXref($A32,numericItinerary(J$1)) ->  | K32: =getProgramXref($A32,numericItinerary(K$1)) ->  | L32: =getProgramXref($A32,numericItinerary(L$1)) -> x | M32: =getProgramXref($A32,numericItinerary(M$1)) ->  | N32: =getProgramXref($A32,numericItinerary(N$1)) ->  | P32: 2
A33: =INDEX(program_table,ROW()-5) -> Landmarks: Inspiration Point | B33: 3 | C33: =getProgramXref($A33,numericItinerary(C$1)) ->  | D33: =getProgramXref($A33,numericItinerary(D$1)) ->  | E33: =getProgramXref($A33,numericItinerary(E$1)) ->  | F33: =getProgramXref($A33,numericItinerary(F$1)) ->  | G33: =getProgramXref($A33,numericItinerary(G$1)) -> x | H33: =getProgramXref($A33,numericItinerary(H$1)) ->  | I33: =getProgramXref($A33,numericItinerary(I$1)) ->  | J33: =getProgramXref($A33,numericItinerary(J$1)) ->  | K33: =getProgramXref($A33,numericItinerary(K$1)) ->  | L33: =getProgramXref($A33,numericItinerary(L$1)) -> x | M33: =getProgramXref($A33,numericItinerary(M$1)) -> x | N33: =getProgramXref($A33,numericItinerary(N$1)) ->  | P33: 3
A34: =INDEX(program_table,ROW()-5) -> Landmarks: Mount Phillips | B34: 2 | C34: =getProgramXref($A34,numericItinerary(C$1)) -> x | D34: =getProgramXref($A34,numericItinerary(D$1)) ->  | E34: =getProgramXref($A34,numericItinerary(E$1)) ->  | F34: =getProgramXref($A34,numericItinerary(F$1)) ->  | G34: =getProgramXref($A34,numericItinerary(G$1)) ->  | H34: =getProgramXref($A34,numericItinerary(H$1)) ->  | I34: =getProgramXref($A34,numericItinerary(I$1)) ->  | J34: =getProgramXref($A34,numericItinerary(J$1)) -> x | K34: =getProgramXref($A34,numericItinerary(K$1)) ->  | L34: =getProgramXref($A34,numericItinerary(L$1)) ->  | M34: =getProgramXref($A34,numericItinerary(M$1)) ->  | N34: =getProgramXref($A34,numericItinerary(N$1)) ->  | P34: 2
A35: =INDEX(program_table,ROW()-5) -> Landmarks: Mountaineering | B35: 3 | C35: =getProgramXref($A35,numericItinerary(C$1)) ->  | D35: =getProgramXref($A35,numericItinerary(D$1)) ->  | E35: =getProgramXref($A35,numericItinerary(E$1)) ->  | F35: =getProgramXref($A35,numericItinerary(F$1)) ->  | G35: =getProgramXref($A35,numericItinerary(G$1)) ->  | H35: =getProgramXref($A35,numericItinerary(H$1)) ->  | I35: =getProgramXref($A35,numericItinerary(I$1)) -> x | J35: =getProgramXref($A35,numericItinerary(J$1)) ->  | K35: =getProgramXref($A35,numericItinerary(K$1)) -> x | L35: =getProgramXref($A35,numericItinerary(L$1)) ->  | M35: =getProgramXref($A35,numericItinerary(M$1)) ->  | N35: =getProgramXref($A35,numericItinerary(N$1)) -> x | P35: 3
A36: =INDEX(program_table,ROW()-5) -> Landmarks: Tooth of Time | B36: 6 | C36: =getProgramXref($A36,numericItinerary(C$1)) ->  | D36: =getProgramXref($A36,numericItinerary(D$1)) ->  | E36: =getProgramXref($A36,numericItinerary(E$1)) ->  | F36: =getProgramXref($A36,numericItinerary(F$1)) ->  | G36: =getProgramXref($A36,numericItinerary(G$1)) -> x | H36: =getProgramXref($A36,numericItinerary(H$1)) ->  | I36: =getProgramXref($A36,numericItinerary(I$1)) ->  | J36: =getProgramXref($A36,numericItinerary(J$1)) -> x | K36: =getProgramXref($A36,numericItinerary(K$1)) -> x | L36: =getProgramXref($A36,numericItinerary(L$1)) -> x | M36: =getProgramXref($A36,numericItinerary(M$1)) -> x | N36: =getProgramXref($A36,numericItinerary(N$1)) -> x | P36: 6
A37: =INDEX(program_table,ROW()-5) -> Landmarks: Trail Peak | B37: 4 | C37: =getProgramXref($A37,numericItinerary(C$1)) ->  | D37: =getProgramXref($A37,numericItinerary(D$1)) ->  | E37: =getProgramXref($A37,numericItinerary(E$1)) -> x | F37: =getProgramXref($A37,numericItinerary(F$1)) -> x | G37: =getProgramXref($A37,numericItinerary(G$1)) ->  | H37: =getProgramXref($A37,numericItinerary(H$1)) ->  | I37: =getProgramXref($A37,numericItinerary(I$1)) ->  | J37: =getProgramXref($A37,numericItinerary(J$1)) -> x | K37: =getProgramXref($A37,numericItinerary(K$1)) ->  | L37: =getProgramXref($A37,numericItinerary(L$1)) ->  | M37: =getProgramXref($A37,numericItinerary(M$1)) ->  | N37: =getProgramXref($A37,numericItinerary(N$1)) -> x | P37: 4
A38: =INDEX(program_table,ROW()-5) -> Livestock: Animal Husbandry | B38: =COUNTIF(C38:N38,"X") -> 1 | C38: =getProgramXref($A38,numericItinerary(C$1)) ->  | D38: =getProgramXref($A38,numericItinerary(D$1)) ->  | E38: =getProgramXref($A38,numericItinerary(E$1)) ->  | F38: =getProgramXref($A38,numericItinerary(F$1)) ->  | G38: =getProgramXref($A38,numericItinerary(G$1)) ->  | H38: =getProgramXref($A38,numericItinerary(H$1)) ->  | I38: =getProgramXref($A38,numericItinerary(I$1)) ->  | J38: =getProgramXref($A38,numericItinerary(J$1)) ->  | K38: =getProgramXref($A38,numericItinerary(K$1)) ->  | L38: =getProgramXref($A38,numericItinerary(L$1)) ->  | M38: =getProgramXref($A38,numericItinerary(M$1)) ->  | N38: =getProgramXref($A38,numericItinerary(N$1)) -> x | P38: =COUNTIF(C38:N38,"X") -> 1
A39: =INDEX(program_table,ROW()-5) -> Livestock: Burro Packing | B39: 7 | C39: =getProgramXref($A39,numericItinerary(C$1)) -> x | D39: =getProgramXref($A39,numericItinerary(D$1)) ->  | E39: =getProgramXref($A39,numericItinerary(E$1)) ->  | F39: =getProgramXref($A39,numericItinerary(F$1)) -> x | G39: =getProgramXref($A39,numericItinerary(G$1)) ->  | H39: =getProgramXref($A39,numericItinerary(H$1)) -> x | I39: =getProgramXref($A39,numericItinerary(I$1)) ->  | J39: =getProgramXref($A39,numericItinerary(J$1)) -> x | K39: =getProgramXref($A39,numericItinerary(K$1)) -> x | L39: =getProgramXref($A39,numericItinerary(L$1)) ->  | M39: =getProgramXref($A39,numericItinerary(M$1)) -> x | N39: =getProgramXref($A39,numericItinerary(N$1)) -> x | P39: 7
A40: =INDEX(program_table,ROW()-5) -> Livestock: Chicken Tending | B40: 1 | C40: =getProgramXref($A40,numericItinerary(C$1)) ->  | D40: =getProgramXref($A40,numericItinerary(D$1)) ->  | E40: =getProgramXref($A40,numericItinerary(E$1)) ->  | F40: =getProgramXref($A40,numericItinerary(F$1)) ->  | G40: =getProgramXref($A40,numericItinerary(G$1)) -> x | H40: =getProgramXref($A40,numericItinerary(H$1)) ->  | I40: =getProgramXref($A40,numericItinerary(I$1)) ->  | J40: =getProgramXref($A40,numericItinerary(J$1)) ->  | K40: =getProgramXref($A40,numericItinerary(K$1)) ->  | L40: =getProgramXref($A40,numericItinerary(L$1)) ->  | M40: =getProgramXref($A40,numericItinerary(M$1)) ->  | N40: =getProgramXref($A40,numericItinerary(N$1)) ->  | P40: 1
A41: =INDEX(program_table,ROW()-5) -> Livestock: Horse Rides | B41: 6 | C41: =getProgramXref($A41,numericItinerary(C$1)) -> x | D41: =getProgramXref($A41,numericItinerary(D$1)) ->  | E41: =getProgramXref($A41,numericItinerary(E$1)) ->  | F41: =getProgramXref($A41,numericItinerary(F$1)) -> x | G41: =getProgramXref($A41,numericItinerary(G$1)) ->  | H41: =getProgramXref($A41,numericItinerary(H$1)) -> x | I41: =getProgramXref($A41,numericItinerary(I$1)) ->  | J41: =getProgramXref($A41,numericItinerary(J$1)) -> x | K41: =getProgramXref($A41,numericItinerary(K$1)) -> x | L41: =getProgramXref($A41,numericItinerary(L$1)) ->  | M41: =getProgramXref($A41,numericItinerary(M$1)) -> x | N41: =getProgramXref($A41,numericItinerary(N$1)) ->  | P41: 6
A42: =INDEX(program_table,ROW()-5) -> Low Impact Camping | B42: 3 | C42: =getProgramXref($A42,numericItinerary(C$1)) ->  | D42: =getProgramXref($A42,numericItinerary(D$1)) -> x | E42: =getProgramXref($A42,numericItinerary(E$1)) -> x | F42: =getProgramXref($A42,numericItinerary(F$1)) -> x | G42: =getProgramXref($A42,numericItinerary(G$1)) ->  | H42: =getProgramXref($A42,numericItinerary(H$1)) ->  | I42: =getProgramXref($A42,numericItinerary(I$1)) ->  | J42: =getProgramXref($A42,numericItinerary(J$1)) ->  | K42: =getProgramXref($A42,numericItinerary(K$1)) ->  | L42: =getProgramXref($A42,numericItinerary(L$1)) ->  | M42: =getProgramXref($A42,numericItinerary(M$1)) ->  | N42: =getProgramXref($A42,numericItinerary(N$1)) ->  | P42: 3
A43: =INDEX(program_table,ROW()-5) -> Range Sports: 3D Archery | B43: 2 | C43: =getProgramXref($A43,numericItinerary(C$1)) ->  | D43: =getProgramXref($A43,numericItinerary(D$1)) ->  | E43: =getProgramXref($A43,numericItinerary(E$1)) ->  | F43: =getProgramXref($A43,numericItinerary(F$1)) ->  | G43: =getProgramXref($A43,numericItinerary(G$1)) ->  | H43: =getProgramXref($A43,numericItinerary(H$1)) -> x | I43: =getProgramXref($A43,numericItinerary(I$1)) ->  | J43: =getProgramXref($A43,numericItinerary(J$1)) ->  | K43: =getProgramXref($A43,numericItinerary(K$1)) ->  | L43: =getProgramXref($A43,numericItinerary(L$1)) ->  | M43: =getProgramXref($A43,numericItinerary(M$1)) -> x | N43: =getProgramXref($A43,numericItinerary(N$1)) ->  | P43: 2
A44: =INDEX(program_table,ROW()-5) -> Range Sports: Aerial Archery | B44: 4 | C44: =getProgramXref($A44,numericItinerary(C$1)) ->  | D44: =getProgramXref($A44,numericItinerary(D$1)) -> x | E44: =getProgramXref($A44,numericItinerary(E$1)) -> x | F44: =getProgramXref($A44,numericItinerary(F$1)) ->  | G44: =getProgramXref($A44,numericItinerary(G$1)) ->  | H44: =getProgramXref($A44,numericItinerary(H$1)) ->  | I44: =getProgramXref($A44,numericItinerary(I$1)) -> x | J44: =getProgramXref($A44,numericItinerary(J$1)) -> x | K44: =getProgramXref($A44,numericItinerary(K$1)) ->  | L44: =getProgramXref($A44,numericItinerary(L$1)) ->  | M44: =getProgramXref($A44,numericItinerary(M$1)) ->  | N44: =getProgramXref($A44,numericItinerary(N$1)) ->  | P44: 4
A45: =INDEX(program_table,ROW()-5) -> Range Sports: Atlatl Throwing | B45: 3 | C45: =getProgramXref($A45,numericItinerary(C$1)) ->  | D45: =getProgramXref($A45,numericItinerary(D$1)) -> x | E45: =getProgramXref($A45,numericItinerary(E$1)) ->  | F45: =getProgramXref($A45,numericItinerary(F$1)) ->  | G45: =getProgramXref($A45,numericItinerary(G$1)) ->  | H45: =getProgramXref($A45,numericItinerary(H$1)) ->  | I45: =getProgramXref($A45,numericItinerary(I$1)) -> x | J45: =getProgramXref($A45,numericItinerary(J$1)) -> x | K45: =getProgramXref($A45,numericItinerary(K$1)) ->  | L45: =getProgramXref($A45,numericItinerary(L$1)) ->  | M45: =getProgramXref($A45,numericItinerary(M$1)) ->  | N45: =getProgramXref($A45,numericItinerary(N$1)) ->  | P45: 3
A46: =INDEX(program_table,ROW()-5) -> Range Sports: Cartridge Reloading | B46: 2 | C46: =getProgramXref($A46,numericItinerary(C$1)) ->  | D46: =getProgramXref($A46,numericItinerary(D$1)) ->  | E46: =getProgramXref($A46,numericItinerary(E$1)) ->  | F46: =getProgramXref($A46,numericItinerary(F$1)) ->  | G46: =getProgramXref($A46,numericItinerary(G$1)) -> x | H46: =getProgramXref($A46,numericItinerary(H$1)) -> x | I46: =getProgramXref($A46,numericItinerary(I$1)) ->  | J46: =getProgramXref($A46,numericItinerary(J$1)) ->  | K46: =getProgramXref($A46,numericItinerary(K$1)) ->  | L46: =getProgramXref($A46,numericItinerary(L$1)) ->  | M46: =getProgramXref($A46,numericItinerary(M$1)) ->  | N46: =getProgramXref($A46,numericItinerary(N$1)) ->  | P46: 2
A47: =INDEX(program_table,ROW()-5) -> Range Sports: Cowboy Action Shooting | B47: 3 | C47: =getProgramXref($A47,numericItinerary(C$1)) ->  | D47: =getProgramXref($A47,numericItinerary(D$1)) ->  | E47: =getProgramXref($A47,numericItinerary(E$1)) -> x | F47: =getProgramXref($A47,numericItinerary(F$1)) ->  | G47: =getProgramXref($A47,numericItinerary(G$1)) ->  | H47: =getProgramXref($A47,numericItinerary(H$1)) ->  | I47: =getProgramXref($A47,numericItinerary(I$1)) -> x | J47: =getProgramXref($A47,numericItinerary(J$1)) ->  | K47: =getProgramXref($A47,numericItinerary(K$1)) ->  | L47: =getProgramXref($A47,numericItinerary(L$1)) ->  | M47: =getProgramXref($A47,numericItinerary(M$1)) ->  | N47: =getProgramXref($A47,numericItinerary(N$1)) -> x | P47: 3
A48: =INDEX(program_table,ROW()-5) -> Range Sports: Field Archery | B48: 1 | C48: =getProgramXref($A48,numericItinerary(C$1)) ->  | D48: =getProgramXref($A48,numericItinerary(D$1)) -> x | E48: =getProgramXref($A48,numericItinerary(E$1)) ->  | F48: =getProgramXref($A48,numericItinerary(F$1)) ->  | G48: =getProgramXref($A48,numericItinerary(G$1)) ->  | H48: =getProgramXref($A48,numericItinerary(H$1)) ->  | I48: =getProgramXref($A48,numericItinerary(I$1)) ->  | J48: =getProgramXref($A48,numericItinerary(J$1)) ->  | K48: =getProgramXref($A48,numericItinerary(K$1)) ->  | L48: =getProgramXref($A48,numericItinerary(L$1)) ->  | M48: =getProgramXref($A48,numericItinerary(M$1)) ->  | N48: =getProgramXref($A48,numericItinerary(N$1)) ->  | P48: 1
A49: =INDEX(program_table,ROW()-5) -> Range Sports: Muzzleloader Shooting | B49: 3 | C49: =getProgramXref($A49,numericItinerary(C$1)) ->  | D49: =getProgramXref($A49,numericItinerary(D$1)) -> x | E49: =getProgramXref($A49,numericItinerary(E$1)) -> x | F49: =getProgramXref($A49,numericItinerary(F$1)) ->  | G49: =getProgramXref($A49,numericItinerary(G$1)) ->  | H49: =getProgramXref($A49,numericItinerary(H$1)) ->  | I49: =getProgramXref($A49,numericItinerary(I$1)) -> x | J49: =getProgramXref($A49,numericItinerary(J$1)) ->  | K49: =getProgramXref($A49,numericItinerary(K$1)) ->  | L49: =getProgramXref($A49,numericItinerary(L$1)) ->  | M49: =getProgramXref($A49,numericItinerary(M$1)) ->  | N49: =getProgramXref($A49,numericItinerary(N$1)) ->  | P49: 3
A50: =INDEX(program_table,ROW()-5) -> Range Sports: Rifle Shooting | B50: 3 | C50: =getProgramXref($A50,numericItinerary(C$1)) -> x | D50: =getProgramXref($A50,numericItinerary(D$1)) ->  | E50: =getProgramXref($A50,numericItinerary(E$1)) ->  | F50: =getProgramXref($A50,numericItinerary(F$1)) -> x | G50: =getProgramXref($A50,numericItinerary(G$1)) ->  | H50: =getProgramXref($A50,numericItinerary(H$1)) ->  | I50: =getProgramXref($A50,numericItinerary(I$1)) ->  | J50: =getProgramXref($A50,numericItinerary(J$1)) ->  | K50: =getProgramXref($A50,numericItinerary(K$1)) ->  | L50: =getProgramXref($A50,numericItinerary(L$1)) -> x | M50: =getProgramXref($A50,numericItinerary(M$1)) ->  | N50: =getProgramXref($A50,numericItinerary(N$1)) ->  | P50: 3
A51: =INDEX(program_table,ROW()-5) -> Range Sports: Shotgun Shooting | B51: 3 | C51: =getProgramXref($A51,numericItinerary(C$1)) ->  | D51: =getProgramXref($A51,numericItinerary(D$1)) ->  | E51: =getProgramXref($A51,numericItinerary(E$1)) -> x | F51: =getProgramXref($A51,numericItinerary(F$1)) ->  | G51: =getProgramXref($A51,numericItinerary(G$1)) ->  | H51: =getProgramXref($A51,numericItinerary(H$1)) ->  | I51: =getProgramXref($A51,numericItinerary(I$1)) -> x | J51: =getProgramXref($A51,numericItinerary(J$1)) ->  | K51: =getProgramXref($A51,numericItinerary(K$1)) ->  | L51: =getProgramXref($A51,numericItinerary(L$1)) ->  | M51: =getProgramXref($A51,numericItinerary(M$1)) ->  | N51: =getProgramXref($A51,numericItinerary(N$1)) -> x | P51: 3
A52: =INDEX(program_table,ROW()-5) -> Range Sports: Shotshell Reloading | B52: 3 | C52: =getProgramXref($A52,numericItinerary(C$1)) ->  | D52: =getProgramXref($A52,numericItinerary(D$1)) -> x | E52: =getProgramXref($A52,numericItinerary(E$1)) ->  | F52: =getProgramXref($A52,numericItinerary(F$1)) ->  | G52: =getProgramXref($A52,numericItinerary(G$1)) ->  | H52: =getProgramXref($A52,numericItinerary(H$1)) ->  | I52: =getProgramXref($A52,numericItinerary(I$1)) -> x | J52: =getProgramXref($A52,numericItinerary(J$1)) ->  | K52: =getProgramXref($A52,numericItinerary(K$1)) ->  | L52: =getProgramXref($A52,numericItinerary(L$1)) ->  | M52: =getProgramXref($A52,numericItinerary(M$1)) ->  | N52: =getProgramXref($A52,numericItinerary(N$1)) -> x | P52: 3
A53: =INDEX(program_table,ROW()-5) -> Range Sports: Tomahawk Throwing | B53: 3 | C53: =getProgramXref($A53,numericItinerary(C$1)) ->  | D53: =getProgramXref($A53,numericItinerary(D$1)) -> x | E53: =getProgramXref($A53,numericItinerary(E$1)) ->  | F53: =getProgramXref($A53,numericItinerary(F$1)) ->  | G53: =getProgramXref($A53,numericItinerary(G$1)) ->  | H53: =getProgramXref($A53,numericItinerary(H$1)) ->  | I53: =getProgramXref($A53,numericItinerary(I$1)) -> x | J53: =getProgramXref($A53,numericItinerary(J$1)) ->  | K53: =getProgramXref($A53,numericItinerary(K$1)) ->  | L53: =getProgramXref($A53,numericItinerary(L$1)) ->  | M53: =getProgramXref($A53,numericItinerary(M$1)) ->  | N53: =getProgramXref($A53,numericItinerary(N$1)) -> x | P53: 3
A54: =INDEX(program_table,ROW()-5) -> STEM: Archeology | B54: 5 | C54: =getProgramXref($A54,numericItinerary(C$1)) ->  | D54: =getProgramXref($A54,numericItinerary(D$1)) ->  | E54: =getProgramXref($A54,numericItinerary(E$1)) ->  | F54: =getProgramXref($A54,numericItinerary(F$1)) ->  | G54: =getProgramXref($A54,numericItinerary(G$1)) -> x | H54: =getProgramXref($A54,numericItinerary(H$1)) ->  | I54: =getProgramXref($A54,numericItinerary(I$1)) ->  | J54: =getProgramXref($A54,numericItinerary(J$1)) ->  | K54: =getProgramXref($A54,numericItinerary(K$1)) -> x | L54: =getProgramXref($A54,numericItinerary(L$1)) -> x | M54: =getProgramXref($A54,numericItinerary(M$1)) -> x | N54: =getProgramXref($A54,numericItinerary(N$1)) -> x | P54: 5
A55: =INDEX(program_table,ROW()-5) -> STEM: Astronomy | B55: 4 | C55: =getProgramXref($A55,numericItinerary(C$1)) ->  | D55: =getProgramXref($A55,numericItinerary(D$1)) ->  | E55: =getProgramXref($A55,numericItinerary(E$1)) ->  | F55: =getProgramXref($A55,numericItinerary(F$1)) ->  | G55: =getProgramXref($A55,numericItinerary(G$1)) -> x | H55: =getProgramXref($A55,numericItinerary(H$1)) -> x | I55: =getProgramXref($A55,numericItinerary(I$1)) ->  | J55: =getProgramXref($A55,numericItinerary(J$1)) ->  | K55: =getProgramXref($A55,numericItinerary(K$1)) ->  | L55: =getProgramXref($A55,numericItinerary(L$1)) -> x | M55: =getProgramXref($A55,numericItinerary(M$1)) -> x | N55: =getProgramXref($A55,numericItinerary(N$1)) -> 
A56: =INDEX(program_table,ROW()-5) -> STEM: Geology | B56: 1 | C56: =getProgramXref($A56,numericItinerary(C$1)) ->  | D56: =getProgramXref($A56,numericItinerary(D$1)) ->  | E56: =getProgramXref($A56,numericItinerary(E$1)) ->  | F56: =getProgramXref($A56,numericItinerary(F$1)) ->  | G56: =getProgramXref($A56,numericItinerary(G$1)) ->  | H56: =getProgramXref($A56,numericItinerary(H$1)) -> x | I56: =getProgramXref($A56,numericItinerary(I$1)) ->  | J56: =getProgramXref($A56,numericItinerary(J$1)) ->  | K56: =getProgramXref($A56,numericItinerary(K$1)) ->  | L56: =getProgramXref($A56,numericItinerary(L$1)) ->  | M56: =getProgramXref($A56,numericItinerary(M$1)) ->  | N56: =getProgramXref($A56,numericItinerary(N$1)) ->  | P56: =COUNTIF(C56:N56,"X") -> 1
A57: =INDEX(program_table,ROW()-5) -> Western Lore: Branding | B57: 5 | C57: =getProgramXref($A57,numericItinerary(C$1)) ->  | D57: =getProgramXref($A57,numericItinerary(D$1)) ->  | E57: =getProgramXref($A57,numericItinerary(E$1)) -> x | F57: =getProgramXref($A57,numericItinerary(F$1)) ->  | G57: =getProgramXref($A57,numericItinerary(G$1)) -> x | H57: =getProgramXref($A57,numericItinerary(H$1)) ->  | I57: =getProgramXref($A57,numericItinerary(I$1)) ->  | J57: =getProgramXref($A57,numericItinerary(J$1)) ->  | K57: =getProgramXref($A57,numericItinerary(K$1)) -> x | L57: =getProgramXref($A57,numericItinerary(L$1)) -> x | M57: =getProgramXref($A57,numericItinerary(M$1)) -> x | N57: =getProgramXref($A57,numericItinerary(N$1)) ->  | P57: 5
A58: =INDEX(program_table,ROW()-5) -> Western Lore: Cantina | B58: 10 | C58: =getProgramXref($A58,numericItinerary(C$1)) -> x | D58: =getProgramXref($A58,numericItinerary(D$1)) -> x | E58: =getProgramXref($A58,numericItinerary(E$1)) -> x | F58: =getProgramXref($A58,numericItinerary(F$1)) -> x | G58: =getProgramXref($A58,numericItinerary(G$1)) -> x | H58: =getProgramXref($A58,numericItinerary(H$1)) -> x | I58: =getProgramXref($A58,numericItinerary(I$1)) ->  | J58: =getProgramXref($A58,numericItinerary(J$1)) -> x | K58: =getProgramXref($A58,numericItinerary(K$1)) -> x | L58: =getProgramXref($A58,numericItinerary(L$1)) -> x | M58: =getProgramXref($A58,numericItinerary(M$1)) ->  | N58: =getProgramXref($A58,numericItinerary(N$1)) -> x | P58: 10
A59: =INDEX(program_table,ROW()-5) -> Western Lore: Roping | B59: 8 | C59: =getProgramXref($A59,numericItinerary(C$1)) -> x | D59: =getProgramXref($A59,numericItinerary(D$1)) -> x | E59: =getProgramXref($A59,numericItinerary(E$1)) ->  | F59: =getProgramXref($A59,numericItinerary(F$1)) -> x | G59: =getProgramXref($A59,numericItinerary(G$1)) -> x | H59: =getProgramXref($A59,numericItinerary(H$1)) -> x | I59: =getProgramXref($A59,numericItinerary(I$1)) ->  | J59: =getProgramXref($A59,numericItinerary(J$1)) -> x | K59: =getProgramXref($A59,numericItinerary(K$1)) -> x | L59: =getProgramXref($A59,numericItinerary(L$1)) -> x | M59: =getProgramXref($A59,numericItinerary(M$1)) ->  | N59: =getProgramXref($A59,numericItinerary(N$1)) ->  | P59: 8
A60: =INDEX(program_table,ROW()-5) ->  | B60: 0 | C60: =getProgramXref($A60,numericItinerary(C$1)) ->  | D60: =getProgramXref($A60,numericItinerary(D$1)) ->  | E60: =getProgramXref($A60,numericItinerary(E$1)) ->  | F60: =getProgramXref($A60,numericItinerary(F$1)) ->  | G60: =getProgramXref($A60,numericItinerary(G$1)) ->  | H60: =getProgramXref($A60,numericItinerary(H$1)) ->  | I60: =getProgramXref($A60,numericItinerary(I$1)) ->  | J60: =getProgramXref($A60,numericItinerary(J$1)) ->  | K60: =getProgramXref($A60,numericItinerary(K$1)) ->  | L60: =getProgramXref($A60,numericItinerary(L$1)) ->  | M60: =getProgramXref($A60,numericItinerary(M$1)) ->  | N60: =getProgramXref($A60,numericItinerary(N$1)) ->  | P60: 0
A61: =INDEX(program_table,ROW()-5) ->  | B61: 0 | C61: =getProgramXref($A61,numericItinerary(C$1)) ->  | D61: =getProgramXref($A61,numericItinerary(D$1)) ->  | E61: =getProgramXref($A61,numericItinerary(E$1)) ->  | F61: =getProgramXref($A61,numericItinerary(F$1)) ->  | G61: =getProgramXref($A61,numericItinerary(G$1)) ->  | H61: =getProgramXref($A61,numericItinerary(H$1)) ->  | I61: =getProgramXref($A61,numericItinerary(I$1)) ->  | J61: =getProgramXref($A61,numericItinerary(J$1)) ->  | K61: =getProgramXref($A61,numericItinerary(K$1)) ->  | L61: =getProgramXref($A61,numericItinerary(L$1)) ->  | M61: =getProgramXref($A61,numericItinerary(M$1)) ->  | N61: =getProgramXref($A61,numericItinerary(N$1)) ->  | P61: 0
A62: # programs in itinerary: | C62: =COUNTIF(C6:C61,"X") -> 22 | D62: 13 | E62: 14 | F62: 18 | G62: 17 | H62: 15 | I62: 13 | J62: 21 | K62: 20 | L62: 18 | M62: 17 | N62: 15 | P62: =COUNTIF(#REF!,"X") -> 
P63: =COUNTIF(#REF!,"X") -> 
P64: =COUNTIF(#REF!,"X") -> 
P65: =COUNTIF(#REF!,"X") -> 

Sheet Tables
A1: Row | B1: Category | C1: Code | D1: Value | F1: Total | G1: Score Selected | K1: n | L1: Index
B2: programFactor | C2: Multiply X Activity score for value to use | D2: 1.5 | E2: This is applied to each score in the calculation. Use to make activities more/less important. | L2: These are the results of the "Scores" worksheet — from the scores entered from the Preference Survey worksheets. | M2: Total | N2: Average | O2: Median | P2: Mode
A3: =ROW()-2 -> 1 | B3: Program | C3: =INDEX(program_table,A3,1) -> Climbing: Bouldering Gym | D3: =SUM(Scores!B2:M2) -> 152 | K3: 1 | M3: =SUM(Scores!$B2:M2)*programFactor -> 228 | N3: =IF(COUNT(Scores!$B2:M2)>0,AVERAGE(Scores!$B2:M2)*programFactor,0) -> 19 | O3: =IF(COUNT(Scores!$B2:M2)>0,MEDIAN(Scores!$B2:M2)*programFactor,0) -> 22.5 | P3: =IF(getmode(Scores!$B2:M2)="","",getmode(Scores!$B2:M2)*programFactor) -> 22.5
A4: =ROW()-2 -> 2 | B4: Program | C4: =INDEX(program_table,A4,1) -> Climbing: Climbing Wall/Tower | D4: =SUM(Scores!B3:M3) -> 225 | K4: 2 | M4: =SUM(Scores!$B3:M3)*programFactor -> 337.5 | N4: =IF(COUNT(Scores!$B3:M3)>0,AVERAGE(Scores!$B3:M3)*programFactor,0) -> 28.125 | O4: =IF(COUNT(Scores!$B3:M3)>0,MEDIAN(Scores!$B3:M3)*programFactor,0) -> 30 | P4: =IF(getmode(Scores!$B3:M3)="","",getmode(Scores!$B3:M3)*programFactor) -> 30
A5: 3 | B5: Program | C5: =INDEX(program_table,A5,1) -> Climbing: Crate Stacking | D5: =SUM(Scores!B4:M4) -> 76 | K5: 3 | M5: =SUM(Scores!$B4:M4)*programFactor -> 114 | N5: =IF(COUNT(Scores!$B4:M4)>0,AVERAGE(Scores!$B4:M4)*programFactor,0) -> 9.5 | O5: =IF(COUNT(Scores!$B4:M4)>0,MEDIAN(Scores!$B4:M4)*programFactor,0) -> 10.5 | P5: =IF(getmode(Scores!$B4:M4)="","",getmode(Scores!$B4:M4)*programFactor) -> 3
A6: 4 | B6: Program | C6: =INDEX(program_table,A6,1) -> Climbing: Rock Climbing | D6: =SUM(Scores!B5:M5) -> 188 | K6: 4 | M6: =SUM(Scores!$B5:M5)*programFactor -> 282 | N6: =IF(COUNT(Scores!$B5:M5)>0,AVERAGE(Scores!$B5:M5)*programFactor,0) -> 23.5 | O6: =IF(COUNT(Scores!$B5:M5)>0,MEDIAN(Scores!$B5:M5)*programFactor,0) -> 27 | P6: =IF(getmode(Scores!$B5:M5)="","",getmode(Scores!$B5:M5)*programFactor) -> 27
A7: 5 | B7: Program | C7: =INDEX(program_table,A7,1) -> COPE: High Challenge Course | D7: =SUM(Scores!B6:M6) -> 108 | K7: 5 | M7: =SUM(Scores!$B6:M6)*programFactor -> 162 | N7: =IF(COUNT(Scores!$B6:M6)>0,AVERAGE(Scores!$B6:M6)*programFactor,0) -> 13.5 | O7: =IF(COUNT(Scores!$B6:M6)>0,MEDIAN(Scores!$B6:M6)*programFactor,0) -> 12.75 | P7: =IF(getmode(Scores!$B6:M6)="","",getmode(Scores!$B6:M6)*programFactor) -> 0
A8: 6 | B8: Program | C8: =INDEX(program_table,A8,1) -> COPE: Initiative Games | D8: =SUM(Scores!B7:M7) -> 111 | K8: 6 | M8: =SUM(Scores!$B7:M7)*programFactor -> 166.5 | N8: =IF(COUNT(Scores!$B7:M7)>0,AVERAGE(Scores!$B7:M7)*programFactor,0) -> 13.875 | O8: =IF(COUNT(Scores!$B7:M7)>0,MEDIAN(Scores!$B7:M7)*programFactor,0) -> 14.25 | P8: =IF(getmode(Scores!$B7:M7)="","",getmode(Scores!$B7:M7)*programFactor) -> 0
A9: 7 | B9: Program | C9: =INDEX(program_table,A9,1) -> COPE: Low Challenge Course | D9: =SUM(Scores!B8:M8) -> 111 | K9: 7 | M9: =SUM(Scores!$B8:M8)*programFactor -> 166.5 | N9: =IF(COUNT(Scores!$B8:M8)>0,AVERAGE(Scores!$B8:M8)*programFactor,0) -> 13.875 | O9: =IF(COUNT(Scores!$B8:M8)>0,MEDIAN(Scores!$B8:M8)*programFactor,0) -> 14.25 | P9: =IF(getmode(Scores!$B8:M8)="","",getmode(Scores!$B8:M8)*programFactor) -> 0
A10: 8 | B10: Program | C10: =INDEX(program_table,A10,1) -> Ecology: Demonstration Forest | D10: =SUM(Scores!B9:M9) -> 84 | K10: 8 | M10: =SUM(Scores!$B9:M9)*programFactor -> 126 | N10: =IF(COUNT(Scores!$B9:M9)>0,AVERAGE(Scores!$B9:M9)*programFactor,0) -> 10.5 | O10: =IF(COUNT(Scores!$B9:M9)>0,MEDIAN(Scores!$B9:M9)*programFactor,0) -> 9 | P10: =IF(getmode(Scores!$B9:M9)="","",getmode(Scores!$B9:M9)*programFactor) -> 0
A11: 9 | B11: Program | C11: =INDEX(program_table,A11,1) -> Ecology: Self-Guided Fishing | D11: =SUM(Scores!B10:M10) -> 87 | K11: 9 | M11: =SUM(Scores!$B10:M10)*programFactor -> 130.5 | N11: =IF(COUNT(Scores!$B10:M10)>0,AVERAGE(Scores!$B10:M10)*programFactor,0) -> 10.875 | O11: =IF(COUNT(Scores!$B10:M10)>0,MEDIAN(Scores!$B10:M10)*programFactor,0) -> 13.5 | P11: =IF(getmode(Scores!$B10:M10)="","",getmode(Scores!$B10:M10)*programFactor) -> 0
A12: 10 | B12: Program | C12: =INDEX(program_table,A12,1) -> Evening: Advisor Coffee | D12: =SUM(Scores!B11:M11) -> 61 | K12: 10 | M12: =SUM(Scores!$B11:M11)*programFactor -> 91.5 | N12: =IF(COUNT(Scores!$B11:M11)>0,AVERAGE(Scores!$B11:M11)*programFactor,0) -> 8.318181818 | O12: =IF(COUNT(Scores!$B11:M11)>0,MEDIAN(Scores!$B11:M11)*programFactor,0) -> 7.5 | P12: =IF(getmode(Scores!$B11:M11)="","",getmode(Scores!$B11:M11)*programFactor) -> 0
A13: 11 | B13: Program | C13: =INDEX(program_table,A13,1) -> Evening: Campfire Show | D13: =SUM(Scores!B12:M12) -> 73 | K13: 11 | M13: =SUM(Scores!$B12:M12)*programFactor -> 109.5 | N13: =IF(COUNT(Scores!$B12:M12)>0,AVERAGE(Scores!$B12:M12)*programFactor,0) -> 9.954545455 | O13: =IF(COUNT(Scores!$B12:M12)>0,MEDIAN(Scores!$B12:M12)*programFactor,0) -> 7.5 | P13: =IF(getmode(Scores!$B12:M12)="","",getmode(Scores!$B12:M12)*programFactor) -> 7.5
A14: 12 | B14: Program | C14: =INDEX(program_table,A14,1) -> Evening: Chuckwagon Dinner | D14: =SUM(Scores!B13:M13) -> 73 | K14: 12 | M14: =SUM(Scores!$B13:M13)*programFactor -> 109.5 | N14: =IF(COUNT(Scores!$B13:M13)>0,AVERAGE(Scores!$B13:M13)*programFactor,0) -> 13.6875 | O14: =IF(COUNT(Scores!$B13:M13)>0,MEDIAN(Scores!$B13:M13)*programFactor,0) -> 15.75 | P14: =IF(getmode(Scores!$B13:M13)="","",getmode(Scores!$B13:M13)*programFactor) -> 0
A15: 13 | B15: Program | C15: =INDEX(program_table,A15,1) -> Historical: Adobe Brick-Making | D15: =SUM(Scores!B14:M14) -> 74 | K15: 13 | M15: =SUM(Scores!$B14:M14)*programFactor -> 111 | N15: =IF(COUNT(Scores!$B14:M14)>0,AVERAGE(Scores!$B14:M14)*programFactor,0) -> 9.25 | O15: =IF(COUNT(Scores!$B14:M14)>0,MEDIAN(Scores!$B14:M14)*programFactor,0) -> 6 | P15: =IF(getmode(Scores!$B14:M14)="","",getmode(Scores!$B14:M14)*programFactor) -> 0
A16: 14 | B16: Program | C16: =INDEX(program_table,A16,1) -> Historical: Blacksmithing | D16: =SUM(Scores!B15:M15) -> 76 | K16: 14 | M16: =SUM(Scores!$B15:M15)*programFactor -> 114 | N16: =IF(COUNT(Scores!$B15:M15)>0,AVERAGE(Scores!$B15:M15)*programFactor,0) -> 10.36363636 | O16: =IF(COUNT(Scores!$B15:M15)>0,MEDIAN(Scores!$B15:M15)*programFactor,0) -> 10.5 | P16: =IF(getmode(Scores!$B15:M15)="","",getmode(Scores!$B15:M15)*programFactor) -> 3
A17: 15 | B17: Program | C17: =INDEX(program_table,A17,1) -> Historical: Cabin Restoration | D17: =SUM(Scores!B16:M16) -> 82 | K17: 15 | M17: =SUM(Scores!$B16:M16)*programFactor -> 123 | N17: =IF(COUNT(Scores!$B16:M16)>0,AVERAGE(Scores!$B16:M16)*programFactor,0) -> 11.18181818 | O17: =IF(COUNT(Scores!$B16:M16)>0,MEDIAN(Scores!$B16:M16)*programFactor,0) -> 7.5 | P17: =IF(getmode(Scores!$B16:M16)="","",getmode(Scores!$B16:M16)*programFactor) -> 4.5
A18: 16 | B18: Program | C18: =INDEX(program_table,A18,1) -> Historical: Cabin/House Tour | D18: =SUM(Scores!B17:M17) -> 84 | K18: 16 | M18: =SUM(Scores!$B17:M17)*programFactor -> 126 | N18: =IF(COUNT(Scores!$B17:M17)>0,AVERAGE(Scores!$B17:M17)*programFactor,0) -> 10.5 | O18: =IF(COUNT(Scores!$B17:M17)>0,MEDIAN(Scores!$B17:M17)*programFactor,0) -> 12 | P18: =IF(getmode(Scores!$B17:M17)="","",getmode(Scores!$B17:M17)*programFactor) -> 12
A19: 17 | B19: Program | C19: =INDEX(program_table,A19,1) -> Historical: Crafting | D19: =SUM(Scores!B18:M18) -> 71 | K19: 17 | M19: =SUM(Scores!$B18:M18)*programFactor -> 106.5 | N19: =IF(COUNT(Scores!$B18:M18)>0,AVERAGE(Scores!$B18:M18)*programFactor,0) -> 8.875 | O19: =IF(COUNT(Scores!$B18:M18)>0,MEDIAN(Scores!$B18:M18)*programFactor,0) -> 6 | P19: =IF(getmode(Scores!$B18:M18)="","",getmode(Scores!$B18:M18)*programFactor) -> 1.5
A20: 18 | B20: Program | C20: =INDEX(program_table,A20,1) -> Historical: Crosscut & Tie Making | D20: =SUM(Scores!B19:M19) -> 97 | K20: 18 | M20: =SUM(Scores!$B19:M19)*programFactor -> 145.5 | N20: =IF(COUNT(Scores!$B19:M19)>0,AVERAGE(Scores!$B19:M19)*programFactor,0) -> 13.22727273 | O20: =IF(COUNT(Scores!$B19:M19)>0,MEDIAN(Scores!$B19:M19)*programFactor,0) -> 15 | P20: =IF(getmode(Scores!$B19:M19)="","",getmode(Scores!$B19:M19)*programFactor) -> 15
A21: 19 | B21: Program | C21: =INDEX(program_table,A21,1) -> Historical: Flint Knapping | D21: =SUM(Scores!B20:M20) -> 62 | K21: 19 | M21: =SUM(Scores!$B20:M20)*programFactor -> 93 | N21: =IF(COUNT(Scores!$B20:M20)>0,AVERAGE(Scores!$B20:M20)*programFactor,0) -> 7.75 | O21: =IF(COUNT(Scores!$B20:M20)>0,MEDIAN(Scores!$B20:M20)*programFactor,0) -> 6 | P21: =IF(getmode(Scores!$B20:M20)="","",getmode(Scores!$B20:M20)*programFactor) -> 0
A22: 20 | B22: Program | C22: =INDEX(program_table,A22,1) -> Historical: Fur Trapper Rendezvous | D22: =SUM(Scores!B21:M21) -> 104 | K22: 20 | M22: =SUM(Scores!$B21:M21)*programFactor -> 156 | N22: =IF(COUNT(Scores!$B21:M21)>0,AVERAGE(Scores!$B21:M21)*programFactor,0) -> 13 | O22: =IF(COUNT(Scores!$B21:M21)>0,MEDIAN(Scores!$B21:M21)*programFactor,0) -> 15 | P22: =IF(getmode(Scores!$B21:M21)="","",getmode(Scores!$B21:M21)*programFactor) -> 3
A23: 21 | B23: Program | C23: =INDEX(program_table,A23,1) -> Historical: Gold Panning | D23: =SUM(Scores!B22:M22) -> 76 | K23: 21 | M23: =SUM(Scores!$B22:M22)*programFactor -> 114 | N23: =IF(COUNT(Scores!$B22:M22)>0,AVERAGE(Scores!$B22:M22)*programFactor,0) -> 9.5 | O23: =IF(COUNT(Scores!$B22:M22)>0,MEDIAN(Scores!$B22:M22)*programFactor,0) -> 6 | P23: =IF(getmode(Scores!$B22:M22)="","",getmode(Scores!$B22:M22)*programFactor) -> 0
A24: 22 | B24: Program | C24: =INDEX(program_table,A24,1) -> Historical: Mine Tour | D24: =SUM(Scores!B23:M23) -> 86 | K24: 22 | M24: =SUM(Scores!$B23:M23)*programFactor -> 129 | N24: =IF(COUNT(Scores!$B23:M23)>0,AVERAGE(Scores!$B23:M23)*programFactor,0) -> 10.75 | O24: =IF(COUNT(Scores!$B23:M23)>0,MEDIAN(Scores!$B23:M23)*programFactor,0) -> 9.75 | P24: =IF(getmode(Scores!$B23:M23)="","",getmode(Scores!$B23:M23)*programFactor) -> 0
A25: 23 | B25: Program | C25: =INDEX(program_table,A25,1) -> Historical: Petroglyph Tour | D25: =SUM(Scores!B24:M24) -> 69 | K25: 23 | M25: =SUM(Scores!$B24:M24)*programFactor -> 103.5 | N25: =IF(COUNT(Scores!$B24:M24)>0,AVERAGE(Scores!$B24:M24)*programFactor,0) -> 8.625 | O25: =IF(COUNT(Scores!$B24:M24)>0,MEDIAN(Scores!$B24:M24)*programFactor,0) -> 9.75 | P25: =IF(getmode(Scores!$B24:M24)="","",getmode(Scores!$B24:M24)*programFactor) -> 3
A26: 24 | B26: Program | C26: =INDEX(program_table,A26,1) -> Historical: Pump Car Rides | D26: =SUM(Scores!B25:M25) -> 108 | K26: 24 | M26: =SUM(Scores!$B25:M25)*programFactor -> 162 | N26: =IF(COUNT(Scores!$B25:M25)>0,AVERAGE(Scores!$B25:M25)*programFactor,0) -> 18 | O26: =IF(COUNT(Scores!$B25:M25)>0,MEDIAN(Scores!$B25:M25)*programFactor,0) -> 22.5 | P26: =IF(getmode(Scores!$B25:M25)="","",getmode(Scores!$B25:M25)*programFactor) -> 0
A27: 25 | B27: Program | C27: =INDEX(program_table,A27,1) -> Historical: Railroad Construction | D27: =SUM(Scores!B26:M26) -> 134 | K27: 25 | M27: =SUM(Scores!$B26:M26)*programFactor -> 201 | N27: =IF(COUNT(Scores!$B26:M26)>0,AVERAGE(Scores!$B26:M26)*programFactor,0) -> 16.75 | O27: =IF(COUNT(Scores!$B26:M26)>0,MEDIAN(Scores!$B26:M26)*programFactor,0) -> 18.75 | P27: =IF(getmode(Scores!$B26:M26)="","",getmode(Scores!$B26:M26)*programFactor) -> 15
A28: 26 | B28: Program | C28: =INDEX(program_table,A28,1) -> Historical: Spar Pole Climbing | D28: =SUM(Scores!B27:M27) -> 97 | K28: 26 | M28: =SUM(Scores!$B27:M27)*programFactor -> 145.5 | N28: =IF(COUNT(Scores!$B27:M27)>0,AVERAGE(Scores!$B27:M27)*programFactor,0) -> 14.55 | O28: =IF(COUNT(Scores!$B27:M27)>0,MEDIAN(Scores!$B27:M27)*programFactor,0) -> 15 | P28: =IF(getmode(Scores!$B27:M27)="","",getmode(Scores!$B27:M27)*programFactor) -> 15
A29: 27 | B29: Program | C29: =INDEX(program_table,A29,1) -> Landmarks: Baldy Mountain | D29: =SUM(Scores!B28:M28) -> 100 | K29: 26 | M29: =SUM(Scores!$B28:M28)*programFactor -> 150 | N29: =IF(COUNT(Scores!$B28:M28)>0,AVERAGE(Scores!$B28:M28)*programFactor,0) -> 13.63636364 | O29: =IF(COUNT(Scores!$B28:M28)>0,MEDIAN(Scores!$B28:M28)*programFactor,0) -> 18 | P29: =IF(getmode(Scores!$B28:M28)="","",getmode(Scores!$B28:M28)*programFactor) -> 0
A30: 28 | B30: Program | C30: =INDEX(program_table,A30,1) -> Landmarks: Inspiration Point | D30: =SUM(Scores!B29:M29) -> 117 | K30: 27 | M30: =SUM(Scores!$B29:M29)*programFactor -> 175.5 | N30: =IF(COUNT(Scores!$B29:M29)>0,AVERAGE(Scores!$B29:M29)*programFactor,0) -> 15.95454545 | O30: =IF(COUNT(Scores!$B29:M29)>0,MEDIAN(Scores!$B29:M29)*programFactor,0) -> 18 | P30: =IF(getmode(Scores!$B29:M29)="","",getmode(Scores!$B29:M29)*programFactor) -> 0
A31: 29 | B31: Program | C31: =INDEX(program_table,A31,1) -> Landmarks: Mount Phillips | D31: =SUM(Scores!B30:M30) -> 103 | K31: 28 | M31: =SUM(Scores!$B30:M30)*programFactor -> 154.5 | N31: =IF(COUNT(Scores!$B30:M30)>0,AVERAGE(Scores!$B30:M30)*programFactor,0) -> 15.45 | O31: =IF(COUNT(Scores!$B30:M30)>0,MEDIAN(Scores!$B30:M30)*programFactor,0) -> 18 | P31: =IF(getmode(Scores!$B30:M30)="","",getmode(Scores!$B30:M30)*programFactor) -> 18
A32: 30 | B32: Program | C32: =INDEX(program_table,A32,1) -> Landmarks: Mountaineering | D32: =SUM(Scores!B31:M31) -> 126 | M32: =SUM(Scores!$B31:M31)*programFactor -> 189 | N32: =IF(COUNT(Scores!$B31:M31)>0,AVERAGE(Scores!$B31:M31)*programFactor,0) -> 17.18181818 | O32: =IF(COUNT(Scores!$B31:M31)>0,MEDIAN(Scores!$B31:M31)*programFactor,0) -> 18 | P32: =IF(getmode(Scores!$B31:M31)="","",getmode(Scores!$B31:M31)*programFactor) -> 22.5
A33: 31 | B33: Program | C33: =INDEX(program_table,A33,1) -> Landmarks: Tooth of Time | D33: =SUM(Scores!B32:M32) -> 135 | M33: =SUM(Scores!$B32:M32)*programFactor -> 202.5 | N33: =IF(COUNT(Scores!$B32:M32)>0,AVERAGE(Scores!$B32:M32)*programFactor,0) -> 18.40909091 | O33: =IF(COUNT(Scores!$B32:M32)>0,MEDIAN(Scores!$B32:M32)*programFactor,0) -> 19.5 | P33: =IF(getmode(Scores!$B32:M32)="","",getmode(Scores!$B32:M32)*programFactor) -> 19.5
A34: 32 | B34: Program | C34: =INDEX(program_table,A34,1) -> Landmarks: Trail Peak | D34: =SUM(Scores!B33:M33) -> 61 | M34: =SUM(Scores!$B33:M33)*programFactor -> 91.5 | N34: =IF(COUNT(Scores!$B33:M33)>0,AVERAGE(Scores!$B33:M33)*programFactor,0) -> 9.15 | O34: =IF(COUNT(Scores!$B33:M33)>0,MEDIAN(Scores!$B33:M33)*programFactor,0) -> 7.5 | P34: =IF(getmode(Scores!$B33:M33)="","",getmode(Scores!$B33:M33)*programFactor) -> 0
A35: 33 | B35: Program | C35: =INDEX(program_table,A35,1) -> Livestock: Animal Husbandry | D35: =SUM(Scores!B34:M34) -> 121 | M35: =SUM(Scores!$B34:M34)*programFactor -> 181.5 | N35: =IF(COUNT(Scores!$B34:M34)>0,AVERAGE(Scores!$B34:M34)*programFactor,0) -> 18.15 | O35: =IF(COUNT(Scores!$B34:M34)>0,MEDIAN(Scores!$B34:M34)*programFactor,0) -> 18 | P35: =IF(getmode(Scores!$B34:M34)="","",getmode(Scores!$B34:M34)*programFactor) -> 10.5
A36: 34 | B36: Program | C36: =INDEX(program_table,A36,1) -> Livestock: Burro Packing | D36: =SUM(Scores!B35:M35) -> 147 | M36: =SUM(Scores!$B35:M35)*programFactor -> 220.5 | N36: =IF(COUNT(Scores!$B35:M35)>0,AVERAGE(Scores!$B35:M35)*programFactor,0) -> 18.375 | O36: =IF(COUNT(Scores!$B35:M35)>0,MEDIAN(Scores!$B35:M35)*programFactor,0) -> 18 | P36: =IF(getmode(Scores!$B35:M35)="","",getmode(Scores!$B35:M35)*programFactor) -> 10.5
A37: 35 | B37: Program | C37: =INDEX(program_table,A37,1) -> Livestock: Chicken Tending | D37: =SUM(Scores!B36:M36) -> 140 | M37: =SUM(Scores!$B36:M36)*programFactor -> 210 | N37: =IF(COUNT(Scores!$B36:M36)>0,AVERAGE(Scores!$B36:M36)*programFactor,0) -> 19.09090909 | O37: =IF(COUNT(Scores!$B36:M36)>0,MEDIAN(Scores!$B36:M36)*programFactor,0) -> 21 | P37: =IF(getmode(Scores!$B36:M36)="","",getmode(Scores!$B36:M36)*programFactor) -> 7.5
A38: 36 | B38: Program | C38: =INDEX(program_table,A38,1) -> Livestock: Horse Rides | D38: =SUM(Scores!B37:M37) -> 170 | M38: =SUM(Scores!$B37:M37)*programFactor -> 255 | N38: =IF(COUNT(Scores!$B37:M37)>0,AVERAGE(Scores!$B37:M37)*programFactor,0) -> 23.18181818 | O38: =IF(COUNT(Scores!$B37:M37)>0,MEDIAN(Scores!$B37:M37)*programFactor,0) -> 27 | P38: =IF(getmode(Scores!$B37:M37)="","",getmode(Scores!$B37:M37)*programFactor) -> 30
A39: 37 | B39: Program | C39: =INDEX(program_table,A39,1) -> Low Impact Camping | D39: =SUM(Scores!B38:M38) -> 157 | M39: =SUM(Scores!$B38:M38)*programFactor -> 235.5 | N39: =IF(COUNT(Scores!$B38:M38)>0,AVERAGE(Scores!$B38:M38)*programFactor,0) -> 21.40909091 | O39: =IF(COUNT(Scores!$B38:M38)>0,MEDIAN(Scores!$B38:M38)*programFactor,0) -> 22.5 | P39: =IF(getmode(Scores!$B38:M38)="","",getmode(Scores!$B38:M38)*programFactor) -> 30
A40: 38 | B40: Program | C40: =INDEX(program_table,A40,1) -> Range Sports: 3D Archery | D40: =SUM(Scores!B39:M39) -> 129 | M40: =SUM(Scores!$B39:M39)*programFactor -> 193.5 | N40: =IF(COUNT(Scores!$B39:M39)>0,AVERAGE(Scores!$B39:M39)*programFactor,0) -> 19.35 | O40: =IF(COUNT(Scores!$B39:M39)>0,MEDIAN(Scores!$B39:M39)*programFactor,0) -> 18 | P40: =IF(getmode(Scores!$B39:M39)="","",getmode(Scores!$B39:M39)*programFactor) -> 10.5
A41: 39 | B41: Program | C41: =INDEX(program_table,A41,1) -> Range Sports: Aerial Archery | D41: =SUM(Scores!B40:M40) -> 101 | M41: =SUM(Scores!$B34:M34)*programFactor -> 181.5 | N41: =IF(COUNT(Scores!$B34:M34)>0,AVERAGE(Scores!$B34:M34)*programFactor,0) -> 18.15 | O41: =IF(COUNT(Scores!$B34:M34)>0,MEDIAN(Scores!$B34:M34)*programFactor,0) -> 18 | P41: =IF(getmode(Scores!$B34:M34)="","",getmode(Scores!$B34:M34)*programFactor) -> 10.5
A42: 40 | B42: Program | C42: =INDEX(program_table,A42,1) -> Range Sports: Atlatl Throwing | D42: =SUM(Scores!B35:M35) -> 147 | M42: =SUM(Scores!$B35:M35)*programFactor -> 220.5 | N42: =IF(COUNT(Scores!$B35:M35)>0,AVERAGE(Scores!$B35:M35)*programFactor,0) -> 18.375 | O42: =IF(COUNT(Scores!$B35:M35)>0,MEDIAN(Scores!$B35:M35)*programFactor,0) -> 18 | P42: =IF(getmode(Scores!$B35:M35)="","",getmode(Scores!$B35:M35)*programFactor) -> 10.5
A43: 41 | B43: Program | C43: =INDEX(program_table,A43,1) -> Range Sports: Cartridge Reloading | D43: =SUM(Scores!B36:M36) -> 140 | M43: =SUM(Scores!$B36:M36)*programFactor -> 210 | N43: =IF(COUNT(Scores!$B36:M36)>0,AVERAGE(Scores!$B36:M36)*programFactor,0) -> 19.09090909 | O43: =IF(COUNT(Scores!$B36:M36)>0,MEDIAN(Scores!$B36:M36)*programFactor,0) -> 21 | P43: =IF(getmode(Scores!$B36:M36)="","",getmode(Scores!$B36:M36)*programFactor) -> 7.5
A44: 42 | B44: Program | C44: =INDEX(program_table,A44,1) -> Range Sports: Cowboy Action Shooting | D44: =SUM(Scores!B37:M37) -> 170 | M44: =SUM(Scores!$B37:M37)*programFactor -> 255 | N44: =IF(COUNT(Scores!$B37:M37)>0,AVERAGE(Scores!$B37:M37)*programFactor,0) -> 23.18181818 | O44: =IF(COUNT(Scores!$B37:M37)>0,MEDIAN(Scores!$B37:M37)*programFactor,0) -> 27 | P44: =IF(getmode(Scores!$B37:M37)="","",getmode(Scores!$B37:M37)*programFactor) -> 30
A45: 43 | B45: Program | C45: =INDEX(program_table,A45,1) -> Range Sports: Field Archery | D45: =SUM(Scores!B38:M38) -> 157 | M45: =SUM(Scores!$B38:M38)*programFactor -> 235.5 | N45: =IF(COUNT(Scores!$B38:M38)>0,AVERAGE(Scores!$B38:M38)*programFactor,0) -> 21.40909091 | O45: =IF(COUNT(Scores!$B38:M38)>0,MEDIAN(Scores!$B38:M38)*programFactor,0) -> 22.5 | P45: =IF(getmode(Scores!$B38:M38)="","",getmode(Scores!$B38:M38)*programFactor) -> 30
A46: 44 | B46: Program | C46: =INDEX(program_table,A46,1) -> Range Sports: Muzzleloader Shooting | D46: =SUM(Scores!B39:M39) -> 129 | M46: =SUM(Scores!$B39:M39)*programFactor -> 193.5 | N46: =IF(COUNT(Scores!$B39:M39)>0,AVERAGE(Scores!$B39:M39)*programFactor,0) -> 19.35 | O46: =IF(COUNT(Scores!$B39:M39)>0,MEDIAN(Scores!$B39:M39)*programFactor,0) -> 18 | P46: =IF(getmode(Scores!$B39:M39)="","",getmode(Scores!$B39:M39)*programFactor) -> 10.5
A47: 45 | B47: Program | C47: =INDEX(program_table,A47,1) -> Range Sports: Rifle Shooting | D47: =SUM(Scores!B40:M40) -> 101 | M47: =SUM(Scores!$B40:M40)*programFactor -> 151.5 | N47: =IF(COUNT(Scores!$B40:M40)>0,AVERAGE(Scores!$B40:M40)*programFactor,0) -> 12.625 | O47: =IF(COUNT(Scores!$B40:M40)>0,MEDIAN(Scores!$B40:M40)*programFactor,0) -> 15 | P47: =IF(getmode(Scores!$B40:M40)="","",getmode(Scores!$B40:M40)*programFactor) -> 15
A48: 46 | B48: Program | C48: =INDEX(program_table,A48,1) -> Range Sports: Shotgun Shooting | D48: =SUM(Scores!B41:M41) -> 91 | M48: =SUM(Scores!$B41:M41)*programFactor -> 136.5 | N48: =IF(COUNT(Scores!$B41:M41)>0,AVERAGE(Scores!$B41:M41)*programFactor,0) -> 11.375 | O48: =IF(COUNT(Scores!$B41:M41)>0,MEDIAN(Scores!$B41:M41)*programFactor,0) -> 9 | P48: =IF(getmode(Scores!$B41:M41)="","",getmode(Scores!$B41:M41)*programFactor) -> 7.5
A49: 47 | B49: Program | C49: =INDEX(program_table,A49,1) -> Range Sports: Shotshell Reloading | D49: =SUM(Scores!B42:M42) -> 135 | M49: =SUM(Scores!$B42:M42)*programFactor -> 202.5 | N49: =IF(COUNT(Scores!$B42:M42)>0,AVERAGE(Scores!$B42:M42)*programFactor,0) -> 18.40909091 | O49: =IF(COUNT(Scores!$B42:M42)>0,MEDIAN(Scores!$B42:M42)*programFactor,0) -> 19.5 | P49: =IF(getmode(Scores!$B42:M42)="","",getmode(Scores!$B42:M42)*programFactor) -> 19.5
A50: 48 | B50: Program | C50: =INDEX(program_table,A50,1) -> Range Sports: Tomahawk Throwing | D50: =SUM(Scores!B43:M43) -> 138 | M50: =SUM(Scores!$B43:M43)*programFactor -> 207 | N50: =IF(COUNT(Scores!$B43:M43)>0,AVERAGE(Scores!$B43:M43)*programFactor,0) -> 18.81818182 | O50: =IF(COUNT(Scores!$B43:M43)>0,MEDIAN(Scores!$B43:M43)*programFactor,0) -> 18 | P50: =IF(getmode(Scores!$B43:M43)="","",getmode(Scores!$B43:M43)*programFactor) -> 15
A51: 49 | B51: Program | C51: =INDEX(program_table,A51,1) -> STEM: Archeology | D51: =SUM(Scores!B50:M50) -> 138 | M51: =SUM(Scores!$B50:M50)*programFactor -> 207 | N51: =IF(COUNT(Scores!$B50:M50)>0,AVERAGE(Scores!$B50:M50)*programFactor,0) -> 18.81818182 | O51: =IF(COUNT(Scores!$B50:M50)>0,MEDIAN(Scores!$B50:M50)*programFactor,0) -> 18 | P51: =IF(getmode(Scores!$B50:M50)="","",getmode(Scores!$B50:M50)*programFactor) -> 15
A52: 50 | B52: Program | C52: =INDEX(program_table,A52,1) -> STEM: Astronomy | D52: =SUM(Scores!B51:M51) -> 138 | M52: =SUM(Scores!$B51:M51)*programFactor -> 207 | N52: =IF(COUNT(Scores!$B51:M51)>0,AVERAGE(Scores!$B51:M51)*programFactor,0) -> 18.81818182 | O52: =IF(COUNT(Scores!$B51:M51)>0,MEDIAN(Scores!$B51:M51)*programFactor,0) -> 18 | P52: =IF(getmode(Scores!$B51:M51)="","",getmode(Scores!$B51:M51)*programFactor) -> 15
A53: 51 | B53: Program | C53: =INDEX(program_table,A53,1) -> STEM: Geology | D53: =SUM(Scores!B52:M52) -> 61 | M53: =SUM(Scores!$B52:M52)*programFactor -> 91.5 | N53: =IF(COUNT(Scores!$B52:M52)>0,AVERAGE(Scores!$B52:M52)*programFactor,0) -> 9.15 | O53: =IF(COUNT(Scores!$B52:M52)>0,MEDIAN(Scores!$B52:M52)*programFactor,0) -> 7.5 | P53: =IF(getmode(Scores!$B52:M52)="","",getmode(Scores!$B52:M52)*programFactor) -> 0
A54: 52 | B54: Program | C54: =INDEX(program_table,A54,1) -> Western Lore: Branding | D54: =SUM(Scores!B53:M53) -> 157 | K54: 31 | M54: =SUM(Scores!$B53:M53)*programFactor -> 235.5 | N54: =IF(COUNT(Scores!$B53:M53)>0,AVERAGE(Scores!$B53:M53)*programFactor,0) -> 23.55 | O54: =IF(COUNT(Scores!$B53:M53)>0,MEDIAN(Scores!$B53:M53)*programFactor,0) -> 24.75 | P54: =IF(getmode(Scores!$B53:M53)="","",getmode(Scores!$B53:M53)*programFactor) -> 30
A55: 53 | B55: Program | C55: =INDEX(program_table,A55,1) -> Western Lore: Cantina | D55: =SUM(Scores!B54:M54) -> 89 | M55: =SUM(Scores!$B54:M54)*programFactor -> 133.5 | N55: =IF(COUNT(Scores!$B54:M54)>0,AVERAGE(Scores!$B54:M54)*programFactor,0) -> 16.6875 | O55: =IF(COUNT(Scores!$B54:M54)>0,MEDIAN(Scores!$B54:M54)*programFactor,0) -> 15.75 | P55: =IF(getmode(Scores!$B54:M54)="","",getmode(Scores!$B54:M54)*programFactor) -> 0
A56: 54 | B56: Program | C56: =INDEX(program_table,A56,1) -> Western Lore: Roping | D56: =SUM(Scores!B55:M55) -> 190 | K56: 31 | M56: =SUM(Scores!$B55:M55)*programFactor -> 285 | N56: =IF(COUNT(Scores!$B55:M55)>0,AVERAGE(Scores!$B55:M55)*programFactor,0) -> 25.90909091 | O56: =IF(COUNT(Scores!$B55:M55)>0,MEDIAN(Scores!$B55:M55)*programFactor,0) -> 27 | P56: =IF(getmode(Scores!$B55:M55)="","",getmode(Scores!$B55:M55)*programFactor) -> 30
A57: =A56+1 -> 55 | B57: Peaks | C57: Baldy Mountain | D57: 2
A58: 56 | B58: Peaks | C58: Mount Phillips | D58: 1.5
A59: 57 | B59: Peaks | C59: Tooth of Time | D59: 1.5
A60: 58 | B60: Peaks | C60: Inspiration Point | D60: 1
A61: 59 | B61: Peaks | C61: Trail Peak | D61: 1.5
A62: 60 | B62: Peaks | C62: Mountaineering | D62: 1.2
A63: 61 | B63: Area | C63: Rank 1 | D63: =IF(UPPER(areaImportant)="Y",INDEX(areaDefaults,Preferences!B7),0) -> 200 | I63: 1 | J63: 1000
A64: 62 | B64: Area | C64: Rank 2 | D64: =IF(UPPER(areaImportant)="Y",INDEX(areaDefaults,Preferences!B8),0) -> 150 | I64: 2 | J64: 600 | K64: =IF(areaImportant="y","Preferences setting is that area is important", "Preferences setting is that area is not important") -> Preferences setting is that area is important
A65: 63 | B65: Area | C65: Rank 3 | D65: =IF(UPPER(areaImportant)="Y",INDEX(areaDefaults,Preferences!B9),0) -> 1000 | I65: 3 | J65: 200 | K65: =IF(areaImportant="y","These are the default values — MAKE CHANGES HERE", "") -> These are the default values — MAKE CHANGES HERE
A66: 64 | B66: Area | C66: Rank 4 | D66: =IF(UPPER(areaImportant)="Y",INDEX(areaDefaults,Preferences!B10),0) -> 600 | I66: 4 | J66: 150
A67: 65 | B67: Days Food | C67: 1 | D67: 100
A68: 66 | B68: Days Food | C68: 2 | D68: 90
A69: 67 | B69: Days Food | C69: 3 | D69: 80
A70: 68 | B70: Days Food | C70: 4 | D70: 70
A71: 69 | B71: Days Food | C71: 5 | D71: 60
A72: 70 | B72: Days Food | C72: 6 | D72: 50
A73: 71 | B73: Food from HQ | C73: 1 | D73: 20
A74: 72 | B74: Food from HQ | C74: 2 | D74: 30
A75: 73 | B75: Food from HQ | C75: 3 | D75: 40
A76: 74 | B76: Food from HQ | C76: 4 | D76: 50
A77: 75 | B77: Food from HQ | C77: 5 | D77: 60
A78: 76 | B78: Food from HQ | C78: 6 | D78: 70
A79: 77 | B79: Food from HQ | C79: 7 | D79: 80
A80: 78 | B80: Food from HQ | C80: 8 | D80: 90
A81: 79 | B81: Food from HQ | C81: 9 | D81: 100
A82: 80 | B82: Trail Camps | C82: 0 | D82: 250
A83: 81 | B83: Trail Camps | C83: 1 | D83: 200
A84: 82 | B84: Trail Camps | C84: 2 | D84: 175
A85: =A84+1 -> 83 | B85: Trail Camps | C85: 3 | D85: 150
A86: =A85+1 -> 84 | B86: Trail Camps | C86: 4 | D86: 125
A87: =A86+1 -> 85 | B87: Trail Camps | C87: 5 | D87: 100
A88: =A87+1 -> 86 | B88: Trail Camps | C88: 6 | D88: 75
A89: =A88+1 -> 87 | B89: Trail Camps | C89: 7 | D89: 50
A90: 88 | B90: Trail Camps | C90: 8 | D90: 25
A91: 89 | B91: Dry Camps | C91: 0 | D91: 300
A92: 90 | B92: Dry Camps | C92: 1 | D92: 250
A93: 91 | B93: Dry Camps | C93: 2 | D93: 225
A94: 92 | B94: Dry Camps | C94: 3 | D94: 200
A95: 93 | B95: Dry Camps | C95: 4 | D95: 150
A96: 94 | B96: Dry Camps | C96: 5 | D96: 100
A97: 95 | B97: Dry Camps | C97: 6 | D97: 50
A98: 96 | B98: Dry Camps | C98: 7 | D98: 20
A99: 97 | B99: Total Camps | C99: 3 | D99: 60
A100: 98 | B100: Total Camps | C100: 4 | D100: 70
A101: 99 | B101: Total Camps | C101: 5 | D101: 80
A102: 100 | B102: Total Camps | C102: 6 | D102: 90
A103: 101 | B103: Total Camps | C103: 7 | D103: 100
A104: 102 | B104: Total Camps | C104: 8 | D104: 75
A105: 103 | B105: Total Camps | C105: 9 | D105: 60
A106: 104 | B106: Total Camps | C106: 10 | D106: 50
A107: 105 | B107: Difficulty | C107: C | D107: 2500 | K107: Match skill level with itinerary difficulty
A108: 106 | B108: Difficulty | C108: R | D108: 2666.666667 | K108: Skill | L108: C | M108: R | N108: S | O108: SS
A109: 107 | B109: Difficulty | C109: S | D109: 2833.333333 | I109: maxSkill: | J109: 4000 | K109: 1 | L109: =maxSkill+maxDifficult -> 5000 | M109: =L109-((L109-O109)/3) -> 3500 | N109: =M109-((L109-O109)/3) -> 2000 | O109: =difficultDelta -> 500
A110: 108 | B110: Difficulty | C110: SS | D110: 3000 | I110: maxDifficult: | J110: 1000 | K110: 2 | L110: =L109-((L$109-L$118)/9) -> 4500 | M110: =L110-((L110-O110)/3) -> 3333.333333 | N110: =M110-((L110-O110)/3) -> 2166.666667 | O110: =L117 -> 1000
A111: 109 | B111: Max Altitude | C111: 0 | D111: 20 | I111: minDifficult: | J111: 500 | K111: 3 | L111: =L110-((L$109-L$118)/9) -> 4000 | M111: 3166.666667 | N111: 2333.333333 | O111: =L116 -> 1500
A112: 110 | B112: Max Altitude | C112: 9000 | D112: 30 | K112: 4 | L112: 3500 | M112: 3000 | N112: 2500 | O112: =L115 -> 2000
A113: 111 | B113: Max Altitude | C113: 9100 | D113: 40 | K113: 5 | L113: 3000 | M113: 2833.333333 | N113: 2666.666667 | O113: =L114 -> 2500
A114: 112 | B114: Max Altitude | C114: 9200 | D114: 50 | K114: 6 | L114: 2500 | M114: 2666.666667 | N114: 2833.333333 | O114: =L113 -> 3000
A115: 113 | B115: Max Altitude | C115: 9800 | D115: 60 | I115: ="Your Crew is Level " & skillLevel -> Your Crew is Level 6 | K115: 7 | L115: 2000 | M115: 2500 | N115: 3000 | O115: =L112 -> 3500
A116: 114 | B116: Max Altitude | C116: 10000 | D116: 70 | I116: (from Preferences) | K116: 8 | L116: 1500 | M116: 2333.333333 | N116: 3166.666667 | O116: =L111 -> 4000
A117: 115 | B117: Max Altitude | C117: 10500 | D117: 80 | K117: 9 | L117: 1000 | M117: 2166.666667 | N117: 3333.333333 | O117: =L110 -> 4500
A118: 116 | B118: Max Altitude | C118: 10600 | D118: 90 | K118: 10 | L118: =difficultDelta -> 500 | M118: 2000 | N118: 3500 | O118: =L109 -> 5000
A119: 117 | B119: Max Altitude | C119: 10800 | D119: 100 | L119: Challenging | M119: Rugged | N119: Strenuous | O119: Super Strenuous
A120: 118 | B120: Max Altitude | C120: 11000 | D120: 110
A121: 119 | B121: Max Altitude | C121: 11800 | D121: 120
A122: 120 | B122: Max Altitude | C122: 12441 | D122: 130
A123: 121 | B123: Total Gain | C123: 0 | D123: 40
A124: 122 | B124: Total Gain | C124: 1500 | D124: 50
A125: 123 | B125: Total Gain | C125: 2000 | D125: 60
A126: 124 | B126: Total Gain | C126: 2500 | D126: 70
A127: 125 | B127: Total Gain | C127: 3000 | D127: 80
A128: 126 | B128: Total Gain | C128: 3500 | D128: 90
A129: 127 | B129: Total Gain | C129: 4000 | D129: 100
A130: 128 | B130: Total Gain | C130: 4500 | D130: 90
A131: 129 | B131: Total Gain | C131: 5000 | D131: 80
A132: 130 | B132: Total Gain | C132: 5500 | D132: 70
A133: 131 | B133: Total Gain | C133: 6000 | D133: 60
A134: 132 | B134: Total Gain | C134: 6500 | D134: 50
A135: 133 | B135: Daily Change | C135: 300 | D135: 100
A136: 134 | B136: Daily Change | C136: 600 | D136: 300
A137: 135 | B137: Daily Change | C137: 900 | D137: 200
A138: 136 | B138: Daily Change | C138: 1200 | D138: 100
A139: 137 | B139: Hike Out | C139: n | D139: 0
A140: 138 | B140: Hike Out | C140: y | D140: 500
A141: 139 | B141: Hike In | C141: n | D141: 0
A142: 140 | B142: Hike In | C142: y | D142: 500
A143: 141 | B143: Distance | C143: Miles | D143: 100
A144: These are used for code lookup puposes only. | B144: Difficulty | C144: C | D144: Challenging
B145: Difficulty | C145: R | D145: Rugged
B146: Difficulty | C146: S | D146: Strenuous
B147: Difficulty | C147: SS | D147: Super Strenuous
B148: campType | C148: D | D148: Dry
B149: campType | C149: S | D149: Staffed
B150: campType | C150: T | D150: Trail
B151: campType | C151: X | D151: No Camping

Sheet Detail Informaton
A1: This sheet provides more detailed information about this spreadsheet and may be useful for anyone wishing to modify it.
A2: This spreadsheet makes extensive use of "Protected" and "Hidden" cells and "Hidden" worksheets. To "unprotect" or "unhide" any of these, put the cursor on a worksheet tab and right click it. Click "Unprotect Sheet..." and select the worksheet to display. There are no passwords locking any of the "hidden" or "protected" areas.
A3: There are buttons that may be pressed to select the scoring to be used in the calculation. These are "Total" for the total score, "Average" to select the average (or Mean) score, "Median" to select the most common score, or "Mode" (most frequently used score). These control the actual score values used in calculation Try all and see what the difference in the results is.
A5: There are a number of "tabs" or "worksheets". The use of these is as follows:
A6: Visible:
A7: Instructions | B7: General use instructions for the user that does not want to make any changes to the spreadsheet.
A8: Preferences | B8: A set of "preferences" that may be used to adjust the calculations based on information specific to the crew.
A9: Scores | B9: The "scores" for each crewmember from the program survey form. These are on the basis of 0 to 20.
A10: Results | B10: The calculated "result" from fitting the "scores" to the itinerary information.
A11: Itinerary Chart | B11: Graph of sorted itineraries — shows relative differences between selections
A12: Program Chart | B12: This is a graph showing what programs the crewmembers wish to participate in.
A13: Itinerary Details | B13: This provides a snapshot of individual itineraries. Enter the itinerary the snapship is desired for.
A14: Itinerary Xref Chart | B14: This is the same chart that's in the in the TREKS book
A15: Tables | B15: This is the set of "factors" for each of the various metrics. These may be modified by the user.
A16: Detail Information | B16: This worksheet.
A17: Hidden: (Note that there are no passwords on these, the user may "unhide" them by right-clicking in the tab area)
A18: Itinerary Camps | B18: Much information updated annually by hand from the TREKS Book. Information relating to itineraries is calculated from these entries.
A19: ItineraryPrograms | B19: Programs available at camps. This can be created automatically but must be checked & updated manually. Can verify with the Itinerary Xref Chart. This takes a lot of detailed work!
A20: Descriptions | B20: This is the textual description of each itinerary. This is manually copied from the TREKS Book each year.
A21: Calculator | B21: This brings the preferences, scores, factors from "Tables", and itinerary information together to calculate detailed preference values for each itinerary. The sum of these is the "Result" for each itinerary.
A22: Itineraries | B22: This is information relative to the current year's itineraries. All is derived from tables in other worksheets.
A23: Programs | B23: Table of Philmont's available programs. These are specific to 12-Day (all), 9-Day (subset) and 7-Day (subset) treks.
A24: Camp Programs | B24: This is a table of programs available at each staffed camp. Verified manually, used to develop basic info for ItineraryPrograms worksheet. Does not often change from year to year.
A25: Camp Elevations | B25: This is information relative to Philmont's camps. It is used in the calculations and in the Itinerary Details printout. Is a good source of camp names & UTM Coordinates/elevations.
A27: Information in the Visible tabs is generally either documented in the worksheet or is self-evident. Information about the worksheets that may be useful is below.
A28: Scores | B28: Clicking the "Clear Scores" button erases all scores for all 12 participants. User should enter the participant names in row 1.
A29: Results | B29: The left side shows the itineraries that best "fit" the crew's desires. On the right is a table showing the programs the crew desired in preference order. It indicates which programs are included in each of the top 6 itineraries.
A30: Itinerary Details | B30: Enter the itinerary number and expedition number to get information about the itinerary including daily information.
A31: Tables | B31: If some of the areas are more important to your crew, you can change the factors used in the calculations here. The factors are highlighted where arbitrary values were set based on the author's preferences, they may be modified to meet your crew. Only make changes in the unlocked cells in the Value column or the Green boxes for Area or Skill/Difficulty. You may navigate between these with the TAB key.
A32: Itineraries | B32: This sheet has information about the current year's itineraries. Key information is manually updated from the TREKS books (daily campsites, first food pickup day number, method of return to base, itineraries that cross US-64, peaks hiked, etc.) Row 1 has the columns that must be updated annually highlighted in red.
A33: itineraryXrefChart | B33: This conforms to the Cross Reference chart in the TREKS book showing itineraries that have programs. It is based on information in the Itinerary Programs worksheet.
A34: Calculator | B34: This calculates a preference value for each of the metrics. There is nothing to modify here — the value calculated will be based on values from other worksheets and any modification desired to any metric should be made in those underlying sheets, not in this one.
A35: Camp Elevations | B35: This worksheet is a list of all the camps with details about the camp. Note that some of the camps are not used and the information may not be complete for them. It doesn't matter because only the camps included in the current year's itineraries is ever referenced. All are shown here for completeness. It is a good source of camp names & UTM Coordinates/elevations.
A36: Descriptions | B36: These descriptions are copied from the TREKS Book and are displayed on the Itinerary Details display.
A37: Camp Programs | B37: This is a table of staffed camps with flags for the programs offered at each. It is used to provide much of the program inclusion information in the Itineries worksheet.

Sheet itineraryCamps (hidden)
A1: (Enter Red columns manually) Itinerary | B1: 1 | C1: =B1+1 -> 2 | D1: 3 | E1: 4 | F1: 5 | G1: =F1+1 -> 6 | H1: =G1+1 -> 7 | I1: =H1+1 -> 8 | J1: =I1+1 -> 9 | K1: 10 | L1: 11 | M1: 12 | N1: 13 | O1: 14 | P1: 15 | Q1: 16 | R1: =Q1+1 -> 17 | S1: 18 | T1: 19 | U1: 20 | V1: 21 | W1: 22 | X1: 23 | Y1: 24 | Z1: 25 | AA1: 26 | AB1: 27 | AC1: 28 | AD1: 29 | AE1: =AD1+1 -> 30 | AF1: =AE1+1 -> 31 | AG1: =AF1+1 -> 32 | AH1: =AG1+1 -> 33 | AI1: =AH1+1 -> 34 | AJ1: =AI1+1 -> 35 | AK1: =AJ1+1 -> 36 | AL1: =AK1+1 -> 37 | AM1: =AL1+1 -> 38 | AN1: =AM1+1 -> 39 | AO1: =AN1+1 -> 40 | AP1: =AO1+1 -> 41 | AQ1: =AP1+1 -> 42 | AR1: =AQ1+1 -> 43 | AS1: =AR1+1 -> 44 | AT1: =AS1+1 -> 45 | AU1: =AT1+1 -> 46 | AV1: =AU1+1 -> 47 | AW1: =AV1+1 -> 48 | AX1: =AW1+1 -> 49 | AY1: =AX1+1 -> 50 | AZ1: =AY1+1 -> 51 | BA1: =AZ1+1 -> 52 | BB1: =BA1+1 -> 53 | BC1: =BB1+1 -> 54 | BD1: =BC1+1 -> 55 | BE1: =BD1+1 -> 56 | BF1: =BE1+1 -> 57 | BG1: =BF1+1 -> 58 | BH1: =BG1+1 -> 59 | BI1: =BH1+1 -> 60 | BJ1: =BI1+1 -> 61 | BK1: =BJ1+1 -> 62 | BL1: =BK1+1 -> 63 | BM1: =BL1+1 -> 64 | BN1: =BM1+1 -> 65 | BO1: =BN1+1 -> 66 | BP1: =BO1+1 -> 67 | BQ1: =BP1+1 -> 68 | BR1: =BQ1+1 -> 69 | BS1: =BR1+1 -> 70 | BT1: =BS1+1 -> 71 | BU1: =BT1+1 -> 72 | BV1: =BU1+1 -> 73 | BW1: =BV1+1 -> 74 | BX1: =BW1+1 -> 75 | BY1: =BX1+1 -> 76 | BZ1: =BY1+1 -> 77 | CA1: =BZ1+1 -> 78 | CB1: =CA1+1 -> 79 | CC1: =CB1+1 -> 80 | CD1: =CC1+1 -> 81 | CE1: =CD1+1 -> 82 | CF1: =CE1+1 -> 83 | CG1: =CF1+1 -> 84 | CH1: =CG1+1 -> 85 | CI1: =CH1+1 -> 86 | CJ1: =CI1+1 -> 87 | CK1: =CJ1+1 -> 88 | CL1: =CK1+1 -> 89 | CM1: =CL1+1 -> 90 | CN1: =CM1+1 -> 91 | CO1: =CN1+1 -> 92 | CP1: =CO1+1 -> 93 | CQ1: =CP1+1 -> 94 | CR1: =CQ1+1 -> 95 | CS1: =CR1+1 -> 96 | CT1: =CS1+1 -> 97 | CU1: =CT1+1 -> 98 | CV1: =CU1+1 -> 99 | CW1: =CV1+1 -> 100 | CX1: =CW1+1 -> 101 | CY1: =CX1+1 -> 102 | CZ1: =CY1+1 -> 103 | DA1: =CZ1+1 -> 104 | DB1: =DA1+1 -> 105 | DC1: =DB1+1 -> 106 | DD1: =DC1+1 -> 107 | DE1: =DD1+1 -> 108 | DF1: =DE1+1 -> 109 | DG1: =DF1+1 -> 110 | DH1: =DG1+1 -> 111 | DI1: =DH1+1 -> 112 | DJ1: =DI1+1 -> 113 | DK1: =DJ1+1 -> 114 | DL1: =DK1+1 -> 115
B2: Itinerary Information | E2: Backcountry Camps by Itinerary Day | O2: Food Pickup's | Y2: Start/End | AB2: Cross US-64 | AE2: Peaks (Enter Manually) | AK2: Camp Elevation | AU2: Daily Elevation Change | BD2: Staffed Camp | BN2: Trail Camp | BX2: Dry Camp | CH2: Layovers | CR2: Country | DB2: Map | DL2: Food Pickup Info
B3: Itinerary Label | C3: Difficulty | D3: Distance | E3: Day 2 | F3: Day 3 | G3: Day 4 | H3: Day 5 | I3: Day 6 | J3: Day 7 | K3: Day 8 | L3: Day 9 | M3: Day 10 | N3: Day 11 | O3: 2 | P3: =O3+1 -> 3 | Q3: =P3+1 -> 4 | R3: 5 | S3: 6 | T3: 7 | U3: 8 | V3: 9 | W3: 10 | X3: 11 | Y3: Starting Trailhead | Z3: Ending Trailhead | AA3: Via Tooth | AB3: Day | AC3: Cross At | AD3: Direction | AE3: Baldy Mountain | AF3: Inspiration Point | AG3: Mt. Phillips | AH3: Mountaineering | AI3: Tooth of Time | AJ3: Trail Peak | AK3: =O3 -> 2 | AL3: 3 | AM3: 4 | AN3: 5 | AO3: 6 | AP3: 7 | AQ3: 8 | AR3: 9 | AS3: 10 | AT3: 11 | AU3: 2 :: 3 | AV3: 3 :: 4 | AW3: 4 :: 5 | AX3: 5 :: 6 | AY3: 6 :: 7 | AZ3: 7 :: 8 | BA3: 8 :: 9 | BB3: 9 :: 10 | BC3: 10 :: 11 | BD3: 2 | BE3: 3 | BF3: 4 | BG3: 5 | BH3: 6 | BI3: 7 | BJ3: 8 | BK3: 9 | BL3: 10 | BM3: 11 | BN3: 2 | BO3: 3 | BP3: 4 | BQ3: 5 | BR3: 6 | BS3: 7 | BT3: 8 | BU3: 9 | BV3: 10 | BW3: 11 | BX3: 2 | BY3: 3 | BZ3: 4 | CA3: 5 | CB3: 6 | CC3: 7 | CD3: 8 | CE3: 9 | CF3: 10 | CG3: 11 | CH3: 2 | CI3: 3 | CJ3: 4 | CK3: 5 | CL3: 6 | CM3: 7 | CN3: 8 | CO3: 9 | CP3: 10 | CQ3: 11 | CR3: 2 | CS3: 3 | CT3: 4 | CU3: 5 | CV3: 6 | CW3: 7 | CX3: 8 | CY3: 9 | CZ3: 10 | DA3: 11 | DB3: 2 | DC3: 3 | DD3: 4 | DE3: 5 | DF3: 6 | DG3: 7 | DH3: 8 | DI3: 9 | DJ3: 10 | DK3: 11 | DL3: Days to 1st Food PU | DM3: Max Food Days
A4: =itineraryNoPrefix & ROW()-3 -> 9-1 | C4: C | D4: 40 | E4: Abreu | F4: Lower Bonito | G4: Beaubien | H4: Black Mountain | I4: Miners Park | J4: Bear Caves | K4: Urraca | O4: Camping HQ | Q4: Phillips Junction | S4: Miners Park | Y4: Zastrow | Z4: Lovers Leap | AA4: =IF(Z4="Hike In","y","") ->  | AE4: =IF(ItineraryPrograms!AD3="y","y","") ->  | AF4: =IF(ItineraryPrograms!AE3="y","y","") -> y | AG4: =IF(ItineraryPrograms!AF3="y","y","") ->  | AI4: =checkTooth(AA4,LOWER(ItineraryPrograms!AH3)) ->  | AK4: =IF(E4<>"",INDEX(Elevations,MATCH(E4,camps,0)),"") -> 7217 | AL4: =IF(F4<>"",INDEX(Elevations,MATCH(F4,camps,0)),"") -> 8962 | AM4: =IF(G4<>"",INDEX(Elevations,MATCH(G4,camps,0)),"") -> 9330 | AN4: =IF(H4<>"",INDEX(Elevations,MATCH(H4,camps,0)),"") -> 8991 | AO4: =IF(I4<>"",INDEX(Elevations,MATCH(I4,camps,0)),"") -> 7977 | AP4: =IF(J4<>"",INDEX(Elevations,MATCH(J4,camps,0)),"") -> 8423 | AQ4: =IF(K4<>"",INDEX(Elevations,MATCH(K4,camps,0)),"") -> 7968 | AR4: =IF(L4<>"",INDEX(Elevations,MATCH(L4,camps,0)),"") ->  | AS4: =IF(M4<>"",INDEX(Elevations,MATCH(M4,camps,0)),"") ->  | AT4: =IF(N4<>"",INDEX(Elevations,MATCH(N4,camps,0)),"") ->  | AU4: =IF(AL4<>"",ABS(AK4-AL4),"") -> 1745 | AV4: =IF(AM4<>"",ABS(AL4-AM4),"") -> 368 | AW4: 339 | AX4: 1014 | AY4: 446 | AZ4: 455 | BD4: =IF(INDEX(campsByItinerary,numericItinerary($A4),BD$3-1)="","",VLOOKUP(INDEX(campsByItinerary,numericItinerary($A4),BD$3-1),campInfo,8)) -> Y | BE4: =IF(INDEX(campsByItinerary,numericItinerary($A4),BE$3-1)="","",VLOOKUP(INDEX(campsByItinerary,numericItinerary($A4),BE$3-1),campInfo,8)) ->  | BF4: =IF(INDEX(campsByItinerary,numericItinerary($A4),BF$3-1)="","",VLOOKUP(INDEX(campsByItinerary,numericItinerary($A4),BF$3-1),campInfo,8)) -> Y | BG4: =IF(INDEX(campsByItinerary,numericItinerary($A4),BG$3-1)="","",VLOOKUP(INDEX(campsByItinerary,numericItinerary($A4),BG$3-1),campInfo,8)) -> Y | BH4: =IF(INDEX(campsByItinerary,numericItinerary($A4),BH$3-1)="","",VLOOKUP(INDEX(campsByItinerary,numericItinerary($A4),BH$3-1),campInfo,8)) -> Y | BI4: =IF(INDEX(campsByItinerary,numericItinerary($A4),BI$3-1)="","",VLOOKUP(INDEX(campsByItinerary,numericItinerary($A4),BI$3-1),campInfo,8)) ->  | BJ4: =IF(INDEX(campsByItinerary,numericItinerary($A4),BJ$3-1)="","",VLOOKUP(INDEX(campsByItinerary,numericItinerary($A4),BJ$3-1),campInfo,8)) -> Y | BK4: =IF(INDEX(campsByItinerary,numericItinerary($A4),BK$3-1)="","",VLOOKUP(INDEX(campsByItinerary,numericItinerary($A4),BK$3-1),campInfo,8)) ->  | BL4: =IF(INDEX(campsByItinerary,numericItinerary($A4),BL$3-1)="","",VLOOKUP(INDEX(campsByItinerary,numericItinerary($A4),BL$3-1),campInfo,8)) ->  | BM4: =IF(INDEX(campsByItinerary,numericItinerary($A4),BM$3-1)="","",VLOOKUP(INDEX(campsByItinerary,numericItinerary($A4),BM$3-1),campInfo,8)) ->  | BN4: =IF(BD4="Y","","Y") ->  | BO4: =IF(BE4="Y","","Y") -> Y | BS4: Y | BU4: Y | BV4: Y | BW4: Y | BX4: =IF(INDEX(campsByItinerary,numericItinerary($A4),BD$3-1)="","",VLOOKUP(INDEX(campsByItinerary,numericItinerary($A4),BD$3-1),campInfo,10)) ->  | BY4: =IF(INDEX(campsByItinerary,numericItinerary($A4),BE$3-1)="","",VLOOKUP(INDEX(campsByItinerary,numericItinerary($A4),BE$3-1),campInfo,10)) ->  | BZ4: =IF(INDEX(campsByItinerary,numericItinerary($A4),BF$3-1)="","",VLOOKUP(INDEX(campsByItinerary,numericItinerary($A4),BF$3-1),campInfo,10)) ->  | CA4: =IF(INDEX(campsByItinerary,numericItinerary($A4),BG$3-1)="","",VLOOKUP(INDEX(campsByItinerary,numericItinerary($A4),BG$3-1),campInfo,10)) ->  | CB4: =IF(INDEX(campsByItinerary,numericItinerary($A4),BH$3-1)="","",VLOOKUP(INDEX(campsByItinerary,numericItinerary($A4),BH$3-1),campInfo,10)) ->  | CC4: =IF(INDEX(campsByItinerary,numericItinerary($A4),BI$3-1)="","",VLOOKUP(INDEX(campsByItinerary,numericItinerary($A4),BI$3-1),campInfo,10)) ->  | CD4: =IF(INDEX(campsByItinerary,numericItinerary($A4),BJ$3-1)="","",VLOOKUP(INDEX(campsByItinerary,numericItinerary($A4),BJ$3-1),campInfo,10)) ->  | CE4: =IF(INDEX(campsByItinerary,numericItinerary($A4),BK$3-1)="","",VLOOKUP(INDEX(campsByItinerary,numericItinerary($A4),BK$3-1),campInfo,10)) ->  | CF4: =IF(INDEX(campsByItinerary,numericItinerary($A4),BL$3-1)="","",VLOOKUP(INDEX(campsByItinerary,numericItinerary($A4),BL$3-1),campInfo,10)) ->  | CG4: =IF(INDEX(campsByItinerary,numericItinerary($A4),BM$3-1)="","",VLOOKUP(INDEX(campsByItinerary,numericItinerary($A4),BM$3-1),campInfo,10)) ->  | CI4: =IF(E4=F4,"Y","") ->  | CJ4: =IF(F4=G4,"Y","") ->  | CK4: =IF(G4=H4,"Y","") ->  | CL4: =IF(H4=I4,"Y","") ->  | CM4: =IF(I4=J4,"Y","") ->  | CN4: =IF(J4=K4,"Y","") ->  | CO4: =IF(K4=L4,"Y","") ->  | CP4: =IF(L4=M4,"Y","") -> Y | CQ4: =IF(M4=N4,"Y","") -> Y | CR4: =INDEX(campsByItinerary,numericItinerary($A4),BD$3-1) -> Abreu | CS4: =IF(INDEX(campsByItinerary,numericItinerary($A4),BE$3-1)="","",VLOOKUP(INDEX(campsByItinerary,numericItinerary($A4),BE$3-1),campInfo,2)) -> South | CT4: =IF(INDEX(campsByItinerary,numericItinerary($A4),BF$3-1)="","",VLOOKUP(INDEX(campsByItinerary,numericItinerary($A4),BF$3-1),campInfo,2)) -> South | CU4: =IF(INDEX(campsByItinerary,numericItinerary($A4),BG$3-1)="","",VLOOKUP(INDEX(campsByItinerary,numericItinerary($A4),BG$3-1),campInfo,2)) -> South | CV4: =IF(INDEX(campsByItinerary,numericItinerary($A4),BH$3-1)="","",VLOOKUP(INDEX(campsByItinerary,numericItinerary($A4),BH$3-1),campInfo,2)) -> South | CW4: =IF(INDEX(campsByItinerary,numericItinerary($A4),BI$3-1)="","",VLOOKUP(INDEX(campsByItinerary,numericItinerary($A4),BI$3-1),campInfo,2)) -> South | CX4: =IF(INDEX(campsByItinerary,numericItinerary($A4),BJ$3-1)="","",VLOOKUP(INDEX(campsByItinerary,numericItinerary($A4),BJ$3-1),campInfo,2)) -> South | CY4: =IF(INDEX(campsByItinerary,numericItinerary($A4),BK$3-1)="","",VLOOKUP(INDEX(campsByItinerary,numericItinerary($A4),BK$3-1),campInfo,2)) ->  | CZ4: =IF(INDEX(campsByItinerary,numericItinerary($A4),BL$3-1)="","",VLOOKUP(INDEX(campsByItinerary,numericItinerary($A4),BL$3-1),campInfo,2)) ->  | DA4: =IF(INDEX(campsByItinerary,numericItinerary($A4),BM$3-1)="","",VLOOKUP(INDEX(campsByItinerary,numericItinerary($A4),BM$3-1),campInfo,2)) ->  | DB4: =IF(INDEX(campsByItinerary,numericItinerary($A4),BD$3-1)="","",VLOOKUP(INDEX(campsByItinerary,numericItinerary($A4),BD$3-1),campInfo,12)) -> South | DC4: =IF(INDEX(campsByItinerary,numericItinerary($A4),BE$3-1)="","",VLOOKUP(INDEX(campsByItinerary,numericItinerary($A4),BE$3-1),campInfo,12)) -> South | DD4: =IF(INDEX(campsByItinerary,numericItinerary($A4),BF$3-1)="","",VLOOKUP(INDEX(campsByItinerary,numericItinerary($A4),BF$3-1),campInfo,12)) -> South | DE4: =IF(INDEX(campsByItinerary,numericItinerary($A4),BG$3-1)="","",VLOOKUP(INDEX(campsByItinerary,numericItinerary($A4),BG$3-1),campInfo,12)) -> South | DF4: =IF(INDEX(campsByItinerary,numericItinerary($A4),BH$3-1)="","",VLOOKUP(INDEX(campsByItinerary,numericItinerary($A4),BH$3-1),campInfo,12)) -> South | DG4: =IF(INDEX(campsByItinerary,numericItinerary($A4),BI$3-1)="","",VLOOKUP(INDEX(campsByItinerary,numericItinerary($A4),BI$3-1),campInfo,12)) -> South | DH4: =IF(INDEX(campsByItinerary,numericItinerary($A4),BJ$3-1)="","",VLOOKUP(INDEX(campsByItinerary,numericItinerary($A4),BJ$3-1),campInfo,12)) -> South | DI4: =IF(INDEX(campsByItinerary,numericItinerary($A4),BK$3-1)="","",VLOOKUP(INDEX(campsByItinerary,numericItinerary($A4),BK$3-1),campInfo,12)) ->  | DJ4: =IF(INDEX(campsByItinerary,numericItinerary($A4),BL$3-1)="","",VLOOKUP(INDEX(campsByItinerary,numericItinerary($A4),BL$3-1),campInfo,12)) ->  | DK4: =IF(INDEX(campsByItinerary,numericItinerary($A4),BM$3-1)="","",VLOOKUP(INDEX(campsByItinerary,numericItinerary($A4),BM$3-1),campInfo,12)) ->  | DL4: =getfoodPU("First",numericItinerary($A4)) -> 2 | DM4: =getfoodPU("Max",numericItinerary($A4)) -> 2
A5: =itineraryNoPrefix & ROW()-3 -> 9-2 | C5: C | D5: 36 | E5: Harlan | F5: Devil's Wash Basin | G5: Cimarroncita | H5: New Dean | I5: Ponil | J5: Coyote Howl | K5: House Canyon | O5: Camping HQ | Q5: Ute Gulch | S5: Ponil | Y5: Turkey Creek | Z5: Six Mile Gate | AA5: =IF(Z5="Hike In","y","") ->  | AB5: 5 | AC5: Bear Canyon | AD5: N | AE5: =IF(ItineraryPrograms!AD4="y","y","") ->  | AF5: =IF(ItineraryPrograms!AE4="y","y","") ->  | AG5: =IF(ItineraryPrograms!AF4="y","y","") ->  | AH5: y | AI5: =checkTooth(AA5,LOWER(ItineraryPrograms!AH4)) ->  | AK5: 7550 | AL5: 8515 | AM5: 7373 | AN5: 7724 | AO5: 7150 | AP5: 7560.52 | AQ5: 7157 | AU5: =IF(AL5<>"",ABS(AK5-AL5),"") -> 965 | AV5: =IF(AM5<>"",ABS(AL5-AM5),"") -> 1142 | AW5: =IF(AN5<>"",ABS(AM5-AN5),"") -> 351 | AX5: =IF(AO5<>"",ABS(AN5-AO5),"") -> 574 | AY5: =IF(AP5<>"",ABS(AO5-AP5),"") -> 410.52 | AZ5: =IF(AQ5<>"",ABS(AP5-AQ5),"") -> 403.52 | BA5: =IF(AR5<>"",ABS(AQ5-AR5),"") ->  | BB5: =IF(AS5<>"",ABS(AR5-AS5),"") ->  | BC5: =IF(AT5<>"",ABS(AS5-AT5),"") ->  | BD5: =IF(INDEX(campsByItinerary,numericItinerary($A5),BD$3-1)="","",VLOOKUP(INDEX(campsByItinerary,numericItinerary($A5),BD$3-1),campInfo,8)) -> Y | BE5: =IF(INDEX(campsByItinerary,numericItinerary($A5),BE$3-1)="","",VLOOKUP(INDEX(campsByItinerary,numericItinerary($A5),BE$3-1),campInfo,8)) ->  | BF5: =IF(INDEX(campsByItinerary,numericItinerary($A5),BF$3-1)="","",VLOOKUP(INDEX(campsByItinerary,numericItinerary($A5),BF$3-1),campInfo,8)) -> Y | BG5: =IF(INDEX(campsByItinerary,numericItinerary($A5),BG$3-1)="","",VLOOKUP(INDEX(campsByItinerary,numericItinerary($A5),BG$3-1),campInfo,8)) ->  | BH5: =IF(INDEX(campsByItinerary,numericItinerary($A5),BH$3-1)="","",VLOOKUP(INDEX(campsByItinerary,numericItinerary($A5),BH$3-1),campInfo,8)) -> Y | BI5: =IF(INDEX(campsByItinerary,numericItinerary($A5),BI$3-1)="","",VLOOKUP(INDEX(campsByItinerary,numericItinerary($A5),BI$3-1),campInfo,8)) ->  | BJ5: =IF(INDEX(campsByItinerary,numericItinerary($A5),BJ$3-1)="","",VLOOKUP(INDEX(campsByItinerary,numericItinerary($A5),BJ$3-1),campInfo,8)) ->  | BK5: =IF(INDEX(campsByItinerary,numericItinerary($A5),BK$3-1)="","",VLOOKUP(INDEX(campsByItinerary,numericItinerary($A5),BK$3-1),campInfo,8)) ->  | BL5: =IF(INDEX(campsByItinerary,numericItinerary($A5),BL$3-1)="","",VLOOKUP(INDEX(campsByItinerary,numericItinerary($A5),BL$3-1),campInfo,8)) ->  | BM5: =IF(INDEX(campsByItinerary,numericItinerary($A5),BM$3-1)="","",VLOOKUP(INDEX(campsByItinerary,numericItinerary($A5),BM$3-1),campInfo,8)) ->  | BN5: =IF(BD5="Y","","Y") ->  | BO5: =IF(BE5="Y","","Y") -> Y | BP5: =IF(BF5="Y","","Y") ->  | BQ5: =IF(BG5="Y","","Y") -> Y | BR5: =IF(BH5="Y","","Y") ->  | BS5: =IF(BI5="Y","","Y") -> Y | BT5: =IF(BJ5="Y","","Y") -> Y | BU5: =IF(BK5="Y","","Y") -> Y | BV5: =IF(BL5="Y","","Y") -> Y | BW5: =IF(BM5="Y","","Y") -> Y | BX5: =IF(INDEX(campsByItinerary,numericItinerary($A5),BD$3-1)="","",VLOOKUP(INDEX(campsByItinerary,numericItinerary($A5),BD$3-1),campInfo,10)) ->  | BY5: =IF(INDEX(campsByItinerary,numericItinerary($A5),BE$3-1)="","",VLOOKUP(INDEX(campsByItinerary,numericItinerary($A5),BE$3-1),campInfo,10)) -> Y | BZ5: =IF(INDEX(campsByItinerary,numericItinerary($A5),BF$3-1)="","",VLOOKUP(INDEX(campsByItinerary,numericItinerary($A5),BF$3-1),campInfo,10)) ->  | CA5: =IF(INDEX(campsByItinerary,numericItinerary($A5),BG$3-1)="","",VLOOKUP(INDEX(campsByItinerary,numericItinerary($A5),BG$3-1),campInfo,10)) ->  | CB5: =IF(INDEX(campsByItinerary,numericItinerary($A5),BH$3-1)="","",VLOOKUP(INDEX(campsByItinerary,numericItinerary($A5),BH$3-1),campInfo,10)) ->  | CC5: =IF(INDEX(campsByItinerary,numericItinerary($A5),BI$3-1)="","",VLOOKUP(INDEX(campsByItinerary,numericItinerary($A5),BI$3-1),campInfo,10)) ->  | CD5: =IF(INDEX(campsByItinerary,numericItinerary($A5),BJ$3-1)="","",VLOOKUP(INDEX(campsByItinerary,numericItinerary($A5),BJ$3-1),campInfo,10)) ->  | CE5: =IF(INDEX(campsByItinerary,numericItinerary($A5),BK$3-1)="","",VLOOKUP(INDEX(campsByItinerary,numericItinerary($A5),BK$3-1),campInfo,10)) ->  | CF5: =IF(INDEX(campsByItinerary,numericItinerary($A5),BL$3-1)="","",VLOOKUP(INDEX(campsByItinerary,numericItinerary($A5),BL$3-1),campInfo,10)) ->  | CG5: =IF(INDEX(campsByItinerary,numericItinerary($A5),BM$3-1)="","",VLOOKUP(INDEX(campsByItinerary,numericItinerary($A5),BM$3-1),campInfo,10)) ->  | CP5: Y | CQ5: Y | CR5: =INDEX(campsByItinerary,numericItinerary($A5),BD$3-1) -> Harlan | CS5: =IF(INDEX(campsByItinerary,numericItinerary($A5),BE$3-1)="","",VLOOKUP(INDEX(campsByItinerary,numericItinerary($A5),BE$3-1),campInfo,2)) -> Central | CT5: =IF(INDEX(campsByItinerary,numericItinerary($A5),BF$3-1)="","",VLOOKUP(INDEX(campsByItinerary,numericItinerary($A5),BF$3-1),campInfo,2)) -> Central | CU5: =IF(INDEX(campsByItinerary,numericItinerary($A5),BG$3-1)="","",VLOOKUP(INDEX(campsByItinerary,numericItinerary($A5),BG$3-1),campInfo,2)) -> North | CV5: =IF(INDEX(campsByItinerary,numericItinerary($A5),BH$3-1)="","",VLOOKUP(INDEX(campsByItinerary,numericItinerary($A5),BH$3-1),campInfo,2)) -> North | CW5: =IF(INDEX(campsByItinerary,numericItinerary($A5),BI$3-1)="","",VLOOKUP(INDEX(campsByItinerary,numericItinerary($A5),BI$3-1),campInfo,2)) -> North | CX5: =IF(INDEX(campsByItinerary,numericItinerary($A5),BJ$3-1)="","",VLOOKUP(INDEX(campsByItinerary,numericItinerary($A5),BJ$3-1),campInfo,2)) -> North | CY5: =IF(INDEX(campsByItinerary,numericItinerary($A5),BK$3-1)="","",VLOOKUP(INDEX(campsByItinerary,numericItinerary($A5),BK$3-1),campInfo,2)) ->  | CZ5: =IF(INDEX(campsByItinerary,numericItinerary($A5),BL$3-1)="","",VLOOKUP(INDEX(campsByItinerary,numericItinerary($A5),BL$3-1),campInfo,2)) ->  | DA5: =IF(INDEX(campsByItinerary,numericItinerary($A5),BM$3-1)="","",VLOOKUP(INDEX(campsByItinerary,numericItinerary($A5),BM$3-1),campInfo,2)) ->  | DB5: =IF(INDEX(campsByItinerary,numericItinerary($A5),BD$3-1)="","",VLOOKUP(INDEX(campsByItinerary,numericItinerary($A5),BD$3-1),campInfo,12)) -> South | DC5: =IF(INDEX(campsByItinerary,numericItinerary($A5),BE$3-1)="","",VLOOKUP(INDEX(campsByItinerary,numericItinerary($A5),BE$3-1),campInfo,12)) -> South | DD5: =IF(INDEX(campsByItinerary,numericItinerary($A5),BF$3-1)="","",VLOOKUP(INDEX(campsByItinerary,numericItinerary($A5),BF$3-1),campInfo,12)) -> North & South | DE5: =IF(INDEX(campsByItinerary,numericItinerary($A5),BG$3-1)="","",VLOOKUP(INDEX(campsByItinerary,numericItinerary($A5),BG$3-1),campInfo,12)) -> North | DF5: =IF(INDEX(campsByItinerary,numericItinerary($A5),BH$3-1)="","",VLOOKUP(INDEX(campsByItinerary,numericItinerary($A5),BH$3-1),campInfo,12)) -> North | DG5: =IF(INDEX(campsByItinerary,numericItinerary($A5),BI$3-1)="","",VLOOKUP(INDEX(campsByItinerary,numericItinerary($A5),BI$3-1),campInfo,12)) -> North | DH5: =IF(INDEX(campsByItinerary,numericItinerary($A5),BJ$3-1)="","",VLOOKUP(INDEX(campsByItinerary,numericItinerary($A5),BJ$3-1),campInfo,12)) -> North | DI5: =IF(INDEX(campsByItinerary,numericItinerary($A5),BK$3-1)="","",VLOOKUP(INDEX(campsByItinerary,numericItinerary($A5),BK$3-1),campInfo,12)) ->  | DJ5: =IF(INDEX(campsByItinerary,numericItinerary($A5),BL$3-1)="","",VLOOKUP(INDEX(campsByItinerary,numericItinerary($A5),BL$3-1),campInfo,12)) ->  | DK5: =IF(INDEX(campsByItinerary,numericItinerary($A5),BM$3-1)="","",VLOOKUP(INDEX(campsByItinerary,numericItinerary($A5),BM$3-1),campInfo,12)) ->  | DL5: =getfoodPU("First",numericItinerary($A5)) -> 2 | DM5: =getfoodPU("Max",numericItinerary($A5)) -> 2
A6: 9-3 | C6: C | D6: 41 | E6: Lovers Leap | F6: Shaefers Pass | G6: Clarks Fork | H6: Hunting Lodge | I6: Thunder Ridge | J6: Sawmill | K6: Minnette Meadows | O6: Camping HQ | P6: Miners Park | U6: Ute Gulch | Y6: Lovers Leap | Z6: Ute Park | AE6: =IF(ItineraryPrograms!AD5="y","y","") ->  | AF6: =IF(ItineraryPrograms!AE5="y","y","") ->  | AG6: =IF(ItineraryPrograms!AF5="y","y","") ->  | AH6: y | AI6: =checkTooth(AA6,LOWER(ItineraryPrograms!AH5)) -> ?? | AK6: 7469 | AL6: 8724 | AM6: 7515 | AN6: 7776 | AO6: 10490 | AP6: 9193 | AQ6: 7703 | AU6: 1255 | AV6: 1209 | AW6: 261 | AX6: 2714 | AY6: 1297 | AZ6: 1490 | BD6: =IF(INDEX(campsByItinerary,numericItinerary($A6),BD$3-1)="","",VLOOKUP(INDEX(campsByItinerary,numericItinerary($A6),BD$3-1),campInfo,8)) ->  | BE6: =IF(INDEX(campsByItinerary,numericItinerary($A6),BE$3-1)="","",VLOOKUP(INDEX(campsByItinerary,numericItinerary($A6),BE$3-1),campInfo,8)) ->  | BF6: =IF(INDEX(campsByItinerary,numericItinerary($A6),BF$3-1)="","",VLOOKUP(INDEX(campsByItinerary,numericItinerary($A6),BF$3-1),campInfo,8)) -> Y | BG6: =IF(INDEX(campsByItinerary,numericItinerary($A6),BG$3-1)="","",VLOOKUP(INDEX(campsByItinerary,numericItinerary($A6),BG$3-1),campInfo,8)) -> N | BH6: =IF(INDEX(campsByItinerary,numericItinerary($A6),BH$3-1)="","",VLOOKUP(INDEX(campsByItinerary,numericItinerary($A6),BH$3-1),campInfo,8)) ->  | BI6: =IF(INDEX(campsByItinerary,numericItinerary($A6),BI$3-1)="","",VLOOKUP(INDEX(campsByItinerary,numericItinerary($A6),BI$3-1),campInfo,8)) -> Y | BJ6: =IF(INDEX(campsByItinerary,numericItinerary($A6),BJ$3-1)="","",VLOOKUP(INDEX(campsByItinerary,numericItinerary($A6),BJ$3-1),campInfo,8)) ->  | BK6: =IF(INDEX(campsByItinerary,numericItinerary($A6),BK$3-1)="","",VLOOKUP(INDEX(campsByItinerary,numericItinerary($A6),BK$3-1),campInfo,8)) ->  | BL6: =IF(INDEX(campsByItinerary,numericItinerary($A6),BL$3-1)="","",VLOOKUP(INDEX(campsByItinerary,numericItinerary($A6),BL$3-1),campInfo,8)) ->  | BM6: =IF(INDEX(campsByItinerary,numericItinerary($A6),BM$3-1)="","",VLOOKUP(INDEX(campsByItinerary,numericItinerary($A6),BM$3-1),campInfo,8)) ->  | BN6: Y | BO6: Y | BQ6: Y | BR6: Y | BT6: Y | BU6: Y | BV6: Y | BW6: Y | BX6: =IF(INDEX(campsByItinerary,numericItinerary($A6),BD$3-1)="","",VLOOKUP(INDEX(campsByItinerary,numericItinerary($A6),BD$3-1),campInfo,10)) ->  | BY6: =IF(INDEX(campsByItinerary,numericItinerary($A6),BE$3-1)="","",VLOOKUP(INDEX(campsByItinerary,numericItinerary($A6),BE$3-1),campInfo,10)) -> Y | BZ6: =IF(INDEX(campsByItinerary,numericItinerary($A6),BF$3-1)="","",VLOOKUP(INDEX(campsByItinerary,numericItinerary($A6),BF$3-1),campInfo,10)) ->  | CA6: =IF(INDEX(campsByItinerary,numericItinerary($A6),BG$3-1)="","",VLOOKUP(INDEX(campsByItinerary,numericItinerary($A6),BG$3-1),campInfo,10)) ->  | CB6: =IF(INDEX(campsByItinerary,numericItinerary($A6),BH$3-1)="","",VLOOKUP(INDEX(campsByItinerary,numericItinerary($A6),BH$3-1),campInfo,10)) -> Y | CC6: =IF(INDEX(campsByItinerary,numericItinerary($A6),BI$3-1)="","",VLOOKUP(INDEX(campsByItinerary,numericItinerary($A6),BI$3-1),campInfo,10)) ->  | CD6: =IF(INDEX(campsByItinerary,numericItinerary($A6),BJ$3-1)="","",VLOOKUP(INDEX(campsByItinerary,numericItinerary($A6),BJ$3-1),campInfo,10)) -> Y | CE6: =IF(INDEX(campsByItinerary,numericItinerary($A6),BK$3-1)="","",VLOOKUP(INDEX(campsByItinerary,numericItinerary($A6),BK$3-1),campInfo,10)) ->  | CF6: =IF(INDEX(campsByItinerary,numericItinerary($A6),BL$3-1)="","",VLOOKUP(INDEX(campsByItinerary,numericItinerary($A6),BL$3-1),campInfo,10)) ->  | CG6: =IF(INDEX(campsByItinerary,numericItinerary($A6),BM$3-1)="","",VLOOKUP(INDEX(campsByItinerary,numericItinerary($A6),BM$3-1),campInfo,10)) ->  | CP6: Y | CQ6: Y | CR6: =INDEX(campsByItinerary,numericItinerary($A6),BD$3-1) -> Lovers Leap | CS6: =IF(INDEX(campsByItinerary,numericItinerary($A6),BE$3-1)="","",VLOOKUP(INDEX(campsByItinerary,numericItinerary($A6),BE$3-1),campInfo,2)) -> Central | CT6: =IF(INDEX(campsByItinerary,numericItinerary($A6),BF$3-1)="","",VLOOKUP(INDEX(campsByItinerary,numericItinerary($A6),BF$3-1),campInfo,2)) -> Central | CU6: =IF(INDEX(campsByItinerary,numericItinerary($A6),BG$3-1)="","",VLOOKUP(INDEX(campsByItinerary,numericItinerary($A6),BG$3-1),campInfo,2)) -> Central | CV6: =IF(INDEX(campsByItinerary,numericItinerary($A6),BH$3-1)="","",VLOOKUP(INDEX(campsByItinerary,numericItinerary($A6),BH$3-1),campInfo,2)) -> Central | CW6: =IF(INDEX(campsByItinerary,numericItinerary($A6),BI$3-1)="","",VLOOKUP(INDEX(campsByItinerary,numericItinerary($A6),BI$3-1),campInfo,2)) -> Central | CX6: =IF(INDEX(campsByItinerary,numericItinerary($A6),BJ$3-1)="","",VLOOKUP(INDEX(campsByItinerary,numericItinerary($A6),BJ$3-1),campInfo,2)) -> Central | CY6: =IF(INDEX(campsByItinerary,numericItinerary($A6),BK$3-1)="","",VLOOKUP(INDEX(campsByItinerary,numericItinerary($A6),BK$3-1),campInfo,2)) ->  | CZ6: =IF(INDEX(campsByItinerary,numericItinerary($A6),BL$3-1)="","",VLOOKUP(INDEX(campsByItinerary,numericItinerary($A6),BL$3-1),campInfo,2)) ->  | DA6: =IF(INDEX(campsByItinerary,numericItinerary($A6),BM$3-1)="","",VLOOKUP(INDEX(campsByItinerary,numericItinerary($A6),BM$3-1),campInfo,2)) ->  | DB6: =IF(INDEX(campsByItinerary,numericItinerary($A6),BD$3-1)="","",VLOOKUP(INDEX(campsByItinerary,numericItinerary($A6),BD$3-1),campInfo,12)) -> South | DC6: =IF(INDEX(campsByItinerary,numericItinerary($A6),BE$3-1)="","",VLOOKUP(INDEX(campsByItinerary,numericItinerary($A6),BE$3-1),campInfo,12)) -> South | DD6: =IF(INDEX(campsByItinerary,numericItinerary($A6),BF$3-1)="","",VLOOKUP(INDEX(campsByItinerary,numericItinerary($A6),BF$3-1),campInfo,12)) -> South | DE6: =IF(INDEX(campsByItinerary,numericItinerary($A6),BG$3-1)="","",VLOOKUP(INDEX(campsByItinerary,numericItinerary($A6),BG$3-1),campInfo,12)) -> South | DF6: =IF(INDEX(campsByItinerary,numericItinerary($A6),BH$3-1)="","",VLOOKUP(INDEX(campsByItinerary,numericItinerary($A6),BH$3-1),campInfo,12)) -> South | DG6: =IF(INDEX(campsByItinerary,numericItinerary($A6),BI$3-1)="","",VLOOKUP(INDEX(campsByItinerary,numericItinerary($A6),BI$3-1),campInfo,12)) -> South | DH6: =IF(INDEX(campsByItinerary,numericItinerary($A6),BJ$3-1)="","",VLOOKUP(INDEX(campsByItinerary,numericItinerary($A6),BJ$3-1),campInfo,12)) -> South | DI6: =IF(INDEX(campsByItinerary,numericItinerary($A6),BK$3-1)="","",VLOOKUP(INDEX(campsByItinerary,numericItinerary($A6),BK$3-1),campInfo,12)) ->  | DJ6: =IF(INDEX(campsByItinerary,numericItinerary($A6),BL$3-1)="","",VLOOKUP(INDEX(campsByItinerary,numericItinerary($A6),BL$3-1),campInfo,12)) ->  | DK6: =IF(INDEX(campsByItinerary,numericItinerary($A6),BM$3-1)="","",VLOOKUP(INDEX(campsByItinerary,numericItinerary($A6),BM$3-1),campInfo,12)) ->  | DL6: =getfoodPU("First",numericItinerary($A6)) -> 1 | DM6: =getfoodPU("Max",numericItinerary($A6)) -> 5
A7: 9-4 | C7: R | D7: 42 | E7: Abreu | F7: Crater Lake | G7: Beaubien | H7: Porcupine | I7: Red Hills | J7: Black Mountain | K7: Shaefers Pass | O7: Camping HQ | R7: Phillips Junction | Y7: Zastrow | Z7: Hike In | AA7: y | AE7: =IF(ItineraryPrograms!AD6="y","y","") ->  | AF7: =IF(ItineraryPrograms!AE6="y","y","") ->  | AG7: =IF(ItineraryPrograms!AF6="y","y","") ->  | AH7: y | AI7: =checkTooth(AA7,LOWER(ItineraryPrograms!AH6)) -> y | AJ7: y | AK7: 7217 | AL7: 8398 | AM7: 9330 | AN7: 9152 | AO7: 10280 | AP7: 8991 | AQ7: 8724 | AU7: 1181 | AV7: 932 | AW7: 178 | AX7: 1128 | AY7: 1289 | AZ7: 267 | BD7: =IF(INDEX(campsByItinerary,numericItinerary($A7),BD$3-1)="","",VLOOKUP(INDEX(campsByItinerary,numericItinerary($A7),BD$3-1),campInfo,8)) -> Y | BE7: =IF(INDEX(campsByItinerary,numericItinerary($A7),BE$3-1)="","",VLOOKUP(INDEX(campsByItinerary,numericItinerary($A7),BE$3-1),campInfo,8)) -> Y | BF7: =IF(INDEX(campsByItinerary,numericItinerary($A7),BF$3-1)="","",VLOOKUP(INDEX(campsByItinerary,numericItinerary($A7),BF$3-1),campInfo,8)) -> Y | BG7: =IF(INDEX(campsByItinerary,numericItinerary($A7),BG$3-1)="","",VLOOKUP(INDEX(campsByItinerary,numericItinerary($A7),BG$3-1),campInfo,8)) ->  | BH7: =IF(INDEX(campsByItinerary,numericItinerary($A7),BH$3-1)="","",VLOOKUP(INDEX(campsByItinerary,numericItinerary($A7),BH$3-1),campInfo,8)) ->  | BI7: =IF(INDEX(campsByItinerary,numericItinerary($A7),BI$3-1)="","",VLOOKUP(INDEX(campsByItinerary,numericItinerary($A7),BI$3-1),campInfo,8)) -> Y | BJ7: =IF(INDEX(campsByItinerary,numericItinerary($A7),BJ$3-1)="","",VLOOKUP(INDEX(campsByItinerary,numericItinerary($A7),BJ$3-1),campInfo,8)) ->  | BK7: =IF(INDEX(campsByItinerary,numericItinerary($A7),BK$3-1)="","",VLOOKUP(INDEX(campsByItinerary,numericItinerary($A7),BK$3-1),campInfo,8)) ->  | BL7: =IF(INDEX(campsByItinerary,numericItinerary($A7),BL$3-1)="","",VLOOKUP(INDEX(campsByItinerary,numericItinerary($A7),BL$3-1),campInfo,8)) ->  | BM7: =IF(INDEX(campsByItinerary,numericItinerary($A7),BM$3-1)="","",VLOOKUP(INDEX(campsByItinerary,numericItinerary($A7),BM$3-1),campInfo,8)) ->  | BQ7: Y | BR7: Y | BT7: Y | BU7: Y | BV7: Y | BW7: Y | BX7: =IF(INDEX(campsByItinerary,numericItinerary($A7),BD$3-1)="","",VLOOKUP(INDEX(campsByItinerary,numericItinerary($A7),BD$3-1),campInfo,10)) ->  | BY7: =IF(INDEX(campsByItinerary,numericItinerary($A7),BE$3-1)="","",VLOOKUP(INDEX(campsByItinerary,numericItinerary($A7),BE$3-1),campInfo,10)) ->  | BZ7: =IF(INDEX(campsByItinerary,numericItinerary($A7),BF$3-1)="","",VLOOKUP(INDEX(campsByItinerary,numericItinerary($A7),BF$3-1),campInfo,10)) ->  | CA7: =IF(INDEX(campsByItinerary,numericItinerary($A7),BG$3-1)="","",VLOOKUP(INDEX(campsByItinerary,numericItinerary($A7),BG$3-1),campInfo,10)) ->  | CB7: =IF(INDEX(campsByItinerary,numericItinerary($A7),BH$3-1)="","",VLOOKUP(INDEX(campsByItinerary,numericItinerary($A7),BH$3-1),campInfo,10)) ->  | CC7: =IF(INDEX(campsByItinerary,numericItinerary($A7),BI$3-1)="","",VLOOKUP(INDEX(campsByItinerary,numericItinerary($A7),BI$3-1),campInfo,10)) ->  | CD7: =IF(INDEX(campsByItinerary,numericItinerary($A7),BJ$3-1)="","",VLOOKUP(INDEX(campsByItinerary,numericItinerary($A7),BJ$3-1),campInfo,10)) -> Y | CE7: =IF(INDEX(campsByItinerary,numericItinerary($A7),BK$3-1)="","",VLOOKUP(INDEX(campsByItinerary,numericItinerary($A7),BK$3-1),campInfo,10)) ->  | CF7: =IF(INDEX(campsByItinerary,numericItinerary($A7),BL$3-1)="","",VLOOKUP(INDEX(campsByItinerary,numericItinerary($A7),BL$3-1),campInfo,10)) ->  | CG7: =IF(INDEX(campsByItinerary,numericItinerary($A7),BM$3-1)="","",VLOOKUP(INDEX(campsByItinerary,numericItinerary($A7),BM$3-1),campInfo,10)) ->  | CP7: Y | CQ7: Y | CR7: =INDEX(campsByItinerary,numericItinerary($A7),BD$3-1) -> Abreu | CS7: =IF(INDEX(campsByItinerary,numericItinerary($A7),BE$3-1)="","",VLOOKUP(INDEX(campsByItinerary,numericItinerary($A7),BE$3-1),campInfo,2)) -> South | CT7: =IF(INDEX(campsByItinerary,numericItinerary($A7),BF$3-1)="","",VLOOKUP(INDEX(campsByItinerary,numericItinerary($A7),BF$3-1),campInfo,2)) -> South | CU7: =IF(INDEX(campsByItinerary,numericItinerary($A7),BG$3-1)="","",VLOOKUP(INDEX(campsByItinerary,numericItinerary($A7),BG$3-1),campInfo,2)) -> South | CV7: =IF(INDEX(campsByItinerary,numericItinerary($A7),BH$3-1)="","",VLOOKUP(INDEX(campsByItinerary,numericItinerary($A7),BH$3-1),campInfo,2)) -> South | CW7: =IF(INDEX(campsByItinerary,numericItinerary($A7),BI$3-1)="","",VLOOKUP(INDEX(campsByItinerary,numericItinerary($A7),BI$3-1),campInfo,2)) -> South | CX7: =IF(INDEX(campsByItinerary,numericItinerary($A7),BJ$3-1)="","",VLOOKUP(INDEX(campsByItinerary,numericItinerary($A7),BJ$3-1),campInfo,2)) -> Central | CY7: =IF(INDEX(campsByItinerary,numericItinerary($A7),BK$3-1)="","",VLOOKUP(INDEX(campsByItinerary,numericItinerary($A7),BK$3-1),campInfo,2)) ->  | CZ7: =IF(INDEX(campsByItinerary,numericItinerary($A7),BL$3-1)="","",VLOOKUP(INDEX(campsByItinerary,numericItinerary($A7),BL$3-1),campInfo,2)) ->  | DA7: =IF(INDEX(campsByItinerary,numericItinerary($A7),BM$3-1)="","",VLOOKUP(INDEX(campsByItinerary,numericItinerary($A7),BM$3-1),campInfo,2)) ->  | DB7: =IF(INDEX(campsByItinerary,numericItinerary($A7),BD$3-1)="","",VLOOKUP(INDEX(campsByItinerary,numericItinerary($A7),BD$3-1),campInfo,12)) -> South | DC7: =IF(INDEX(campsByItinerary,numericItinerary($A7),BE$3-1)="","",VLOOKUP(INDEX(campsByItinerary,numericItinerary($A7),BE$3-1),campInfo,12)) -> South | DD7: =IF(INDEX(campsByItinerary,numericItinerary($A7),BF$3-1)="","",VLOOKUP(INDEX(campsByItinerary,numericItinerary($A7),BF$3-1),campInfo,12)) -> South | DE7: =IF(INDEX(campsByItinerary,numericItinerary($A7),BG$3-1)="","",VLOOKUP(INDEX(campsByItinerary,numericItinerary($A7),BG$3-1),campInfo,12)) -> South | DF7: =IF(INDEX(campsByItinerary,numericItinerary($A7),BH$3-1)="","",VLOOKUP(INDEX(campsByItinerary,numericItinerary($A7),BH$3-1),campInfo,12)) -> South | DG7: =IF(INDEX(campsByItinerary,numericItinerary($A7),BI$3-1)="","",VLOOKUP(INDEX(campsByItinerary,numericItinerary($A7),BI$3-1),campInfo,12)) -> South | DH7: =IF(INDEX(campsByItinerary,numericItinerary($A7),BJ$3-1)="","",VLOOKUP(INDEX(campsByItinerary,numericItinerary($A7),BJ$3-1),campInfo,12)) -> South | DI7: =IF(INDEX(campsByItinerary,numericItinerary($A7),BK$3-1)="","",VLOOKUP(INDEX(campsByItinerary,numericItinerary($A7),BK$3-1),campInfo,12)) ->  | DJ7: =IF(INDEX(campsByItinerary,numericItinerary($A7),BL$3-1)="","",VLOOKUP(INDEX(campsByItinerary,numericItinerary($A7),BL$3-1),campInfo,12)) ->  | DK7: =IF(INDEX(campsByItinerary,numericItinerary($A7),BM$3-1)="","",VLOOKUP(INDEX(campsByItinerary,numericItinerary($A7),BM$3-1),campInfo,12)) ->  | DL7: =getfoodPU("First",numericItinerary($A7)) -> 3 | DM7: =getfoodPU("Max",numericItinerary($A7)) -> 3
A8: 9-5 | C8: R | D8: 36 | E8: Indian Writings | F8: Sioux | G8: Flume Canyon | H8: Head of Dean | I8: Black Horse Mine | J8: Black Horse Mine | K8: Touch-Me-Not Creek | O8: Camping HQ | Q8: Ponil | T8: Baldy Town | Y8: Six Mile Gate | Z8: Maxwell | AE8: =IF(ItineraryPrograms!AD7="y","y","") -> y | AF8: =IF(ItineraryPrograms!AE7="y","y","") ->  | AG8: =IF(ItineraryPrograms!AF7="y","y","") ->  | AH8: y | AI8: =checkTooth(AA8,LOWER(ItineraryPrograms!AH7)) ->  | AK8: 6979 | AL8: 7382 | AM8: 7715 | AN8: 8754 | AO8: 10750 | AP8: 10750 | AQ8: 8855 | AU8: 403 | AV8: 333 | AW8: 1039 | AX8: 1996 | AY8: 0 | AZ8: 1895 | BD8: =IF(INDEX(campsByItinerary,numericItinerary($A8),BD$3-1)="","",VLOOKUP(INDEX(campsByItinerary,numericItinerary($A8),BD$3-1),campInfo,8)) -> Y | BE8: =IF(INDEX(campsByItinerary,numericItinerary($A8),BE$3-1)="","",VLOOKUP(INDEX(campsByItinerary,numericItinerary($A8),BE$3-1),campInfo,8)) ->  | BF8: =IF(INDEX(campsByItinerary,numericItinerary($A8),BF$3-1)="","",VLOOKUP(INDEX(campsByItinerary,numericItinerary($A8),BF$3-1),campInfo,8)) ->  | BG8: =IF(INDEX(campsByItinerary,numericItinerary($A8),BG$3-1)="","",VLOOKUP(INDEX(campsByItinerary,numericItinerary($A8),BG$3-1),campInfo,8)) -> Y | BH8: =IF(INDEX(campsByItinerary,numericItinerary($A8),BH$3-1)="","",VLOOKUP(INDEX(campsByItinerary,numericItinerary($A8),BH$3-1),campInfo,8)) ->  | BI8: =IF(INDEX(campsByItinerary,numericItinerary($A8),BI$3-1)="","",VLOOKUP(INDEX(campsByItinerary,numericItinerary($A8),BI$3-1),campInfo,8)) ->  | BJ8: =IF(INDEX(campsByItinerary,numericItinerary($A8),BJ$3-1)="","",VLOOKUP(INDEX(campsByItinerary,numericItinerary($A8),BJ$3-1),campInfo,8)) ->  | BK8: =IF(INDEX(campsByItinerary,numericItinerary($A8),BK$3-1)="","",VLOOKUP(INDEX(campsByItinerary,numericItinerary($A8),BK$3-1),campInfo,8)) ->  | BL8: =IF(INDEX(campsByItinerary,numericItinerary($A8),BL$3-1)="","",VLOOKUP(INDEX(campsByItinerary,numericItinerary($A8),BL$3-1),campInfo,8)) ->  | BM8: =IF(INDEX(campsByItinerary,numericItinerary($A8),BM$3-1)="","",VLOOKUP(INDEX(campsByItinerary,numericItinerary($A8),BM$3-1),campInfo,8)) ->  | BO8: Y | BP8: Y | BR8: Y | BS8: Y | BT8: Y | BU8: Y | BV8: Y | BW8: Y | BX8: =IF(INDEX(campsByItinerary,numericItinerary($A8),BD$3-1)="","",VLOOKUP(INDEX(campsByItinerary,numericItinerary($A8),BD$3-1),campInfo,10)) ->  | BY8: =IF(INDEX(campsByItinerary,numericItinerary($A8),BE$3-1)="","",VLOOKUP(INDEX(campsByItinerary,numericItinerary($A8),BE$3-1),campInfo,10)) ->  | BZ8: =IF(INDEX(campsByItinerary,numericItinerary($A8),BF$3-1)="","",VLOOKUP(INDEX(campsByItinerary,numericItinerary($A8),BF$3-1),campInfo,10)) ->  | CA8: =IF(INDEX(campsByItinerary,numericItinerary($A8),BG$3-1)="","",VLOOKUP(INDEX(campsByItinerary,numericItinerary($A8),BG$3-1),campInfo,10)) ->  | CB8: =IF(INDEX(campsByItinerary,numericItinerary($A8),BH$3-1)="","",VLOOKUP(INDEX(campsByItinerary,numericItinerary($A8),BH$3-1),campInfo,10)) -> Y | CC8: =IF(INDEX(campsByItinerary,numericItinerary($A8),BI$3-1)="","",VLOOKUP(INDEX(campsByItinerary,numericItinerary($A8),BI$3-1),campInfo,10)) -> Y | CD8: =IF(INDEX(campsByItinerary,numericItinerary($A8),BJ$3-1)="","",VLOOKUP(INDEX(campsByItinerary,numericItinerary($A8),BJ$3-1),campInfo,10)) ->  | CE8: =IF(INDEX(campsByItinerary,numericItinerary($A8),BK$3-1)="","",VLOOKUP(INDEX(campsByItinerary,numericItinerary($A8),BK$3-1),campInfo,10)) ->  | CF8: =IF(INDEX(campsByItinerary,numericItinerary($A8),BL$3-1)="","",VLOOKUP(INDEX(campsByItinerary,numericItinerary($A8),BL$3-1),campInfo,10)) ->  | CG8: =IF(INDEX(campsByItinerary,numericItinerary($A8),BM$3-1)="","",VLOOKUP(INDEX(campsByItinerary,numericItinerary($A8),BM$3-1),campInfo,10)) ->  | CM8: Y | CP8: Y | CQ8: Y | CR8: =INDEX(campsByItinerary,numericItinerary($A8),BD$3-1) -> Indian Writings | CS8: =IF(INDEX(campsByItinerary,numericItinerary($A8),BE$3-1)="","",VLOOKUP(INDEX(campsByItinerary,numericItinerary($A8),BE$3-1),campInfo,2)) -> North | CT8: =IF(INDEX(campsByItinerary,numericItinerary($A8),BF$3-1)="","",VLOOKUP(INDEX(campsByItinerary,numericItinerary($A8),BF$3-1),campInfo,2)) -> North | CU8: =IF(INDEX(campsByItinerary,numericItinerary($A8),BG$3-1)="","",VLOOKUP(INDEX(campsByItinerary,numericItinerary($A8),BG$3-1),campInfo,2)) -> North | CV8: =IF(INDEX(campsByItinerary,numericItinerary($A8),BH$3-1)="","",VLOOKUP(INDEX(campsByItinerary,numericItinerary($A8),BH$3-1),campInfo,2)) -> North | CW8: =IF(INDEX(campsByItinerary,numericItinerary($A8),BI$3-1)="","",VLOOKUP(INDEX(campsByItinerary,numericItinerary($A8),BI$3-1),campInfo,2)) -> North | CX8: =IF(INDEX(campsByItinerary,numericItinerary($A8),BJ$3-1)="","",VLOOKUP(INDEX(campsByItinerary,numericItinerary($A8),BJ$3-1),campInfo,2)) -> North | CY8: =IF(INDEX(campsByItinerary,numericItinerary($A8),BK$3-1)="","",VLOOKUP(INDEX(campsByItinerary,numericItinerary($A8),BK$3-1),campInfo,2)) ->  | CZ8: =IF(INDEX(campsByItinerary,numericItinerary($A8),BL$3-1)="","",VLOOKUP(INDEX(campsByItinerary,numericItinerary($A8),BL$3-1),campInfo,2)) ->  | DA8: =IF(INDEX(campsByItinerary,numericItinerary($A8),BM$3-1)="","",VLOOKUP(INDEX(campsByItinerary,numericItinerary($A8),BM$3-1),campInfo,2)) ->  | DB8: =IF(INDEX(campsByItinerary,numericItinerary($A8),BD$3-1)="","",VLOOKUP(INDEX(campsByItinerary,numericItinerary($A8),BD$3-1),campInfo,12)) -> North | DC8: =IF(INDEX(campsByItinerary,numericItinerary($A8),BE$3-1)="","",VLOOKUP(INDEX(campsByItinerary,numericItinerary($A8),BE$3-1),campInfo,12)) -> North | DD8: =IF(INDEX(campsByItinerary,numericItinerary($A8),BF$3-1)="","",VLOOKUP(INDEX(campsByItinerary,numericItinerary($A8),BF$3-1),campInfo,12)) -> North | DE8: =IF(INDEX(campsByItinerary,numericItinerary($A8),BG$3-1)="","",VLOOKUP(INDEX(campsByItinerary,numericItinerary($A8),BG$3-1),campInfo,12)) -> North | DF8: =IF(INDEX(campsByItinerary,numericItinerary($A8),BH$3-1)="","",VLOOKUP(INDEX(campsByItinerary,numericItinerary($A8),BH$3-1),campInfo,12)) -> North | DG8: =IF(INDEX(campsByItinerary,numericItinerary($A8),BI$3-1)="","",VLOOKUP(INDEX(campsByItinerary,numericItinerary($A8),BI$3-1),campInfo,12)) -> North | DH8: =IF(INDEX(campsByItinerary,numericItinerary($A8),BJ$3-1)="","",VLOOKUP(INDEX(campsByItinerary,numericItinerary($A8),BJ$3-1),campInfo,12)) -> North | DI8: =IF(INDEX(campsByItinerary,numericItinerary($A8),BK$3-1)="","",VLOOKUP(INDEX(campsByItinerary,numericItinerary($A8),BK$3-1),campInfo,12)) ->  | DJ8: =IF(INDEX(campsByItinerary,numericItinerary($A8),BL$3-1)="","",VLOOKUP(INDEX(campsByItinerary,numericItinerary($A8),BL$3-1),campInfo,12)) ->  | DK8: =IF(INDEX(campsByItinerary,numericItinerary($A8),BM$3-1)="","",VLOOKUP(INDEX(campsByItinerary,numericItinerary($A8),BM$3-1),campInfo,12)) ->  | DL8: =getfoodPU("First",numericItinerary($A8)) -> 2 | DM8: =getfoodPU("Max",numericItinerary($A8)) -> 2
A9: 9-6 | C9: R | D9: 62 | E9: Indian Writings | F9: Dan Beard | G9: Ring Place | H9: Iris Park | I9: Rich Cabins | J9: Head of Dean | K9: Bluestem | O9: Camping HQ | Q9: Ring Place | S9: Rich Cabins | Y9: Six Mile Gate | Z9: Ponil | AE9: =IF(ItineraryPrograms!AD8="y","y","") ->  | AF9: =IF(ItineraryPrograms!AE8="y","y","") ->  | AG9: =IF(ItineraryPrograms!AF8="y","y","") ->  | AH9: y | AI9: =checkTooth(AA9,LOWER(ItineraryPrograms!AH8)) ->  | AK9: 6979 | AL9: 7896 | AM9: 8124 | AN9: 8571 | AO9: 7728 | AP9: 8754 | AQ9: 7495 | AU9: 917 | AV9: 228 | AW9: 447 | AX9: 843 | AY9: 1026 | AZ9: 1259 | BD9: =IF(INDEX(campsByItinerary,numericItinerary($A9),BD$3-1)="","",VLOOKUP(INDEX(campsByItinerary,numericItinerary($A9),BD$3-1),campInfo,8)) -> Y | BE9: =IF(INDEX(campsByItinerary,numericItinerary($A9),BE$3-1)="","",VLOOKUP(INDEX(campsByItinerary,numericItinerary($A9),BE$3-1),campInfo,8)) -> Y | BF9: =IF(INDEX(campsByItinerary,numericItinerary($A9),BF$3-1)="","",VLOOKUP(INDEX(campsByItinerary,numericItinerary($A9),BF$3-1),campInfo,8)) -> Y | BG9: =IF(INDEX(campsByItinerary,numericItinerary($A9),BG$3-1)="","",VLOOKUP(INDEX(campsByItinerary,numericItinerary($A9),BG$3-1),campInfo,8)) ->  | BH9: =IF(INDEX(campsByItinerary,numericItinerary($A9),BH$3-1)="","",VLOOKUP(INDEX(campsByItinerary,numericItinerary($A9),BH$3-1),campInfo,8)) -> Y | BI9: =IF(INDEX(campsByItinerary,numericItinerary($A9),BI$3-1)="","",VLOOKUP(INDEX(campsByItinerary,numericItinerary($A9),BI$3-1),campInfo,8)) -> Y | BJ9: =IF(INDEX(campsByItinerary,numericItinerary($A9),BJ$3-1)="","",VLOOKUP(INDEX(campsByItinerary,numericItinerary($A9),BJ$3-1),campInfo,8)) ->  | BK9: =IF(INDEX(campsByItinerary,numericItinerary($A9),BK$3-1)="","",VLOOKUP(INDEX(campsByItinerary,numericItinerary($A9),BK$3-1),campInfo,8)) ->  | BL9: =IF(INDEX(campsByItinerary,numericItinerary($A9),BL$3-1)="","",VLOOKUP(INDEX(campsByItinerary,numericItinerary($A9),BL$3-1),campInfo,8)) ->  | BM9: =IF(INDEX(campsByItinerary,numericItinerary($A9),BM$3-1)="","",VLOOKUP(INDEX(campsByItinerary,numericItinerary($A9),BM$3-1),campInfo,8)) ->  | BQ9: Y | BT9: Y | BU9: Y | BV9: Y | BW9: Y | BX9: =IF(INDEX(campsByItinerary,numericItinerary($A9),BD$3-1)="","",VLOOKUP(INDEX(campsByItinerary,numericItinerary($A9),BD$3-1),campInfo,10)) ->  | BY9: =IF(INDEX(campsByItinerary,numericItinerary($A9),BE$3-1)="","",VLOOKUP(INDEX(campsByItinerary,numericItinerary($A9),BE$3-1),campInfo,10)) ->  | BZ9: =IF(INDEX(campsByItinerary,numericItinerary($A9),BF$3-1)="","",VLOOKUP(INDEX(campsByItinerary,numericItinerary($A9),BF$3-1),campInfo,10)) ->  | CA9: =IF(INDEX(campsByItinerary,numericItinerary($A9),BG$3-1)="","",VLOOKUP(INDEX(campsByItinerary,numericItinerary($A9),BG$3-1),campInfo,10)) ->  | CB9: =IF(INDEX(campsByItinerary,numericItinerary($A9),BH$3-1)="","",VLOOKUP(INDEX(campsByItinerary,numericItinerary($A9),BH$3-1),campInfo,10)) ->  | CC9: =IF(INDEX(campsByItinerary,numericItinerary($A9),BI$3-1)="","",VLOOKUP(INDEX(campsByItinerary,numericItinerary($A9),BI$3-1),campInfo,10)) ->  | CD9: =IF(INDEX(campsByItinerary,numericItinerary($A9),BJ$3-1)="","",VLOOKUP(INDEX(campsByItinerary,numericItinerary($A9),BJ$3-1),campInfo,10)) -> Y | CE9: =IF(INDEX(campsByItinerary,numericItinerary($A9),BK$3-1)="","",VLOOKUP(INDEX(campsByItinerary,numericItinerary($A9),BK$3-1),campInfo,10)) ->  | CF9: =IF(INDEX(campsByItinerary,numericItinerary($A9),BL$3-1)="","",VLOOKUP(INDEX(campsByItinerary,numericItinerary($A9),BL$3-1),campInfo,10)) ->  | CG9: =IF(INDEX(campsByItinerary,numericItinerary($A9),BM$3-1)="","",VLOOKUP(INDEX(campsByItinerary,numericItinerary($A9),BM$3-1),campInfo,10)) ->  | CP9: Y | CQ9: Y | CR9: =INDEX(campsByItinerary,numericItinerary($A9),BD$3-1) -> Indian Writings | CS9: =IF(INDEX(campsByItinerary,numericItinerary($A9),BE$3-1)="","",VLOOKUP(INDEX(campsByItinerary,numericItinerary($A9),BE$3-1),campInfo,2)) -> North | CT9: =IF(INDEX(campsByItinerary,numericItinerary($A9),BF$3-1)="","",VLOOKUP(INDEX(campsByItinerary,numericItinerary($A9),BF$3-1),campInfo,2)) -> Valle Vidal | CU9: =IF(INDEX(campsByItinerary,numericItinerary($A9),BG$3-1)="","",VLOOKUP(INDEX(campsByItinerary,numericItinerary($A9),BG$3-1),campInfo,2)) -> Valle Vidal | CV9: =IF(INDEX(campsByItinerary,numericItinerary($A9),BH$3-1)="","",VLOOKUP(INDEX(campsByItinerary,numericItinerary($A9),BH$3-1),campInfo,2)) -> Valle Vidal | CW9: =IF(INDEX(campsByItinerary,numericItinerary($A9),BI$3-1)="","",VLOOKUP(INDEX(campsByItinerary,numericItinerary($A9),BI$3-1),campInfo,2)) -> North | CX9: =IF(INDEX(campsByItinerary,numericItinerary($A9),BJ$3-1)="","",VLOOKUP(INDEX(campsByItinerary,numericItinerary($A9),BJ$3-1),campInfo,2)) -> North | CY9: =IF(INDEX(campsByItinerary,numericItinerary($A9),BK$3-1)="","",VLOOKUP(INDEX(campsByItinerary,numericItinerary($A9),BK$3-1),campInfo,2)) ->  | CZ9: =IF(INDEX(campsByItinerary,numericItinerary($A9),BL$3-1)="","",VLOOKUP(INDEX(campsByItinerary,numericItinerary($A9),BL$3-1),campInfo,2)) ->  | DA9: =IF(INDEX(campsByItinerary,numericItinerary($A9),BM$3-1)="","",VLOOKUP(INDEX(campsByItinerary,numericItinerary($A9),BM$3-1),campInfo,2)) ->  | DB9: =IF(INDEX(campsByItinerary,numericItinerary($A9),BD$3-1)="","",VLOOKUP(INDEX(campsByItinerary,numericItinerary($A9),BD$3-1),campInfo,12)) -> North | DC9: =IF(INDEX(campsByItinerary,numericItinerary($A9),BE$3-1)="","",VLOOKUP(INDEX(campsByItinerary,numericItinerary($A9),BE$3-1),campInfo,12)) -> North | DD9: =IF(INDEX(campsByItinerary,numericItinerary($A9),BF$3-1)="","",VLOOKUP(INDEX(campsByItinerary,numericItinerary($A9),BF$3-1),campInfo,12)) -> North | DE9: =IF(INDEX(campsByItinerary,numericItinerary($A9),BG$3-1)="","",VLOOKUP(INDEX(campsByItinerary,numericItinerary($A9),BG$3-1),campInfo,12)) -> North | DF9: =IF(INDEX(campsByItinerary,numericItinerary($A9),BH$3-1)="","",VLOOKUP(INDEX(campsByItinerary,numericItinerary($A9),BH$3-1),campInfo,12)) -> North | DG9: =IF(INDEX(campsByItinerary,numericItinerary($A9),BI$3-1)="","",VLOOKUP(INDEX(campsByItinerary,numericItinerary($A9),BI$3-1),campInfo,12)) -> North | DH9: =IF(INDEX(campsByItinerary,numericItinerary($A9),BJ$3-1)="","",VLOOKUP(INDEX(campsByItinerary,numericItinerary($A9),BJ$3-1),campInfo,12)) -> North | DI9: =IF(INDEX(campsByItinerary,numericItinerary($A9),BK$3-1)="","",VLOOKUP(INDEX(campsByItinerary,numericItinerary($A9),BK$3-1),campInfo,12)) ->  | DJ9: =IF(INDEX(campsByItinerary,numericItinerary($A9),BL$3-1)="","",VLOOKUP(INDEX(campsByItinerary,numericItinerary($A9),BL$3-1),campInfo,12)) ->  | DK9: =IF(INDEX(campsByItinerary,numericItinerary($A9),BM$3-1)="","",VLOOKUP(INDEX(campsByItinerary,numericItinerary($A9),BM$3-1),campInfo,12)) ->  | DL9: =getfoodPU("First",numericItinerary($A9)) -> 2 | DM9: =getfoodPU("Max",numericItinerary($A9)) -> 2
A10: 9-7 | C10: S | D10: 42 | E10: Harlan | F10: Deer Lake | G10: Cimarroncito | H10: Lamberts Mine | I10: Comanche Peak | J10: Sawmill | K10: Cimarroncita | O10: Camping HQ | Q10: Ute Gulch | Y10: Webster | Z10: Ute Park | AE10: =IF(ItineraryPrograms!AD9="y","y","") ->  | AF10: =IF(ItineraryPrograms!AE9="y","y","") ->  | AG10: =IF(ItineraryPrograms!AF9="y","y","") -> y | AH10: y | AI10: =checkTooth(AA10,LOWER(ItineraryPrograms!AH9)) ->  | AK10: 7550 | AL10: 8280 | AM10: 8137 | AN10: 8957 | AO10: 11070 | AP10: 9193 | AQ10: 7373 | AU10: 730 | AV10: 143 | AW10: 820 | AX10: 2113 | AY10: 1877 | AZ10: 1820 | BD10: =IF(INDEX(campsByItinerary,numericItinerary($A10),BD$3-1)="","",VLOOKUP(INDEX(campsByItinerary,numericItinerary($A10),BD$3-1),campInfo,8)) -> Y | BE10: =IF(INDEX(campsByItinerary,numericItinerary($A10),BE$3-1)="","",VLOOKUP(INDEX(campsByItinerary,numericItinerary($A10),BE$3-1),campInfo,8)) ->  | BF10: =IF(INDEX(campsByItinerary,numericItinerary($A10),BF$3-1)="","",VLOOKUP(INDEX(campsByItinerary,numericItinerary($A10),BF$3-1),campInfo,8)) -> Y | BG10: =IF(INDEX(campsByItinerary,numericItinerary($A10),BG$3-1)="","",VLOOKUP(INDEX(campsByItinerary,numericItinerary($A10),BG$3-1),campInfo,8)) ->  | BH10: =IF(INDEX(campsByItinerary,numericItinerary($A10),BH$3-1)="","",VLOOKUP(INDEX(campsByItinerary,numericItinerary($A10),BH$3-1),campInfo,8)) ->  | BI10: =IF(INDEX(campsByItinerary,numericItinerary($A10),BI$3-1)="","",VLOOKUP(INDEX(campsByItinerary,numericItinerary($A10),BI$3-1),campInfo,8)) -> Y | BJ10: =IF(INDEX(campsByItinerary,numericItinerary($A10),BJ$3-1)="","",VLOOKUP(INDEX(campsByItinerary,numericItinerary($A10),BJ$3-1),campInfo,8)) -> Y | BK10: =IF(INDEX(campsByItinerary,numericItinerary($A10),BK$3-1)="","",VLOOKUP(INDEX(campsByItinerary,numericItinerary($A10),BK$3-1),campInfo,8)) ->  | BL10: =IF(INDEX(campsByItinerary,numericItinerary($A10),BL$3-1)="","",VLOOKUP(INDEX(campsByItinerary,numericItinerary($A10),BL$3-1),campInfo,8)) ->  | BM10: =IF(INDEX(campsByItinerary,numericItinerary($A10),BM$3-1)="","",VLOOKUP(INDEX(campsByItinerary,numericItinerary($A10),BM$3-1),campInfo,8)) ->  | BO10: Y | BQ10: Y | BR10: Y | BU10: Y | BV10: Y | BW10: Y | BX10: =IF(INDEX(campsByItinerary,numericItinerary($A10),BD$3-1)="","",VLOOKUP(INDEX(campsByItinerary,numericItinerary($A10),BD$3-1),campInfo,10)) ->  | BY10: =IF(INDEX(campsByItinerary,numericItinerary($A10),BE$3-1)="","",VLOOKUP(INDEX(campsByItinerary,numericItinerary($A10),BE$3-1),campInfo,10)) ->  | BZ10: =IF(INDEX(campsByItinerary,numericItinerary($A10),BF$3-1)="","",VLOOKUP(INDEX(campsByItinerary,numericItinerary($A10),BF$3-1),campInfo,10)) ->  | CA10: =IF(INDEX(campsByItinerary,numericItinerary($A10),BG$3-1)="","",VLOOKUP(INDEX(campsByItinerary,numericItinerary($A10),BG$3-1),campInfo,10)) ->  | CB10: =IF(INDEX(campsByItinerary,numericItinerary($A10),BH$3-1)="","",VLOOKUP(INDEX(campsByItinerary,numericItinerary($A10),BH$3-1),campInfo,10)) -> Y | CC10: =IF(INDEX(campsByItinerary,numericItinerary($A10),BI$3-1)="","",VLOOKUP(INDEX(campsByItinerary,numericItinerary($A10),BI$3-1),campInfo,10)) ->  | CD10: =IF(INDEX(campsByItinerary,numericItinerary($A10),BJ$3-1)="","",VLOOKUP(INDEX(campsByItinerary,numericItinerary($A10),BJ$3-1),campInfo,10)) ->  | CE10: =IF(INDEX(campsByItinerary,numericItinerary($A10),BK$3-1)="","",VLOOKUP(INDEX(campsByItinerary,numericItinerary($A10),BK$3-1),campInfo,10)) ->  | CF10: =IF(INDEX(campsByItinerary,numericItinerary($A10),BL$3-1)="","",VLOOKUP(INDEX(campsByItinerary,numericItinerary($A10),BL$3-1),campInfo,10)) ->  | CG10: =IF(INDEX(campsByItinerary,numericItinerary($A10),BM$3-1)="","",VLOOKUP(INDEX(campsByItinerary,numericItinerary($A10),BM$3-1),campInfo,10)) ->  | CP10: Y | CQ10: Y | CR10: =INDEX(campsByItinerary,numericItinerary($A10),BD$3-1) -> Harlan | CS10: =IF(INDEX(campsByItinerary,numericItinerary($A10),BE$3-1)="","",VLOOKUP(INDEX(campsByItinerary,numericItinerary($A10),BE$3-1),campInfo,2)) -> Central | CT10: =IF(INDEX(campsByItinerary,numericItinerary($A10),BF$3-1)="","",VLOOKUP(INDEX(campsByItinerary,numericItinerary($A10),BF$3-1),campInfo,2)) -> Central | CU10: =IF(INDEX(campsByItinerary,numericItinerary($A10),BG$3-1)="","",VLOOKUP(INDEX(campsByItinerary,numericItinerary($A10),BG$3-1),campInfo,2)) -> Central | CV10: =IF(INDEX(campsByItinerary,numericItinerary($A10),BH$3-1)="","",VLOOKUP(INDEX(campsByItinerary,numericItinerary($A10),BH$3-1),campInfo,2)) -> Central | CW10: =IF(INDEX(campsByItinerary,numericItinerary($A10),BI$3-1)="","",VLOOKUP(INDEX(campsByItinerary,numericItinerary($A10),BI$3-1),campInfo,2)) -> Central | CX10: =IF(INDEX(campsByItinerary,numericItinerary($A10),BJ$3-1)="","",VLOOKUP(INDEX(campsByItinerary,numericItinerary($A10),BJ$3-1),campInfo,2)) -> Central | CY10: =IF(INDEX(campsByItinerary,numericItinerary($A10),BK$3-1)="","",VLOOKUP(INDEX(campsByItinerary,numericItinerary($A10),BK$3-1),campInfo,2)) ->  | CZ10: =IF(INDEX(campsByItinerary,numericItinerary($A10),BL$3-1)="","",VLOOKUP(INDEX(campsByItinerary,numericItinerary($A10),BL$3-1),campInfo,2)) ->  | DA10: =IF(INDEX(campsByItinerary,numericItinerary($A10),BM$3-1)="","",VLOOKUP(INDEX(campsByItinerary,numericItinerary($A10),BM$3-1),campInfo,2)) ->  | DB10: =IF(INDEX(campsByItinerary,numericItinerary($A10),BD$3-1)="","",VLOOKUP(INDEX(campsByItinerary,numericItinerary($A10),BD$3-1),campInfo,12)) -> South | DC10: =IF(INDEX(campsByItinerary,numericItinerary($A10),BE$3-1)="","",VLOOKUP(INDEX(campsByItinerary,numericItinerary($A10),BE$3-1),campInfo,12)) -> South | DD10: =IF(INDEX(campsByItinerary,numericItinerary($A10),BF$3-1)="","",VLOOKUP(INDEX(campsByItinerary,numericItinerary($A10),BF$3-1),campInfo,12)) -> South | DE10: =IF(INDEX(campsByItinerary,numericItinerary($A10),BG$3-1)="","",VLOOKUP(INDEX(campsByItinerary,numericItinerary($A10),BG$3-1),campInfo,12)) -> South | DF10: =IF(INDEX(campsByItinerary,numericItinerary($A10),BH$3-1)="","",VLOOKUP(INDEX(campsByItinerary,numericItinerary($A10),BH$3-1),campInfo,12)) -> South | DG10: =IF(INDEX(campsByItinerary,numericItinerary($A10),BI$3-1)="","",VLOOKUP(INDEX(campsByItinerary,numericItinerary($A10),BI$3-1),campInfo,12)) -> South | DH10: =IF(INDEX(campsByItinerary,numericItinerary($A10),BJ$3-1)="","",VLOOKUP(INDEX(campsByItinerary,numericItinerary($A10),BJ$3-1),campInfo,12)) -> North & South | DI10: =IF(INDEX(campsByItinerary,numericItinerary($A10),BK$3-1)="","",VLOOKUP(INDEX(campsByItinerary,numericItinerary($A10),BK$3-1),campInfo,12)) ->  | DJ10: =IF(INDEX(campsByItinerary,numericItinerary($A10),BL$3-1)="","",VLOOKUP(INDEX(campsByItinerary,numericItinerary($A10),BL$3-1),campInfo,12)) ->  | DK10: =IF(INDEX(campsByItinerary,numericItinerary($A10),BM$3-1)="","",VLOOKUP(INDEX(campsByItinerary,numericItinerary($A10),BM$3-1),campInfo,12)) ->  | DL10: =getfoodPU("First",numericItinerary($A10)) -> 2 | DM10: =getfoodPU("Max",numericItinerary($A10)) -> 4
A11: 9-8 | C11: S | D11: 44 | E11: Old Abreu | F11: Fish Camp | G11: Apache Springs | H11: Beaubien | I11: Bear Caves | J11: Urraca | K11: Stockade Ridge | O11: Camping HQ | Q11: Apache Springs | R11: Phillips Junction | Y11: Zastrow | Z11: Lovers Leap | AE11: =IF(ItineraryPrograms!AD10="y","y","") ->  | AF11: =IF(ItineraryPrograms!AE10="y","y","") -> y | AG11: =IF(ItineraryPrograms!AF10="y","y","") ->  | AI11: y | AJ11: y | AK11: 7375 | AL11: 8564 | AM11: 9409 | AN11: 9330 | AO11: 8423 | AP11: 7968 | AQ11: 7519 | AU11: 1189 | AV11: 845 | AW11: 79 | AX11: 907 | AY11: 455 | AZ11: 449 | BD11: =IF(INDEX(campsByItinerary,numericItinerary($A11),BD$3-1)="","",VLOOKUP(INDEX(campsByItinerary,numericItinerary($A11),BD$3-1),campInfo,8)) ->  | BE11: =IF(INDEX(campsByItinerary,numericItinerary($A11),BE$3-1)="","",VLOOKUP(INDEX(campsByItinerary,numericItinerary($A11),BE$3-1),campInfo,8)) -> N | BF11: =IF(INDEX(campsByItinerary,numericItinerary($A11),BF$3-1)="","",VLOOKUP(INDEX(campsByItinerary,numericItinerary($A11),BF$3-1),campInfo,8)) -> Y | BG11: =IF(INDEX(campsByItinerary,numericItinerary($A11),BG$3-1)="","",VLOOKUP(INDEX(campsByItinerary,numericItinerary($A11),BG$3-1),campInfo,8)) -> Y | BH11: =IF(INDEX(campsByItinerary,numericItinerary($A11),BH$3-1)="","",VLOOKUP(INDEX(campsByItinerary,numericItinerary($A11),BH$3-1),campInfo,8)) ->  | BI11: =IF(INDEX(campsByItinerary,numericItinerary($A11),BI$3-1)="","",VLOOKUP(INDEX(campsByItinerary,numericItinerary($A11),BI$3-1),campInfo,8)) -> Y | BJ11: =IF(INDEX(campsByItinerary,numericItinerary($A11),BJ$3-1)="","",VLOOKUP(INDEX(campsByItinerary,numericItinerary($A11),BJ$3-1),campInfo,8)) ->  | BK11: =IF(INDEX(campsByItinerary,numericItinerary($A11),BK$3-1)="","",VLOOKUP(INDEX(campsByItinerary,numericItinerary($A11),BK$3-1),campInfo,8)) ->  | BL11: =IF(INDEX(campsByItinerary,numericItinerary($A11),BL$3-1)="","",VLOOKUP(INDEX(campsByItinerary,numericItinerary($A11),BL$3-1),campInfo,8)) ->  | BM11: =IF(INDEX(campsByItinerary,numericItinerary($A11),BM$3-1)="","",VLOOKUP(INDEX(campsByItinerary,numericItinerary($A11),BM$3-1),campInfo,8)) ->  | BN11: Y | BO11: Y | BR11: Y | BT11: Y | BU11: Y | BV11: Y | BW11: Y | BX11: =IF(INDEX(campsByItinerary,numericItinerary($A11),BD$3-1)="","",VLOOKUP(INDEX(campsByItinerary,numericItinerary($A11),BD$3-1),campInfo,10)) ->  | BY11: =IF(INDEX(campsByItinerary,numericItinerary($A11),BE$3-1)="","",VLOOKUP(INDEX(campsByItinerary,numericItinerary($A11),BE$3-1),campInfo,10)) ->  | BZ11: =IF(INDEX(campsByItinerary,numericItinerary($A11),BF$3-1)="","",VLOOKUP(INDEX(campsByItinerary,numericItinerary($A11),BF$3-1),campInfo,10)) ->  | CA11: =IF(INDEX(campsByItinerary,numericItinerary($A11),BG$3-1)="","",VLOOKUP(INDEX(campsByItinerary,numericItinerary($A11),BG$3-1),campInfo,10)) ->  | CB11: =IF(INDEX(campsByItinerary,numericItinerary($A11),BH$3-1)="","",VLOOKUP(INDEX(campsByItinerary,numericItinerary($A11),BH$3-1),campInfo,10)) ->  | CC11: =IF(INDEX(campsByItinerary,numericItinerary($A11),BI$3-1)="","",VLOOKUP(INDEX(campsByItinerary,numericItinerary($A11),BI$3-1),campInfo,10)) ->  | CD11: =IF(INDEX(campsByItinerary,numericItinerary($A11),BJ$3-1)="","",VLOOKUP(INDEX(campsByItinerary,numericItinerary($A11),BJ$3-1),campInfo,10)) -> Y | CE11: =IF(INDEX(campsByItinerary,numericItinerary($A11),BK$3-1)="","",VLOOKUP(INDEX(campsByItinerary,numericItinerary($A11),BK$3-1),campInfo,10)) ->  | CF11: =IF(INDEX(campsByItinerary,numericItinerary($A11),BL$3-1)="","",VLOOKUP(INDEX(campsByItinerary,numericItinerary($A11),BL$3-1),campInfo,10)) ->  | CG11: =IF(INDEX(campsByItinerary,numericItinerary($A11),BM$3-1)="","",VLOOKUP(INDEX(campsByItinerary,numericItinerary($A11),BM$3-1),campInfo,10)) ->  | CP11: Y | CQ11: Y | CR11: =INDEX(campsByItinerary,numericItinerary($A11),BD$3-1) -> Old Abreu | CS11: =IF(INDEX(campsByItinerary,numericItinerary($A11),BE$3-1)="","",VLOOKUP(INDEX(campsByItinerary,numericItinerary($A11),BE$3-1),campInfo,2)) -> South | CT11: =IF(INDEX(campsByItinerary,numericItinerary($A11),BF$3-1)="","",VLOOKUP(INDEX(campsByItinerary,numericItinerary($A11),BF$3-1),campInfo,2)) -> South | CU11: =IF(INDEX(campsByItinerary,numericItinerary($A11),BG$3-1)="","",VLOOKUP(INDEX(campsByItinerary,numericItinerary($A11),BG$3-1),campInfo,2)) -> South | CV11: =IF(INDEX(campsByItinerary,numericItinerary($A11),BH$3-1)="","",VLOOKUP(INDEX(campsByItinerary,numericItinerary($A11),BH$3-1),campInfo,2)) -> South | CW11: =IF(INDEX(campsByItinerary,numericItinerary($A11),BI$3-1)="","",VLOOKUP(INDEX(campsByItinerary,numericItinerary($A11),BI$3-1),campInfo,2)) -> South | CX11: =IF(INDEX(campsByItinerary,numericItinerary($A11),BJ$3-1)="","",VLOOKUP(INDEX(campsByItinerary,numericItinerary($A11),BJ$3-1),campInfo,2)) -> South | CY11: =IF(INDEX(campsByItinerary,numericItinerary($A11),BK$3-1)="","",VLOOKUP(INDEX(campsByItinerary,numericItinerary($A11),BK$3-1),campInfo,2)) ->  | CZ11: =IF(INDEX(campsByItinerary,numericItinerary($A11),BL$3-1)="","",VLOOKUP(INDEX(campsByItinerary,numericItinerary($A11),BL$3-1),campInfo,2)) ->  | DA11: =IF(INDEX(campsByItinerary,numericItinerary($A11),BM$3-1)="","",VLOOKUP(INDEX(campsByItinerary,numericItinerary($A11),BM$3-1),campInfo,2)) ->  | DB11: =IF(INDEX(campsByItinerary,numericItinerary($A11),BD$3-1)="","",VLOOKUP(INDEX(campsByItinerary,numericItinerary($A11),BD$3-1),campInfo,12)) -> South | DC11: =IF(INDEX(campsByItinerary,numericItinerary($A11),BE$3-1)="","",VLOOKUP(INDEX(campsByItinerary,numericItinerary($A11),BE$3-1),campInfo,12)) -> South | DD11: =IF(INDEX(campsByItinerary,numericItinerary($A11),BF$3-1)="","",VLOOKUP(INDEX(campsByItinerary,numericItinerary($A11),BF$3-1),campInfo,12)) -> South | DE11: =IF(INDEX(campsByItinerary,numericItinerary($A11),BG$3-1)="","",VLOOKUP(INDEX(campsByItinerary,numericItinerary($A11),BG$3-1),campInfo,12)) -> South | DF11: =IF(INDEX(campsByItinerary,numericItinerary($A11),BH$3-1)="","",VLOOKUP(INDEX(campsByItinerary,numericItinerary($A11),BH$3-1),campInfo,12)) -> South | DG11: =IF(INDEX(campsByItinerary,numericItinerary($A11),BI$3-1)="","",VLOOKUP(INDEX(campsByItinerary,numericItinerary($A11),BI$3-1),campInfo,12)) -> South | DH11: =IF(INDEX(campsByItinerary,numericItinerary($A11),BJ$3-1)="","",VLOOKUP(INDEX(campsByItinerary,numericItinerary($A11),BJ$3-1),campInfo,12)) -> South | DI11: =IF(INDEX(campsByItinerary,numericItinerary($A11),BK$3-1)="","",VLOOKUP(INDEX(campsByItinerary,numericItinerary($A11),BK$3-1),campInfo,12)) ->  | DJ11: =IF(INDEX(campsByItinerary,numericItinerary($A11),BL$3-1)="","",VLOOKUP(INDEX(campsByItinerary,numericItinerary($A11),BL$3-1),campInfo,12)) ->  | DK11: =IF(INDEX(campsByItinerary,numericItinerary($A11),BM$3-1)="","",VLOOKUP(INDEX(campsByItinerary,numericItinerary($A11),BM$3-1),campInfo,12)) ->  | DL11: =getfoodPU("First",numericItinerary($A11)) -> 2 | DM11: =getfoodPU("Max",numericItinerary($A11)) -> 2
A12: 9-9 | C12: S | D12: 42 | E12: Carson Meadows | F12: Fish Camp | G12: Beaubien | H12: Crooked Creek | I12: Mount Phillips | J12: Cyphers Mine | K12: Hunting Lodge | O12: Camping HQ | R12: Phillips Junction | Y12: Zastrow | Z12: Webster | AE12: =IF(ItineraryPrograms!AD11="y","y","") ->  | AF12: =IF(ItineraryPrograms!AE11="y","y","") ->  | AG12: =IF(ItineraryPrograms!AF11="y","y","") -> y | AH12: y | AI12: =checkTooth(AA12,LOWER(ItineraryPrograms!AH11)) ->  | AK12: 7758 | AL12: 8564 | AM12: 9330 | AN12: 9360 | AO12: 11650 | AP12: 9302 | AQ12: 7776 | AU12: 806 | AV12: 766 | AW12: 30 | AX12: 2290 | AY12: 2348 | AZ12: 1526 | BD12: =IF(INDEX(campsByItinerary,numericItinerary($A12),BD$3-1)="","",VLOOKUP(INDEX(campsByItinerary,numericItinerary($A12),BD$3-1),campInfo,8)) -> N | BE12: =IF(INDEX(campsByItinerary,numericItinerary($A12),BE$3-1)="","",VLOOKUP(INDEX(campsByItinerary,numericItinerary($A12),BE$3-1),campInfo,8)) -> N | BF12: =IF(INDEX(campsByItinerary,numericItinerary($A12),BF$3-1)="","",VLOOKUP(INDEX(campsByItinerary,numericItinerary($A12),BF$3-1),campInfo,8)) -> Y | BG12: =IF(INDEX(campsByItinerary,numericItinerary($A12),BG$3-1)="","",VLOOKUP(INDEX(campsByItinerary,numericItinerary($A12),BG$3-1),campInfo,8)) -> Y | BH12: =IF(INDEX(campsByItinerary,numericItinerary($A12),BH$3-1)="","",VLOOKUP(INDEX(campsByItinerary,numericItinerary($A12),BH$3-1),campInfo,8)) ->  | BI12: =IF(INDEX(campsByItinerary,numericItinerary($A12),BI$3-1)="","",VLOOKUP(INDEX(campsByItinerary,numericItinerary($A12),BI$3-1),campInfo,8)) -> Y | BJ12: =IF(INDEX(campsByItinerary,numericItinerary($A12),BJ$3-1)="","",VLOOKUP(INDEX(campsByItinerary,numericItinerary($A12),BJ$3-1),campInfo,8)) -> N | BK12: =IF(INDEX(campsByItinerary,numericItinerary($A12),BK$3-1)="","",VLOOKUP(INDEX(campsByItinerary,numericItinerary($A12),BK$3-1),campInfo,8)) ->  | BL12: =IF(INDEX(campsByItinerary,numericItinerary($A12),BL$3-1)="","",VLOOKUP(INDEX(campsByItinerary,numericItinerary($A12),BL$3-1),campInfo,8)) ->  | BM12: =IF(INDEX(campsByItinerary,numericItinerary($A12),BM$3-1)="","",VLOOKUP(INDEX(campsByItinerary,numericItinerary($A12),BM$3-1),campInfo,8)) ->  | BN12: Y | BO12: Y | BR12: Y | BT12: Y | BU12: Y | BV12: Y | BW12: Y | BX12: =IF(INDEX(campsByItinerary,numericItinerary($A12),BD$3-1)="","",VLOOKUP(INDEX(campsByItinerary,numericItinerary($A12),BD$3-1),campInfo,10)) ->  | BY12: =IF(INDEX(campsByItinerary,numericItinerary($A12),BE$3-1)="","",VLOOKUP(INDEX(campsByItinerary,numericItinerary($A12),BE$3-1),campInfo,10)) ->  | BZ12: =IF(INDEX(campsByItinerary,numericItinerary($A12),BF$3-1)="","",VLOOKUP(INDEX(campsByItinerary,numericItinerary($A12),BF$3-1),campInfo,10)) ->  | CA12: =IF(INDEX(campsByItinerary,numericItinerary($A12),BG$3-1)="","",VLOOKUP(INDEX(campsByItinerary,numericItinerary($A12),BG$3-1),campInfo,10)) ->  | CB12: =IF(INDEX(campsByItinerary,numericItinerary($A12),BH$3-1)="","",VLOOKUP(INDEX(campsByItinerary,numericItinerary($A12),BH$3-1),campInfo,10)) -> Y | CC12: =IF(INDEX(campsByItinerary,numericItinerary($A12),BI$3-1)="","",VLOOKUP(INDEX(campsByItinerary,numericItinerary($A12),BI$3-1),campInfo,10)) ->  | CD12: =IF(INDEX(campsByItinerary,numericItinerary($A12),BJ$3-1)="","",VLOOKUP(INDEX(campsByItinerary,numericItinerary($A12),BJ$3-1),campInfo,10)) ->  | CE12: =IF(INDEX(campsByItinerary,numericItinerary($A12),BK$3-1)="","",VLOOKUP(INDEX(campsByItinerary,numericItinerary($A12),BK$3-1),campInfo,10)) ->  | CF12: =IF(INDEX(campsByItinerary,numericItinerary($A12),BL$3-1)="","",VLOOKUP(INDEX(campsByItinerary,numericItinerary($A12),BL$3-1),campInfo,10)) ->  | CG12: =IF(INDEX(campsByItinerary,numericItinerary($A12),BM$3-1)="","",VLOOKUP(INDEX(campsByItinerary,numericItinerary($A12),BM$3-1),campInfo,10)) ->  | CP12: Y | CQ12: Y | CR12: =INDEX(campsByItinerary,numericItinerary($A12),BD$3-1) -> Carson Meadows | CS12: =IF(INDEX(campsByItinerary,numericItinerary($A12),BE$3-1)="","",VLOOKUP(INDEX(campsByItinerary,numericItinerary($A12),BE$3-1),campInfo,2)) -> South | CT12: =IF(INDEX(campsByItinerary,numericItinerary($A12),BF$3-1)="","",VLOOKUP(INDEX(campsByItinerary,numericItinerary($A12),BF$3-1),campInfo,2)) -> South | CU12: =IF(INDEX(campsByItinerary,numericItinerary($A12),BG$3-1)="","",VLOOKUP(INDEX(campsByItinerary,numericItinerary($A12),BG$3-1),campInfo,2)) -> South | CV12: =IF(INDEX(campsByItinerary,numericItinerary($A12),BH$3-1)="","",VLOOKUP(INDEX(campsByItinerary,numericItinerary($A12),BH$3-1),campInfo,2)) -> Central | CW12: =IF(INDEX(campsByItinerary,numericItinerary($A12),BI$3-1)="","",VLOOKUP(INDEX(campsByItinerary,numericItinerary($A12),BI$3-1),campInfo,2)) -> Central | CX12: =IF(INDEX(campsByItinerary,numericItinerary($A12),BJ$3-1)="","",VLOOKUP(INDEX(campsByItinerary,numericItinerary($A12),BJ$3-1),campInfo,2)) -> Central | CY12: =IF(INDEX(campsByItinerary,numericItinerary($A12),BK$3-1)="","",VLOOKUP(INDEX(campsByItinerary,numericItinerary($A12),BK$3-1),campInfo,2)) ->  | CZ12: =IF(INDEX(campsByItinerary,numericItinerary($A12),BL$3-1)="","",VLOOKUP(INDEX(campsByItinerary,numericItinerary($A12),BL$3-1),campInfo,2)) ->  | DA12: =IF(INDEX(campsByItinerary,numericItinerary($A12),BM$3-1)="","",VLOOKUP(INDEX(campsByItinerary,numericItinerary($A12),BM$3-1),campInfo,2)) ->  | DB12: =IF(INDEX(campsByItinerary,numericItinerary($A12),BD$3-1)="","",VLOOKUP(INDEX(campsByItinerary,numericItinerary($A12),BD$3-1),campInfo,12)) -> South | DC12: =IF(INDEX(campsByItinerary,numericItinerary($A12),BE$3-1)="","",VLOOKUP(INDEX(campsByItinerary,numericItinerary($A12),BE$3-1),campInfo,12)) -> South | DD12: =IF(INDEX(campsByItinerary,numericItinerary($A12),BF$3-1)="","",VLOOKUP(INDEX(campsByItinerary,numericItinerary($A12),BF$3-1),campInfo,12)) -> South | DE12: =IF(INDEX(campsByItinerary,numericItinerary($A12),BG$3-1)="","",VLOOKUP(INDEX(campsByItinerary,numericItinerary($A12),BG$3-1),campInfo,12)) -> South | DF12: =IF(INDEX(campsByItinerary,numericItinerary($A12),BH$3-1)="","",VLOOKUP(INDEX(campsByItinerary,numericItinerary($A12),BH$3-1),campInfo,12)) -> South | DG12: =IF(INDEX(campsByItinerary,numericItinerary($A12),BI$3-1)="","",VLOOKUP(INDEX(campsByItinerary,numericItinerary($A12),BI$3-1),campInfo,12)) -> South | DH12: =IF(INDEX(campsByItinerary,numericItinerary($A12),BJ$3-1)="","",VLOOKUP(INDEX(campsByItinerary,numericItinerary($A12),BJ$3-1),campInfo,12)) -> South | DI12: =IF(INDEX(campsByItinerary,numericItinerary($A12),BK$3-1)="","",VLOOKUP(INDEX(campsByItinerary,numericItinerary($A12),BK$3-1),campInfo,12)) ->  | DJ12: =IF(INDEX(campsByItinerary,numericItinerary($A12),BL$3-1)="","",VLOOKUP(INDEX(campsByItinerary,numericItinerary($A12),BL$3-1),campInfo,12)) ->  | DK12: =IF(INDEX(campsByItinerary,numericItinerary($A12),BM$3-1)="","",VLOOKUP(INDEX(campsByItinerary,numericItinerary($A12),BM$3-1),campInfo,12)) ->  | DL12: =getfoodPU("First",numericItinerary($A12)) -> 3 | DM12: =getfoodPU("Max",numericItinerary($A12)) -> 3
A13: 9-10 | C13: SS | D13: 53 | E13: McBride Canyon | F13: Metcalf Station | G13: Dean Skyline | H13: Pueblano | I13: Copper Park | J13: Copper Park | K13: Miranda | O13: Camping HQ | Q13: Ponil | T13: Baldy Town | Y13: Six Mile Gate | Z13: Maxwell | AE13: =IF(ItineraryPrograms!AD12="y","y","") -> y | AF13: =IF(ItineraryPrograms!AE12="y","y","") ->  | AG13: =IF(ItineraryPrograms!AF12="y","y","") ->  | AH13: y | AI13: =checkTooth(AA13,LOWER(ItineraryPrograms!AH12)) ->  | AK13: 7105 | AL13: 7220 | AM13: 7967 | AN13: 8069 | AO13: 10530 | AP13: 10530 | AQ13: 8898 | AU13: 115 | AV13: 747 | AW13: 102 | AX13: 2461 | AY13: 0 | AZ13: 1632 | BD13: =IF(INDEX(campsByItinerary,numericItinerary($A13),BD$3-1)="","",VLOOKUP(INDEX(campsByItinerary,numericItinerary($A13),BD$3-1),campInfo,8)) ->  | BE13: =IF(INDEX(campsByItinerary,numericItinerary($A13),BE$3-1)="","",VLOOKUP(INDEX(campsByItinerary,numericItinerary($A13),BE$3-1),campInfo,8)) -> Y | BF13: =IF(INDEX(campsByItinerary,numericItinerary($A13),BF$3-1)="","",VLOOKUP(INDEX(campsByItinerary,numericItinerary($A13),BF$3-1),campInfo,8)) ->  | BG13: =IF(INDEX(campsByItinerary,numericItinerary($A13),BG$3-1)="","",VLOOKUP(INDEX(campsByItinerary,numericItinerary($A13),BG$3-1),campInfo,8)) -> Y | BH13: =IF(INDEX(campsByItinerary,numericItinerary($A13),BH$3-1)="","",VLOOKUP(INDEX(campsByItinerary,numericItinerary($A13),BH$3-1),campInfo,8)) ->  | BI13: =IF(INDEX(campsByItinerary,numericItinerary($A13),BI$3-1)="","",VLOOKUP(INDEX(campsByItinerary,numericItinerary($A13),BI$3-1),campInfo,8)) ->  | BJ13: =IF(INDEX(campsByItinerary,numericItinerary($A13),BJ$3-1)="","",VLOOKUP(INDEX(campsByItinerary,numericItinerary($A13),BJ$3-1),campInfo,8)) -> Y | BK13: =IF(INDEX(campsByItinerary,numericItinerary($A13),BK$3-1)="","",VLOOKUP(INDEX(campsByItinerary,numericItinerary($A13),BK$3-1),campInfo,8)) ->  | BL13: =IF(INDEX(campsByItinerary,numericItinerary($A13),BL$3-1)="","",VLOOKUP(INDEX(campsByItinerary,numericItinerary($A13),BL$3-1),campInfo,8)) ->  | BM13: =IF(INDEX(campsByItinerary,numericItinerary($A13),BM$3-1)="","",VLOOKUP(INDEX(campsByItinerary,numericItinerary($A13),BM$3-1),campInfo,8)) ->  | BN13: Y | BP13: Y | BR13: Y | BS13: Y | BU13: Y | BV13: Y | BW13: Y | BX13: =IF(INDEX(campsByItinerary,numericItinerary($A13),BD$3-1)="","",VLOOKUP(INDEX(campsByItinerary,numericItinerary($A13),BD$3-1),campInfo,10)) -> Y | BY13: =IF(INDEX(campsByItinerary,numericItinerary($A13),BE$3-1)="","",VLOOKUP(INDEX(campsByItinerary,numericItinerary($A13),BE$3-1),campInfo,10)) ->  | BZ13: =IF(INDEX(campsByItinerary,numericItinerary($A13),BF$3-1)="","",VLOOKUP(INDEX(campsByItinerary,numericItinerary($A13),BF$3-1),campInfo,10)) -> Y | CA13: =IF(INDEX(campsByItinerary,numericItinerary($A13),BG$3-1)="","",VLOOKUP(INDEX(campsByItinerary,numericItinerary($A13),BG$3-1),campInfo,10)) ->  | CB13: =IF(INDEX(campsByItinerary,numericItinerary($A13),BH$3-1)="","",VLOOKUP(INDEX(campsByItinerary,numericItinerary($A13),BH$3-1),campInfo,10)) ->  | CC13: =IF(INDEX(campsByItinerary,numericItinerary($A13),BI$3-1)="","",VLOOKUP(INDEX(campsByItinerary,numericItinerary($A13),BI$3-1),campInfo,10)) ->  | CD13: =IF(INDEX(campsByItinerary,numericItinerary($A13),BJ$3-1)="","",VLOOKUP(INDEX(campsByItinerary,numericItinerary($A13),BJ$3-1),campInfo,10)) ->  | CE13: =IF(INDEX(campsByItinerary,numericItinerary($A13),BK$3-1)="","",VLOOKUP(INDEX(campsByItinerary,numericItinerary($A13),BK$3-1),campInfo,10)) ->  | CF13: =IF(INDEX(campsByItinerary,numericItinerary($A13),BL$3-1)="","",VLOOKUP(INDEX(campsByItinerary,numericItinerary($A13),BL$3-1),campInfo,10)) ->  | CG13: =IF(INDEX(campsByItinerary,numericItinerary($A13),BM$3-1)="","",VLOOKUP(INDEX(campsByItinerary,numericItinerary($A13),BM$3-1),campInfo,10)) ->  | CM13: Y | CP13: Y | CQ13: Y | CR13: =INDEX(campsByItinerary,numericItinerary($A13),BD$3-1) -> McBride Canyon | CS13: =IF(INDEX(campsByItinerary,numericItinerary($A13),BE$3-1)="","",VLOOKUP(INDEX(campsByItinerary,numericItinerary($A13),BE$3-1),campInfo,2)) -> North | CT13: =IF(INDEX(campsByItinerary,numericItinerary($A13),BF$3-1)="","",VLOOKUP(INDEX(campsByItinerary,numericItinerary($A13),BF$3-1),campInfo,2)) -> North | CU13: =IF(INDEX(campsByItinerary,numericItinerary($A13),BG$3-1)="","",VLOOKUP(INDEX(campsByItinerary,numericItinerary($A13),BG$3-1),campInfo,2)) -> North | CV13: =IF(INDEX(campsByItinerary,numericItinerary($A13),BH$3-1)="","",VLOOKUP(INDEX(campsByItinerary,numericItinerary($A13),BH$3-1),campInfo,2)) -> North | CW13: =IF(INDEX(campsByItinerary,numericItinerary($A13),BI$3-1)="","",VLOOKUP(INDEX(campsByItinerary,numericItinerary($A13),BI$3-1),campInfo,2)) -> North | CX13: =IF(INDEX(campsByItinerary,numericItinerary($A13),BJ$3-1)="","",VLOOKUP(INDEX(campsByItinerary,numericItinerary($A13),BJ$3-1),campInfo,2)) -> North | CY13: =IF(INDEX(campsByItinerary,numericItinerary($A13),BK$3-1)="","",VLOOKUP(INDEX(campsByItinerary,numericItinerary($A13),BK$3-1),campInfo,2)) ->  | CZ13: =IF(INDEX(campsByItinerary,numericItinerary($A13),BL$3-1)="","",VLOOKUP(INDEX(campsByItinerary,numericItinerary($A13),BL$3-1),campInfo,2)) ->  | DA13: =IF(INDEX(campsByItinerary,numericItinerary($A13),BM$3-1)="","",VLOOKUP(INDEX(campsByItinerary,numericItinerary($A13),BM$3-1),campInfo,2)) ->  | DB13: =IF(INDEX(campsByItinerary,numericItinerary($A13),BD$3-1)="","",VLOOKUP(INDEX(campsByItinerary,numericItinerary($A13),BD$3-1),campInfo,12)) -> North | DC13: =IF(INDEX(campsByItinerary,numericItinerary($A13),BE$3-1)="","",VLOOKUP(INDEX(campsByItinerary,numericItinerary($A13),BE$3-1),campInfo,12)) -> North | DD13: =IF(INDEX(campsByItinerary,numericItinerary($A13),BF$3-1)="","",VLOOKUP(INDEX(campsByItinerary,numericItinerary($A13),BF$3-1),campInfo,12)) -> North | DE13: =IF(INDEX(campsByItinerary,numericItinerary($A13),BG$3-1)="","",VLOOKUP(INDEX(campsByItinerary,numericItinerary($A13),BG$3-1),campInfo,12)) -> North | DF13: =IF(INDEX(campsByItinerary,numericItinerary($A13),BH$3-1)="","",VLOOKUP(INDEX(campsByItinerary,numericItinerary($A13),BH$3-1),campInfo,12)) -> North | DG13: =IF(INDEX(campsByItinerary,numericItinerary($A13),BI$3-1)="","",VLOOKUP(INDEX(campsByItinerary,numericItinerary($A13),BI$3-1),campInfo,12)) -> North | DH13: =IF(INDEX(campsByItinerary,numericItinerary($A13),BJ$3-1)="","",VLOOKUP(INDEX(campsByItinerary,numericItinerary($A13),BJ$3-1),campInfo,12)) -> North | DI13: =IF(INDEX(campsByItinerary,numericItinerary($A13),BK$3-1)="","",VLOOKUP(INDEX(campsByItinerary,numericItinerary($A13),BK$3-1),campInfo,12)) ->  | DJ13: =IF(INDEX(campsByItinerary,numericItinerary($A13),BL$3-1)="","",VLOOKUP(INDEX(campsByItinerary,numericItinerary($A13),BL$3-1),campInfo,12)) ->  | DK13: =IF(INDEX(campsByItinerary,numericItinerary($A13),BM$3-1)="","",VLOOKUP(INDEX(campsByItinerary,numericItinerary($A13),BM$3-1),campInfo,12)) ->  | DL13: =getfoodPU("First",numericItinerary($A13)) -> 2 | DM13: =getfoodPU("Max",numericItinerary($A13)) -> 2
A14: 9-11 | C14: SS | D14: 53 | E14: House Canyon | F14: Cottonwood | G14: Rich Cabins | H14: Upper Greenwood | I14: Copper Park | J14: Copper Park | K14: Touch-Me-Not Creek | O14: Camping HQ | Q14: Rich Cabins | T14: Baldy Town | Y14: Six Mile Gate | Z14: Maxwell | AE14: =IF(ItineraryPrograms!AD13="y","y","") -> y | AF14: =IF(ItineraryPrograms!AE13="y","y","") ->  | AG14: =IF(ItineraryPrograms!AF13="y","y","") ->  | AI14: =checkTooth(AA14,LOWER(ItineraryPrograms!AH13)) ->  | AK14: 7157 | AL14: 7373 | AM14: 7728 | AN14: 10262.666 | AO14: 10530 | AP14: 10530 | AQ14: 8855 | AU14: 216 | AV14: 355 | AW14: 2534.666 | AX14: 267.334 | AY14: 0 | AZ14: 1675 | BD14: =IF(INDEX(campsByItinerary,numericItinerary($A14),BD$3-1)="","",VLOOKUP(INDEX(campsByItinerary,numericItinerary($A14),BD$3-1),campInfo,8)) ->  | BE14: =IF(INDEX(campsByItinerary,numericItinerary($A14),BE$3-1)="","",VLOOKUP(INDEX(campsByItinerary,numericItinerary($A14),BE$3-1),campInfo,8)) ->  | BF14: =IF(INDEX(campsByItinerary,numericItinerary($A14),BF$3-1)="","",VLOOKUP(INDEX(campsByItinerary,numericItinerary($A14),BF$3-1),campInfo,8)) -> Y | BG14: =IF(INDEX(campsByItinerary,numericItinerary($A14),BG$3-1)="","",VLOOKUP(INDEX(campsByItinerary,numericItinerary($A14),BG$3-1),campInfo,8)) ->  | BH14: =IF(INDEX(campsByItinerary,numericItinerary($A14),BH$3-1)="","",VLOOKUP(INDEX(campsByItinerary,numericItinerary($A14),BH$3-1),campInfo,8)) ->  | BI14: =IF(INDEX(campsByItinerary,numericItinerary($A14),BI$3-1)="","",VLOOKUP(INDEX(campsByItinerary,numericItinerary($A14),BI$3-1),campInfo,8)) ->  | BJ14: =IF(INDEX(campsByItinerary,numericItinerary($A14),BJ$3-1)="","",VLOOKUP(INDEX(campsByItinerary,numericItinerary($A14),BJ$3-1),campInfo,8)) ->  | BK14: =IF(INDEX(campsByItinerary,numericItinerary($A14),BK$3-1)="","",VLOOKUP(INDEX(campsByItinerary,numericItinerary($A14),BK$3-1),campInfo,8)) ->  | BL14: =IF(INDEX(campsByItinerary,numericItinerary($A14),BL$3-1)="","",VLOOKUP(INDEX(campsByItinerary,numericItinerary($A14),BL$3-1),campInfo,8)) ->  | BM14: =IF(INDEX(campsByItinerary,numericItinerary($A14),BM$3-1)="","",VLOOKUP(INDEX(campsByItinerary,numericItinerary($A14),BM$3-1),campInfo,8)) ->  | BN14: Y | BO14: Y | BQ14: Y | BR14: Y | BS14: Y | BT14: Y | BU14: Y | BV14: Y | BW14: Y | BX14: =IF(INDEX(campsByItinerary,numericItinerary($A14),BD$3-1)="","",VLOOKUP(INDEX(campsByItinerary,numericItinerary($A14),BD$3-1),campInfo,10)) ->  | BY14: =IF(INDEX(campsByItinerary,numericItinerary($A14),BE$3-1)="","",VLOOKUP(INDEX(campsByItinerary,numericItinerary($A14),BE$3-1),campInfo,10)) ->  | BZ14: =IF(INDEX(campsByItinerary,numericItinerary($A14),BF$3-1)="","",VLOOKUP(INDEX(campsByItinerary,numericItinerary($A14),BF$3-1),campInfo,10)) ->  | CA14: =IF(INDEX(campsByItinerary,numericItinerary($A14),BG$3-1)="","",VLOOKUP(INDEX(campsByItinerary,numericItinerary($A14),BG$3-1),campInfo,10)) ->  | CB14: =IF(INDEX(campsByItinerary,numericItinerary($A14),BH$3-1)="","",VLOOKUP(INDEX(campsByItinerary,numericItinerary($A14),BH$3-1),campInfo,10)) ->  | CC14: =IF(INDEX(campsByItinerary,numericItinerary($A14),BI$3-1)="","",VLOOKUP(INDEX(campsByItinerary,numericItinerary($A14),BI$3-1),campInfo,10)) ->  | CD14: =IF(INDEX(campsByItinerary,numericItinerary($A14),BJ$3-1)="","",VLOOKUP(INDEX(campsByItinerary,numericItinerary($A14),BJ$3-1),campInfo,10)) ->  | CE14: =IF(INDEX(campsByItinerary,numericItinerary($A14),BK$3-1)="","",VLOOKUP(INDEX(campsByItinerary,numericItinerary($A14),BK$3-1),campInfo,10)) ->  | CF14: =IF(INDEX(campsByItinerary,numericItinerary($A14),BL$3-1)="","",VLOOKUP(INDEX(campsByItinerary,numericItinerary($A14),BL$3-1),campInfo,10)) ->  | CG14: =IF(INDEX(campsByItinerary,numericItinerary($A14),BM$3-1)="","",VLOOKUP(INDEX(campsByItinerary,numericItinerary($A14),BM$3-1),campInfo,10)) ->  | CM14: Y | CP14: Y | CQ14: Y | CR14: =INDEX(campsByItinerary,numericItinerary($A14),BD$3-1) -> House Canyon | CS14: =IF(INDEX(campsByItinerary,numericItinerary($A14),BE$3-1)="","",VLOOKUP(INDEX(campsByItinerary,numericItinerary($A14),BE$3-1),campInfo,2)) -> North | CT14: =IF(INDEX(campsByItinerary,numericItinerary($A14),BF$3-1)="","",VLOOKUP(INDEX(campsByItinerary,numericItinerary($A14),BF$3-1),campInfo,2)) -> Valle Vidal | CU14: =IF(INDEX(campsByItinerary,numericItinerary($A14),BG$3-1)="","",VLOOKUP(INDEX(campsByItinerary,numericItinerary($A14),BG$3-1),campInfo,2)) -> Valle Vidal | CV14: =IF(INDEX(campsByItinerary,numericItinerary($A14),BH$3-1)="","",VLOOKUP(INDEX(campsByItinerary,numericItinerary($A14),BH$3-1),campInfo,2)) -> North | CW14: =IF(INDEX(campsByItinerary,numericItinerary($A14),BI$3-1)="","",VLOOKUP(INDEX(campsByItinerary,numericItinerary($A14),BI$3-1),campInfo,2)) -> North | CX14: =IF(INDEX(campsByItinerary,numericItinerary($A14),BJ$3-1)="","",VLOOKUP(INDEX(campsByItinerary,numericItinerary($A14),BJ$3-1),campInfo,2)) -> North | CY14: =IF(INDEX(campsByItinerary,numericItinerary($A14),BK$3-1)="","",VLOOKUP(INDEX(campsByItinerary,numericItinerary($A14),BK$3-1),campInfo,2)) ->  | CZ14: =IF(INDEX(campsByItinerary,numericItinerary($A14),BL$3-1)="","",VLOOKUP(INDEX(campsByItinerary,numericItinerary($A14),BL$3-1),campInfo,2)) ->  | DA14: =IF(INDEX(campsByItinerary,numericItinerary($A14),BM$3-1)="","",VLOOKUP(INDEX(campsByItinerary,numericItinerary($A14),BM$3-1),campInfo,2)) ->  | DB14: =IF(INDEX(campsByItinerary,numericItinerary($A14),BD$3-1)="","",VLOOKUP(INDEX(campsByItinerary,numericItinerary($A14),BD$3-1),campInfo,12)) -> North | DC14: =IF(INDEX(campsByItinerary,numericItinerary($A14),BE$3-1)="","",VLOOKUP(INDEX(campsByItinerary,numericItinerary($A14),BE$3-1),campInfo,12)) -> North | DD14: =IF(INDEX(campsByItinerary,numericItinerary($A14),BF$3-1)="","",VLOOKUP(INDEX(campsByItinerary,numericItinerary($A14),BF$3-1),campInfo,12)) -> North | DE14: =IF(INDEX(campsByItinerary,numericItinerary($A14),BG$3-1)="","",VLOOKUP(INDEX(campsByItinerary,numericItinerary($A14),BG$3-1),campInfo,12)) -> North | DF14: =IF(INDEX(campsByItinerary,numericItinerary($A14),BH$3-1)="","",VLOOKUP(INDEX(campsByItinerary,numericItinerary($A14),BH$3-1),campInfo,12)) -> North | DG14: =IF(INDEX(campsByItinerary,numericItinerary($A14),BI$3-1)="","",VLOOKUP(INDEX(campsByItinerary,numericItinerary($A14),BI$3-1),campInfo,12)) -> North | DH14: =IF(INDEX(campsByItinerary,numericItinerary($A14),BJ$3-1)="","",VLOOKUP(INDEX(campsByItinerary,numericItinerary($A14),BJ$3-1),campInfo,12)) -> North | DI14: =IF(INDEX(campsByItinerary,numericItinerary($A14),BK$3-1)="","",VLOOKUP(INDEX(campsByItinerary,numericItinerary($A14),BK$3-1),campInfo,12)) ->  | DJ14: =IF(INDEX(campsByItinerary,numericItinerary($A14),BL$3-1)="","",VLOOKUP(INDEX(campsByItinerary,numericItinerary($A14),BL$3-1),campInfo,12)) ->  | DK14: =IF(INDEX(campsByItinerary,numericItinerary($A14),BM$3-1)="","",VLOOKUP(INDEX(campsByItinerary,numericItinerary($A14),BM$3-1),campInfo,12)) ->  | DL14: =getfoodPU("First",numericItinerary($A14)) -> 2 | DM14: =getfoodPU("Max",numericItinerary($A14)) -> 2
A15: 9-12 | C15: SS | D15: 57 | E15: Harlan | F15: Devil's Wash Basin | G15: Sawmill | H15: Mount Phillips | I15: Porcupine | J15: Beaubien | K15: Shaefers Pass | O15: Camping HQ | Q15: Ute Gulch | T15: Phillips Junction | Y15: Turkey Creek | Z15: Hike In | AA15: y | AE15: =IF(ItineraryPrograms!AD14="y","y","") ->  | AF15: =IF(ItineraryPrograms!AE14="y","y","") ->  | AG15: =IF(ItineraryPrograms!AF14="y","y","") -> y | AH15: y | AI15: =checkTooth(AA15,LOWER(ItineraryPrograms!AH14)) -> y | AJ15: y | AK15: 7550 | AL15: 8515 | AM15: 9193 | AN15: 11650 | AO15: 9152 | AP15: 9330 | AQ15: 8724 | AU15: 965 | AV15: 678 | AW15: 2457 | AX15: 2498 | AY15: 178 | AZ15: 606 | BD15: =IF(INDEX(campsByItinerary,numericItinerary($A15),BD$3-1)="","",VLOOKUP(INDEX(campsByItinerary,numericItinerary($A15),BD$3-1),campInfo,8)) -> Y | BE15: =IF(INDEX(campsByItinerary,numericItinerary($A15),BE$3-1)="","",VLOOKUP(INDEX(campsByItinerary,numericItinerary($A15),BE$3-1),campInfo,8)) ->  | BF15: =IF(INDEX(campsByItinerary,numericItinerary($A15),BF$3-1)="","",VLOOKUP(INDEX(campsByItinerary,numericItinerary($A15),BF$3-1),campInfo,8)) -> Y | BG15: =IF(INDEX(campsByItinerary,numericItinerary($A15),BG$3-1)="","",VLOOKUP(INDEX(campsByItinerary,numericItinerary($A15),BG$3-1),campInfo,8)) ->  | BH15: =IF(INDEX(campsByItinerary,numericItinerary($A15),BH$3-1)="","",VLOOKUP(INDEX(campsByItinerary,numericItinerary($A15),BH$3-1),campInfo,8)) ->  | BI15: =IF(INDEX(campsByItinerary,numericItinerary($A15),BI$3-1)="","",VLOOKUP(INDEX(campsByItinerary,numericItinerary($A15),BI$3-1),campInfo,8)) -> Y | BJ15: =IF(INDEX(campsByItinerary,numericItinerary($A15),BJ$3-1)="","",VLOOKUP(INDEX(campsByItinerary,numericItinerary($A15),BJ$3-1),campInfo,8)) ->  | BK15: =IF(INDEX(campsByItinerary,numericItinerary($A15),BK$3-1)="","",VLOOKUP(INDEX(campsByItinerary,numericItinerary($A15),BK$3-1),campInfo,8)) ->  | BL15: =IF(INDEX(campsByItinerary,numericItinerary($A15),BL$3-1)="","",VLOOKUP(INDEX(campsByItinerary,numericItinerary($A15),BL$3-1),campInfo,8)) ->  | BM15: =IF(INDEX(campsByItinerary,numericItinerary($A15),BM$3-1)="","",VLOOKUP(INDEX(campsByItinerary,numericItinerary($A15),BM$3-1),campInfo,8)) ->  | BO15: Y | BQ15: Y | BR15: Y | BT15: Y | BU15: Y | BV15: Y | BW15: Y | BX15: =IF(INDEX(campsByItinerary,numericItinerary($A15),BD$3-1)="","",VLOOKUP(INDEX(campsByItinerary,numericItinerary($A15),BD$3-1),campInfo,10)) ->  | BY15: =IF(INDEX(campsByItinerary,numericItinerary($A15),BE$3-1)="","",VLOOKUP(INDEX(campsByItinerary,numericItinerary($A15),BE$3-1),campInfo,10)) -> Y | BZ15: =IF(INDEX(campsByItinerary,numericItinerary($A15),BF$3-1)="","",VLOOKUP(INDEX(campsByItinerary,numericItinerary($A15),BF$3-1),campInfo,10)) ->  | CA15: =IF(INDEX(campsByItinerary,numericItinerary($A15),BG$3-1)="","",VLOOKUP(INDEX(campsByItinerary,numericItinerary($A15),BG$3-1),campInfo,10)) -> Y | CB15: =IF(INDEX(campsByItinerary,numericItinerary($A15),BH$3-1)="","",VLOOKUP(INDEX(campsByItinerary,numericItinerary($A15),BH$3-1),campInfo,10)) ->  | CC15: =IF(INDEX(campsByItinerary,numericItinerary($A15),BI$3-1)="","",VLOOKUP(INDEX(campsByItinerary,numericItinerary($A15),BI$3-1),campInfo,10)) ->  | CD15: =IF(INDEX(campsByItinerary,numericItinerary($A15),BJ$3-1)="","",VLOOKUP(INDEX(campsByItinerary,numericItinerary($A15),BJ$3-1),campInfo,10)) -> Y | CE15: =IF(INDEX(campsByItinerary,numericItinerary($A15),BK$3-1)="","",VLOOKUP(INDEX(campsByItinerary,numericItinerary($A15),BK$3-1),campInfo,10)) ->  | CF15: =IF(INDEX(campsByItinerary,numericItinerary($A15),BL$3-1)="","",VLOOKUP(INDEX(campsByItinerary,numericItinerary($A15),BL$3-1),campInfo,10)) ->  | CG15: =IF(INDEX(campsByItinerary,numericItinerary($A15),BM$3-1)="","",VLOOKUP(INDEX(campsByItinerary,numericItinerary($A15),BM$3-1),campInfo,10)) ->  | CP15: Y | CQ15: Y | CR15: =INDEX(campsByItinerary,numericItinerary($A15),BD$3-1) -> Harlan | CS15: =IF(INDEX(campsByItinerary,numericItinerary($A15),BE$3-1)="","",VLOOKUP(INDEX(campsByItinerary,numericItinerary($A15),BE$3-1),campInfo,2)) -> Central | CT15: =IF(INDEX(campsByItinerary,numericItinerary($A15),BF$3-1)="","",VLOOKUP(INDEX(campsByItinerary,numericItinerary($A15),BF$3-1),campInfo,2)) -> Central | CU15: =IF(INDEX(campsByItinerary,numericItinerary($A15),BG$3-1)="","",VLOOKUP(INDEX(campsByItinerary,numericItinerary($A15),BG$3-1),campInfo,2)) -> Central | CV15: =IF(INDEX(campsByItinerary,numericItinerary($A15),BH$3-1)="","",VLOOKUP(INDEX(campsByItinerary,numericItinerary($A15),BH$3-1),campInfo,2)) -> South | CW15: =IF(INDEX(campsByItinerary,numericItinerary($A15),BI$3-1)="","",VLOOKUP(INDEX(campsByItinerary,numericItinerary($A15),BI$3-1),campInfo,2)) -> South | CX15: =IF(INDEX(campsByItinerary,numericItinerary($A15),BJ$3-1)="","",VLOOKUP(INDEX(campsByItinerary,numericItinerary($A15),BJ$3-1),campInfo,2)) -> Central | CY15: =IF(INDEX(campsByItinerary,numericItinerary($A15),BK$3-1)="","",VLOOKUP(INDEX(campsByItinerary,numericItinerary($A15),BK$3-1),campInfo,2)) ->  | CZ15: =IF(INDEX(campsByItinerary,numericItinerary($A15),BL$3-1)="","",VLOOKUP(INDEX(campsByItinerary,numericItinerary($A15),BL$3-1),campInfo,2)) ->  | DA15: =IF(INDEX(campsByItinerary,numericItinerary($A15),BM$3-1)="","",VLOOKUP(INDEX(campsByItinerary,numericItinerary($A15),BM$3-1),campInfo,2)) ->  | DB15: =IF(INDEX(campsByItinerary,numericItinerary($A15),BD$3-1)="","",VLOOKUP(INDEX(campsByItinerary,numericItinerary($A15),BD$3-1),campInfo,12)) -> South | DC15: =IF(INDEX(campsByItinerary,numericItinerary($A15),BE$3-1)="","",VLOOKUP(INDEX(campsByItinerary,numericItinerary($A15),BE$3-1),campInfo,12)) -> South | DD15: =IF(INDEX(campsByItinerary,numericItinerary($A15),BF$3-1)="","",VLOOKUP(INDEX(campsByItinerary,numericItinerary($A15),BF$3-1),campInfo,12)) -> South | DE15: =IF(INDEX(campsByItinerary,numericItinerary($A15),BG$3-1)="","",VLOOKUP(INDEX(campsByItinerary,numericItinerary($A15),BG$3-1),campInfo,12)) -> South | DF15: =IF(INDEX(campsByItinerary,numericItinerary($A15),BH$3-1)="","",VLOOKUP(INDEX(campsByItinerary,numericItinerary($A15),BH$3-1),campInfo,12)) -> South | DG15: =IF(INDEX(campsByItinerary,numericItinerary($A15),BI$3-1)="","",VLOOKUP(INDEX(campsByItinerary,numericItinerary($A15),BI$3-1),campInfo,12)) -> South | DH15: =IF(INDEX(campsByItinerary,numericItinerary($A15),BJ$3-1)="","",VLOOKUP(INDEX(campsByItinerary,numericItinerary($A15),BJ$3-1),campInfo,12)) -> South | DI15: =IF(INDEX(campsByItinerary,numericItinerary($A15),BK$3-1)="","",VLOOKUP(INDEX(campsByItinerary,numericItinerary($A15),BK$3-1),campInfo,12)) ->  | DJ15: =IF(INDEX(campsByItinerary,numericItinerary($A15),BL$3-1)="","",VLOOKUP(INDEX(campsByItinerary,numericItinerary($A15),BL$3-1),campInfo,12)) ->  | DK15: =IF(INDEX(campsByItinerary,numericItinerary($A15),BM$3-1)="","",VLOOKUP(INDEX(campsByItinerary,numericItinerary($A15),BM$3-1),campInfo,12)) ->  | DL15: =getfoodPU("First",numericItinerary($A15)) -> 2 | DM15: =getfoodPU("Max",numericItinerary($A15)) -> 2
AE28: =COUNTIF(AE4:AE27,"y") -> 3 | AF28: =COUNTIF(AF4:AF27,"y") -> 2 | AG28: 3 | AH28: 9 | AI28: 3 | AJ28: 3
AE29: Mountaineering includes itineraries that climb Big Red, Black Mountain, Bonito Peak, Comanche Peak, Hart Mountain, Little Costilla Peak, Lookout Peak, or Shaefers Peak. | DJ29: Min | DK29: =MIN(foodPUfirst) -> 1 | DL29: =MIN(foodPUdays) -> 2
DJ30: Max | DK30: =MAX(DL5:DL27) -> 3 | DL30: =MAX(foodPUdays) -> 5

Sheet ItineraryPrograms (hidden)
A1: Itinerary | C1: 1 | D1: =C1+1 -> 2 | E1: =D1+1 -> 3 | F1: 4 | G1: 5 | H1: 6 | I1: 7 | J1: 8 | K1: 9 | L1: 10 | M1: 11 | N1: 12 | O1: 13 | P1: 14 | Q1: 15 | R1: 16 | S1: 17 | T1: 18 | U1: 19 | V1: 20 | W1: 21 | X1: 22 | Y1: 23 | Z1: 24 | AA1: 25 | AB1: 26 | AC1: 27 | AD1: 28 | AE1: 29 | AF1: 30 | AG1: 31 | AH1: 32 | AI1: 33 | AJ1: 34 | AK1: 35 | AL1: 36 | AM1: 37 | AN1: 38 | AO1: 39 | AP1: 40 | AQ1: 41 | AR1: 42 | AS1: 43 | AT1: 44 | AU1: 45 | AV1: 46 | AW1: 47 | AX1: 48 | AY1: =AX1+1 -> 49 | AZ1: =AY1+1 -> 50 | BA1: =AZ1+1 -> 51 | BB1: =BA1+1 -> 52 | BC1: =BB1+1 -> 53 | BD1: =BC1+1 -> 54 | BE1: =BD1+1 -> 55 | BF1: =BE1+1 -> 56
C2: =INDEX(program_table,C1,1) -> Climbing: Bouldering Gym | D2: Climbing: Climbing Wall/Tower | E2: =INDEX(program_table,E1,1) -> Climbing: Crate Stacking | F2: Climbing: Rock Climbing | G2: COPE: High Challenge Course | H2: COPE: Initiative Games | I2: COPE: Low Challenge Course | J2: Ecology: Demonstration Forest | K2: Ecology: Self-Guided Fishing | L2: Evening: Advisor Coffee | M2: Evening: Campfire Show | N2: Evening: Chuckwagon Dinner | O2: Historical: Adobe Brick-Making | P2: Historical: Blacksmithing | Q2: Historical: Cabin Restoration | R2: Historical: Cabin/House Tour | S2: Historical: Crafting | T2: Historical: Crosscut & Tie Making | U2: Historical: Flint Knapping | V2: Historical: Fur Trapper Rendezvous | W2: Historical: Gold Panning | X2: Historical: Mine Tour | Y2: Historical: Petroglyph Tour | Z2: Historical: Pump Car Rides | AA2: Historical: Railroad Construction | AB2: Historical: Spar Pole Climbing | AC2: Landmarks: Baldy Mountain | AD2: Landmarks: Inspiration Point | AE2: Landmarks: Mount Phillips | AF2: Landmarks: Mountaineering | AG2: Landmarks: Tooth of Time | AH2: Landmarks: Trail Peak | AI2: Livestock: Animal Husbandry | AJ2: Livestock: Burro Packing | AK2: Livestock: Chicken Tending | AL2: Livestock: Horse Rides | AM2: Low Impact Camping | AN2: Range Sports: 3D Archery | AO2: Range Sports: Aerial Archery | AP2: Range Sports: Atlatl Throwing | AQ2: Range Sports: Cartridge Reloading | AR2: Range Sports: Cowboy Action Shooting | AS2: Range Sports: Field Archery | AT2: Range Sports: Muzzleloader Shooting | AU2: Range Sports: Rifle Shooting | AV2: Range Sports: Shotgun Shooting | AW2: Range Sports: Shotshell Reloading | AX2: Range Sports: Tomahawk Throwing | AY2: =INDEX(program_table,AY1,1) -> STEM: Archeology | AZ2: STEM: Astronomy | BA2: STEM: Geology | BB2: =INDEX(program_table,BB1,1) -> Western Lore: Branding | BC2: Western Lore: Cantina | BD2: Western Lore: Roping
A3: =Itineraries!A3 -> 9-1 | B3: =COUNTIF(C3:BF3,"y") -> 23 | C3: y | D3: y | E3: y | F3: y | G3: y | H3: y | I3: y | K3: y | L3: N | M3: y | N3: y | O3: y | P3: y | Q3: y | S3: y | T3: y | U3: y | AE3: Y | AJ3: y | AL3: y | AM3: N | AU3: y | BC3: y | BD3: y | BE3: y
A4: =Itineraries!A4 -> 9-2 | B4: =COUNTIF(C4:BF4,"y") -> 14 | M4: y | N4: y | O4: y | Z4: y | AK4: N | AM4: y | AO4: y | AP4: y | AS4: y | AT4: y | AW4: y | AX4: y | BC4: y | BD4: y | BE4: y
A5: =Itineraries!A5 -> 9-3 | B5: 15 | C5: y | J5: y | K5: N | M5: y | N5: y | O5: y | X5: y | AH5: Y | AM5: y | AO5: y | AR5: y | AT5: y | AV5: y | BB5: y | BC5: y | BE5: y
A6: =Itineraries!A6 -> 9-4 | B6: =COUNTIF(C6:BF6,"y") -> 19 | K6: y | L6: N | M6: y | N6: y | O6: y | P6: y | Q6: y | R6: y | S6: y | T6: y | U6: y | AC6: y | AH6: Y | AJ6: y | AL6: y | AM6: y | AU6: y | BC6: y | BD6: y | BE6: y
A7: =Itineraries!A7 -> 9-5 | B7: 18 | H7: y | I7: y | M7: y | Q7: y | U7: y | W7: y | X7: y | Z7: y | AD7: Y | AG7: Y | AK7: y | AQ7: y | AY7: y | AZ7: y | BA7: N | BB7: y | BC7: y | BD7: y | BE7: y | BF7: N
A8: =Itineraries!A8 -> 9-6 | B8: 16 | H8: y | I8: y | M8: y | N8: y | S8: y | U8: y | Z8: y | AJ8: y | AL8: y | AN8: y | AQ8: y | AZ8: y | BA8: y | BB8: N | BC8: y | BD8: y | BE8: y | BF8: N
A9: =Itineraries!A9 -> 9-7 | B9: 13 | C9: y | F9: y | M9: y | Q9: y | X9: y | AF9: Y | AO9: y | AP9: y | AR9: y | AT9: y | AV9: y | AW9: y | AX9: y
A10: =Itineraries!A10 -> 9-8 | B10: 22 | G10: y | H10: y | I10: y | K10: y | M10: y | N10: y | O10: y | P10: y | S10: y | T10: y | U10: y | V10: y | AE10: Y | AG10: Y | AH10: Y | AJ10: y | AL10: y | AM10: N | AO10: y | AP10: y | BC10: y | BD10: y | BE10: y
A11: =Itineraries!A11 -> 9-9 | B11: 21 | J11: y | K11: y | M11: y | N11: y | O11: y | P11: y | Q11: y | R11: y | S11: y | T11: y | X11: y | Y11: y | AF11: Y | AG11: Y | AJ11: y | AL11: y | AM11: N | AY11: y | BB11: y | BC11: y | BD11: y | BE11: y
A12: =Itineraries!A12 -> 9-10 | B12: 19 | M12: y | N12: y | Q12: y | U12: y | W12: y | X12: y | Z12: y | AA12: y | AB12: y | AC12: y | AD12: Y | AG12: Y | AK12: N | AU12: y | AY12: y | AZ12: y | BB12: y | BC12: y | BD12: y | BE12: y
A13: =Itineraries!A13 -> 9-11 | B13: 17 | I13: y | M13: y | N13: y | Q13: y | S13: y | W13: y | X13: y | Z13: y | AB13: y | AD13: Y | AG13: Y | AJ13: y | AL13: y | AN13: y | AY13: y | AZ13: y | BB13: y
A14: =Itineraries!A14 -> 9-12 | B14: 16 | K14: y | M14: y | N14: y | O14: y | AF14: Y | AG14: Y | AH14: Y | AI14: Y | AJ14: y | AM14: N | AR14: y | AV14: y | AW14: y | AX14: y | AY14: y | BC14: y | BE14: y
C27: =COUNTIF(C3:C26,"y") -> 3 | D27: 1 | E27: 1 | F27: 2 | G27: 2 | H27: 4 | I27: 5 | J27: 2 | K27: 5 | L27: 0 | M27: 12 | N27: 10 | O27: 7 | P27: 4 | Q27: 7 | R27: 2 | S27: 6 | T27: 4 | U27: 6 | V27: 1 | W27: 3 | X27: 6 | Y27: 1 | Z27: 5 | AA27: 1 | AB27: 2 | AC27: 2 | AD27: 3 | AE27: 2 | AF27: 3 | AG27: 6 | AH27: 4 | AI27: =COUNTIF(AI3:AI26,"y") -> 1 | AJ27: 7 | AK27: 1 | AL27: 6 | AM27: 3 | AN27: 2 | AO27: 4 | AP27: 3 | AQ27: 2 | AR27: 3 | AS27: 1 | AT27: 3 | AU27: 3 | AV27: 3 | AW27: 3 | AX27: 3 | AY27: 5 | AZ27: 4 | BA27: 1 | BB27: 5 | BC27: 10 | BD27: 8 | BE27: 10 | BF27: 0
C28: =C2 -> Climbing: Bouldering Gym | D28: Climbing: Climbing Wall/Tower | E28: Climbing: Crate Stacking | F28: Climbing: Rock Climbing | G28: COPE: High Challenge Course | H28: COPE: Initiative Games | I28: COPE: Low Challenge Course | J28: Ecology: Demonstration Forest | K28: Ecology: Self-Guided Fishing | L28: Evening: Advisor Coffee | M28: Evening: Campfire Show | N28: Evening: Chuckwagon Dinner | O28: Historical: Adobe Brick-Making | P28: Historical: Blacksmithing | Q28: Historical: Cabin Restoration | R28: Historical: Cabin/House Tour | S28: Historical: Crafting | T28: Historical: Crosscut & Tie Making | U28: Historical: Flint Knapping | V28: Historical: Fur Trapper Rendezvous | W28: Historical: Gold Panning | X28: Historical: Mine Tour | Y28: Historical: Petroglyph Tour | Z28: Historical: Pump Car Rides | AA28: Historical: Railroad Construction | AB28: Historical: Spar Pole Climbing | AC28: Landmarks: Baldy Mountain | AD28: Landmarks: Inspiration Point | AE28: Landmarks: Mount Phillips | AF28: Landmarks: Mountaineering | AG28: =AG2 -> Landmarks: Tooth of Time | AH28: =AH2 -> Landmarks: Trail Peak | AI28: Livestock: Animal Husbandry | AJ28: Livestock: Burro Packing | AK28: Livestock: Chicken Tending | AL28: Livestock: Horse Rides | AM28: Low Impact Camping | AN28: Range Sports: 3D Archery | AO28: Range Sports: Aerial Archery | AP28: Range Sports: Atlatl Throwing | AQ28: =AQ2 -> Range Sports: Cartridge Reloading | AR28: Range Sports: Cowboy Action Shooting | AS28: Range Sports: Field Archery | AT28: Range Sports: Muzzleloader Shooting | AU28: =AU2 -> Range Sports: Rifle Shooting | AV28: Range Sports: Shotgun Shooting | AW28: Range Sports: Shotshell Reloading | AX28: =AX2 -> Range Sports: Tomahawk Throwing | AY28: STEM: Archeology | AZ28: STEM: Astronomy | BA28: STEM: Geology | BB28: Western Lore: Branding | BC28: Western Lore: Cantina | BD28: Western Lore: Roping
AM29: 0

Sheet Descriptions (hidden)
A1: Length | B1: Itinerary | C1: Description
A2: =LEN(C2) -> 389 | B2: =Itineraries!A3 -> 9-1 | C2: This program-focused itinerary visits many of the staffed camps located in Philmont's South Country while exploring this region's beautiful meadows, riverways, and mesas. Plenty of time is provided for exploring all of the activities offered at each camp or for exploring side hikes to nearby peaks or viewpoints. This trek would be an excellent way to explore Philmont for the first time!
A3: =LEN(C3) -> 495 | B3: =Itineraries!A4 -> 9-2 | C3: This itinerary provides plenty of opportunity for program while exploring the impacts of wildfire on the landscape. You'll start by traversing the 2018 Ute Park Fire scar culminating in your reforestation project at Cimarroncita. From there you'll cross over ridges, past Black Jack's famous hideout, and into the Ponil Country, a landscape affected by a massive fire in 2002. Hike over Hart Peak and find yourself in North Ponil Canyon, filled with pre-historic petroglyphs and dinosaur tracks!
A4: 454 | B4: =Itineraries!A5 -> 9-3 | C4: This South to North trek provides plenty of time for backcountry staffed camp program while visiting a wide variety of Philmont landscapes. Enjoy walking through the meadows surrounding Lovers Leap before heading up into the mountains on Tooth of Time Ridge. If time allows, take a side-hike to one of the Summits before crossing by Cimarroncito Reservoir and heading into Philmont's western mountains and north into the 2018 Ute Park Fire recovery zone.
A5: 466 | B5: =Itineraries!A6 -> 9-4 | C5: If you're looking to bag some peaks while still having some time for program, this itinerary might be for you. It starts with lots of lower-elevation program opportunities before heading up in elevation to more and more peaks and viewpoints of Philmont's beautiful south country. You'll have plenty of opportunities to add more peaks or walk along meadows and streamside trails. Finally everything wraps up with the iconic hike into base camp on Tooth of Time Ridge!
A6: 433 | B6: =Itineraries!A7 -> 9-5 | C6: Watch the landscape evolve as your traverse Philmont's north country in this nine day trek. You'll start exploring pre-history in the North Ponil Canyon with dinosaurs and petroglyphs, before moving into cowboys, loggers, fur trappers, and miners as you ascend into Baldy Country. You'll be amazed when you look back at the wide variety of scenic landscapes you've experienced and all of the historic people that have traversed them!
A7: 477 | B7: =Itineraries!A8 -> 9-6 | C7: Explore further north than any other nine day itinerary in this trek. You'll get to experience the Valle Vidal of the Carson National Forest and the Elliot Barker Wildlife Area while still having plenty of opportunities for program steeped in rich history. You'll start at the confluence of the North and Middle Ponil rivers and head far up canyons and into the valleys north of Philmont before turning around to head back south over Wilson Mesa back towards the Ponil Country.
A8: 534 | B8: =Itineraries!A9 -> 9-7 | C8: This itinerary spends significant time in the central country of Philmont in and around the 2018 Ute Park Fire recovery area with opportunities to learn about the ecology and effects of catastrophic forest fires and a chance to assist with the reforestation of this area. It also provides multiple opportunities for high adventure programs with a little bit of mining history thrown in. Crews hiking this trek should be prepared to hike early and keep an eye on weather while traversing exposed areas and canyons in the recovery area.
A9: 483 | B9: =Itineraries!A10 -> 9-8 | C9: This large loop of Philmont's South Country will expose your crew to much of the scenery this portion of the ranch has to offer while still offering a very wide variety of program opportunities. However, with higher mileage, crews must practice good teamwork and discipline to take advantage of these opportunities. Choose this itinerary if your crew is looking for a bit of a challenge, but still is interested in a good mix of high adventure and historical interpretation programs.
A10: 687 | B10: =Itineraries!A11 -> 9-9 | C10: Choose this strenuous itinerary to follow in the footsteps of New Mexican settlers pushing further and further into the mountains that now make up Philmont. You'll start in the Rayado valley and push up the river until crossing over into the breathtaking Beaubien Meadow and pushing up to Mount Phillips, the highest point on the trek. From there you'll follow ridges and watercourses back down just on the southern edge of the 2018 Ute Park Fire area. There are program opportunities spread throughout this trek, but to take advantage of them, particularly those up at higher elevation, you'll need to make sure your crew is working together smoothly and prepared for some early starts.
A11: 479 | B11: =Itineraries!A12 -> 9-10 | C11: If your crew is up to the mileage and elevation gain, this itinerary is a powerhouse of north country history and viewpoints. Your crew will get the opportunity to take part in programs that tell the story of early resource extraction in this region from early fur trapping to logging, mining, and the railroads that supported them, but only if your crew is motivated and well-prepared to put in the miles and gain over 10,000 feet of elevation over a relatively short timeframe!
A12: 725 | B12: =Itineraries!A13 -> 9-11 | C12: This itinerary puts in the miles to traverse the many landscapes that Philmont and our northern neighbors have to offer. You'll start by exploring the historic wonders of the North Ponil canyon before crossing over to the middle Ponil and Greenwood Canyons. The rivers here delineate the boundary between the Greenwood Tract of the UU Bar Ranch and the Valle Vidal of the Carson National Forest and offer a true wilderness experience. From here you'll quickly ascend to the high summit of Baldy Mountain and overlook all of the land you had previously hiked over. While you will check-in with quite a few staffed camps, know that your time spent at each will be limited as you quickly move across this breathtaking landscape!
A13: 501 | B13: =Itineraries!A14 -> 9-12 | C13: This nine day itinerary provides wonderful rewards for high-performing crews willing to meet the challenge. It starts out by traversing the 2018 Ute Park burn scar to quickly gain elevation leading up to Mount Phillips. From there it descends rivers and meadows before gaining elevation once again, culminating at the Summit of the iconic Tooth of Time. Along the way there are brief stops at many different staffed camps with opportunities for program, but only if your crew's hiking schedule allows.

Sheet Calculator (hidden)
A1: Calculate Individual Values Based on Tables & Scores | Y1: 1 | Z1: =Y1+1 -> 2 | AA1: =Z1+1 -> 3 | AB1: 4 | AC1: 5 | AD1: 6 | AE1: 7 | AF1: 8 | AG1: 9 | AH1: 10 | AI1: 11 | AJ1: 12 | AK1: 13 | AL1: 14 | AM1: 15 | AN1: 16 | AO1: 17 | AP1: 18 | AQ1: 19 | AR1: 20 | AS1: 21 | AT1: 22 | AU1: 23 | AV1: 24 | AW1: 25 | AX1: 26 | AY1: 27 | AZ1: 28 | BA1: 29 | BB1: 30 | BC1: 31 | BD1: 32 | BE1: 33 | BF1: 34 | BG1: 35 | BH1: 36 | BI1: 37 | BJ1: =BI1+1 -> 38 | BK1: =BJ1+1 -> 39 | BL1: =BK1+1 -> 40 | BM1: =BL1+1 -> 41 | BN1: 42 | BO1: =BN1+1 -> 43 | BP1: =BO1+1 -> 44 | BQ1: =BP1+1 -> 45 | BR1: =BQ1+1 -> 46 | BS1: =BR1+1 -> 47 | BT1: =BS1+1 -> 48 | BU1: =BT1+1 -> 49 | BV1: =BU1+1 -> 50 | BW1: =BV1+1 -> 51 | BX1: =BW1+1 -> 52 | BY1: =BX1+1 -> 53 | BZ1: =BY1+1 -> 54 | CA1: =BZ1+1 -> 55 | CB1: =CA1+1 -> 56
A2: =Itineraries!A2 -> Itinerary | B2: Ranking | C2: Difficulty | D2: Distance | E2: Food from HQ | F2: Days Food | G2: Trail Camps | H2: Dry Camps | I2: Total Camps | J2: Max Altitude | K2: Total Gain | L2: Daily Change | M2: Hike Out | N2: Hike In | O2: Landmarks: Baldy Mountain | P2: Landmarks: Mount Phillips | Q2: Landmarks: Tooth of Time | R2: Landmarks: Inspiration Point | S2: Landmarks: Trail Peak | T2: Landmarks: Mountaineering | U2: South | V2: Central | W2: North | X2: Valle Vidal | Y2: =INDEX(program_table,Y$1) -> Climbing: Bouldering Gym | Z2: =INDEX(program_table,Z$1) -> Climbing: Climbing Wall/Tower | AA2: =INDEX(program_table,AA$1) -> Climbing: Crate Stacking | AB2: =INDEX(program_table,AB$1) -> Climbing: Rock Climbing | AC2: =INDEX(program_table,AC$1) -> COPE: High Challenge Course | AD2: =INDEX(program_table,AD$1) -> COPE: Initiative Games | AE2: =INDEX(program_table,AE$1) -> COPE: Low Challenge Course | AF2: =INDEX(program_table,AF$1) -> Ecology: Demonstration Forest | AG2: =INDEX(program_table,AG$1) -> Ecology: Self-Guided Fishing | AH2: =INDEX(program_table,AH$1) -> Evening: Advisor Coffee | AI2: =INDEX(program_table,AI$1) -> Evening: Campfire Show | AJ2: =INDEX(program_table,AJ$1) -> Evening: Chuckwagon Dinner | AK2: =INDEX(program_table,AK$1) -> Historical: Adobe Brick-Making | AL2: =INDEX(program_table,AL$1) -> Historical: Blacksmithing | AM2: =INDEX(program_table,AM$1) -> Historical: Cabin Restoration | AN2: =INDEX(program_table,AN$1) -> Historical: Cabin/House Tour | AO2: =INDEX(program_table,AO$1) -> Historical: Crafting | AP2: =INDEX(program_table,AP$1) -> Historical: Crosscut & Tie Making | AQ2: =INDEX(program_table,AQ$1) -> Historical: Flint Knapping | AR2: =INDEX(program_table,AR$1) -> Historical: Fur Trapper Rendezvous | AS2: =INDEX(program_table,AS$1) -> Historical: Gold Panning | AT2: =INDEX(program_table,AT$1) -> Historical: Mine Tour | AU2: =INDEX(program_table,AU$1) -> Historical: Petroglyph Tour | AV2: =INDEX(program_table,AV$1) -> Historical: Pump Car Rides | AW2: =INDEX(program_table,AW$1) -> Historical: Railroad Construction | AX2: =INDEX(program_table,AX$1) -> Historical: Spar Pole Climbing | AY2: =INDEX(program_table,AY$1) -> Landmarks: Baldy Mountain | AZ2: =INDEX(program_table,AZ$1) -> Landmarks: Inspiration Point | BA2: =INDEX(program_table,BA$1) -> Landmarks: Mount Phillips | BB2: =INDEX(program_table,BB$1) -> Landmarks: Mountaineering | BC2: =INDEX(program_table,BC$1) -> Landmarks: Tooth of Time | BD2: =INDEX(program_table,BD$1) -> Landmarks: Trail Peak | BE2: =INDEX(program_table,BE$1) -> Livestock: Animal Husbandry | BF2: =INDEX(program_table,BF$1) -> Livestock: Burro Packing | BG2: =INDEX(program_table,BG$1) -> Livestock: Chicken Tending | BH2: =INDEX(program_table,BH$1) -> Livestock: Horse Rides | BI2: =INDEX(program_table,BI$1) -> Low Impact Camping | BJ2: =INDEX(program_table,BJ$1) -> Range Sports: 3D Archery | BK2: =INDEX(program_table,BK$1) -> Range Sports: Aerial Archery | BL2: =INDEX(program_table,BL$1) -> Range Sports: Atlatl Throwing | BM2: =INDEX(program_table,BM$1) -> Range Sports: Cartridge Reloading | BN2: =INDEX(program_table,BN$1) -> Range Sports: Cowboy Action Shooting | BO2: =INDEX(program_table,BO$1) -> Range Sports: Field Archery | BP2: =INDEX(program_table,BP$1) -> Range Sports: Muzzleloader Shooting | BQ2: =INDEX(program_table,BQ$1) -> Range Sports: Rifle Shooting | BR2: =INDEX(program_table,BR$1) -> Range Sports: Shotgun Shooting | BS2: =INDEX(program_table,BS$1) -> Range Sports: Shotshell Reloading | BT2: =INDEX(program_table,BT$1) -> Range Sports: Tomahawk Throwing | BU2: =INDEX(program_table,BU$1) -> STEM: Archeology | BV2: =INDEX(program_table,BV$1) -> STEM: Astronomy | BW2: =INDEX(program_table,BW$1) -> STEM: Geology | BX2: =INDEX(program_table,BX$1) -> Western Lore: Branding | BY2: =INDEX(program_table,BY$1) -> Western Lore: Cantina | BZ2: =INDEX(program_table,BZ$1) -> Western Lore: Roping | CA2: =INDEX(program_table,CA$1) ->  | CB2: =INDEX(program_table,CB$1) -> 
A3: =Itineraries!A3 -> 9-1 | B3: =SUM(C3:BU3) -> 11089.25 | C3: =getScoreFactor(C$2,itineraryCamps!C4) -> 2500 | D3: =getScoreFactor(D$2,"Miles") *itineraryCamps!D4 -> 4000 | E3: =getScoreFactor(E$2,Itineraries!B3) -> 30 | F3: =getScoreFactor(F$2,Itineraries!C3) -> 90 | G3: =getScoreFactor(G$2,Itineraries!D3) -> 100 | H3: =getScoreFactor(H$2,Itineraries!E3) -> 100 | I3: =getScoreFactor(I$2,Itineraries!G3) -> 75 | J3: =getScoreFactor(J$2,Itineraries!J3) -> 50 | K3: =getScoreFactor(K$2,Itineraries!K3) -> 60 | L3: =getScoreFactor(L$2,Itineraries!L3) -> 300 | M3: =IF(INDEX(startingTA,numericItinerary($A3))=$M$2,getScoreFactor(M$2,"y"),getScoreFactor(M$2,"n")) -> 0 | N3: =IF(INDEX(endingTA,numericItinerary($A3))=$N$2,getScoreFactor(N$2,"y"),getScoreFactor(N$2,"n")) -> 0 | O3: =IF(INDEX(baldyMountainHike,numericItinerary($A3))="","",getPeakScore(O$2)) ->  | P3: =IF(INDEX(mountPhillipsHike,numericItinerary($A3))="","",getPeakScore(P$2)) ->  | Q3: =IF(INDEX(toothOfTimeHike,numericItinerary($A3))="","",getPeakScore(Q$2)) ->  | R3: =IF(INDEX(inspirationPointHike,numericItinerary($A3))="","",getPeakScore(Q$2)) -> 303.75 | S3: =IF(INDEX(trailPeakHike,numericItinerary($A3))="","",getPeakScore(S$2)) ->  | T3: =IF(INDEX(mountaineeringHike,numericItinerary($A3))="","",getPeakScore(T$2)) ->  | U3: =IF(areaImportant<>"y","",IF(Itineraries!P3<>"Y","",getareascore(U$2))) -> 200 | V3: =IF(areaImportant<>"y","",IF(Itineraries!Q3<>"Y","",getareascore(V$2))) ->  | W3: =IF(areaImportant<>"y","",IF(Itineraries!R3<>"Y","",getareascore(W$2))) ->  | X3: =IF(areaImportant<>"y","",IF(Itineraries!S3<>"Y","",getareascore(X$2))) ->  | Y3: =IF(ItineraryPrograms!C3="y",getScoreFactor("Program",Y$2),"") -> 228 | Z3: =IF(ItineraryPrograms!D3="y",getScoreFactor("Program",Z$2),"") -> 337.5 | AA3: =IF(ItineraryPrograms!E3="y",getScoreFactor("Program",AA$2),"") -> 114 | AB3: =IF(ItineraryPrograms!F3="y",getScoreFactor("Program",AB$2),"") -> 282 | AC3: =IF(ItineraryPrograms!G3="y",getScoreFactor("Program",AC$2),"") -> 162 | AD3: =IF(ItineraryPrograms!H3="y",getScoreFactor("Program",AD$2),"") -> 166.5 | AE3: =IF(ItineraryPrograms!I3="y",getScoreFactor("Program",AE$2),"") -> 166.5 | AF3: =IF(ItineraryPrograms!J3="y",getScoreFactor("Program",AF$2),"") ->  | AG3: =IF(ItineraryPrograms!K3="y",getScoreFactor("Program",AG$2),"") -> 130.5 | AH3: =IF(ItineraryPrograms!L3="y",getScoreFactor("Program",AH$2),"") ->  | AI3: =IF(ItineraryPrograms!M3="y",getScoreFactor("Program",AI$2),"") -> 109.5 | AJ3: =IF(ItineraryPrograms!N3="y",getScoreFactor("Program",AJ$2),"") -> 109.5 | AK3: =IF(ItineraryPrograms!O3="y",getScoreFactor("Program",AK$2),"") -> 111 | AL3: =IF(ItineraryPrograms!P3="y",getScoreFactor("Program",AL$2),"") -> 114 | AM3: =IF(ItineraryPrograms!Q3="y",getScoreFactor("Program",AM$2),"") -> 123 | AN3: =IF(ItineraryPrograms!R3="y",getScoreFactor("Program",AN$2),"") ->  | AO3: =IF(ItineraryPrograms!S3="y",getScoreFactor("Program",AO$2),"") -> 106.5 | AP3: =IF(ItineraryPrograms!T3="y",getScoreFactor("Program",AP$2),"") -> 145.5 | AQ3: =IF(ItineraryPrograms!U3="y",getScoreFactor("Program",AQ$2),"") -> 93 | AR3: =IF(ItineraryPrograms!V3="y",getScoreFactor("Program",AR$2),"") ->  | AS3: =IF(ItineraryPrograms!W3="y",getScoreFactor("Program",AS$2),"") ->  | AT3: =IF(ItineraryPrograms!X3="y",getScoreFactor("Program",AT$2),"") ->  | AU3: =IF(ItineraryPrograms!Y3="y",getScoreFactor("Program",AU$2),"") ->  | AV3: =IF(ItineraryPrograms!Z3="y",getScoreFactor("Program",AV$2),"") ->  | AW3: =IF(ItineraryPrograms!AA3="y",getScoreFactor("Program",AW$2),"") ->  | AX3: =IF(ItineraryPrograms!AB3="y",getScoreFactor("Program",AX$2),"") ->  | AY3: =IF(ItineraryPrograms!AC3="y",getScoreFactor("Program",AY$2),"") ->  | AZ3: =IF(ItineraryPrograms!AD3="y",getScoreFactor("Program",AZ$2),"") ->  | BA3: =IF(ItineraryPrograms!AE3="y",getScoreFactor("Program",BA$2),"") -> 154.5 | BB3: =IF(ItineraryPrograms!AF3="y",getScoreFactor("Program",BB$2),"") ->  | BC3: =IF(ItineraryPrograms!AG3="y",getScoreFactor("Program",BC$2),"") ->  | BD3: =IF(ItineraryPrograms!AH3="y",getScoreFactor("Program",BD$2),"") ->  | BE3: =IF(ItineraryPrograms!AI3="y",getScoreFactor("Program",BE$2),"") ->  | BF3: =IF(ItineraryPrograms!AJ3="y",getScoreFactor("Program",BF$2),"") -> 220.5 | BG3: =IF(ItineraryPrograms!AK3="y",getScoreFactor("Program",BG$2),"") ->  | BH3: =IF(ItineraryPrograms!AL3="y",getScoreFactor("Program",BH$2),"") -> 255 | BI3: =IF(ItineraryPrograms!AM3="y",getScoreFactor("Program",BI$2),"") ->  | BJ3: =IF(ItineraryPrograms!AN3="y",getScoreFactor("Program",BJ$2),"") ->  | BK3: =IF(ItineraryPrograms!AO3="y",getScoreFactor("Program",BK$2),"") ->  | BL3: =IF(ItineraryPrograms!AP3="y",getScoreFactor("Program",BL$2),"") ->  | BM3: =IF(ItineraryPrograms!AQ3="y",getScoreFactor("Program",BM$2),"") ->  | BN3: =IF(ItineraryPrograms!AR3="y",getScoreFactor("Program",BN$2),"") ->  | BO3: =IF(ItineraryPrograms!AS3="y",getScoreFactor("Program",BO$2),"") ->  | BP3: =IF(ItineraryPrograms!AT3="y",getScoreFactor("Program",BP$2),"") ->  | BQ3: =IF(ItineraryPrograms!AU3="y",getScoreFactor("Program",BQ$2),"") -> 151.5 | BR3: =IF(ItineraryPrograms!AV3="y",getScoreFactor("Program",BR$2),"") ->  | BS3: =IF(ItineraryPrograms!AW3="y",getScoreFactor("Program",BS$2),"") ->  | BT3: =IF(ItineraryPrograms!AX3="y",getScoreFactor("Program",BT$2),"") ->  | BU3: =IF(ItineraryPrograms!AY3="y",getScoreFactor("Program",BU$2),"") ->  | BV3: =IF(ItineraryPrograms!AZ3="y",getScoreFactor("Program",BV$2),"") ->  | BW3: =IF(ItineraryPrograms!BA3="y",getScoreFactor("Program",BW$2),"") ->  | BX3: =IF(ItineraryPrograms!BB3="y",getScoreFactor("Program",BX$2),"") ->  | BY3: =IF(ItineraryPrograms!BC3="y",getScoreFactor("Program",BY$2),"") -> 133.5 | BZ3: =IF(ItineraryPrograms!BD3="y",getScoreFactor("Program",BZ$2),"") -> 285 | CA3: =IF(ItineraryPrograms!BE3="y",getScoreFactor("Program",CA$2),"") ->  | CB3: =IF(ItineraryPrograms!BF3="y",getScoreFactor("Program",CB$2),"") -> 
A4: =Itineraries!A4 -> 9-2 | B4: =SUM(C4:BU4) -> 10262 | C4: =getScoreFactor(C$2,itineraryCamps!C5) -> 2500 | D4: =getScoreFactor(D$2,"Miles") *itineraryCamps!D5 -> 3600 | E4: =getScoreFactor(E$2,Itineraries!B4) -> 30 | F4: =getScoreFactor(F$2,Itineraries!C4) -> 90 | G4: =getScoreFactor(G$2,Itineraries!E4) -> 50 | H4: =getScoreFactor(H$2,Itineraries!H4) -> 250 | I4: =getScoreFactor(I$2,Itineraries!G4) -> 75 | J4: =getScoreFactor(J$2,Itineraries!J4) -> 20 | K4: =getScoreFactor(K$2,Itineraries!K4) -> 40 | L4: =getScoreFactor(L$2,Itineraries!L4) -> 300 | M4: =IF(INDEX(startingTA,numericItinerary($A4))=$M$2,getScoreFactor(M$2,"y"),getScoreFactor(M$2,"n")) -> 0 | N4: =IF(INDEX(endingTA,numericItinerary($A4))=$N$2,getScoreFactor(N$2,"y"),getScoreFactor(N$2,"n")) -> 0 | O4: =IF(INDEX(baldyMountainHike,numericItinerary($A4))="","",getPeakScore(O$2)) ->  | P4: =IF(INDEX(mountPhillipsHike,numericItinerary($A4))="","",getPeakScore(P$2)) ->  | Q4: =IF(INDEX(toothOfTimeHike,numericItinerary($A4))="","",getPeakScore(Q$2)) ->  | R4: =IF(INDEX(inspirationPointHike,numericItinerary($A4))="","",getPeakScore(Q$2)) ->  | S4: =IF(INDEX(trailPeakHike,numericItinerary($A4))="","",getPeakScore(S$2)) ->  | T4: =IF(INDEX(mountaineeringHike,numericItinerary($A4))="","",getPeakScore(T$2)) -> 189 | U4: =IF(areaImportant<>"y","",IF(Itineraries!P4<>"Y","",getareascore(U$2))) ->  | V4: =IF(areaImportant<>"y","",IF(Itineraries!Q4<>"Y","",getareascore(V$2))) -> 150 | W4: =IF(areaImportant<>"y","",IF(Itineraries!R4<>"Y","",getareascore(W$2))) -> 1000 | X4: =IF(areaImportant<>"y","",IF(Itineraries!S4<>"Y","",getareascore(X$2))) ->  | Y4: =IF(ItineraryPrograms!C4="y",getScoreFactor("Program",Y$2),"") ->  | Z4: =IF(ItineraryPrograms!D4="y",getScoreFactor("Program",Z$2),"") ->  | AA4: =IF(ItineraryPrograms!E4="y",getScoreFactor("Program",AA$2),"") ->  | AB4: =IF(ItineraryPrograms!F4="y",getScoreFactor("Program",AB$2),"") ->  | AC4: =IF(ItineraryPrograms!G4="y",getScoreFactor("Program",AC$2),"") ->  | AD4: =IF(ItineraryPrograms!H4="y",getScoreFactor("Program",AD$2),"") ->  | AE4: =IF(ItineraryPrograms!I4="y",getScoreFactor("Program",AE$2),"") ->  | AF4: =IF(ItineraryPrograms!J4="y",getScoreFactor("Program",AF$2),"") ->  | AG4: =IF(ItineraryPrograms!K4="y",getScoreFactor("Program",AG$2),"") ->  | AH4: =IF(ItineraryPrograms!L4="y",getScoreFactor("Program",AH$2),"") ->  | AI4: =IF(ItineraryPrograms!M4="y",getScoreFactor("Program",AI$2),"") -> 109.5 | AJ4: =IF(ItineraryPrograms!N4="y",getScoreFactor("Program",AJ$2),"") -> 109.5 | AK4: =IF(ItineraryPrograms!O4="y",getScoreFactor("Program",AK$2),"") -> 111 | AL4: =IF(ItineraryPrograms!P4="y",getScoreFactor("Program",AL$2),"") ->  | AM4: =IF(ItineraryPrograms!Q4="y",getScoreFactor("Program",AM$2),"") ->  | AN4: =IF(ItineraryPrograms!R4="y",getScoreFactor("Program",AN$2),"") ->  | AO4: =IF(ItineraryPrograms!S4="y",getScoreFactor("Program",AO$2),"") ->  | AP4: =IF(ItineraryPrograms!T4="y",getScoreFactor("Program",AP$2),"") ->  | AQ4: =IF(ItineraryPrograms!U4="y",getScoreFactor("Program",AQ$2),"") ->  | AR4: =IF(ItineraryPrograms!V4="y",getScoreFactor("Program",AR$2),"") ->  | AS4: =IF(ItineraryPrograms!W4="y",getScoreFactor("Program",AS$2),"") ->  | AT4: =IF(ItineraryPrograms!X4="y",getScoreFactor("Program",AT$2),"") ->  | AU4: =IF(ItineraryPrograms!Y4="y",getScoreFactor("Program",AU$2),"") ->  | AV4: =IF(ItineraryPrograms!Z4="y",getScoreFactor("Program",AV$2),"") -> 162 | AW4: =IF(ItineraryPrograms!AA4="y",getScoreFactor("Program",AW$2),"") ->  | AX4: =IF(ItineraryPrograms!AB4="y",getScoreFactor("Program",AX$2),"") ->  | AY4: =IF(ItineraryPrograms!AC4="y",getScoreFactor("Program",AY$2),"") ->  | AZ4: =IF(ItineraryPrograms!AD4="y",getScoreFactor("Program",AZ$2),"") ->  | BA4: =IF(ItineraryPrograms!AE4="y",getScoreFactor("Program",BA$2),"") ->  | BB4: =IF(ItineraryPrograms!AF4="y",getScoreFactor("Program",BB$2),"") ->  | BC4: =IF(ItineraryPrograms!AG4="y",getScoreFactor("Program",BC$2),"") ->  | BD4: =IF(ItineraryPrograms!AH4="y",getScoreFactor("Program",BD$2),"") ->  | BE4: =IF(ItineraryPrograms!AI4="y",getScoreFactor("Program",BE$2),"") ->  | BF4: =IF(ItineraryPrograms!AJ4="y",getScoreFactor("Program",BF$2),"") ->  | BG4: =IF(ItineraryPrograms!AK4="y",getScoreFactor("Program",BG$2),"") ->  | BH4: =IF(ItineraryPrograms!AL4="y",getScoreFactor("Program",BH$2),"") ->  | BI4: =IF(ItineraryPrograms!AM4="y",getScoreFactor("Program",BI$2),"") -> 235.5 | BJ4: =IF(ItineraryPrograms!AN4="y",getScoreFactor("Program",BJ$2),"") ->  | BK4: =IF(ItineraryPrograms!AO4="y",getScoreFactor("Program",BK$2),"") -> 181.5 | BL4: =IF(ItineraryPrograms!AP4="y",getScoreFactor("Program",BL$2),"") -> 220.5 | BM4: =IF(ItineraryPrograms!AQ4="y",getScoreFactor("Program",BM$2),"") ->  | BN4: =IF(ItineraryPrograms!AR4="y",getScoreFactor("Program",BN$2),"") ->  | BO4: =IF(ItineraryPrograms!AS4="y",getScoreFactor("Program",BO$2),"") -> 235.5 | BP4: =IF(ItineraryPrograms!AT4="y",getScoreFactor("Program",BP$2),"") -> 193.5 | BQ4: =IF(ItineraryPrograms!AU4="y",getScoreFactor("Program",BQ$2),"") ->  | BR4: =IF(ItineraryPrograms!AV4="y",getScoreFactor("Program",BR$2),"") ->  | BS4: =IF(ItineraryPrograms!AW4="y",getScoreFactor("Program",BS$2),"") -> 202.5 | BT4: =IF(ItineraryPrograms!AX4="y",getScoreFactor("Program",BT$2),"") -> 207 | BU4: =IF(ItineraryPrograms!AY4="y",getScoreFactor("Program",BU$2),"") ->  | BV4: =IF(ItineraryPrograms!AZ4="y",getScoreFactor("Program",BV$2),"") ->  | BW4: =IF(ItineraryPrograms!BA4="y",getScoreFactor("Program",BW$2),"") ->  | BX4: =IF(ItineraryPrograms!BB4="y",getScoreFactor("Program",BX$2),"") ->  | BY4: =IF(ItineraryPrograms!BC4="y",getScoreFactor("Program",BY$2),"") -> 133.5 | BZ4: =IF(ItineraryPrograms!BD4="y",getScoreFactor("Program",BZ$2),"") -> 285 | CA4: =IF(ItineraryPrograms!BE4="y",getScoreFactor("Program",CA$2),"") ->  | CB4: =IF(ItineraryPrograms!BF4="y",getScoreFactor("Program",CB$2),"") -> 
A5: =Itineraries!A5 -> 9-3 | B5: 9679.25 | C5: =getScoreFactor(C$2,itineraryCamps!C6) -> 2500 | D5: =getScoreFactor(D$2,"Miles") *itineraryCamps!D6 -> 4100 | E5: =getScoreFactor(E$2,Itineraries!B5) -> 20 | F5: =getScoreFactor(F$2,Itineraries!C5) -> 60 | G5: =getScoreFactor(G$2,Itineraries!E5) -> 25 | H5: =getScoreFactor(H$2,Itineraries!H5) -> 200 | I5: =getScoreFactor(I$2,Itineraries!G5) -> 75 | J5: =getScoreFactor(J$2,Itineraries!J5) -> 70 | K5: =getScoreFactor(K$2,Itineraries!K5) -> 80 | L5: =getScoreFactor(L$2,Itineraries!L5) -> 0 | M5: =IF(INDEX(startingTA,numericItinerary($A5))=$M$2,getScoreFactor(M$2,"y"),getScoreFactor(M$2,"n")) -> 0 | N5: =IF(INDEX(endingTA,numericItinerary($A5))=$N$2,getScoreFactor(N$2,"y"),getScoreFactor(N$2,"n")) -> 0 | O5: =IF(INDEX(baldyMountainHike,numericItinerary($A5))="","",getPeakScore(O$2)) ->  | P5: =IF(INDEX(mountPhillipsHike,numericItinerary($A5))="","",getPeakScore(P$2)) ->  | Q5: =IF(INDEX(toothOfTimeHike,numericItinerary($A5))="","",getPeakScore(Q$2)) -> 303.75 | R5: =IF(INDEX(inspirationPointHike,numericItinerary($A5))="","",getPeakScore(Q$2)) ->  | S5: =IF(INDEX(trailPeakHike,numericItinerary($A5))="","",getPeakScore(S$2)) ->  | T5: =IF(INDEX(mountaineeringHike,numericItinerary($A5))="","",getPeakScore(T$2)) -> 189 | U5: =IF(areaImportant<>"y","",IF(Itineraries!P5<>"Y","",getareascore(U$2))) ->  | V5: =IF(areaImportant<>"y","",IF(Itineraries!Q5<>"Y","",getareascore(V$2))) -> 150 | W5: =IF(areaImportant<>"y","",IF(Itineraries!R5<>"Y","",getareascore(W$2))) ->  | X5: =IF(areaImportant<>"y","",IF(Itineraries!S5<>"Y","",getareascore(X$2))) ->  | Y5: =IF(ItineraryPrograms!C5="y",getScoreFactor("Program",Y$2),"") -> 228 | Z5: =IF(ItineraryPrograms!D5="y",getScoreFactor("Program",Z$2),"") ->  | AA5: =IF(ItineraryPrograms!E5="y",getScoreFactor("Program",AA$2),"") ->  | AB5: =IF(ItineraryPrograms!F5="y",getScoreFactor("Program",AB$2),"") ->  | AC5: =IF(ItineraryPrograms!G5="y",getScoreFactor("Program",AC$2),"") ->  | AD5: =IF(ItineraryPrograms!H5="y",getScoreFactor("Program",AD$2),"") ->  | AE5: =IF(ItineraryPrograms!I5="y",getScoreFactor("Program",AE$2),"") ->  | AF5: =IF(ItineraryPrograms!J5="y",getScoreFactor("Program",AF$2),"") -> 126 | AG5: =IF(ItineraryPrograms!K5="y",getScoreFactor("Program",AG$2),"") ->  | AH5: =IF(ItineraryPrograms!L5="y",getScoreFactor("Program",AH$2),"") ->  | AI5: =IF(ItineraryPrograms!M5="y",getScoreFactor("Program",AI$2),"") -> 109.5 | AJ5: =IF(ItineraryPrograms!N5="y",getScoreFactor("Program",AJ$2),"") -> 109.5 | AK5: =IF(ItineraryPrograms!O5="y",getScoreFactor("Program",AK$2),"") -> 111 | AL5: =IF(ItineraryPrograms!P5="y",getScoreFactor("Program",AL$2),"") ->  | AM5: =IF(ItineraryPrograms!Q5="y",getScoreFactor("Program",AM$2),"") ->  | AN5: =IF(ItineraryPrograms!R5="y",getScoreFactor("Program",AN$2),"") ->  | AO5: =IF(ItineraryPrograms!S5="y",getScoreFactor("Program",AO$2),"") ->  | AP5: =IF(ItineraryPrograms!T5="y",getScoreFactor("Program",AP$2),"") ->  | AQ5: =IF(ItineraryPrograms!U5="y",getScoreFactor("Program",AQ$2),"") ->  | AR5: =IF(ItineraryPrograms!V5="y",getScoreFactor("Program",AR$2),"") ->  | AS5: =IF(ItineraryPrograms!W5="y",getScoreFactor("Program",AS$2),"") ->  | AT5: =IF(ItineraryPrograms!X5="y",getScoreFactor("Program",AT$2),"") -> 129 | AU5: =IF(ItineraryPrograms!Y5="y",getScoreFactor("Program",AU$2),"") ->  | AV5: =IF(ItineraryPrograms!Z5="y",getScoreFactor("Program",AV$2),"") ->  | AW5: =IF(ItineraryPrograms!AA5="y",getScoreFactor("Program",AW$2),"") ->  | AX5: =IF(ItineraryPrograms!AB5="y",getScoreFactor("Program",AX$2),"") ->  | AY5: =IF(ItineraryPrograms!AC5="y",getScoreFactor("Program",AY$2),"") ->  | AZ5: =IF(ItineraryPrograms!AD5="y",getScoreFactor("Program",AZ$2),"") ->  | BA5: =IF(ItineraryPrograms!AE5="y",getScoreFactor("Program",BA$2),"") ->  | BB5: =IF(ItineraryPrograms!AF5="y",getScoreFactor("Program",BB$2),"") ->  | BC5: =IF(ItineraryPrograms!AG5="y",getScoreFactor("Program",BC$2),"") ->  | BD5: =IF(ItineraryPrograms!AH5="y",getScoreFactor("Program",BD$2),"") -> 91.5 | BE5: =IF(ItineraryPrograms!AI5="y",getScoreFactor("Program",BE$2),"") ->  | BF5: =IF(ItineraryPrograms!AJ5="y",getScoreFactor("Program",BF$2),"") ->  | BG5: =IF(ItineraryPrograms!AK5="y",getScoreFactor("Program",BG$2),"") ->  | BH5: =IF(ItineraryPrograms!AL5="y",getScoreFactor("Program",BH$2),"") ->  | BI5: =IF(ItineraryPrograms!AM5="y",getScoreFactor("Program",BI$2),"") -> 235.5 | BJ5: =IF(ItineraryPrograms!AN5="y",getScoreFactor("Program",BJ$2),"") ->  | BK5: =IF(ItineraryPrograms!AO5="y",getScoreFactor("Program",BK$2),"") -> 181.5 | BL5: =IF(ItineraryPrograms!AP5="y",getScoreFactor("Program",BL$2),"") ->  | BM5: =IF(ItineraryPrograms!AQ5="y",getScoreFactor("Program",BM$2),"") ->  | BN5: =IF(ItineraryPrograms!AR5="y",getScoreFactor("Program",BN$2),"") -> 255 | BO5: =IF(ItineraryPrograms!AS5="y",getScoreFactor("Program",BO$2),"") ->  | BP5: =IF(ItineraryPrograms!AT5="y",getScoreFactor("Program",BP$2),"") -> 193.5 | BQ5: =IF(ItineraryPrograms!AU5="y",getScoreFactor("Program",BQ$2),"") ->  | BR5: =IF(ItineraryPrograms!AV5="y",getScoreFactor("Program",BR$2),"") -> 136.5 | BS5: =IF(ItineraryPrograms!AW5="y",getScoreFactor("Program",BS$2),"") ->  | BT5: =IF(ItineraryPrograms!AX5="y",getScoreFactor("Program",BT$2),"") ->  | BU5: =IF(ItineraryPrograms!AY5="y",getScoreFactor("Program",BU$2),"") ->  | BV5: =IF(ItineraryPrograms!AZ5="y",getScoreFactor("Program",BV$2),"") ->  | BW5: =IF(ItineraryPrograms!BA5="y",getScoreFactor("Program",BW$2),"") ->  | BX5: =IF(ItineraryPrograms!BB5="y",getScoreFactor("Program",BX$2),"") -> 235.5 | BY5: =IF(ItineraryPrograms!BC5="y",getScoreFactor("Program",BY$2),"") -> 133.5 | BZ5: =IF(ItineraryPrograms!BD5="y",getScoreFactor("Program",BZ$2),"") ->  | CA5: =IF(ItineraryPrograms!BE5="y",getScoreFactor("Program",CA$2),"") ->  | CB5: =IF(ItineraryPrograms!BF5="y",getScoreFactor("Program",CB$2),"") -> 
A6: =Itineraries!A6 -> 9-4 | B6: 11543.41667 | C6: =getScoreFactor(C$2,itineraryCamps!C7) -> 2666.666667 | D6: =getScoreFactor(D$2,"Miles") *itineraryCamps!D7 -> 4200 | E6: =getScoreFactor(E$2,Itineraries!B6) -> 40 | F6: =getScoreFactor(F$2,Itineraries!C6) -> 80 | G6: =getScoreFactor(G$2,Itineraries!E6) -> 75 | H6: =getScoreFactor(H$2,Itineraries!H6) -> 250 | I6: =getScoreFactor(I$2,Itineraries!G6) -> 75 | J6: =getScoreFactor(J$2,Itineraries!J6) -> 70 | K6: =getScoreFactor(K$2,Itineraries!K6) -> 80 | L6: =getScoreFactor(L$2,Itineraries!L6) -> 300 | M6: =IF(INDEX(startingTA,numericItinerary($A6))=$M$2,getScoreFactor(M$2,"y"),getScoreFactor(M$2,"n")) -> 0 | N6: =IF(INDEX(endingTA,numericItinerary($A6))=$N$2,getScoreFactor(N$2,"y"),getScoreFactor(N$2,"n")) -> 500 | O6: =IF(INDEX(baldyMountainHike,numericItinerary($A6))="","",getPeakScore(O$2)) ->  | P6: =IF(INDEX(mountPhillipsHike,numericItinerary($A6))="","",getPeakScore(P$2)) ->  | Q6: =IF(INDEX(toothOfTimeHike,numericItinerary($A6))="","",getPeakScore(Q$2)) -> 303.75 | R6: =IF(INDEX(inspirationPointHike,numericItinerary($A6))="","",getPeakScore(Q$2)) ->  | S6: =IF(INDEX(trailPeakHike,numericItinerary($A6))="","",getPeakScore(S$2)) -> 91.5 | T6: =IF(INDEX(mountaineeringHike,numericItinerary($A6))="","",getPeakScore(T$2)) -> 189 | U6: =IF(areaImportant<>"y","",IF(Itineraries!P6<>"Y","",getareascore(U$2))) -> 200 | V6: =IF(areaImportant<>"y","",IF(Itineraries!Q6<>"Y","",getareascore(V$2))) -> 150 | W6: =IF(areaImportant<>"y","",IF(Itineraries!R6<>"Y","",getareascore(W$2))) ->  | X6: =IF(areaImportant<>"y","",IF(Itineraries!S6<>"Y","",getareascore(X$2))) ->  | Y6: =IF(ItineraryPrograms!C6="y",getScoreFactor("Program",Y$2),"") ->  | Z6: =IF(ItineraryPrograms!D6="y",getScoreFactor("Program",Z$2),"") ->  | AA6: =IF(ItineraryPrograms!E6="y",getScoreFactor("Program",AA$2),"") ->  | AB6: =IF(ItineraryPrograms!F6="y",getScoreFactor("Program",AB$2),"") ->  | AC6: =IF(ItineraryPrograms!G6="y",getScoreFactor("Program",AC$2),"") ->  | AD6: =IF(ItineraryPrograms!H6="y",getScoreFactor("Program",AD$2),"") ->  | AE6: =IF(ItineraryPrograms!I6="y",getScoreFactor("Program",AE$2),"") ->  | AF6: =IF(ItineraryPrograms!J6="y",getScoreFactor("Program",AF$2),"") ->  | AG6: =IF(ItineraryPrograms!K6="y",getScoreFactor("Program",AG$2),"") -> 130.5 | AH6: =IF(ItineraryPrograms!L6="y",getScoreFactor("Program",AH$2),"") ->  | AI6: =IF(ItineraryPrograms!M6="y",getScoreFactor("Program",AI$2),"") -> 109.5 | AJ6: =IF(ItineraryPrograms!N6="y",getScoreFactor("Program",AJ$2),"") -> 109.5 | AK6: =IF(ItineraryPrograms!O6="y",getScoreFactor("Program",AK$2),"") -> 111 | AL6: =IF(ItineraryPrograms!P6="y",getScoreFactor("Program",AL$2),"") -> 114 | AM6: =IF(ItineraryPrograms!Q6="y",getScoreFactor("Program",AM$2),"") -> 123 | AN6: =IF(ItineraryPrograms!R6="y",getScoreFactor("Program",AN$2),"") -> 126 | AO6: =IF(ItineraryPrograms!S6="y",getScoreFactor("Program",AO$2),"") -> 106.5 | AP6: =IF(ItineraryPrograms!T6="y",getScoreFactor("Program",AP$2),"") -> 145.5 | AQ6: =IF(ItineraryPrograms!U6="y",getScoreFactor("Program",AQ$2),"") -> 93 | AR6: =IF(ItineraryPrograms!V6="y",getScoreFactor("Program",AR$2),"") ->  | AS6: =IF(ItineraryPrograms!W6="y",getScoreFactor("Program",AS$2),"") ->  | AT6: =IF(ItineraryPrograms!X6="y",getScoreFactor("Program",AT$2),"") ->  | AU6: =IF(ItineraryPrograms!Y6="y",getScoreFactor("Program",AU$2),"") ->  | AV6: =IF(ItineraryPrograms!Z6="y",getScoreFactor("Program",AV$2),"") ->  | AW6: =IF(ItineraryPrograms!AA6="y",getScoreFactor("Program",AW$2),"") ->  | AX6: =IF(ItineraryPrograms!AB6="y",getScoreFactor("Program",AX$2),"") ->  | AY6: =IF(ItineraryPrograms!AC6="y",getScoreFactor("Program",AY$2),"") -> 150 | AZ6: =IF(ItineraryPrograms!AD6="y",getScoreFactor("Program",AZ$2),"") ->  | BA6: =IF(ItineraryPrograms!AE6="y",getScoreFactor("Program",BA$2),"") ->  | BB6: =IF(ItineraryPrograms!AF6="y",getScoreFactor("Program",BB$2),"") ->  | BC6: =IF(ItineraryPrograms!AG6="y",getScoreFactor("Program",BC$2),"") ->  | BD6: =IF(ItineraryPrograms!AH6="y",getScoreFactor("Program",BD$2),"") -> 91.5 | BE6: =IF(ItineraryPrograms!AI6="y",getScoreFactor("Program",BE$2),"") ->  | BF6: =IF(ItineraryPrograms!AJ6="y",getScoreFactor("Program",BF$2),"") -> 220.5 | BG6: =IF(ItineraryPrograms!AK6="y",getScoreFactor("Program",BG$2),"") ->  | BH6: =IF(ItineraryPrograms!AL6="y",getScoreFactor("Program",BH$2),"") -> 255 | BI6: =IF(ItineraryPrograms!AM6="y",getScoreFactor("Program",BI$2),"") -> 235.5 | BJ6: =IF(ItineraryPrograms!AN6="y",getScoreFactor("Program",BJ$2),"") ->  | BK6: =IF(ItineraryPrograms!AO6="y",getScoreFactor("Program",BK$2),"") ->  | BL6: =IF(ItineraryPrograms!AP6="y",getScoreFactor("Program",BL$2),"") ->  | BM6: =IF(ItineraryPrograms!AQ6="y",getScoreFactor("Program",BM$2),"") ->  | BN6: =IF(ItineraryPrograms!AR6="y",getScoreFactor("Program",BN$2),"") ->  | BO6: =IF(ItineraryPrograms!AS6="y",getScoreFactor("Program",BO$2),"") ->  | BP6: =IF(ItineraryPrograms!AT6="y",getScoreFactor("Program",BP$2),"") ->  | BQ6: =IF(ItineraryPrograms!AU6="y",getScoreFactor("Program",BQ$2),"") -> 151.5 | BR6: =IF(ItineraryPrograms!AV6="y",getScoreFactor("Program",BR$2),"") ->  | BS6: =IF(ItineraryPrograms!AW6="y",getScoreFactor("Program",BS$2),"") ->  | BT6: =IF(ItineraryPrograms!AX6="y",getScoreFactor("Program",BT$2),"") ->  | BU6: =IF(ItineraryPrograms!AY6="y",getScoreFactor("Program",BU$2),"") ->  | BV6: =IF(ItineraryPrograms!AZ6="y",getScoreFactor("Program",BV$2),"") ->  | BW6: =IF(ItineraryPrograms!BA6="y",getScoreFactor("Program",BW$2),"") ->  | BX6: =IF(ItineraryPrograms!BB6="y",getScoreFactor("Program",BX$2),"") ->  | BY6: =IF(ItineraryPrograms!BC6="y",getScoreFactor("Program",BY$2),"") -> 133.5 | BZ6: =IF(ItineraryPrograms!BD6="y",getScoreFactor("Program",BZ$2),"") -> 285 | CA6: =IF(ItineraryPrograms!BE6="y",getScoreFactor("Program",CA$2),"") ->  | CB6: =IF(ItineraryPrograms!BF6="y",getScoreFactor("Program",CB$2),"") -> 
A7: =Itineraries!A7 -> 9-5 | B7: 10674.16667 | C7: =getScoreFactor(C$2,itineraryCamps!C8) -> 2666.666667 | D7: =getScoreFactor(D$2,"Miles") *itineraryCamps!D8 -> 3600 | E7: =getScoreFactor(E$2,Itineraries!B7) -> 30 | F7: =getScoreFactor(F$2,Itineraries!C7) -> 90 | G7: =getScoreFactor(G$2,Itineraries!E7) -> 25 | H7: =getScoreFactor(H$2,Itineraries!H7) -> 225 | I7: =getScoreFactor(I$2,Itineraries!G7) -> 100 | J7: =getScoreFactor(J$2,Itineraries!J7) -> 90 | K7: =getScoreFactor(K$2,Itineraries!K7) -> 90 | L7: =getScoreFactor(L$2,Itineraries!L7) -> 200 | M7: =IF(INDEX(startingTA,numericItinerary($A7))=$M$2,getScoreFactor(M$2,"y"),getScoreFactor(M$2,"n")) -> 0 | N7: =IF(INDEX(endingTA,numericItinerary($A7))=$N$2,getScoreFactor(N$2,"y"),getScoreFactor(N$2,"n")) -> 0 | O7: =IF(INDEX(baldyMountainHike,numericItinerary($A7))="","",getPeakScore(O$2)) -> 300 | P7: =IF(INDEX(mountPhillipsHike,numericItinerary($A7))="","",getPeakScore(P$2)) ->  | Q7: =IF(INDEX(toothOfTimeHike,numericItinerary($A7))="","",getPeakScore(Q$2)) ->  | R7: =IF(INDEX(inspirationPointHike,numericItinerary($A7))="","",getPeakScore(Q$2)) ->  | S7: =IF(INDEX(trailPeakHike,numericItinerary($A7))="","",getPeakScore(S$2)) ->  | T7: =IF(INDEX(mountaineeringHike,numericItinerary($A7))="","",getPeakScore(T$2)) -> 189 | U7: =IF(areaImportant<>"y","",IF(Itineraries!P7<>"Y","",getareascore(U$2))) ->  | V7: =IF(areaImportant<>"y","",IF(Itineraries!Q7<>"Y","",getareascore(V$2))) ->  | W7: =IF(areaImportant<>"y","",IF(Itineraries!R7<>"Y","",getareascore(W$2))) -> 1000 | X7: =IF(areaImportant<>"y","",IF(Itineraries!S7<>"Y","",getareascore(X$2))) ->  | Y7: =IF(ItineraryPrograms!C7="y",getScoreFactor("Program",Y$2),"") ->  | Z7: =IF(ItineraryPrograms!D7="y",getScoreFactor("Program",Z$2),"") ->  | AA7: =IF(ItineraryPrograms!E7="y",getScoreFactor("Program",AA$2),"") ->  | AB7: =IF(ItineraryPrograms!F7="y",getScoreFactor("Program",AB$2),"") ->  | AC7: =IF(ItineraryPrograms!G7="y",getScoreFactor("Program",AC$2),"") ->  | AD7: =IF(ItineraryPrograms!H7="y",getScoreFactor("Program",AD$2),"") -> 166.5 | AE7: =IF(ItineraryPrograms!I7="y",getScoreFactor("Program",AE$2),"") -> 166.5 | AF7: =IF(ItineraryPrograms!J7="y",getScoreFactor("Program",AF$2),"") ->  | AG7: =IF(ItineraryPrograms!K7="y",getScoreFactor("Program",AG$2),"") ->  | AH7: =IF(ItineraryPrograms!L7="y",getScoreFactor("Program",AH$2),"") ->  | AI7: =IF(ItineraryPrograms!M7="y",getScoreFactor("Program",AI$2),"") -> 109.5 | AJ7: =IF(ItineraryPrograms!N7="y",getScoreFactor("Program",AJ$2),"") ->  | AK7: =IF(ItineraryPrograms!O7="y",getScoreFactor("Program",AK$2),"") ->  | AL7: =IF(ItineraryPrograms!P7="y",getScoreFactor("Program",AL$2),"") ->  | AM7: =IF(ItineraryPrograms!Q7="y",getScoreFactor("Program",AM$2),"") -> 123 | AN7: =IF(ItineraryPrograms!R7="y",getScoreFactor("Program",AN$2),"") ->  | AO7: =IF(ItineraryPrograms!S7="y",getScoreFactor("Program",AO$2),"") ->  | AP7: =IF(ItineraryPrograms!T7="y",getScoreFactor("Program",AP$2),"") ->  | AQ7: =IF(ItineraryPrograms!U7="y",getScoreFactor("Program",AQ$2),"") -> 93 | AR7: =IF(ItineraryPrograms!V7="y",getScoreFactor("Program",AR$2),"") ->  | AS7: =IF(ItineraryPrograms!W7="y",getScoreFactor("Program",AS$2),"") -> 114 | AT7: =IF(ItineraryPrograms!X7="y",getScoreFactor("Program",AT$2),"") -> 129 | AU7: =IF(ItineraryPrograms!Y7="y",getScoreFactor("Program",AU$2),"") ->  | AV7: =IF(ItineraryPrograms!Z7="y",getScoreFactor("Program",AV$2),"") -> 162 | AW7: =IF(ItineraryPrograms!AA7="y",getScoreFactor("Program",AW$2),"") ->  | AX7: =IF(ItineraryPrograms!AB7="y",getScoreFactor("Program",AX$2),"") ->  | AY7: =IF(ItineraryPrograms!AC7="y",getScoreFactor("Program",AY$2),"") ->  | AZ7: =IF(ItineraryPrograms!AD7="y",getScoreFactor("Program",AZ$2),"") -> 175.5 | BA7: =IF(ItineraryPrograms!AE7="y",getScoreFactor("Program",BA$2),"") ->  | BB7: =IF(ItineraryPrograms!AF7="y",getScoreFactor("Program",BB$2),"") ->  | BC7: =IF(ItineraryPrograms!AG7="y",getScoreFactor("Program",BC$2),"") -> 202.5 | BD7: =IF(ItineraryPrograms!AH7="y",getScoreFactor("Program",BD$2),"") ->  | BE7: =IF(ItineraryPrograms!AI7="y",getScoreFactor("Program",BE$2),"") ->  | BF7: =IF(ItineraryPrograms!AJ7="y",getScoreFactor("Program",BF$2),"") ->  | BG7: =IF(ItineraryPrograms!AK7="y",getScoreFactor("Program",BG$2),"") -> 210 | BH7: =IF(ItineraryPrograms!AL7="y",getScoreFactor("Program",BH$2),"") ->  | BI7: =IF(ItineraryPrograms!AM7="y",getScoreFactor("Program",BI$2),"") ->  | BJ7: =IF(ItineraryPrograms!AN7="y",getScoreFactor("Program",BJ$2),"") ->  | BK7: =IF(ItineraryPrograms!AO7="y",getScoreFactor("Program",BK$2),"") ->  | BL7: =IF(ItineraryPrograms!AP7="y",getScoreFactor("Program",BL$2),"") ->  | BM7: =IF(ItineraryPrograms!AQ7="y",getScoreFactor("Program",BM$2),"") -> 210 | BN7: =IF(ItineraryPrograms!AR7="y",getScoreFactor("Program",BN$2),"") ->  | BO7: =IF(ItineraryPrograms!AS7="y",getScoreFactor("Program",BO$2),"") ->  | BP7: =IF(ItineraryPrograms!AT7="y",getScoreFactor("Program",BP$2),"") ->  | BQ7: =IF(ItineraryPrograms!AU7="y",getScoreFactor("Program",BQ$2),"") ->  | BR7: =IF(ItineraryPrograms!AV7="y",getScoreFactor("Program",BR$2),"") ->  | BS7: =IF(ItineraryPrograms!AW7="y",getScoreFactor("Program",BS$2),"") ->  | BT7: =IF(ItineraryPrograms!AX7="y",getScoreFactor("Program",BT$2),"") ->  | BU7: =IF(ItineraryPrograms!AY7="y",getScoreFactor("Program",BU$2),"") -> 207 | BV7: =IF(ItineraryPrograms!AZ7="y",getScoreFactor("Program",BV$2),"") -> 207 | BW7: =IF(ItineraryPrograms!BA7="y",getScoreFactor("Program",BW$2),"") ->  | BX7: =IF(ItineraryPrograms!BB7="y",getScoreFactor("Program",BX$2),"") -> 235.5 | BY7: =IF(ItineraryPrograms!BC7="y",getScoreFactor("Program",BY$2),"") -> 133.5 | BZ7: =IF(ItineraryPrograms!BD7="y",getScoreFactor("Program",BZ$2),"") -> 285 | CA7: =IF(ItineraryPrograms!BE7="y",getScoreFactor("Program",CA$2),"") ->  | CB7: =IF(ItineraryPrograms!BF7="y",getScoreFactor("Program",CB$2),"") -> 
A8: =Itineraries!A8 -> 9-6 | B8: 13363.16667 | C8: =getScoreFactor(C$2,itineraryCamps!C9) -> 2666.666667 | D8: =getScoreFactor(D$2,"Miles") *itineraryCamps!D9 -> 6200 | E8: =getScoreFactor(E$2,Itineraries!B8) -> 30 | F8: =getScoreFactor(F$2,Itineraries!C8) -> 90 | G8: =getScoreFactor(G$2,Itineraries!E8) -> 100 | H8: =getScoreFactor(H$2,Itineraries!H8) -> 250 | I8: =getScoreFactor(I$2,Itineraries!G8) -> 75 | J8: =getScoreFactor(J$2,Itineraries!J8) -> 20 | K8: =getScoreFactor(K$2,Itineraries!K8) -> 50 | L8: =getScoreFactor(L$2,Itineraries!L8) -> 300 | M8: =IF(INDEX(startingTA,numericItinerary($A8))=$M$2,getScoreFactor(M$2,"y"),getScoreFactor(M$2,"n")) -> 0 | N8: =IF(INDEX(endingTA,numericItinerary($A8))=$N$2,getScoreFactor(N$2,"y"),getScoreFactor(N$2,"n")) -> 0 | O8: =IF(INDEX(baldyMountainHike,numericItinerary($A8))="","",getPeakScore(O$2)) ->  | P8: =IF(INDEX(mountPhillipsHike,numericItinerary($A8))="","",getPeakScore(P$2)) ->  | Q8: =IF(INDEX(toothOfTimeHike,numericItinerary($A8))="","",getPeakScore(Q$2)) ->  | R8: =IF(INDEX(inspirationPointHike,numericItinerary($A8))="","",getPeakScore(Q$2)) ->  | S8: =IF(INDEX(trailPeakHike,numericItinerary($A8))="","",getPeakScore(S$2)) ->  | T8: =IF(INDEX(mountaineeringHike,numericItinerary($A8))="","",getPeakScore(T$2)) -> 189 | U8: =IF(areaImportant<>"y","",IF(Itineraries!P8<>"Y","",getareascore(U$2))) ->  | V8: =IF(areaImportant<>"y","",IF(Itineraries!Q8<>"Y","",getareascore(V$2))) ->  | W8: =IF(areaImportant<>"y","",IF(Itineraries!R8<>"Y","",getareascore(W$2))) -> 1000 | X8: =IF(areaImportant<>"y","",IF(Itineraries!S8<>"Y","",getareascore(X$2))) -> 600 | Y8: =IF(ItineraryPrograms!C8="y",getScoreFactor("Program",Y$2),"") ->  | Z8: =IF(ItineraryPrograms!D8="y",getScoreFactor("Program",Z$2),"") ->  | AA8: =IF(ItineraryPrograms!E8="y",getScoreFactor("Program",AA$2),"") ->  | AB8: =IF(ItineraryPrograms!F8="y",getScoreFactor("Program",AB$2),"") ->  | AC8: =IF(ItineraryPrograms!G8="y",getScoreFactor("Program",AC$2),"") ->  | AD8: =IF(ItineraryPrograms!H8="y",getScoreFactor("Program",AD$2),"") -> 166.5 | AE8: =IF(ItineraryPrograms!I8="y",getScoreFactor("Program",AE$2),"") -> 166.5 | AF8: =IF(ItineraryPrograms!J8="y",getScoreFactor("Program",AF$2),"") ->  | AG8: =IF(ItineraryPrograms!K8="y",getScoreFactor("Program",AG$2),"") ->  | AH8: =IF(ItineraryPrograms!L8="y",getScoreFactor("Program",AH$2),"") ->  | AI8: =IF(ItineraryPrograms!M8="y",getScoreFactor("Program",AI$2),"") -> 109.5 | AJ8: =IF(ItineraryPrograms!N8="y",getScoreFactor("Program",AJ$2),"") -> 109.5 | AK8: =IF(ItineraryPrograms!O8="y",getScoreFactor("Program",AK$2),"") ->  | AL8: =IF(ItineraryPrograms!P8="y",getScoreFactor("Program",AL$2),"") ->  | AM8: =IF(ItineraryPrograms!Q8="y",getScoreFactor("Program",AM$2),"") ->  | AN8: =IF(ItineraryPrograms!R8="y",getScoreFactor("Program",AN$2),"") ->  | AO8: =IF(ItineraryPrograms!S8="y",getScoreFactor("Program",AO$2),"") -> 106.5 | AP8: =IF(ItineraryPrograms!T8="y",getScoreFactor("Program",AP$2),"") ->  | AQ8: =IF(ItineraryPrograms!U8="y",getScoreFactor("Program",AQ$2),"") -> 93 | AR8: =IF(ItineraryPrograms!V8="y",getScoreFactor("Program",AR$2),"") ->  | AS8: =IF(ItineraryPrograms!W8="y",getScoreFactor("Program",AS$2),"") ->  | AT8: =IF(ItineraryPrograms!X8="y",getScoreFactor("Program",AT$2),"") ->  | AU8: =IF(ItineraryPrograms!Y8="y",getScoreFactor("Program",AU$2),"") ->  | AV8: =IF(ItineraryPrograms!Z8="y",getScoreFactor("Program",AV$2),"") -> 162 | AW8: =IF(ItineraryPrograms!AA8="y",getScoreFactor("Program",AW$2),"") ->  | AX8: =IF(ItineraryPrograms!AB8="y",getScoreFactor("Program",AX$2),"") ->  | AY8: =IF(ItineraryPrograms!AC8="y",getScoreFactor("Program",AY$2),"") ->  | AZ8: =IF(ItineraryPrograms!AD8="y",getScoreFactor("Program",AZ$2),"") ->  | BA8: =IF(ItineraryPrograms!AE8="y",getScoreFactor("Program",BA$2),"") ->  | BB8: =IF(ItineraryPrograms!AF8="y",getScoreFactor("Program",BB$2),"") ->  | BC8: =IF(ItineraryPrograms!AG8="y",getScoreFactor("Program",BC$2),"") ->  | BD8: =IF(ItineraryPrograms!AH8="y",getScoreFactor("Program",BD$2),"") ->  | BE8: =IF(ItineraryPrograms!AI8="y",getScoreFactor("Program",BE$2),"") ->  | BF8: =IF(ItineraryPrograms!AJ8="y",getScoreFactor("Program",BF$2),"") -> 220.5 | BG8: =IF(ItineraryPrograms!AK8="y",getScoreFactor("Program",BG$2),"") ->  | BH8: =IF(ItineraryPrograms!AL8="y",getScoreFactor("Program",BH$2),"") -> 255 | BI8: =IF(ItineraryPrograms!AM8="y",getScoreFactor("Program",BI$2),"") ->  | BJ8: =IF(ItineraryPrograms!AN8="y",getScoreFactor("Program",BJ$2),"") -> 193.5 | BK8: =IF(ItineraryPrograms!AO8="y",getScoreFactor("Program",BK$2),"") ->  | BL8: =IF(ItineraryPrograms!AP8="y",getScoreFactor("Program",BL$2),"") ->  | BM8: =IF(ItineraryPrograms!AQ8="y",getScoreFactor("Program",BM$2),"") -> 210 | BN8: =IF(ItineraryPrograms!AR8="y",getScoreFactor("Program",BN$2),"") ->  | BO8: =IF(ItineraryPrograms!AS8="y",getScoreFactor("Program",BO$2),"") ->  | BP8: =IF(ItineraryPrograms!AT8="y",getScoreFactor("Program",BP$2),"") ->  | BQ8: =IF(ItineraryPrograms!AU8="y",getScoreFactor("Program",BQ$2),"") ->  | BR8: =IF(ItineraryPrograms!AV8="y",getScoreFactor("Program",BR$2),"") ->  | BS8: =IF(ItineraryPrograms!AW8="y",getScoreFactor("Program",BS$2),"") ->  | BT8: =IF(ItineraryPrograms!AX8="y",getScoreFactor("Program",BT$2),"") ->  | BU8: =IF(ItineraryPrograms!AY8="y",getScoreFactor("Program",BU$2),"") ->  | BV8: =IF(ItineraryPrograms!AZ8="y",getScoreFactor("Program",BV$2),"") -> 207 | BW8: =IF(ItineraryPrograms!BA8="y",getScoreFactor("Program",BW$2),"") -> 91.5 | BX8: =IF(ItineraryPrograms!BB8="y",getScoreFactor("Program",BX$2),"") ->  | BY8: =IF(ItineraryPrograms!BC8="y",getScoreFactor("Program",BY$2),"") -> 133.5 | BZ8: =IF(ItineraryPrograms!BD8="y",getScoreFactor("Program",BZ$2),"") -> 285 | CA8: =IF(ItineraryPrograms!BE8="y",getScoreFactor("Program",CA$2),"") ->  | CB8: =IF(ItineraryPrograms!BF8="y",getScoreFactor("Program",CB$2),"") -> 
A9: =Itineraries!A9 -> 9-7 | B9: 10761.08333 | C9: =getScoreFactor(C$2,itineraryCamps!C10) -> 2833.333333 | D9: =getScoreFactor(D$2,"Miles") *itineraryCamps!D10 -> 4200 | E9: =getScoreFactor(E$2,Itineraries!B9) -> 30 | F9: =getScoreFactor(F$2,Itineraries!C9) -> 70 | G9: =getScoreFactor(G$2,Itineraries!E9) -> 75 | H9: =getScoreFactor(H$2,Itineraries!H9) -> 250 | I9: =getScoreFactor(I$2,Itineraries!G9) -> 75 | J9: =getScoreFactor(J$2,Itineraries!J9) -> 110 | K9: =getScoreFactor(K$2,Itineraries!K9) -> 90 | L9: =getScoreFactor(L$2,Itineraries!L9) -> 0 | M9: =IF(INDEX(startingTA,numericItinerary($A9))=$M$2,getScoreFactor(M$2,"y"),getScoreFactor(M$2,"n")) -> 0 | N9: =IF(INDEX(endingTA,numericItinerary($A9))=$N$2,getScoreFactor(N$2,"y"),getScoreFactor(N$2,"n")) -> 0 | O9: =IF(INDEX(baldyMountainHike,numericItinerary($A9))="","",getPeakScore(O$2)) ->  | P9: =IF(INDEX(mountPhillipsHike,numericItinerary($A9))="","",getPeakScore(P$2)) -> 231.75 | Q9: =IF(INDEX(toothOfTimeHike,numericItinerary($A9))="","",getPeakScore(Q$2)) ->  | R9: =IF(INDEX(inspirationPointHike,numericItinerary($A9))="","",getPeakScore(Q$2)) ->  | S9: =IF(INDEX(trailPeakHike,numericItinerary($A9))="","",getPeakScore(S$2)) ->  | T9: =IF(INDEX(mountaineeringHike,numericItinerary($A9))="","",getPeakScore(T$2)) -> 189 | U9: =IF(areaImportant<>"y","",IF(Itineraries!P9<>"Y","",getareascore(U$2))) ->  | V9: =IF(areaImportant<>"y","",IF(Itineraries!Q9<>"Y","",getareascore(V$2))) -> 150 | W9: =IF(areaImportant<>"y","",IF(Itineraries!R9<>"Y","",getareascore(W$2))) ->  | X9: =IF(areaImportant<>"y","",IF(Itineraries!S9<>"Y","",getareascore(X$2))) ->  | Y9: =IF(ItineraryPrograms!C9="y",getScoreFactor("Program",Y$2),"") -> 228 | Z9: =IF(ItineraryPrograms!D9="y",getScoreFactor("Program",Z$2),"") ->  | AA9: =IF(ItineraryPrograms!E9="y",getScoreFactor("Program",AA$2),"") ->  | AB9: =IF(ItineraryPrograms!F9="y",getScoreFactor("Program",AB$2),"") -> 282 | AC9: =IF(ItineraryPrograms!G9="y",getScoreFactor("Program",AC$2),"") ->  | AD9: =IF(ItineraryPrograms!H9="y",getScoreFactor("Program",AD$2),"") ->  | AE9: =IF(ItineraryPrograms!I9="y",getScoreFactor("Program",AE$2),"") ->  | AF9: =IF(ItineraryPrograms!J9="y",getScoreFactor("Program",AF$2),"") ->  | AG9: =IF(ItineraryPrograms!K9="y",getScoreFactor("Program",AG$2),"") ->  | AH9: =IF(ItineraryPrograms!L9="y",getScoreFactor("Program",AH$2),"") ->  | AI9: =IF(ItineraryPrograms!M9="y",getScoreFactor("Program",AI$2),"") -> 109.5 | AJ9: =IF(ItineraryPrograms!N9="y",getScoreFactor("Program",AJ$2),"") ->  | AK9: =IF(ItineraryPrograms!O9="y",getScoreFactor("Program",AK$2),"") ->  | AL9: =IF(ItineraryPrograms!P9="y",getScoreFactor("Program",AL$2),"") ->  | AM9: =IF(ItineraryPrograms!Q9="y",getScoreFactor("Program",AM$2),"") -> 123 | AN9: =IF(ItineraryPrograms!R9="y",getScoreFactor("Program",AN$2),"") ->  | AO9: =IF(ItineraryPrograms!S9="y",getScoreFactor("Program",AO$2),"") ->  | AP9: =IF(ItineraryPrograms!T9="y",getScoreFactor("Program",AP$2),"") ->  | AQ9: =IF(ItineraryPrograms!U9="y",getScoreFactor("Program",AQ$2),"") ->  | AR9: =IF(ItineraryPrograms!V9="y",getScoreFactor("Program",AR$2),"") ->  | AS9: =IF(ItineraryPrograms!W9="y",getScoreFactor("Program",AS$2),"") ->  | AT9: =IF(ItineraryPrograms!X9="y",getScoreFactor("Program",AT$2),"") -> 129 | AU9: =IF(ItineraryPrograms!Y9="y",getScoreFactor("Program",AU$2),"") ->  | AV9: =IF(ItineraryPrograms!Z9="y",getScoreFactor("Program",AV$2),"") ->  | AW9: =IF(ItineraryPrograms!AA9="y",getScoreFactor("Program",AW$2),"") ->  | AX9: =IF(ItineraryPrograms!AB9="y",getScoreFactor("Program",AX$2),"") ->  | AY9: =IF(ItineraryPrograms!AC9="y",getScoreFactor("Program",AY$2),"") ->  | AZ9: =IF(ItineraryPrograms!AD9="y",getScoreFactor("Program",AZ$2),"") ->  | BA9: =IF(ItineraryPrograms!AE9="y",getScoreFactor("Program",BA$2),"") ->  | BB9: =IF(ItineraryPrograms!AF9="y",getScoreFactor("Program",BB$2),"") -> 189 | BC9: =IF(ItineraryPrograms!AG9="y",getScoreFactor("Program",BC$2),"") ->  | BD9: =IF(ItineraryPrograms!AH9="y",getScoreFactor("Program",BD$2),"") ->  | BE9: =IF(ItineraryPrograms!AI9="y",getScoreFactor("Program",BE$2),"") ->  | BF9: =IF(ItineraryPrograms!AJ9="y",getScoreFactor("Program",BF$2),"") ->  | BG9: =IF(ItineraryPrograms!AK9="y",getScoreFactor("Program",BG$2),"") ->  | BH9: =IF(ItineraryPrograms!AL9="y",getScoreFactor("Program",BH$2),"") ->  | BI9: =IF(ItineraryPrograms!AM9="y",getScoreFactor("Program",BI$2),"") ->  | BJ9: =IF(ItineraryPrograms!AN9="y",getScoreFactor("Program",BJ$2),"") ->  | BK9: =IF(ItineraryPrograms!AO9="y",getScoreFactor("Program",BK$2),"") -> 181.5 | BL9: =IF(ItineraryPrograms!AP9="y",getScoreFactor("Program",BL$2),"") -> 220.5 | BM9: =IF(ItineraryPrograms!AQ9="y",getScoreFactor("Program",BM$2),"") ->  | BN9: =IF(ItineraryPrograms!AR9="y",getScoreFactor("Program",BN$2),"") -> 255 | BO9: =IF(ItineraryPrograms!AS9="y",getScoreFactor("Program",BO$2),"") ->  | BP9: =IF(ItineraryPrograms!AT9="y",getScoreFactor("Program",BP$2),"") -> 193.5 | BQ9: =IF(ItineraryPrograms!AU9="y",getScoreFactor("Program",BQ$2),"") ->  | BR9: =IF(ItineraryPrograms!AV9="y",getScoreFactor("Program",BR$2),"") -> 136.5 | BS9: =IF(ItineraryPrograms!AW9="y",getScoreFactor("Program",BS$2),"") -> 202.5 | BT9: =IF(ItineraryPrograms!AX9="y",getScoreFactor("Program",BT$2),"") -> 207 | BU9: =IF(ItineraryPrograms!AY9="y",getScoreFactor("Program",BU$2),"") ->  | BV9: =IF(ItineraryPrograms!AZ9="y",getScoreFactor("Program",BV$2),"") ->  | BW9: =IF(ItineraryPrograms!BA9="y",getScoreFactor("Program",BW$2),"") ->  | BX9: =IF(ItineraryPrograms!BB9="y",getScoreFactor("Program",BX$2),"") ->  | BY9: =IF(ItineraryPrograms!BC9="y",getScoreFactor("Program",BY$2),"") ->  | BZ9: =IF(ItineraryPrograms!BD9="y",getScoreFactor("Program",BZ$2),"") ->  | CA9: =IF(ItineraryPrograms!BE9="y",getScoreFactor("Program",CA$2),"") ->  | CB9: =IF(ItineraryPrograms!BF9="y",getScoreFactor("Program",CB$2),"") -> 
A10: =Itineraries!A10 -> 9-8 | B10: 11933.83333 | C10: =getScoreFactor(C$2,itineraryCamps!C11) -> 2833.333333 | D10: =getScoreFactor(D$2,"Miles") *itineraryCamps!D11 -> 4400 | E10: =getScoreFactor(E$2,Itineraries!B10) -> 30 | F10: =getScoreFactor(F$2,Itineraries!C10) -> 90 | G10: =getScoreFactor(G$2,Itineraries!E10) -> 50 | H10: =getScoreFactor(H$2,Itineraries!H10) -> 250 | I10: =getScoreFactor(I$2,Itineraries!G10) -> 75 | J10: =getScoreFactor(J$2,Itineraries!J10) -> 50 | K10: =getScoreFactor(K$2,Itineraries!K10) -> 60 | L10: =getScoreFactor(L$2,Itineraries!L10) -> 300 | M10: =IF(INDEX(startingTA,numericItinerary($A10))=$M$2,getScoreFactor(M$2,"y"),getScoreFactor(M$2,"n")) -> 0 | N10: =IF(INDEX(endingTA,numericItinerary($A10))=$N$2,getScoreFactor(N$2,"y"),getScoreFactor(N$2,"n")) -> 0 | O10: =IF(INDEX(baldyMountainHike,numericItinerary($A10))="","",getPeakScore(O$2)) ->  | P10: =IF(INDEX(mountPhillipsHike,numericItinerary($A10))="","",getPeakScore(P$2)) ->  | Q10: =IF(INDEX(toothOfTimeHike,numericItinerary($A10))="","",getPeakScore(Q$2)) -> 303.75 | R10: =IF(INDEX(inspirationPointHike,numericItinerary($A10))="","",getPeakScore(Q$2)) -> 303.75 | S10: =IF(INDEX(trailPeakHike,numericItinerary($A10))="","",getPeakScore(S$2)) -> 91.5 | T10: =IF(INDEX(mountaineeringHike,numericItinerary($A10))="","",getPeakScore(T$2)) ->  | U10: =IF(areaImportant<>"y","",IF(Itineraries!P10<>"Y","",getareascore(U$2))) -> 200 | V10: =IF(areaImportant<>"y","",IF(Itineraries!Q10<>"Y","",getareascore(V$2))) ->  | W10: =IF(areaImportant<>"y","",IF(Itineraries!R10<>"Y","",getareascore(W$2))) ->  | X10: =IF(areaImportant<>"y","",IF(Itineraries!S10<>"Y","",getareascore(X$2))) ->  | Y10: =IF(ItineraryPrograms!C10="y",getScoreFactor("Program",Y$2),"") ->  | Z10: =IF(ItineraryPrograms!D10="y",getScoreFactor("Program",Z$2),"") ->  | AA10: =IF(ItineraryPrograms!E10="y",getScoreFactor("Program",AA$2),"") ->  | AB10: =IF(ItineraryPrograms!F10="y",getScoreFactor("Program",AB$2),"") ->  | AC10: =IF(ItineraryPrograms!G10="y",getScoreFactor("Program",AC$2),"") -> 162 | AD10: =IF(ItineraryPrograms!H10="y",getScoreFactor("Program",AD$2),"") -> 166.5 | AE10: =IF(ItineraryPrograms!I10="y",getScoreFactor("Program",AE$2),"") -> 166.5 | AF10: =IF(ItineraryPrograms!J10="y",getScoreFactor("Program",AF$2),"") ->  | AG10: =IF(ItineraryPrograms!K10="y",getScoreFactor("Program",AG$2),"") -> 130.5 | AH10: =IF(ItineraryPrograms!L10="y",getScoreFactor("Program",AH$2),"") ->  | AI10: =IF(ItineraryPrograms!M10="y",getScoreFactor("Program",AI$2),"") -> 109.5 | AJ10: =IF(ItineraryPrograms!N10="y",getScoreFactor("Program",AJ$2),"") -> 109.5 | AK10: =IF(ItineraryPrograms!O10="y",getScoreFactor("Program",AK$2),"") -> 111 | AL10: =IF(ItineraryPrograms!P10="y",getScoreFactor("Program",AL$2),"") -> 114 | AM10: =IF(ItineraryPrograms!Q10="y",getScoreFactor("Program",AM$2),"") ->  | AN10: =IF(ItineraryPrograms!R10="y",getScoreFactor("Program",AN$2),"") ->  | AO10: =IF(ItineraryPrograms!S10="y",getScoreFactor("Program",AO$2),"") -> 106.5 | AP10: =IF(ItineraryPrograms!T10="y",getScoreFactor("Program",AP$2),"") -> 145.5 | AQ10: =IF(ItineraryPrograms!U10="y",getScoreFactor("Program",AQ$2),"") -> 93 | AR10: =IF(ItineraryPrograms!V10="y",getScoreFactor("Program",AR$2),"") -> 156 | AS10: =IF(ItineraryPrograms!W10="y",getScoreFactor("Program",AS$2),"") ->  | AT10: =IF(ItineraryPrograms!X10="y",getScoreFactor("Program",AT$2),"") ->  | AU10: =IF(ItineraryPrograms!Y10="y",getScoreFactor("Program",AU$2),"") ->  | AV10: =IF(ItineraryPrograms!Z10="y",getScoreFactor("Program",AV$2),"") ->  | AW10: =IF(ItineraryPrograms!AA10="y",getScoreFactor("Program",AW$2),"") ->  | AX10: =IF(ItineraryPrograms!AB10="y",getScoreFactor("Program",AX$2),"") ->  | AY10: =IF(ItineraryPrograms!AC10="y",getScoreFactor("Program",AY$2),"") ->  | AZ10: =IF(ItineraryPrograms!AD10="y",getScoreFactor("Program",AZ$2),"") ->  | BA10: =IF(ItineraryPrograms!AE10="y",getScoreFactor("Program",BA$2),"") -> 154.5 | BB10: =IF(ItineraryPrograms!AF10="y",getScoreFactor("Program",BB$2),"") ->  | BC10: =IF(ItineraryPrograms!AG10="y",getScoreFactor("Program",BC$2),"") -> 202.5 | BD10: =IF(ItineraryPrograms!AH10="y",getScoreFactor("Program",BD$2),"") -> 91.5 | BE10: =IF(ItineraryPrograms!AI10="y",getScoreFactor("Program",BE$2),"") ->  | BF10: =IF(ItineraryPrograms!AJ10="y",getScoreFactor("Program",BF$2),"") -> 220.5 | BG10: =IF(ItineraryPrograms!AK10="y",getScoreFactor("Program",BG$2),"") ->  | BH10: =IF(ItineraryPrograms!AL10="y",getScoreFactor("Program",BH$2),"") -> 255 | BI10: =IF(ItineraryPrograms!AM10="y",getScoreFactor("Program",BI$2),"") ->  | BJ10: =IF(ItineraryPrograms!AN10="y",getScoreFactor("Program",BJ$2),"") ->  | BK10: =IF(ItineraryPrograms!AO10="y",getScoreFactor("Program",BK$2),"") -> 181.5 | BL10: =IF(ItineraryPrograms!AP10="y",getScoreFactor("Program",BL$2),"") -> 220.5 | BM10: =IF(ItineraryPrograms!AQ10="y",getScoreFactor("Program",BM$2),"") ->  | BN10: =IF(ItineraryPrograms!AR10="y",getScoreFactor("Program",BN$2),"") ->  | BO10: =IF(ItineraryPrograms!AS10="y",getScoreFactor("Program",BO$2),"") ->  | BP10: =IF(ItineraryPrograms!AT10="y",getScoreFactor("Program",BP$2),"") ->  | BQ10: =IF(ItineraryPrograms!AU10="y",getScoreFactor("Program",BQ$2),"") ->  | BR10: =IF(ItineraryPrograms!AV10="y",getScoreFactor("Program",BR$2),"") ->  | BS10: =IF(ItineraryPrograms!AW10="y",getScoreFactor("Program",BS$2),"") ->  | BT10: =IF(ItineraryPrograms!AX10="y",getScoreFactor("Program",BT$2),"") ->  | BU10: =IF(ItineraryPrograms!AY10="y",getScoreFactor("Program",BU$2),"") ->  | BV10: =IF(ItineraryPrograms!AZ10="y",getScoreFactor("Program",BV$2),"") ->  | BW10: =IF(ItineraryPrograms!BA10="y",getScoreFactor("Program",BW$2),"") ->  | BX10: =IF(ItineraryPrograms!BB10="y",getScoreFactor("Program",BX$2),"") ->  | BY10: =IF(ItineraryPrograms!BC10="y",getScoreFactor("Program",BY$2),"") -> 133.5 | BZ10: =IF(ItineraryPrograms!BD10="y",getScoreFactor("Program",BZ$2),"") -> 285 | CA10: =IF(ItineraryPrograms!BE10="y",getScoreFactor("Program",CA$2),"") ->  | CB10: =IF(ItineraryPrograms!BF10="y",getScoreFactor("Program",CB$2),"") -> 
A11: =Itineraries!A11 -> 9-9 | B11: 11007.08333 | C11: =getScoreFactor(C$2,itineraryCamps!C12) -> 2833.333333 | D11: =getScoreFactor(D$2,"Miles") *itineraryCamps!D12 -> 4200 | E11: =getScoreFactor(E$2,Itineraries!B11) -> 40 | F11: =getScoreFactor(F$2,Itineraries!C11) -> 80 | G11: =getScoreFactor(G$2,Itineraries!E11) -> 50 | H11: =getScoreFactor(H$2,Itineraries!H11) -> 250 | I11: =getScoreFactor(I$2,Itineraries!G11) -> 75 | J11: =getScoreFactor(J$2,Itineraries!J11) -> 110 | K11: =getScoreFactor(K$2,Itineraries!K11) -> 90 | L11: =getScoreFactor(L$2,Itineraries!L11) -> 0 | M11: =IF(INDEX(startingTA,numericItinerary($A11))=$M$2,getScoreFactor(M$2,"y"),getScoreFactor(M$2,"n")) -> 0 | N11: =IF(INDEX(endingTA,numericItinerary($A11))=$N$2,getScoreFactor(N$2,"y"),getScoreFactor(N$2,"n")) -> 0 | O11: =IF(INDEX(baldyMountainHike,numericItinerary($A11))="","",getPeakScore(O$2)) ->  | P11: =IF(INDEX(mountPhillipsHike,numericItinerary($A11))="","",getPeakScore(P$2)) -> 231.75 | Q11: =IF(INDEX(toothOfTimeHike,numericItinerary($A11))="","",getPeakScore(Q$2)) ->  | R11: =IF(INDEX(inspirationPointHike,numericItinerary($A11))="","",getPeakScore(Q$2)) ->  | S11: =IF(INDEX(trailPeakHike,numericItinerary($A11))="","",getPeakScore(S$2)) ->  | T11: =IF(INDEX(mountaineeringHike,numericItinerary($A11))="","",getPeakScore(T$2)) -> 189 | U11: =IF(areaImportant<>"y","",IF(Itineraries!P11<>"Y","",getareascore(U$2))) -> 200 | V11: =IF(areaImportant<>"y","",IF(Itineraries!Q11<>"Y","",getareascore(V$2))) -> 150 | W11: =IF(areaImportant<>"y","",IF(Itineraries!R11<>"Y","",getareascore(W$2))) ->  | X11: =IF(areaImportant<>"y","",IF(Itineraries!S11<>"Y","",getareascore(X$2))) ->  | Y11: =IF(ItineraryPrograms!C11="y",getScoreFactor("Program",Y$2),"") ->  | Z11: =IF(ItineraryPrograms!D11="y",getScoreFactor("Program",Z$2),"") ->  | AA11: =IF(ItineraryPrograms!E11="y",getScoreFactor("Program",AA$2),"") ->  | AB11: =IF(ItineraryPrograms!F11="y",getScoreFactor("Program",AB$2),"") ->  | AC11: =IF(ItineraryPrograms!G11="y",getScoreFactor("Program",AC$2),"") ->  | AD11: =IF(ItineraryPrograms!H11="y",getScoreFactor("Program",AD$2),"") ->  | AE11: =IF(ItineraryPrograms!I11="y",getScoreFactor("Program",AE$2),"") ->  | AF11: =IF(ItineraryPrograms!J11="y",getScoreFactor("Program",AF$2),"") -> 126 | AG11: =IF(ItineraryPrograms!K11="y",getScoreFactor("Program",AG$2),"") -> 130.5 | AH11: =IF(ItineraryPrograms!L11="y",getScoreFactor("Program",AH$2),"") ->  | AI11: =IF(ItineraryPrograms!M11="y",getScoreFactor("Program",AI$2),"") -> 109.5 | AJ11: =IF(ItineraryPrograms!N11="y",getScoreFactor("Program",AJ$2),"") -> 109.5 | AK11: =IF(ItineraryPrograms!O11="y",getScoreFactor("Program",AK$2),"") -> 111 | AL11: =IF(ItineraryPrograms!P11="y",getScoreFactor("Program",AL$2),"") -> 114 | AM11: =IF(ItineraryPrograms!Q11="y",getScoreFactor("Program",AM$2),"") -> 123 | AN11: =IF(ItineraryPrograms!R11="y",getScoreFactor("Program",AN$2),"") -> 126 | AO11: =IF(ItineraryPrograms!S11="y",getScoreFactor("Program",AO$2),"") -> 106.5 | AP11: =IF(ItineraryPrograms!T11="y",getScoreFactor("Program",AP$2),"") -> 145.5 | AQ11: =IF(ItineraryPrograms!U11="y",getScoreFactor("Program",AQ$2),"") ->  | AR11: =IF(ItineraryPrograms!V11="y",getScoreFactor("Program",AR$2),"") ->  | AS11: =IF(ItineraryPrograms!W11="y",getScoreFactor("Program",AS$2),"") ->  | AT11: =IF(ItineraryPrograms!X11="y",getScoreFactor("Program",AT$2),"") -> 129 | AU11: =IF(ItineraryPrograms!Y11="y",getScoreFactor("Program",AU$2),"") -> 103.5 | AV11: =IF(ItineraryPrograms!Z11="y",getScoreFactor("Program",AV$2),"") ->  | AW11: =IF(ItineraryPrograms!AA11="y",getScoreFactor("Program",AW$2),"") ->  | AX11: =IF(ItineraryPrograms!AB11="y",getScoreFactor("Program",AX$2),"") ->  | AY11: =IF(ItineraryPrograms!AC11="y",getScoreFactor("Program",AY$2),"") ->  | AZ11: =IF(ItineraryPrograms!AD11="y",getScoreFactor("Program",AZ$2),"") ->  | BA11: =IF(ItineraryPrograms!AE11="y",getScoreFactor("Program",BA$2),"") ->  | BB11: =IF(ItineraryPrograms!AF11="y",getScoreFactor("Program",BB$2),"") -> 189 | BC11: =IF(ItineraryPrograms!AG11="y",getScoreFactor("Program",BC$2),"") -> 202.5 | BD11: =IF(ItineraryPrograms!AH11="y",getScoreFactor("Program",BD$2),"") ->  | BE11: =IF(ItineraryPrograms!AI11="y",getScoreFactor("Program",BE$2),"") ->  | BF11: =IF(ItineraryPrograms!AJ11="y",getScoreFactor("Program",BF$2),"") -> 220.5 | BG11: =IF(ItineraryPrograms!AK11="y",getScoreFactor("Program",BG$2),"") ->  | BH11: =IF(ItineraryPrograms!AL11="y",getScoreFactor("Program",BH$2),"") -> 255 | BI11: =IF(ItineraryPrograms!AM11="y",getScoreFactor("Program",BI$2),"") ->  | BJ11: =IF(ItineraryPrograms!AN11="y",getScoreFactor("Program",BJ$2),"") ->  | BK11: =IF(ItineraryPrograms!AO11="y",getScoreFactor("Program",BK$2),"") ->  | BL11: =IF(ItineraryPrograms!AP11="y",getScoreFactor("Program",BL$2),"") ->  | BM11: =IF(ItineraryPrograms!AQ11="y",getScoreFactor("Program",BM$2),"") ->  | BN11: =IF(ItineraryPrograms!AR11="y",getScoreFactor("Program",BN$2),"") ->  | BO11: =IF(ItineraryPrograms!AS11="y",getScoreFactor("Program",BO$2),"") ->  | BP11: =IF(ItineraryPrograms!AT11="y",getScoreFactor("Program",BP$2),"") ->  | BQ11: =IF(ItineraryPrograms!AU11="y",getScoreFactor("Program",BQ$2),"") ->  | BR11: =IF(ItineraryPrograms!AV11="y",getScoreFactor("Program",BR$2),"") ->  | BS11: =IF(ItineraryPrograms!AW11="y",getScoreFactor("Program",BS$2),"") ->  | BT11: =IF(ItineraryPrograms!AX11="y",getScoreFactor("Program",BT$2),"") ->  | BU11: =IF(ItineraryPrograms!AY11="y",getScoreFactor("Program",BU$2),"") -> 207 | BV11: =IF(ItineraryPrograms!AZ11="y",getScoreFactor("Program",BV$2),"") ->  | BW11: =IF(ItineraryPrograms!BA11="y",getScoreFactor("Program",BW$2),"") ->  | BX11: =IF(ItineraryPrograms!BB11="y",getScoreFactor("Program",BX$2),"") -> 235.5 | BY11: =IF(ItineraryPrograms!BC11="y",getScoreFactor("Program",BY$2),"") -> 133.5 | BZ11: =IF(ItineraryPrograms!BD11="y",getScoreFactor("Program",BZ$2),"") -> 285 | CA11: =IF(ItineraryPrograms!BE11="y",getScoreFactor("Program",CA$2),"") ->  | CB11: =IF(ItineraryPrograms!BF11="y",getScoreFactor("Program",CB$2),"") -> 
A12: =Itineraries!A12 -> 9-10 | B12: 12817 | C12: =getScoreFactor(C$2,itineraryCamps!C13) -> 3000 | D12: =getScoreFactor(D$2,"Miles") *itineraryCamps!D13 -> 5300 | E12: =getScoreFactor(E$2,Itineraries!B12) -> 30 | F12: =getScoreFactor(F$2,Itineraries!C12) -> 90 | G12: =getScoreFactor(G$2,Itineraries!E12) -> 50 | H12: =getScoreFactor(H$2,Itineraries!H12) -> 225 | I12: =getScoreFactor(I$2,Itineraries!G12) -> 100 | J12: =getScoreFactor(J$2,Itineraries!J12) -> 80 | K12: =getScoreFactor(K$2,Itineraries!K12) -> 80 | L12: =getScoreFactor(L$2,Itineraries!L12) -> 300 | M12: =IF(INDEX(startingTA,numericItinerary($A12))=$M$2,getScoreFactor(M$2,"y"),getScoreFactor(M$2,"n")) -> 0 | N12: =IF(INDEX(endingTA,numericItinerary($A12))=$N$2,getScoreFactor(N$2,"y"),getScoreFactor(N$2,"n")) -> 0 | O12: =IF(INDEX(baldyMountainHike,numericItinerary($A12))="","",getPeakScore(O$2)) -> 300 | P12: =IF(INDEX(mountPhillipsHike,numericItinerary($A12))="","",getPeakScore(P$2)) ->  | Q12: =IF(INDEX(toothOfTimeHike,numericItinerary($A12))="","",getPeakScore(Q$2)) ->  | R12: =IF(INDEX(inspirationPointHike,numericItinerary($A12))="","",getPeakScore(Q$2)) ->  | S12: =IF(INDEX(trailPeakHike,numericItinerary($A12))="","",getPeakScore(S$2)) ->  | T12: =IF(INDEX(mountaineeringHike,numericItinerary($A12))="","",getPeakScore(T$2)) -> 189 | U12: =IF(areaImportant<>"y","",IF(Itineraries!P12<>"Y","",getareascore(U$2))) ->  | V12: =IF(areaImportant<>"y","",IF(Itineraries!Q12<>"Y","",getareascore(V$2))) ->  | W12: =IF(areaImportant<>"y","",IF(Itineraries!R12<>"Y","",getareascore(W$2))) -> 1000 | X12: =IF(areaImportant<>"y","",IF(Itineraries!S12<>"Y","",getareascore(X$2))) ->  | Y12: =IF(ItineraryPrograms!C12="y",getScoreFactor("Program",Y$2),"") ->  | Z12: =IF(ItineraryPrograms!D12="y",getScoreFactor("Program",Z$2),"") ->  | AA12: =IF(ItineraryPrograms!E12="y",getScoreFactor("Program",AA$2),"") ->  | AB12: =IF(ItineraryPrograms!F12="y",getScoreFactor("Program",AB$2),"") ->  | AC12: =IF(ItineraryPrograms!G12="y",getScoreFactor("Program",AC$2),"") ->  | AD12: =IF(ItineraryPrograms!H12="y",getScoreFactor("Program",AD$2),"") ->  | AE12: =IF(ItineraryPrograms!I12="y",getScoreFactor("Program",AE$2),"") ->  | AF12: =IF(ItineraryPrograms!J12="y",getScoreFactor("Program",AF$2),"") ->  | AG12: =IF(ItineraryPrograms!K12="y",getScoreFactor("Program",AG$2),"") ->  | AH12: =IF(ItineraryPrograms!L12="y",getScoreFactor("Program",AH$2),"") ->  | AI12: =IF(ItineraryPrograms!M12="y",getScoreFactor("Program",AI$2),"") -> 109.5 | AJ12: =IF(ItineraryPrograms!N12="y",getScoreFactor("Program",AJ$2),"") -> 109.5 | AK12: =IF(ItineraryPrograms!O12="y",getScoreFactor("Program",AK$2),"") ->  | AL12: =IF(ItineraryPrograms!P12="y",getScoreFactor("Program",AL$2),"") ->  | AM12: =IF(ItineraryPrograms!Q12="y",getScoreFactor("Program",AM$2),"") -> 123 | AN12: =IF(ItineraryPrograms!R12="y",getScoreFactor("Program",AN$2),"") ->  | AO12: =IF(ItineraryPrograms!S12="y",getScoreFactor("Program",AO$2),"") ->  | AP12: =IF(ItineraryPrograms!T12="y",getScoreFactor("Program",AP$2),"") ->  | AQ12: =IF(ItineraryPrograms!U12="y",getScoreFactor("Program",AQ$2),"") -> 93 | AR12: =IF(ItineraryPrograms!V12="y",getScoreFactor("Program",AR$2),"") ->  | AS12: =IF(ItineraryPrograms!W12="y",getScoreFactor("Program",AS$2),"") -> 114 | AT12: =IF(ItineraryPrograms!X12="y",getScoreFactor("Program",AT$2),"") -> 129 | AU12: =IF(ItineraryPrograms!Y12="y",getScoreFactor("Program",AU$2),"") ->  | AV12: =IF(ItineraryPrograms!Z12="y",getScoreFactor("Program",AV$2),"") -> 162 | AW12: =IF(ItineraryPrograms!AA12="y",getScoreFactor("Program",AW$2),"") -> 201 | AX12: =IF(ItineraryPrograms!AB12="y",getScoreFactor("Program",AX$2),"") -> 145.5 | AY12: =IF(ItineraryPrograms!AC12="y",getScoreFactor("Program",AY$2),"") -> 150 | AZ12: =IF(ItineraryPrograms!AD12="y",getScoreFactor("Program",AZ$2),"") -> 175.5 | BA12: =IF(ItineraryPrograms!AE12="y",getScoreFactor("Program",BA$2),"") ->  | BB12: =IF(ItineraryPrograms!AF12="y",getScoreFactor("Program",BB$2),"") ->  | BC12: =IF(ItineraryPrograms!AG12="y",getScoreFactor("Program",BC$2),"") -> 202.5 | BD12: =IF(ItineraryPrograms!AH12="y",getScoreFactor("Program",BD$2),"") ->  | BE12: =IF(ItineraryPrograms!AI12="y",getScoreFactor("Program",BE$2),"") ->  | BF12: =IF(ItineraryPrograms!AJ12="y",getScoreFactor("Program",BF$2),"") ->  | BG12: =IF(ItineraryPrograms!AK12="y",getScoreFactor("Program",BG$2),"") ->  | BH12: =IF(ItineraryPrograms!AL12="y",getScoreFactor("Program",BH$2),"") ->  | BI12: =IF(ItineraryPrograms!AM12="y",getScoreFactor("Program",BI$2),"") ->  | BJ12: =IF(ItineraryPrograms!AN12="y",getScoreFactor("Program",BJ$2),"") ->  | BK12: =IF(ItineraryPrograms!AO12="y",getScoreFactor("Program",BK$2),"") ->  | BL12: =IF(ItineraryPrograms!AP12="y",getScoreFactor("Program",BL$2),"") ->  | BM12: =IF(ItineraryPrograms!AQ12="y",getScoreFactor("Program",BM$2),"") ->  | BN12: =IF(ItineraryPrograms!AR12="y",getScoreFactor("Program",BN$2),"") ->  | BO12: =IF(ItineraryPrograms!AS12="y",getScoreFactor("Program",BO$2),"") ->  | BP12: =IF(ItineraryPrograms!AT12="y",getScoreFactor("Program",BP$2),"") ->  | BQ12: =IF(ItineraryPrograms!AU12="y",getScoreFactor("Program",BQ$2),"") -> 151.5 | BR12: =IF(ItineraryPrograms!AV12="y",getScoreFactor("Program",BR$2),"") ->  | BS12: =IF(ItineraryPrograms!AW12="y",getScoreFactor("Program",BS$2),"") ->  | BT12: =IF(ItineraryPrograms!AX12="y",getScoreFactor("Program",BT$2),"") ->  | BU12: =IF(ItineraryPrograms!AY12="y",getScoreFactor("Program",BU$2),"") -> 207 | BV12: =IF(ItineraryPrograms!AZ12="y",getScoreFactor("Program",BV$2),"") -> 207 | BW12: =IF(ItineraryPrograms!BA12="y",getScoreFactor("Program",BW$2),"") ->  | BX12: =IF(ItineraryPrograms!BB12="y",getScoreFactor("Program",BX$2),"") -> 235.5 | BY12: =IF(ItineraryPrograms!BC12="y",getScoreFactor("Program",BY$2),"") -> 133.5 | BZ12: =IF(ItineraryPrograms!BD12="y",getScoreFactor("Program",BZ$2),"") -> 285 | CA12: =IF(ItineraryPrograms!BE12="y",getScoreFactor("Program",CA$2),"") ->  | CB12: =IF(ItineraryPrograms!BF12="y",getScoreFactor("Program",CB$2),"") -> 
